Workbook

Sheet Visor
A1: Resultados del Programa de apoyo a la generación de empleo
A2: Reporte por sector económico - consolidado nóminas septiembre y febrero 2022
A4: Seleccione el sector económico | D4: Industrias manufactureras | N4: =IFERROR(VLOOKUP(D4,Hoja4!$C$2:$D$23,2,FALSE),"") -> C
D8: Total Empleadores beneficiados | G8: % | H8: Jovenes | J8: Mujeres > 28 años | L8: Hombres > 28 años | N8: Total Empleados beneficiados | Q8: % | R8: Recursos asociados en Millones
A10: General | D10: =Hoja4!I24 -> 14787 | G10: =D10/$D$10 -> 1 | H10: =SUMIFS(insumos2!$T$2:$T$400000,insumos2!$J$2:$J$400000,"Aprobado con subsidio") -> 238148 | J10: =SUMIFS(insumos2!$U$2:$U$400000,insumos2!$J$2:$J$400000,"Aprobado con subsidio") -> 45929 | L10: =SUMIFS(insumos2!$V$2:$V$400000,insumos2!$J$2:$J$400000,"Aprobado con subsidio") -> 38068 | N10: =Hoja4!K24 -> 322145 | Q10: =N10/$N$10 -> 1 | R10: =Hoja4!M24/1000000 -> 157431.723
A11: ="Sección "&N4 -> Sección C | D11: =VLOOKUP(N4,Hoja4!$H$1:$M$24,2,FALSE) -> 2294 | G11: =D11/$D$10 -> 0.1551362683 | H11: =SUMIFS(insumos2!$BA$2:$BA$400000,insumos2!$AQ$2:$AQ$400000,"Aprobado con subsidio") -> 27109 | J11: =SUMIFS(insumos2!$BB$2:$BB$400000,insumos2!$AQ$2:$AQ$400000,"Aprobado con subsidio") -> 4559 | L11: =SUMIFS(insumos2!$BC$2:$BC$400000,insumos2!$AQ$2:$AQ$400000,"Aprobado con subsidio") -> 3358 | N11: =VLOOKUP(N4,Hoja4!$H$1:$M$24,4,FALSE) -> 35026 | Q11: =N11/$N$10 -> 0.1087274364 | R11: =VLOOKUP(N4,Hoja4!$H$1:$M$24,6,FALSE)/1000000 -> 17121.9678
B30: Empleadores | E30: Natural | H30: Jurídica | L30: Recurso en millones | O30: Natural | R30: Jurídica
B31: ="Total sección "&N4 -> Total sección C | E31: =COUNTIFS(insumos2!$AQ$1:$AQ$399999,"Aprobado con subsidio",insumos2!$AN$1:$AN$399999,"Natural") -> 198 | H31: =COUNTIFS(insumos2!$AQ$1:$AQ$399999,"Aprobado con subsidio",insumos2!$AN$1:$AN$399999,"Jurídica") -> 2096 | L31: ="Total sección "&N4 -> Total sección C | O31: =SUMIFS(insumos1!$K$2:$K$372158,insumos1!$H$2:$H$372158,Visor!N4,insumos1!$I$2:$I$372158,"Natural")/1000000 -> 270.823247 | R31: =SUMIFS(insumos1!$K$2:$K$372158,insumos1!$H$2:$H$372158,Visor!N4,insumos1!$I$2:$I$372158,"Jurídica")/1000000 -> 16851.14455
B32: ="% sección "&N4 -> % sección C | E32: =E31/(E31+H31) -> 0.08631211857 | H32: =H31/(E31+H31) -> 0.9136878814 | L32: ="% sección "&N4 -> % sección C | O32: =O31/(O31+R31) -> 0.01581729683 | R32: =R31/(O31+R31) -> 0.9841827032
B33: ="% general" -> % general | E33: 0.1646 | H33: 0.8354 | L33: ="% general" -> % general | O33: 0.0563 | R33: 0.9437
C36: Tamaño | E36: Empleadores | H36: % | J36: Empleados | N36: % | P36: Recursos en millones
C37: Micro | E37: =COUNTIFS(insumos2!$AQ$2:$AQ$399999,"Aprobado con subsidio",insumos2!$AR$2:$AR$399999,"MICRO") -> 882 | H37: =E37/$E$42 -> 0.3844812554 | J37: =SUMIFS(insumos2!$AL$2:$AL$399999,insumos2!$AQ$2:$AQ$399999,"Aprobado con subsidio",insumos2!$AR$2:$AR$399999,"MICRO") -> 3115 | N37: =J37/$J$42 -> 0.08893393479 | P37: =SUMIFS(insumos1!$K$2:$K$372158,insumos1!$H$2:$H$372158,Visor!N4,insumos1!$J$2:$J$372158,"MICRO")/1000000 -> 1257.906689
C38: Pequeña | E38: =COUNTIFS(insumos2!$AQ$2:$AQ$399999,"Aprobado con subsidio",insumos2!$AR$2:$AR$399999,"PEQUEÑA") -> 864 | H38: 0.3766346992 | J38: =SUMIFS(insumos2!$AL$2:$AL$399999,insumos2!$AQ$2:$AQ$399999,"Aprobado con subsidio",insumos2!$AR$2:$AR$399999,"PEQUEÑA") -> 6424 | N38: 0.1834066122 | P38: =SUMIFS(insumos1!$K$2:$K$372158,insumos1!$H$2:$H$372158,Visor!N4,insumos1!$J$2:$J$372158,"PEQUEÑA")/1000000 -> 0
C39: Mediana | E39: =COUNTIFS(insumos2!$AQ$2:$AQ$399999,"Aprobado con subsidio",insumos2!$AR$2:$AR$399999,"MEDIANA") -> 351 | H39: 0.1530078466 | J39: =SUMIFS(insumos2!$AL$2:$AL$399999,insumos2!$AQ$2:$AQ$399999,"Aprobado con subsidio",insumos2!$AR$2:$AR$399999,"MEDIANA") -> 6530 | N39: 0.1864329355 | P39: =SUMIFS(insumos1!$K$2:$K$372158,insumos1!$H$2:$H$372158,Visor!N4,insumos1!$J$2:$J$372158,"MEDIANA")/1000000 -> 3074.232088
C40: Grande | E40: =COUNTIFS(insumos2!$AQ$2:$AQ$399999,"Aprobado con subsidio",insumos2!$AR$2:$AR$399999,"GRANDE") -> 125 | H40: 0.05448997384 | J40: =SUMIFS(insumos2!$AL$2:$AL$399999,insumos2!$AQ$2:$AQ$399999,"Aprobado con subsidio",insumos2!$AR$2:$AR$399999,"GRANDE") -> 5990 | N40: 0.1710158168 | P40: =SUMIFS(insumos1!$K$2:$K$372158,insumos1!$H$2:$H$372158,Visor!N4,insumos1!$J$2:$J$372158,"GRANDE")/1000000 -> 3014.94708
C41: Muy grande | E41: =COUNTIFS(insumos2!$AQ$2:$AQ$399999,"Aprobado con subsidio",insumos2!$AR$2:$AR$399999,"MUY GRANDE") -> 72 | H41: 0.03138622493 | J41: =SUMIFS(insumos2!$AL$2:$AL$399999,insumos2!$AQ$2:$AQ$399999,"Aprobado con subsidio",insumos2!$AR$2:$AR$399999,"MUY GRANDE") -> 12967 | N41: 0.3702107006 | P41: =SUMIFS(insumos1!$K$2:$K$372158,insumos1!$H$2:$H$372158,Visor!N4,insumos1!$J$2:$J$372158,"MUY GRANDE")/1000000 -> 0
C42: Total | E42: =COUNTIFS(insumos2!$AQ$2:$AQ$399999,"Aprobado con subsidio") -> 2294 | H42: 1 | J42: =SUMIFS(insumos2!$AL$2:$AL$399999,insumos2!$AQ$2:$AQ$399999,"Aprobado con subsidio") -> 35026 | N42: 1 | P42: =P41+P40+P39+P37+P38 -> 7347.085857
B44: Tamaño | C44: ="Sección "&N4 -> Sección C | D44: general | E44: ="Sección "&N4 -> Sección C | F44: general
B45: Micro | C45: =H37 -> 0.3844812554 | D45: 0.6376801371 | E45: =N37 -> 0.08893393479 | F45: 0.104427293
B46: Pequeña | C46: =H38 -> 0.3766346992 | D46: 0.2743797922 | E46: =N38 -> 0.1834066122 | F46: 0.1894298344
B47: Mediana | C47: =H39 -> 0.1530078466 | D47: 0.06616490439 | E47: =N39 -> 0.1864329355 | F47: 0.1934365931
B48: Grande | C48: =H40 -> 0.05448997384 | D48: 0.01371264116 | E48: =N40 -> 0.1710158168 | F48: 0.1301781558
B49: Muy Grande | C49: =H41 -> 0.03138622493 | D49: 0.008062525129 | E49: =N41 -> 0.3702107006 | F49: 0.3835281237
G61: Actividad económica | J61: =D4 -> Industrias manufactureras | U61: =N4 -> C
A66: Distribución Departamental | K66: Distribución en los principales municipios del País
A67: Departamento | D67: Empleadores | F67: % | G67: Empleados | I67: % | K67: Departamento | M67: Municipio | P67: Empleadores | R67: % | S67: Empleados | U67: %
A68: =IFERROR(insumos2!BL2,"") -> Bogotá | D68: =insumos2!BM2 -> 676 | F68: =IFERROR(D68/$D$96,"") -> 0.2946817786 | G68: =insumos2!BN2 -> 10857 | I68: =G68/$G$96 -> 0.3099697368 | K68: =IFERROR(insumos2!BU2,"") -> Bogotá | M68: =IFERROR(insumos2!BV2,"") -> Bogotá, d.c. | P68: =IF(K68<>"",insumos2!BW2,"") -> 676 | R68: =IFERROR(P68/$P$96,"") -> 0.2946817786 | S68: =IF(K68<>"",insumos2!BX2,"") -> 10857 | U68: =IFERROR(S68/$S$96,"") -> 0.3099697368
A69: =IFERROR(insumos2!BL3,"") -> Antioquia | D69: =insumos2!BM3 -> 645 | F69: =IFERROR(D69/$D$96,"") -> 0.281168265 | G69: =insumos2!BN3 -> 10652 | I69: 0.3041169417 | K69: =IFERROR(insumos2!BU3,"") -> Antioquia | M69: =IFERROR(insumos2!BV3,"") -> Medellín | P69: =IF(K69<>"",insumos2!BW3,"") -> 314 | R69: =IFERROR(P69/$P$96,"") -> 0.1368788143 | S69: =IF(K69<>"",insumos2!BX3,"") -> 5259 | U69: =IFERROR(S69/$S$96,"") -> 0.1501456061
A70: =IFERROR(insumos2!BL4,"") -> Valle del cauca | D70: =insumos2!BM4 -> 239 | F70: 0.10418483 | G70: =insumos2!BN4 -> 4525 | I70: 0.1291897448 | K70: =IFERROR(insumos2!BU4,"") -> Valle del cauca | M70: =IFERROR(insumos2!BV4,"") -> Cali | P70: =IF(K70<>"",insumos2!BW4,"") -> 151 | R70: 0.0658238884 | S70: =IF(K70<>"",insumos2!BX4,"") -> 1836 | U70: 0.05241820362
A71: =IFERROR(insumos2!BL5,"") -> Cundinamarca | D71: =insumos2!BM5 -> 154 | F71: 0.06713164778 | G71: =insumos2!BN5 -> 1654 | I71: 0.04722206361 | K71: =IFERROR(insumos2!BU5,"") -> Antioquia | M71: =IFERROR(insumos2!BV5,"") -> Itagüí | P71: =IF(K71<>"",insumos2!BW5,"") -> 92 | R71: 0.04010462075 | S71: =IF(K71<>"",insumos2!BX5,"") -> 982 | U71: 0.02803631588
A72: =IFERROR(insumos2!BL6,"") -> Santander | D72: =insumos2!BM6 -> 128 | F72: 0.05579773322 | G72: =insumos2!BN6 -> 1079 | I72: 0.0308056872 | K72: =IFERROR(insumos2!BU6,"") -> Santander | M72: =IFERROR(insumos2!BV6,"") -> Bucaramanga | P72: =IF(K72<>"",insumos2!BW6,"") -> 78 | R72: 0.03400174368 | S72: =IF(K72<>"",insumos2!BX6,"") -> 720 | U72: 0.02055615828
A73: =IFERROR(insumos2!BL7,"") -> Atlántico | D73: =insumos2!BM7 -> 79 | F73: 0.03443766347 | G73: =insumos2!BN7 -> 1715 | I73: 0.04896362702 | K73: =IFERROR(insumos2!BU7,"") -> Atlántico | M73: =IFERROR(insumos2!BV7,"") -> Barranquilla | P73: =IF(K73<>"",insumos2!BW7,"") -> 66 | R73: 0.02877070619 | S73: =IF(K73<>"",insumos2!BX7,"") -> 1365 | U73: 0.03897105008
A74: =IFERROR(insumos2!BL8,"") -> Risaralda | D74: =insumos2!BM8 -> 62 | F74: 0.02702702703 | G74: =insumos2!BN8 -> 1268 | I74: 0.03620167875 | K74: =IFERROR(insumos2!BU8,"") -> Norte de stder | M74: =IFERROR(insumos2!BV8,"") -> Cucuta | P74: =IF(K74<>"",insumos2!BW8,"") -> 50 | R74: 0.02179598954 | S74: =IF(K74<>"",insumos2!BX8,"") -> 390 | U74: 0.01113458574
A75: =IFERROR(insumos2!BL9,"") -> Norte de stder | D75: =insumos2!BM9 -> 60 | F75: 0.02615518745 | G75: =insumos2!BN9 -> 459 | I75: 0.01310455091 | K75: =IFERROR(insumos2!BU9,"") -> Caldas | M75: =IFERROR(insumos2!BV9,"") -> Manizales | P75: =IF(K75<>"",insumos2!BW9,"") -> 38 | R75: 0.01656495205 | S75: =IF(K75<>"",insumos2!BX9,"") -> 325 | U75: 0.009278821447
A76: =IFERROR(insumos2!BL10,"") -> Caldas | D76: =insumos2!BM10 -> 45 | F76: 0.01961639058 | G76: =insumos2!BN10 -> 368 | I76: 0.0105064809 | K76: =IFERROR(insumos2!BU10,"") -> Valle del cauca | M76: =IFERROR(insumos2!BV10,"") -> Yumbo | P76: =IF(K76<>"",insumos2!BW10,"") -> 33 | R76: 0.0143853531 | S76: =IF(K76<>"",insumos2!BX10,"") -> 1875 | U76: 0.05353166219
A77: =IFERROR(insumos2!BL11,"") -> Quindío | D77: =insumos2!BM11 -> 28 | F77: 0.01220575414 | G77: =insumos2!BN11 -> 235 | I77: 0.006709301662 | K77: =IFERROR(insumos2!BU11,"") -> Risaralda | M77: =IFERROR(insumos2!BV11,"") -> Dosquebradas | P77: =IF(K77<>"",insumos2!BW11,"") -> 32 | R77: 0.0139494333 | S77: =IF(K77<>"",insumos2!BX11,"") -> 655 | U77: 0.01870039399
A78: =IFERROR(insumos2!BL12,"") -> Tolima | D78: =insumos2!BM12 -> 27 | F78: 0.01176983435 | G78: =insumos2!BN12 -> 311 | I78: 0.008879118369 | K78: =IFERROR(insumos2!BU12,"") -> Antioquia | M78: =IFERROR(insumos2!BV12,"") -> La estrella | P78: =IF(K78<>"",insumos2!BW12,"") -> 31 | R78: 0.01351351351 | S78: =IF(K78<>"",insumos2!BX12,"") -> 318 | U78: 0.009078969908
A79: =IFERROR(insumos2!BL13,"") -> Bolívar | D79: =insumos2!BM13 -> 22 | F79: 0.009590235397 | G79: =insumos2!BN13 -> 449 | I79: 0.01281904871 | K79: =IFERROR(insumos2!BU13,"") -> Antioquia | M79: =IFERROR(insumos2!BV13,"") -> Envigado | P79: =IF(K79<>"",insumos2!BW13,"") -> 31 | R79: 0.01351351351 | S79: =IF(K79<>"",insumos2!BX13,"") -> 779 | U79: 0.02224062125
A80: =IFERROR(insumos2!BL14,"") -> Boyacá | D80: =insumos2!BM14 -> 22 | F80: 0.009590235397 | G80: =insumos2!BN14 -> 397 | I80: 0.01133443728 | K80: =IFERROR(insumos2!BU14,"") -> Cundinamarca | M80: =IFERROR(insumos2!BV14,"") -> Cota | P80: =IF(K80<>"",insumos2!BW14,"") -> 31 | R80: 0.01351351351 | S80: =IF(K80<>"",insumos2!BX14,"") -> 216 | U80: 0.006166847485
A81: =IFERROR(insumos2!BL15,"") -> Nariño | D81: =insumos2!BM15 -> 16 | F81: 0.006974716652 | G81: =insumos2!BN15 -> 60 | I81: 0.00171301319 | K81: =IFERROR(insumos2!BU15,"") -> Antioquia | M81: =IFERROR(insumos2!BV15,"") -> Sabaneta | P81: =IF(K81<>"",insumos2!BW15,"") -> 30 | R81: 0.01307759372 | S81: =IF(K81<>"",insumos2!BX15,"") -> 568 | U81: 0.01621652487
A82: =IFERROR(insumos2!BL16,"") -> Meta | D82: =insumos2!BM16 -> 16 | F82: 0.006974716652 | G82: =insumos2!BN16 -> 138 | I82: 0.003939930337 | K82: =IFERROR(insumos2!BU16,"") -> Antioquia | M82: =IFERROR(insumos2!BV16,"") -> Rionegro | P82: =IF(K82<>"",insumos2!BW16,"") -> 29 | R82: 0.01264167393 | S82: =IF(K82<>"",insumos2!BX16,"") -> 1000 | U82: 0.02855021984
A83: =IFERROR(insumos2!BL17,"") -> Huila | D83: =insumos2!BM17 -> 16 | F83: 0.006974716652 | G83: =insumos2!BN17 -> 83 | I83: 0.002369668246 | K83: =IFERROR(insumos2!BU17,"") -> Risaralda | M83: =IFERROR(insumos2!BV17,"") -> Pereira | P83: =IF(K83<>"",insumos2!BW17,"") -> 27 | R83: 0.01176983435 | S83: =IF(K83<>"",insumos2!BX17,"") -> 553 | U83: 0.01578827157
A84: =IFERROR(insumos2!BL18,"") -> Cauca | D84: =insumos2!BM18 -> 12 | F84: 0.005231037489 | G84: =insumos2!BN18 -> 157 | I84: 0.004482384514 | K84: =IFERROR(insumos2!BU18,"") -> Tolima | M84: =IFERROR(insumos2!BV18,"") -> Ibagué | P84: =IF(K84<>"",insumos2!BW18,"") -> 25 | R84: 0.01089799477 | S84: =IF(K84<>"",insumos2!BX18,"") -> 306 | U84: 0.00873636727
A85: =IFERROR(insumos2!BL19,"") -> Magdalena | D85: =insumos2!BM19 -> 12 | F85: 0.005231037489 | G85: =insumos2!BN19 -> 41 | I85: 0.001170559013 | K85: =IFERROR(insumos2!BU19,"") -> Cundinamarca | M85: =IFERROR(insumos2!BV19,"") -> Soacha | P85: =IF(K85<>"",insumos2!BW19,"") -> 23 | R85: 0.01002615519 | S85: =IF(K85<>"",insumos2!BX19,"") -> 217 | U85: 0.006195397705
A86: =IFERROR(insumos2!BL20,"") -> Casanare | D86: =insumos2!BM20 -> 8 | F86: 0.003487358326 | G86: =insumos2!BN20 -> 60 | I86: 0.00171301319 | K86: =IFERROR(insumos2!BU20,"") -> Quindío | M86: =IFERROR(insumos2!BV20,"") -> Armenia | P86: =IF(K86<>"",insumos2!BW20,"") -> 22 | R86: 0.009590235397 | S86: =IF(K86<>"",insumos2!BX20,"") -> 166 | U86: 0.004739336493
A87: =IFERROR(insumos2!BL21,"") -> Cesar | D87: =insumos2!BM21 -> 8 | F87: 0.003487358326 | G87: =insumos2!BN21 -> 48 | I87: 0.001370410552 | K87: =IFERROR(insumos2!BU21,"") -> Valle del cauca | M87: =IFERROR(insumos2!BV21,"") -> Palmira | P87: =IF(K87<>"",insumos2!BW21,"") -> 21 | R87: 0.009154315606 | S87: =IF(K87<>"",insumos2!BX21,"") -> 271 | U87: 0.007737109576
A88: =IFERROR(insumos2!BL22,"") -> Córdoba | D88: =insumos2!BM22 -> 8 | F88: 0.003487358326 | G88: =insumos2!BN22 -> 288 | I88: 0.008222463313 | K88: =IFERROR(insumos2!BU22,"") -> Antioquia | M88: =IFERROR(insumos2!BV22,"") -> Bello | P88: =IF(K88<>"",insumos2!BW22,"") -> 20 | R88: 0.008718395815 | S88: =IF(K88<>"",insumos2!BX22,"") -> 148 | U88: 0.004225432536
A89: =IFERROR(insumos2!BL23,"") -> Caquetá | D89: =insumos2!BM23 -> 4 | F89: 0.001743679163 | G89: =insumos2!BN23 -> 15 | I89: 0.0004282532976 | K89: =IFERROR(insumos2!BU23,"") -> Bolívar | M89: =IFERROR(insumos2!BV23,"") -> Cartagena de ind | P89: =IF(K89<>"",insumos2!BW23,"") -> 20 | R89: 0.008718395815 | S89: =IF(K89<>"",insumos2!BX23,"") -> 187 | U89: 0.005338891109
A90: =IFERROR(insumos2!BL24,"") -> Sucre | D90: =insumos2!BM24 -> 3 | F90: 0.001307759372 | G90: =insumos2!BN24 -> 15 | I90: 0.0004282532976 | K90: =IFERROR(insumos2!BU24,"") -> Santander | M90: =IFERROR(insumos2!BV24,"") -> Girón | P90: =IF(K90<>"",insumos2!BW24,"") -> 19 | R90: 0.008282476024 | S90: =IF(K90<>"",insumos2!BX24,"") -> 235 | U90: 0.006709301662
A91: =IFERROR(insumos2!BL25,"") -> Putumayo | D91: =insumos2!BM25 -> 3 | F91: 0.001307759372 | G91: =insumos2!BN25 -> 5 | I91: 0.0001427510992 | K91: =IFERROR(insumos2!BU25,"") -> Cundinamarca | M91: =IFERROR(insumos2!BV25,"") -> Funza | P91: =IF(K91<>"",insumos2!BW25,"") -> 18 | R91: 0.007846556234 | S91: =IF(K91<>"",insumos2!BX25,"") -> 163 | U91: 0.004653685833
A92: =IFERROR(insumos2!BL26,"") -> Arauca | D92: =insumos2!BM26 -> 1 | F92: =D92/$D$96 -> 0.0004359197908 | G92: =insumos2!BN26 -> 147 | I92: 0.004196882316 | K92: =IFERROR(insumos2!BU26,"") -> Cundinamarca | M92: =IFERROR(insumos2!BV26,"") -> Tocancipá | P92: =IF(K92<>"",insumos2!BW26,"") -> 17 | R92: 0.007410636443 | S92: =IF(K92<>"",insumos2!BX26,"") -> 276 | U92: 0.007879860675
A93: =IFERROR(insumos2!BL27,"") -> Vaupés | D93: =insumos2!BM27 -> 0 | F93: 0 | G93: =insumos2!BN27 -> 0 | I93: 0 | K93: =IFERROR(insumos2!BU27,"") -> Cundinamarca | M93: =IFERROR(insumos2!BV27,"") -> Mosquera | P93: =IF(K93<>"",insumos2!BW27,"") -> 17 | R93: 0.007410636443 | S93: =IF(K93<>"",insumos2!BX27,"") -> 188 | U93: 0.005367441329
A94: =IFERROR(insumos2!BL28,"") -> La guajira | D94: =insumos2!BM28 -> 0 | F94: 0 | G94: =insumos2!BN28 -> 0 | I94: 0 | K94: =IFERROR(insumos2!BU28,"") -> Meta | M94: =IFERROR(insumos2!BV28,"") -> Villavicencio | P94: =IF(K94<>"",insumos2!BW28,"") -> 14 | R94: 0.006102877071 | S94: =IF(K94<>"",insumos2!BX28,"") -> 134 | U94: 0.003825729458
A95: =IFERROR(insumos2!BL29,"") -> Otros | D95: =insumos2!BM29 -> 0 | F95: 0 | G95: =insumos2!BN29 -> 0 | I95: 0 | K95: =IF(K94="","",IFERROR(insumos2!BU29,"")) -> Otros | M95: =IF(M94="","",IFERROR(insumos2!BV29,"")) -> Otros | P95: =IF(K95<>"",insumos2!BW29,"") -> 369 | R95: 0.1608544028 | S95: =IF(K95<>"",insumos2!BX29,"") -> 5037 | U95: 0.1438074573
A96: =insumos2!BL30 -> Total | D96: =insumos2!BM30 -> 2294 | F96: =D96/$D$96 -> 1 | G96: =insumos2!BN30 -> 35026 | I96: 1 | K96: =insumos2!BU30 -> Total | P96: =insumos2!BW30 -> 2294 | R96: =P96/$P$96 -> 1 | S96: =insumos2!BX30 -> 35026 | U96: =S96/$S$96 -> 1
G127: Actividad económica | J127: =J61 -> Industrias manufactureras | U127: =U61 -> C
B131: Sexo | D131: ="Total empleadores sección "&N4 -> Total empleadores sección C | G131: %
B133: Hombres | D133: =VLOOKUP(N4,Hoja4!$H$2:$P$23,7,FALSE) -> 15879 | G133: =D133/$D$136 -> 0.4533489408
B134: Mujeres | D134: =VLOOKUP(N4,Hoja4!$H$2:$P$23,8,FALSE) -> 19147 | G134: =D134/$D$136 -> 0.5466510592
B135: No disponible | D135: =VLOOKUP(N4,Hoja4!$H$2:$P$23,9,FALSE) -> 0 | G135: =D135/$D$136 -> 0
B136: Total | D136: =D135+D134+D133 -> 35026 | G136: =D136/$D$136 -> 1
B139: ="Para la Sección "&U127&" hay "&ROUND(VLOOKUP(U127,Hoja4!$H$2:$R$23,11,FALSE),0)&" mujeres por cada 100 hombres beneficiados del Programa." -> Para la Sección C hay 121 mujeres por cada 100 hombres beneficiados del Programa.
G204: Actividad económica | J204: =J127 -> Industrias manufactureras | U204: =U127 -> C
B214: ="Grupo o División de la sección "&U127 -> Grupo o División de la sección C | I214: Empleadores | M214: % | O214: Empleados | S214: %
B215: =IF(insumos2!CC2=0,"",insumos2!CC2) -> Elaboración de productos alimenticios | I215: =IF(insumos2!CC2=0,"",insumos2!CD2) -> 461 | M215: =IFERROR(I215/insumos2!$CA$28,"") -> 0.2009590235 | O215: =IF(insumos2!CE2=0,"",insumos2!CE2) -> 7123 | S215: =IFERROR(O215/insumos2!$CB$28,"") -> 0.2033632159
B216: =IF(insumos2!CC3=0,"",insumos2!CC3) -> Confección de prendas de vestir | I216: =IF(insumos2!CC3=0,"",insumos2!CD3) -> 432 | M216: =IFERROR(I216/insumos2!$CA$28,"") -> 0.1883173496 | O216: =IF(insumos2!CE3=0,"",insumos2!CE3) -> 12260 | S216: =IFERROR(O216/insumos2!$CB$28,"") -> 0.3500256952
B217: =IF(insumos2!CC4=0,"",insumos2!CC4) -> Instalación, mantenimiento y reparación especializado de maquinaria y equipo | I217: =IF(insumos2!CC4=0,"",insumos2!CD4) -> 198 | M217: =IFERROR(I217/insumos2!$CA$28,"") -> 0.08631211857 | O217: =IF(insumos2!CE4=0,"",insumos2!CE4) -> 1595 | S217: =IFERROR(O217/insumos2!$CB$28,"") -> 0.04553760064
B218: =IF(insumos2!CC5=0,"",insumos2!CC5) -> Fabricación de productos elaborados de metal, excepto maquinaria y equipo | I218: =IF(insumos2!CC5=0,"",insumos2!CD5) -> 184 | M218: =IFERROR(I218/insumos2!$CA$28,"") -> 0.0802092415 | O218: =IF(insumos2!CE5=0,"",insumos2!CE5) -> 1641 | S218: =IFERROR(O218/insumos2!$CB$28,"") -> 0.04685091075
B219: =IF(insumos2!CC6=0,"",insumos2!CC6) -> Fabricación de productos de caucho y de plástico | I219: =IF(insumos2!CC6=0,"",insumos2!CD6) -> 126 | M219: =IFERROR(I219/insumos2!$CA$28,"") -> 0.05492589364 | O219: =IF(insumos2!CE6=0,"",insumos2!CE6) -> 1621 | S219: =IFERROR(O219/insumos2!$CB$28,"") -> 0.04627990636
B220: =IF(insumos2!CC7=0,"",insumos2!CC7) -> Fabricación de productos textiles | I220: =IF(insumos2!CC7=0,"",insumos2!CD7) -> 105 | M220: =IFERROR(I220/insumos2!$CA$28,"") -> 0.04577157803 | O220: =IF(insumos2!CE7=0,"",insumos2!CE7) -> 1761 | S220: =IFERROR(O220/insumos2!$CB$28,"") -> 0.05027693713
B221: =IF(insumos2!CC8=0,"",insumos2!CC8) -> Fabricación de sustancias y productos químicos | I221: =IF(insumos2!CC8=0,"",insumos2!CD8) -> 104 | M221: =IFERROR(I221/insumos2!$CA$28,"") -> 0.04533565824 | O221: =IF(insumos2!CE8=0,"",insumos2!CE8) -> 1054 | S221: =IFERROR(O221/insumos2!$CB$28,"") -> 0.03009193171
B222: =IF(insumos2!CC9=0,"",insumos2!CC9) -> Otras industrias manufactureras | I222: =IF(insumos2!CC9=0,"",insumos2!CD9) -> 85 | M222: =IFERROR(I222/insumos2!$CA$28,"") -> 0.03705318221 | O222: =IF(insumos2!CE9=0,"",insumos2!CE9) -> 805 | S222: =IFERROR(O222/insumos2!$CB$28,"") -> 0.02298292697
B223: =IF(insumos2!CC10=0,"",insumos2!CC10) -> Fabricación de muebles, colchones y somieres | I223: =IF(insumos2!CC10=0,"",insumos2!CD10) -> 78 | M223: =IFERROR(I223/insumos2!$CA$28,"") -> 0.03400174368 | O223: =IF(insumos2!CE10=0,"",insumos2!CE10) -> 606 | S223: =IFERROR(O223/insumos2!$CB$28,"") -> 0.01730143322
B224: =IF(insumos2!CC11=0,"",insumos2!CC11) -> Actividades de impresión y de producción de copias a partir de grabaciones originales | I224: =IF(insumos2!CC11=0,"",insumos2!CD11) -> 61 | M224: =IFERROR(I224/insumos2!$CA$28,"") -> 0.02659110724 | O224: =IF(insumos2!CE11=0,"",insumos2!CE11) -> 381 | S224: =IFERROR(O224/insumos2!$CB$28,"") -> 0.01087763376
B225: =IF(insumos2!CC12=0,"",insumos2!CC12) -> Fabricación de maquinaria y equipo n.c.p. | I225: =IF(insumos2!CC12=0,"",insumos2!CD12) -> 60 | M225: =IFERROR(I225/insumos2!$CA$28,"") -> 0.02615518745 | O225: =IF(insumos2!CE12=0,"",insumos2!CE12) -> 683 | S225: =IFERROR(O225/insumos2!$CB$28,"") -> 0.01949980015
B226: =IF(insumos2!CC13=0,"",insumos2!CC13) -> Curtido y recurtido de cueros; fabricación de calzado; fabricación de artículos de viaje, maletas, bolsos de mano y artículos similares, y fabricación de artículos de talabartería y guarnicionería; adobo y teñido de pieles | I226: =IF(insumos2!CC13=0,"",insumos2!CD13) -> 59 | M226: =IFERROR(I226/insumos2!$CA$28,"") -> 0.02571926765 | O226: =IF(insumos2!CE13=0,"",insumos2!CE13) -> 695 | S226: =IFERROR(O226/insumos2!$CB$28,"") -> 0.01984240279
B227: =IF(insumos2!CC14=0,"",insumos2!CC14) -> Fabricación de otros productos minerales no metálicos | I227: =IF(insumos2!CC14=0,"",insumos2!CD14) -> 56 | M227: =IFERROR(I227/insumos2!$CA$28,"") -> 0.02441150828 | O227: =IF(insumos2!CE14=0,"",insumos2!CE14) -> 788 | S227: =IFERROR(O227/insumos2!$CB$28,"") -> 0.02249757323
B228: =IF(insumos2!CC15=0,"",insumos2!CC15) -> Transformación de la madera y fabricación de productos de madera y de corcho, excepto muebles; fabricación de artículos de cestería y espartería | I228: =IF(insumos2!CC15=0,"",insumos2!CD15) -> 53 | M228: =IFERROR(I228/insumos2!$CA$28,"") -> 0.02310374891 | O228: =IF(insumos2!CE15=0,"",insumos2!CE15) -> 325 | S228: =IFERROR(O228/insumos2!$CB$28,"") -> 0.009278821447
B229: =IF(insumos2!CC16=0,"",insumos2!CC16) -> Fabricación de papel, cartón y productos de papel y cartón | I229: =IF(insumos2!CC16=0,"",insumos2!CD16) -> 38 | M229: =IFERROR(I229/insumos2!$CA$28,"") -> 0.01656495205 | O229: =IF(insumos2!CE16=0,"",insumos2!CE16) -> 247 | S229: =IFERROR(O229/insumos2!$CB$28,"") -> 0.0070519043
B230: =IF(insumos2!CC17=0,"",insumos2!CC17) -> Fabricación de vehículos automotores, remolques y semirremolques | I230: =IF(insumos2!CC17=0,"",insumos2!CD17) -> 38 | M230: =IFERROR(I230/insumos2!$CA$28,"") -> 0.01656495205 | O230: =IF(insumos2!CE17=0,"",insumos2!CE17) -> 457 | S230: =IFERROR(O230/insumos2!$CB$28,"") -> 0.01304745047
B231: =IF(insumos2!CC18=0,"",insumos2!CC18) -> Fabricación de aparatos y equipo eléctrico | I231: =IF(insumos2!CC18=0,"",insumos2!CD18) -> 36 | M231: =IFERROR(I231/insumos2!$CA$28,"") -> 0.01569311247 | O231: =IF(insumos2!CE18=0,"",insumos2!CE18) -> 1034 | S231: =IFERROR(O231/insumos2!$CB$28,"") -> 0.02952092731
B232: =IF(insumos2!CC19=0,"",insumos2!CC19) -> Elaboración de bebidas | I232: =IF(insumos2!CC19=0,"",insumos2!CD19) -> 31 | M232: =IFERROR(I232/insumos2!$CA$28,"") -> 0.01351351351 | O232: =IF(insumos2!CE19=0,"",insumos2!CE19) -> 400 | S232: =IFERROR(O232/insumos2!$CB$28,"") -> 0.01142008793
B233: =IF(insumos2!CC20=0,"",insumos2!CC20) -> Fabricación de productos farmacéuticos, sustancias químicas medicinales y productos botánicos de uso farmacéutico | I233: =IF(insumos2!CC20=0,"",insumos2!CD20) -> 31 | M233: =IFERROR(I233/insumos2!$CA$28,"") -> 0.01351351351 | O233: =IF(insumos2!CE20=0,"",insumos2!CE20) -> 496 | S233: =IFERROR(O233/insumos2!$CB$28,"") -> 0.01416090904
B234: =IF(insumos2!CC21=0,"",insumos2!CC21) -> Fabricación de productos metalúrgicos básicos | I234: =IF(insumos2!CC21=0,"",insumos2!CD21) -> 25 | M234: =IFERROR(I234/insumos2!$CA$28,"") -> 0.01089799477 | O234: =IF(insumos2!CE21=0,"",insumos2!CE21) -> 517 | S234: =IFERROR(O234/insumos2!$CB$28,"") -> 0.01476046366
B235: =IF(insumos2!CC22=0,"",insumos2!CC22) -> Fabricación de productos informáticos, electrónicos y ópticos | I235: =IF(insumos2!CC22=0,"",insumos2!CD22) -> 15 | M235: =IFERROR(I235/insumos2!$CA$28,"") -> 0.006538796861 | O235: =IF(insumos2!CE22=0,"",insumos2!CE22) -> 119 | S235: =IFERROR(O235/insumos2!$CB$28,"") -> 0.003397476161
B236: =IF(insumos2!CC23=0,"",insumos2!CC23) -> Fabricación de otros tipos de equipo de transporte | I236: =IF(insumos2!CC23=0,"",insumos2!CD23) -> 9 | M236: =IFERROR(I236/insumos2!$CA$28,"") -> 0.003923278117 | O236: =IF(insumos2!CE23=0,"",insumos2!CE23) -> 276 | S236: =IFERROR(O236/insumos2!$CB$28,"") -> 0.007879860675
B237: =IF(insumos2!CC24=0,"",insumos2!CC24) -> Coquización, fabricación de productos de la refinación del petróleo y actividad de mezcla de combustibles | I237: =IF(insumos2!CC24=0,"",insumos2!CD24) -> 7 | M237: =IFERROR(I237/insumos2!$CA$28,"") -> 0.003051438535 | O237: =IF(insumos2!CE24=0,"",insumos2!CE24) -> 37 | S237: =IFERROR(O237/insumos2!$CB$28,"") -> 0.001056358134
B238: =IF(insumos2!CC25=0,"",insumos2!CC25) -> Elaboración de productos de tabaco | I238: =IF(insumos2!CC25=0,"",insumos2!CD25) -> 2 | M238: =IFERROR(I238/insumos2!$CA$28,"") -> 0.0008718395815 | O238: =IF(insumos2!CE25=0,"",insumos2!CE25) -> 105 | S238: =IFERROR(O238/insumos2!$CB$28,"") -> 0.002997773083
B239: =IF(insumos2!CC26=0,"",insumos2!CC26) ->  | I239: =IF(insumos2!CC26=0,"",insumos2!CD26) ->  | M239: =IFERROR(I239/insumos2!$CA$28,"") ->  | O239: =IF(insumos2!CE26=0,"",insumos2!CE26) ->  | S239: =IFERROR(O239/insumos2!$CB$28,"") -> 
B242: Postulaciones recibidas en la sección | F242: Cantidad | I242: % | L242: Empleados postulados en la sección | P242: Cantidad | S242: %
B243: Total solicitudes | F243: =COUNT(insumos2!$AL$2:$AL$399999) -> 3472 | I243: =F243/$F$243 -> 1 | L243: Total empleados | P243: =SUM(insumos2!$AL$2:$AM$399999) -> 99628 | S243: =P243/$P$243 -> 1
B244: Empleadores con beneficiados | F244: =COUNTIFS(insumos2!$AQ$2:$AQ$399999,"Aprobado con subsidio") -> 2294 | I244: =F244/$F$243 -> 0.6607142857 | L244: Conformidad | P244: =SUMIFS(insumos2!$AL$2:$AL$399999,insumos2!$AQ$2:$AQ$399999,"Aprobado con subsidio") -> 35026 | S244: =P244/$P$243 -> 0.3515678323
B245: Empleadores sin beneficio | F245: =F243-F244 -> 1178 | I245: =F245/$F$243 -> 0.3392857143 | L245: No conformidad | P245: =P243-P244 -> 64602 | S245: =P245/$P$243 -> 0.6484321677

Sheet insumos1 (hidden)
A1: Ciclo | B1: DIVIPOLA1 | C1: MpioNOM | D1: Depto | E1: DeptoNOM | F1: NOM_AECONOMICA1 | G1: SECTOR_ECONOMICO1 | H1: actividad | I1: TIPO_PERSONA1 | J1: SIZE1 | K1: Suma de RECURSOS1 | Q1: Suma de Suma de RECURSOS1 | R1: Etiquetas de columna
B2: 5001 | C2: MEDELLÍN | D2: 5 | E2: ANTIOQUIA | F2: AGRICULTURA, GANADERÍA, CAZA, SILVICULTURA Y PESCA | G2: 141 | H2: A | I2: Natural | J2: MICRO | K2: 454262 | Q2: Etiquetas de fila | R2: (en blanco) | S2: Total general
B3: 25307 | C3: GIRARDOT | D3: 25 | E3: CUNDINAMARCA | F3: COMERCIO AL POR MAYOR Y AL POR MENOR; REPARACIÓN DE VEHÍCULOS AUTOMOTORES Y MOTOCICLETAS | G3: 4530 | H3: G | I3: Natural | J3: MICRO | K3: 250000 | Q3: ACTIVIDADES ARTÍSTICAS, DE ENTRETENIMIENTO Y RECREACIÓN | R3: 753769500 | S3: 753769500
B4: 11001 | C4: BOGOTÁ, D.C. | D4: 11 | E4: BOGOTÁ, D.C. | F4: COMERCIO AL POR MAYOR Y AL POR MENOR; REPARACIÓN DE VEHÍCULOS AUTOMOTORES Y MOTOCICLETAS | G4: 4663 | H4: G | I4: Natural | J4: MICRO | K4: 977131 | Q4: ACTIVIDADES DE ATENCIÓN DE LA SALUD HUMANA Y DE ASISTENCIA SOCIAL | R4: 2381098500 | S4: 2381098500
B5: 15176 | C5: CHIQUINQUIRÁ | D5: 15 | E5: BOYACÁ | F5: COMERCIO AL POR MAYOR Y AL POR MENOR; REPARACIÓN DE VEHÍCULOS AUTOMOTORES Y MOTOCICLETAS | G5: 4752 | H5: G | I5: Natural | J5: MICRO | K5: 908524 | Q5: ACTIVIDADES DE LOS HOGARES INDIVIDUALES EN CALIDAD DE EMPLEADORES; ACTIVIDADES NO DIFERENCIADAS DE LOS HOGARES INDIVIDUALES COMO PRODUCTORES DE BIENES Y SERVICIOS PARA USO PROPIO | R5: 17424000 | S5: 17424000
B6: 76001 | C6: CALI | D6: 76 | E6: VALLE DEL CAUCA | F6: COMERCIO AL POR MAYOR Y AL POR MENOR; REPARACIÓN DE VEHÍCULOS AUTOMOTORES Y MOTOCICLETAS | G6: 4774 | H6: G | I6: Natural | J6: MICRO | K6: 454262 | Q6: ACTIVIDADES DE SERVICIOS ADMINISTRATIVOS Y DE APOYO | R6: 10798161000 | S6: 10798161000
B7: 76001 | C7: CALI | D7: 76 | E7: VALLE DEL CAUCA | F7: ALOJAMIENTO Y SERVICIOS DE COMIDA | G7: 5511 | H7: I | I7: Natural | J7: MICRO | K7: 454262 | Q7: ACTIVIDADES FINANCIERAS Y DE SEGUROS | R7: 617644500 | S7: 617644500
B8: 41001 | C8: NEIVA | D8: 41 | E8: HUILA | F8: COMERCIO AL POR MAYOR Y AL POR MENOR; REPARACIÓN DE VEHÍCULOS AUTOMOTORES Y MOTOCICLETAS | G8: 4729 | H8: G | I8: Natural | J8: MICRO | K8: 150000 | Q8: ACTIVIDADES INMOBILIARIAS | R8: 522357000 | S8: 522357000
B9: 52356 | C9: IPIALES | D9: 52 | E9: NARIÑO | F9: TRANSPORTE Y ALMACENAMIENTO | G9: 4923 | H9: H | I9: Natural | J9: MICRO | K9: 400000 | Q9: ACTIVIDADES PROFESIONALES, CIENTÍFICAS Y TÉCNICAS | R9: 5504169000 | S9: 5504169000
B10: 54405 | C10: LOS PATIOS | D10: 54 | E10: NORTE DE SANTANDER | F10: TRANSPORTE Y ALMACENAMIENTO | G10: 4923 | H10: H | I10: Natural | J10: MICRO | K10: 317983 | Q10: ADMINISTRACIÓN PÚBLICA Y DEFENSA; PLANES DE SEGURIDAD SOCIAL DE AFILIACIÓN OBLIGATORIA | R10: 109263000 | S10: 109263000
B11: 76828 | C11: TRUJILLO | D11: 76 | E11: VALLE DEL CAUCA | F11: COMERCIO AL POR MAYOR Y AL POR MENOR; REPARACIÓN DE VEHÍCULOS AUTOMOTORES Y MOTOCICLETAS | G11: 4752 | H11: G | I11: Natural | J11: MICRO | K11: 2331080 | Q11: AGRICULTURA, GANADERÍA, CAZA, SILVICULTURA Y PESCA | R11: 4285033500 | S11: 4285033500
B12: 11001 | C12: BOGOTÁ, D.C. | D12: 11 | E12: BOGOTÁ, D.C. | F12: INDUSTRIAS MANUFACTURERAS | G12: 1313 | H12: C | I12: Natural | J12: MICRO | K12: 726818 | Q12: ALOJAMIENTO Y SERVICIOS DE COMIDA | R12: 3928567500 | S12: 3928567500
B13: 11001 | C13: BOGOTÁ, D.C. | D13: 11 | E13: BOGOTÁ, D.C. | F13: COMERCIO AL POR MAYOR Y AL POR MENOR; REPARACIÓN DE VEHÍCULOS AUTOMOTORES Y MOTOCICLETAS | G13: 4754 | H13: G | I13: Natural | J13: MICRO | K13: 500000 | Q13: COMERCIO AL POR MAYOR Y AL POR MENOR; REPARACIÓN DE VEHÍCULOS AUTOMOTORES Y MOTOCICLETAS | R13: 21186495000 | S13: 21186495000
B14: 25181 | C14: CHOACHÍ | D14: 25 | E14: CUNDINAMARCA | F14: COMERCIO AL POR MAYOR Y AL POR MENOR; REPARACIÓN DE VEHÍCULOS AUTOMOTORES Y MOTOCICLETAS | G14: 4663 | H14: G | I14: Natural | J14: PEQUENA | K14: 181704 | Q14: CONSTRUCCIÓN | R14: 9549078000 | S14: 9549078000
B15: 25279 | C15: FOMEQUE | D15: 25 | E15: CUNDINAMARCA | F15: AGRICULTURA, GANADERÍA, CAZA, SILVICULTURA Y PESCA | G15: 145 | H15: A | I15: Natural | J15: PEQUENA | K15: 250000 | Q15: DISTRIBUCIÓN DE AGUA; EVACUACIÓN Y TRATAMIENTO DE AGUAS RESIDUALES, GESTIÓN DE DESECHOS Y ACTIVIDADES DE SANEAMIENTO AMBIENTAL | R15: 246477000 | S15: 246477000
B16: 25214 | C16: COTA | D16: 25 | E16: CUNDINAMARCA | F16: CONSTRUCCIÓN | G16: 4290 | H16: F | I16: Natural | J16: MICRO | K16: 90852 | Q16: EDUCACIÓN | R16: 1614442500 | S16: 1614442500
B17: 25297 | C17: GACHETÁ | D17: 25 | E17: CUNDINAMARCA | F17: COMERCIO AL POR MAYOR Y AL POR MENOR; REPARACIÓN DE VEHÍCULOS AUTOMOTORES Y MOTOCICLETAS | G17: 4663 | H17: G | I17: Natural | J17: MICRO | K17: 250000 | Q17: EXPLOTACIÓN DE MINAS Y CANTERAS | R17: 571906500 | S17: 571906500
B18: 11001 | C18: BOGOTÁ, D.C. | D18: 11 | E18: BOGOTÁ, D.C. | F18: ACTIVIDADES PROFESIONALES, CIENTÍFICAS Y TÉCNICAS | G18: 7310 | H18: M | I18: Natural | J18: MICRO | K18: 227131 | Q18: INDUSTRIAS MANUFACTURERAS | R18: 28151013000 | S18: 28151013000
B19: 11001 | C19: BOGOTÁ, D.C. | D19: 11 | E19: BOGOTÁ, D.C. | F19: ACTIVIDADES PROFESIONALES, CIENTÍFICAS Y TÉCNICAS | G19: 6910 | H19: M | I19: Natural | J19: PEQUENA | K19: 8630978 | Q19: INFORMACIÓN Y COMUNICACIONES | R19: 1208790000 | S19: 1208790000
B20: 11001 | C20: BOGOTÁ, D.C. | D20: 11 | E20: BOGOTÁ, D.C. | F20: COMERCIO AL POR MAYOR Y AL POR MENOR; REPARACIÓN DE VEHÍCULOS AUTOMOTORES Y MOTOCICLETAS | G20: 4751 | H20: G | I20: Natural | J20: MICRO | K20: 681393 | Q20: OTRAS | R20: 676995000 | S20: 676995000
B21: 25785 | C21: TABIO | D21: 25 | E21: CUNDINAMARCA | F21: ACTIVIDADES ARTÍSTICAS, DE ENTRETENIMIENTO Y RECREACIÓN | G21: 9004 | H21: R | I21: Natural | J21: MICRO | K21: 250000 | Q21: OTRAS ACTIVIDADES DE SERVICIOS | R21: 965217000 | S21: 965217000
B22: 50001 | C22: VILLAVICENCIO | D22: 50 | E22: META | F22: COMERCIO AL POR MAYOR Y AL POR MENOR; REPARACIÓN DE VEHÍCULOS AUTOMOTORES Y MOTOCICLETAS | G22: 4729 | H22: G | I22: Natural | J22: MICRO | K22: 727131 | Q22: SUMINISTRO DE ELECTRICIDAD, GAS, VAPOR Y AIRE ACONDICIONADO | R22: 43015500 | S22: 43015500
B23: 25875 | C23: VILLETA | D23: 25 | E23: CUNDINAMARCA | F23: INDUSTRIAS MANUFACTURERAS | G23: 1081 | H23: C | I23: Natural | J23: PEQUENA | K23: 454262 | Q23: TRANSPORTE Y ALMACENAMIENTO | R23: 14265537000 | S23: 14265537000
B24: 85001 | C24: YOPAL | D24: 85 | E24: CASANARE | F24: COMERCIO AL POR MAYOR Y AL POR MENOR; REPARACIÓN DE VEHÍCULOS AUTOMOTORES Y MOTOCICLETAS | G24: 4769 | H24: G | I24: Natural | J24: MICRO | K24: 650000 | Q24: (en blanco)
B25: 5001 | C25: MEDELLÍN | D25: 5 | E25: ANTIOQUIA | F25: COMERCIO AL POR MAYOR Y AL POR MENOR; REPARACIÓN DE VEHÍCULOS AUTOMOTORES Y MOTOCICLETAS | G25: 4722 | H25: G | I25: Natural | J25: MICRO | K25: 1000000 | Q25: Total general | R25: 107396454000 | S25: 107396454000
B26: 5001 | C26: MEDELLÍN | D26: 5 | E26: ANTIOQUIA | F26: INDUSTRIAS MANUFACTURERAS | G26: 3240 | H26: C | I26: Natural | J26: MICRO | K26: 954262
B27: 5001 | C27: MEDELLÍN | D27: 5 | E27: ANTIOQUIA | F27: COMERCIO AL POR MAYOR Y AL POR MENOR; REPARACIÓN DE VEHÍCULOS AUTOMOTORES Y MOTOCICLETAS | G27: 4771 | H27: G | I27: Natural | J27: MICRO | K27: 908524
B28: 11001 | C28: BOGOTÁ, D.C. | D28: 11 | E28: BOGOTÁ, D.C. | F28: COMERCIO AL POR MAYOR Y AL POR MENOR; REPARACIÓN DE VEHÍCULOS AUTOMOTORES Y MOTOCICLETAS | G28: 4771 | H28: G | I28: Natural | J28: PEQUENA | K28: 454262
B29: 5697 | C29: EL SANTUARIO | D29: 5 | E29: ANTIOQUIA | F29: COMERCIO AL POR MAYOR Y AL POR MENOR; REPARACIÓN DE VEHÍCULOS AUTOMOTORES Y MOTOCICLETAS | G29: 4773 | H29: G | I29: Natural | J29: MICRO | K29: 454262
B30: 11001 | C30: BOGOTÁ, D.C. | D30: 11 | E30: BOGOTÁ, D.C. | F30: COMERCIO AL POR MAYOR Y AL POR MENOR; REPARACIÓN DE VEHÍCULOS AUTOMOTORES Y MOTOCICLETAS | G30: 4652 | H30: G | I30: Natural | J30: MICRO | K30: 227131
B31: 54001 | C31: CÚCUTA | D31: 54 | E31: NORTE DE SANTANDER | F31: COMERCIO AL POR MAYOR Y AL POR MENOR; REPARACIÓN DE VEHÍCULOS AUTOMOTORES Y MOTOCICLETAS | G31: 4631 | H31: G | I31: Natural | J31: PEQUENA | K31: 454262
B32: 5001 | C32: MEDELLÍN | D32: 5 | E32: ANTIOQUIA | F32: ACTIVIDADES INMOBILIARIAS | G32: 6810 | H32: L | I32: Natural | J32: MICRO | K32: 90852
B33: 15176 | C33: CHIQUINQUIRÁ | D33: 15 | E33: BOYACÁ | F33: INDUSTRIAS MANUFACTURERAS | G33: 1081 | H33: C | I33: Natural | J33: MICRO | K33: 500000
B34: 85001 | C34: YOPAL | D34: 85 | E34: CASANARE | F34: COMERCIO AL POR MAYOR Y AL POR MENOR; REPARACIÓN DE VEHÍCULOS AUTOMOTORES Y MOTOCICLETAS | G34: 4542 | H34: G | I34: Natural | J34: MICRO | K34: 1181393
B35: 11001 | C35: BOGOTÁ, D.C. | D35: 11 | E35: BOGOTÁ, D.C. | F35: COMERCIO AL POR MAYOR Y AL POR MENOR; REPARACIÓN DE VEHÍCULOS AUTOMOTORES Y MOTOCICLETAS | G35: 4663 | H35: G | I35: Natural | J35: MICRO | K35: 500000
B36: 15753 | C36: SOATÁ | D36: 15 | E36: BOYACÁ | F36: COMERCIO AL POR MAYOR Y AL POR MENOR; REPARACIÓN DE VEHÍCULOS AUTOMOTORES Y MOTOCICLETAS | G36: 4631 | H36: G | I36: Natural | J36: MICRO | K36: 181704
B37: 11001 | C37: BOGOTÁ, D.C. | D37: 11 | E37: BOGOTÁ, D.C. | F37: INDUSTRIAS MANUFACTURERAS | G37: 1081 | H37: C | I37: Natural | J37: MICRO | K37: 908524
B38: 11001 | C38: BOGOTÁ, D.C. | D38: 11 | E38: BOGOTÁ, D.C. | F38: TRANSPORTE Y ALMACENAMIENTO | G38: 4923 | H38: H | I38: Natural | J38: MICRO | K38: 1226818
B39: 5266 | C39: ENVIGADO | D39: 5 | E39: ANTIOQUIA | F39: COMERCIO AL POR MAYOR Y AL POR MENOR; REPARACIÓN DE VEHÍCULOS AUTOMOTORES Y MOTOCICLETAS | G39: 4541 | H39: G | I39: Natural | J39: MICRO | K39: 227131
B40: 66001 | C40: PEREIRA | D40: 66 | E40: RISARALDA | F40: CONSTRUCCIÓN | G40: 4290 | H40: F | I40: Natural | J40: MICRO | K40: 908522
B41: 66170 | C41: DOSQUEBRADAS | D41: 66 | E41: RISARALDA | F41: COMERCIO AL POR MAYOR Y AL POR MENOR; REPARACIÓN DE VEHÍCULOS AUTOMOTORES Y MOTOCICLETAS | G41: 4775 | H41: G | I41: Natural | J41: MICRO | K41: 250000
B42: 66170 | C42: DOSQUEBRADAS | D42: 66 | E42: RISARALDA | F42: ACTIVIDADES PROFESIONALES, CIENTÍFICAS Y TÉCNICAS | G42: 6910 | H42: M | I42: Natural | J42: PEQUENA | K42: 1850000
B43: 19001 | C43: POPAYÁN | D43: 19 | E43: CAUCA | F43: EDUCACIÓN | G43: 8559 | H43: P | I43: Natural | J43: MICRO | K43: 317982
B44: 76001 | C44: CALI | D44: 76 | E44: VALLE DEL CAUCA | F44: COMERCIO AL POR MAYOR Y AL POR MENOR; REPARACIÓN DE VEHÍCULOS AUTOMOTORES Y MOTOCICLETAS | G44: 4752 | H44: G | I44: Natural | J44: MICRO | K44: 3248441
B45: 41001 | C45: NEIVA | D45: 41 | E45: HUILA | F45: COMERCIO AL POR MAYOR Y AL POR MENOR; REPARACIÓN DE VEHÍCULOS AUTOMOTORES Y MOTOCICLETAS | G45: 4711 | H45: G | I45: Natural | J45: PEQUENA | K45: 227131
B46: 41551 | C46: PITALITO | D46: 41 | E46: HUILA | F46: COMERCIO AL POR MAYOR Y AL POR MENOR; REPARACIÓN DE VEHÍCULOS AUTOMOTORES Y MOTOCICLETAS | G46: 4754 | H46: G | I46: Natural | J46: MICRO | K46: 363409
B47: 41551 | C47: PITALITO | D47: 41 | E47: HUILA | F47: COMERCIO AL POR MAYOR Y AL POR MENOR; REPARACIÓN DE VEHÍCULOS AUTOMOTORES Y MOTOCICLETAS | G47: 4620 | H47: G | I47: Natural | J47: MICRO | K47: 1000000
B48: 54498 | C48: OCAÑA | D48: 54 | E48: NORTE DE SANTANDER | F48: COMERCIO AL POR MAYOR Y AL POR MENOR; REPARACIÓN DE VEHÍCULOS AUTOMOTORES Y MOTOCICLETAS | G48: 4541 | H48: G | I48: Natural | J48: MICRO | K48: 681393
B49: 52317 | C49: GUACHUCAL | D49: 52 | E49: NARIÑO | F49: COMERCIO AL POR MAYOR Y AL POR MENOR; REPARACIÓN DE VEHÍCULOS AUTOMOTORES Y MOTOCICLETAS | G49: 4731 | H49: G | I49: Natural | J49: PEQUENA | K49: 750000
B50: 54001 | C50: CÚCUTA | D50: 54 | E50: NORTE DE SANTANDER | F50: INDUSTRIAS MANUFACTURERAS | G50: 2599 | H50: C | I50: Natural | J50: MICRO | K50: 227131
B51: 54001 | C51: CÚCUTA | D51: 54 | E51: NORTE DE SANTANDER | F51: TRANSPORTE Y ALMACENAMIENTO | G51: 4923 | H51: H | I51: Natural | J51: MICRO | K51: 250000
B52: 54518 | C52: PAMPLONA | D52: 54 | E52: NORTE DE SANTANDER | F52: ALOJAMIENTO Y SERVICIOS DE COMIDA | G52: 5611 | H52: I | I52: Natural | J52: PEQUENA | K52: 454262
B53: 68001 | C53: BUCARAMANGA | D53: 68 | E53: SANTANDER | F53: INDUSTRIAS MANUFACTURERAS | G53: 1610 | H53: C | I53: Natural | J53: PEQUENA | K53: 250000
B54: 68001 | C54: BUCARAMANGA | D54: 68 | E54: SANTANDER | F54: COMERCIO AL POR MAYOR Y AL POR MENOR; REPARACIÓN DE VEHÍCULOS AUTOMOTORES Y MOTOCICLETAS | G54: 4774 | H54: G | I54: Natural | J54: MICRO | K54: 1000000
B55: 11001 | C55: BOGOTÁ, D.C. | D55: 11 | E55: BOGOTÁ, D.C. | F55: COMERCIO AL POR MAYOR Y AL POR MENOR; REPARACIÓN DE VEHÍCULOS AUTOMOTORES Y MOTOCICLETAS | G55: 4731 | H55: G | I55: Natural | J55: MICRO | K55: 4366421
B56: 54001 | C56: CÚCUTA | D56: 54 | E56: NORTE DE SANTANDER | F56: INDUSTRIAS MANUFACTURERAS | G56: 1410 | H56: C | I56: Natural | J56: MICRO | K56: 1158524
B57: 68001 | C57: BUCARAMANGA | D57: 68 | E57: SANTANDER | F57: ACTIVIDADES PROFESIONALES, CIENTÍFICAS Y TÉCNICAS | G57: 7420 | H57: M | I57: Natural | J57: MICRO | K57: 200000
B58: 68861 | C58: VÉLEZ | D58: 68 | E58: SANTANDER | F58: INDUSTRIAS MANUFACTURERAS | G58: 1089 | H58: C | I58: Natural | J58: MICRO | K58: 954262
B59: 11001 | C59: BOGOTÁ, D.C. | D59: 11 | E59: BOGOTÁ, D.C. | F59: ACTIVIDADES DE SERVICIOS ADMINISTRATIVOS Y DE APOYO | G59: 8121 | H59: N | I59: Natural | J59: MICRO | K59: 400000
B60: 76001 | C60: CALI | D60: 76 | E60: VALLE DEL CAUCA | F60: INDUSTRIAS MANUFACTURERAS | G60: 1811 | H60: C | I60: Natural | J60: MICRO | K60: 750000
B61: 73001 | C61: IBAGUÉ | D61: 73 | E61: TOLIMA | F61: COMERCIO AL POR MAYOR Y AL POR MENOR; REPARACIÓN DE VEHÍCULOS AUTOMOTORES Y MOTOCICLETAS | G61: 4752 | H61: G | I61: Natural | J61: MICRO | K61: 1408524
B62: 50001 | C62: VILLAVICENCIO | D62: 50 | E62: META | F62: ALOJAMIENTO Y SERVICIOS DE COMIDA | G62: 5511 | H62: I | I62: Natural | J62: PEQUENA | K62: 2753949
B63: 76834 | C63: TULUÁ | D63: 76 | E63: VALLE DEL CAUCA | F63: COMERCIO AL POR MAYOR Y AL POR MENOR; REPARACIÓN DE VEHÍCULOS AUTOMOTORES Y MOTOCICLETAS | G63: 4751 | H63: G | I63: Natural | J63: PEQUENA | K63: 150000
B64: 76020 | C64: ALCALÁ | D64: 76 | E64: VALLE DEL CAUCA | F64: COMERCIO AL POR MAYOR Y AL POR MENOR; REPARACIÓN DE VEHÍCULOS AUTOMOTORES Y MOTOCICLETAS | G64: 4752 | H64: G | I64: Natural | J64: MICRO | K64: 2000000
B65: 76122 | C65: CAICEDONIA | D65: 76 | E65: VALLE DEL CAUCA | F65: ACTIVIDADES PROFESIONALES, CIENTÍFICAS Y TÉCNICAS | G65: 6920 | H65: M | I65: Natural | J65: MICRO | K65: 250000
B66: 76400 | C66: LA UNIÓN | D66: 76 | E66: VALLE DEL CAUCA | F66: AGRICULTURA, GANADERÍA, CAZA, SILVICULTURA Y PESCA | G66: 130 | H66: A | I66: Natural | J66: PEQUENA | K66: 2998441
B67: 76001 | C67: CALI | D67: 76 | E67: VALLE DEL CAUCA | F67: COMERCIO AL POR MAYOR Y AL POR MENOR; REPARACIÓN DE VEHÍCULOS AUTOMOTORES Y MOTOCICLETAS | G67: 4741 | H67: G | I67: Natural | J67: MICRO | K67: 290852
B68: 76001 | C68: CALI | D68: 76 | E68: VALLE DEL CAUCA | F68: INDUSTRIAS MANUFACTURERAS | G68: 1081 | H68: C | I68: Natural | J68: MICRO | K68: 500000
B69: 76001 | C69: CALI | D69: 76 | E69: VALLE DEL CAUCA | F69: INDUSTRIAS MANUFACTURERAS | G69: 1410 | H69: C | I69: Natural | J69: PEQUENA | K69: 227131
B70: 76834 | C70: TULUÁ | D70: 76 | E70: VALLE DEL CAUCA | F70: COMERCIO AL POR MAYOR Y AL POR MENOR; REPARACIÓN DE VEHÍCULOS AUTOMOTORES Y MOTOCICLETAS | G70: 4774 | H70: G | I70: Natural | J70: MICRO | K70: 7324320
B71: 76111 | C71: GUADALAJARA DE BUGA | D71: 76 | E71: VALLE DEL CAUCA | F71: TRANSPORTE Y ALMACENAMIENTO | G71: 4923 | H71: H | I71: Natural | J71: MICRO | K71: 90852
B72: 41551 | C72: PITALITO | D72: 41 | E72: HUILA | F72: COMERCIO AL POR MAYOR Y AL POR MENOR; REPARACIÓN DE VEHÍCULOS AUTOMOTORES Y MOTOCICLETAS | G72: 4711 | H72: G | I72: Natural | J72: MEDIANA | K72: 227131
B73: 11001 | C73: BOGOTÁ, D.C. | D73: 11 | E73: BOGOTÁ, D.C. | F73: EDUCACIÓN | G73: 8521 | H73: P | I73: Natural | J73: PEQUENA | K73: 454262
B74: 11001 | C74: BOGOTÁ, D.C. | D74: 11 | E74: BOGOTÁ, D.C. | F74: ALOJAMIENTO Y SERVICIOS DE COMIDA | G74: 5611 | H74: I | I74: Natural | J74: MICRO | K74: 954262
B75: 5631 | C75: SABANETA | D75: 5 | E75: ANTIOQUIA | F75: COMERCIO AL POR MAYOR Y AL POR MENOR; REPARACIÓN DE VEHÍCULOS AUTOMOTORES Y MOTOCICLETAS | G75: 4711 | H75: G | I75: Natural | J75: MICRO | K75: 1658524
B76: 18001 | C76: FLORENCIA | D76: 18 | E76: CAQUETÁ | F76: COMERCIO AL POR MAYOR Y AL POR MENOR; REPARACIÓN DE VEHÍCULOS AUTOMOTORES Y MOTOCICLETAS | G76: 4643 | H76: G | I76: Natural | J76: MICRO | K76: 953949
B77: 18001 | C77: FLORENCIA | D77: 18 | E77: CAQUETÁ | F77: ACTIVIDADES DE SERVICIOS ADMINISTRATIVOS Y DE APOYO | G77: 8020 | H77: N | I77: Natural | J77: MICRO | K77: 227131
B78: 18001 | C78: FLORENCIA | D78: 18 | E78: CAQUETÁ | F78: COMERCIO AL POR MAYOR Y AL POR MENOR; REPARACIÓN DE VEHÍCULOS AUTOMOTORES Y MOTOCICLETAS | G78: 4741 | H78: G | I78: Natural | J78: MICRO | K78: 500000
B79: 70001 | C79: SINCELEJO | D79: 70 | E79: SUCRE | F79: COMERCIO AL POR MAYOR Y AL POR MENOR; REPARACIÓN DE VEHÍCULOS AUTOMOTORES Y MOTOCICLETAS | G79: 4530 | H79: G | I79: Natural | J79: MICRO | K79: 250000
B80: 23001 | C80: MONTERÍA | D80: 23 | E80: CÓRDOBA | F80: COMERCIO AL POR MAYOR Y AL POR MENOR; REPARACIÓN DE VEHÍCULOS AUTOMOTORES Y MOTOCICLETAS | G80: 4541 | H80: G | I80: Natural | J80: MICRO | K80: 2135655
B81: 91001 | C81: LETICIA | D81: 91 | E81: AMAZONAS | F81: ALOJAMIENTO Y SERVICIOS DE COMIDA | G81: 5613 | H81: I | I81: Natural | J81: MICRO | K81: 590540
B82: 15776 | C82: SUTAMARCHÁN | D82: 15 | E82: BOYACÁ | F82: ALOJAMIENTO Y SERVICIOS DE COMIDA | G82: 5611 | H82: I | I82: Natural | J82: PEQUENA | K82: 2081080
B83: 15001 | C83: TUNJA | D83: 15 | E83: BOYACÁ | F83: ACTIVIDADES PROFESIONALES, CIENTÍFICAS Y TÉCNICAS | G83: 7310 | H83: M | I83: Natural | J83: MICRO | K83: 704262
B84: 15001 | C84: TUNJA | D84: 15 | E84: BOYACÁ | F84: ACTIVIDADES ARTÍSTICAS, DE ENTRETENIMIENTO Y RECREACIÓN | G84: 9311 | H84: R | I84: Natural | J84: MICRO | K84: 2225882
B85: 15238 | C85: DUITAMA | D85: 15 | E85: BOYACÁ | F85: COMERCIO AL POR MAYOR Y AL POR MENOR; REPARACIÓN DE VEHÍCULOS AUTOMOTORES Y MOTOCICLETAS | G85: 4732 | H85: G | I85: Natural | J85: MICRO | K85: 250000
B86: 15759 | C86: SOGAMOSO | D86: 15 | E86: BOYACÁ | F86: ALOJAMIENTO Y SERVICIOS DE COMIDA | G86: 5619 | H86: I | I86: Natural | J86: MICRO | K86: 1362786
B87: 11001 | C87: BOGOTÁ, D.C. | D87: 11 | E87: BOGOTÁ, D.C. | F87: INDUSTRIAS MANUFACTURERAS | G87: 1081 | H87: C | I87: Natural | J87: MICRO | K87: 272556
B88: 15238 | C88: DUITAMA | D88: 15 | E88: BOYACÁ | F88: COMERCIO AL POR MAYOR Y AL POR MENOR; REPARACIÓN DE VEHÍCULOS AUTOMOTORES Y MOTOCICLETAS | G88: 4722 | H88: G | I88: Natural | J88: PEQUENA | K88: 136278
B89: 11001 | C89: BOGOTÁ, D.C. | D89: 11 | E89: BOGOTÁ, D.C. | F89: COMERCIO AL POR MAYOR Y AL POR MENOR; REPARACIÓN DE VEHÍCULOS AUTOMOTORES Y MOTOCICLETAS | G89: 4752 | H89: G | I89: Natural | J89: MICRO | K89: 454262
B90: 15176 | C90: CHIQUINQUIRÁ | D90: 15 | E90: BOYACÁ | F90: CONSTRUCCIÓN | G90: 4112 | H90: F | I90: Natural | J90: MICRO | K90: 2335340
B91: 8001 | C91: BARRANQUILLA | D91: 8 | E91: ATLÁNTICO | F91: INDUSTRIAS MANUFACTURERAS | G91: 1081 | H91: C | I91: Natural | J91: PEQUENA | K91: 227131
B92: 63001 | C92: ARMENIA | D92: 63 | E92: QUINDÍO | F92: CONSTRUCCIÓN | G92: 4330 | H92: F | I92: Natural | J92: PEQUENA | K92: 1408209
B93: 63001 | C93: ARMENIA | D93: 63 | E93: QUINDÍO | F93: CONSTRUCCIÓN | G93: 4111 | H93: F | I93: Natural | J93: MICRO | K93: 1044801
B94: 5266 | C94: ENVIGADO | D94: 5 | E94: ANTIOQUIA | F94: ACTIVIDADES PROFESIONALES, CIENTÍFICAS Y TÉCNICAS | G94: 7111 | H94: M | I94: Natural | J94: MICRO | K94: 2776195
B95: 25899 | C95: ZIPAQUIRÁ | D95: 25 | E95: CUNDINAMARCA | F95: ALOJAMIENTO Y SERVICIOS DE COMIDA | G95: 5511 | H95: I | I95: Natural | J95: MICRO | K95: 1454262
B96: 63001 | C96: ARMENIA | D96: 63 | E96: QUINDÍO | F96: COMERCIO AL POR MAYOR Y AL POR MENOR; REPARACIÓN DE VEHÍCULOS AUTOMOTORES Y MOTOCICLETAS | G96: 4661 | H96: G | I96: Natural | J96: PEQUENA | K96: 454262
B97: 20001 | C97: VALLEDUPAR | D97: 20 | E97: CESAR | F97: INDUSTRIAS MANUFACTURERAS | G97: 1410 | H97: C | I97: Natural | J97: PEQUENA | K97: 3500000
B98: 5318 | C98: GUARNE | D98: 5 | E98: ANTIOQUIA | F98: INDUSTRIAS MANUFACTURERAS | G98: 2221 | H98: C | I98: Natural | J98: PEQUENA | K98: 1650000
B99: 76001 | C99: CALI | D99: 76 | E99: VALLE DEL CAUCA | F99: INDUSTRIAS MANUFACTURERAS | G99: 1313 | H99: C | I99: Natural | J99: PEQUENA | K99: 227131
B100: 73001 | C100: IBAGUÉ | D100: 73 | E100: TOLIMA | F100: COMERCIO AL POR MAYOR Y AL POR MENOR; REPARACIÓN DE VEHÍCULOS AUTOMOTORES Y MOTOCICLETAS | G100: 4729 | H100: G | I100: Natural | J100: MICRO | K100: 8210288
B101: 41001 | C101: NEIVA | D101: 41 | E101: HUILA | F101: INDUSTRIAS MANUFACTURERAS | G101: 1081 | H101: C | I101: Natural | J101: MICRO | K101: 454262
B102: 41001 | C102: NEIVA | D102: 41 | E102: HUILA | F102: COMERCIO AL POR MAYOR Y AL POR MENOR; REPARACIÓN DE VEHÍCULOS AUTOMOTORES Y MOTOCICLETAS | G102: 4653 | H102: G | I102: Natural | J102: MICRO | K102: 250000
B103: 41298 | C103: GARZÓN | D103: 41 | E103: HUILA | F103: TRANSPORTE Y ALMACENAMIENTO | G103: 4923 | H103: H | I103: Natural | J103: MICRO | K103: 250000
B104: 41001 | C104: NEIVA | D104: 41 | E104: HUILA | F104: ACTIVIDADES DE SERVICIOS ADMINISTRATIVOS Y DE APOYO | G104: 8230 | H104: N | I104: Natural | J104: MICRO | K104: 2081079
B105: 13001 | C105: CARTAGENA | D105: 13 | E105: BOLÍVAR | F105: TRANSPORTE Y ALMACENAMIENTO | G105: 5310 | H105: H | I105: Natural | J105: MICRO | K105: 300000
B106: 5001 | C106: MEDELLÍN | D106: 5 | E106: ANTIOQUIA | F106: INDUSTRIAS MANUFACTURERAS | G106: 2511 | H106: C | I106: Natural | J106: MICRO | K106: 227131
B107: 5631 | C107: SABANETA | D107: 5 | E107: ANTIOQUIA | F107: ALOJAMIENTO Y SERVICIOS DE COMIDA | G107: 5630 | H107: I | I107: Natural | J107: MICRO | K107: 863096
B108: 5001 | C108: MEDELLÍN | D108: 5 | E108: ANTIOQUIA | F108: ACTIVIDADES PROFESIONALES, CIENTÍFICAS Y TÉCNICAS | G108: 7420 | H108: M | I108: Natural | J108: MICRO | K108: 250000
B109: 5001 | C109: MEDELLÍN | D109: 5 | E109: ANTIOQUIA | F109: ALOJAMIENTO Y SERVICIOS DE COMIDA | G109: 5612 | H109: I | I109: Natural | J109: MICRO | K109: 650000
B110: 5686 | C110: SANTA ROSA DE OSOS | D110: 5 | E110: ANTIOQUIA | F110: AGRICULTURA, GANADERÍA, CAZA, SILVICULTURA Y PESCA | G110: 141 | H110: A | I110: Natural | J110: MICRO | K110: 100000
B111: 5001 | C111: MEDELLÍN | D111: 5 | E111: ANTIOQUIA | F111: COMERCIO AL POR MAYOR Y AL POR MENOR; REPARACIÓN DE VEHÍCULOS AUTOMOTORES Y MOTOCICLETAS | G111: 4741 | H111: G | I111: Natural | J111: MICRO | K111: 1907900
B112: 5001 | C112: MEDELLÍN | D112: 5 | E112: ANTIOQUIA | F112: INDUSTRIAS MANUFACTURERAS | G112: 1081 | H112: C | I112: Natural | J112: PEQUENA | K112: 227131
B113: 5266 | C113: ENVIGADO | D113: 5 | E113: ANTIOQUIA | F113: COMERCIO AL POR MAYOR Y AL POR MENOR; REPARACIÓN DE VEHÍCULOS AUTOMOTORES Y MOTOCICLETAS | G113: 4620 | H113: G | I113: Natural | J113: MICRO | K113: 350000
B114: 47001 | C114: SANTA MARTA | D114: 47 | E114: MAGDALENA | F114: ALOJAMIENTO Y SERVICIOS DE COMIDA | G114: 5611 | H114: I | I114: Natural | J114: MICRO | K114: 2099374
B115: 5631 | C115: SABANETA | D115: 5 | E115: ANTIOQUIA | F115: INDUSTRIAS MANUFACTURERAS | G115: 3110 | H115: C | I115: Natural | J115: PEQUENA | K115: 1200000
B116: 5001 | C116: MEDELLÍN | D116: 5 | E116: ANTIOQUIA | F116: COMERCIO AL POR MAYOR Y AL POR MENOR; REPARACIÓN DE VEHÍCULOS AUTOMOTORES Y MOTOCICLETAS | G116: 4530 | H116: G | I116: Natural | J116: MICRO | K116: 227131
B117: 5368 | C117: JERICÓ | D117: 5 | E117: ANTIOQUIA | F117: INDUSTRIAS MANUFACTURERAS | G117: 1084 | H117: C | I117: Natural | J117: MICRO | K117: 5698126
B118: 5631 | C118: SABANETA | D118: 5 | E118: ANTIOQUIA | F118: COMERCIO AL POR MAYOR Y AL POR MENOR; REPARACIÓN DE VEHÍCULOS AUTOMOTORES Y MOTOCICLETAS | G118: 4541 | H118: G | I118: Natural | J118: MICRO | K118: 2108211
B119: 5001 | C119: MEDELLÍN | D119: 5 | E119: ANTIOQUIA | F119: COMERCIO AL POR MAYOR Y AL POR MENOR; REPARACIÓN DE VEHÍCULOS AUTOMOTORES Y MOTOCICLETAS | G119: 4723 | H119: G | I119: Natural | J119: MICRO | K119: 200000
B120: 5736 | C120: SEGOVIA | D120: 5 | E120: ANTIOQUIA | F120: COMERCIO AL POR MAYOR Y AL POR MENOR; REPARACIÓN DE VEHÍCULOS AUTOMOTORES Y MOTOCICLETAS | G120: 4723 | H120: G | I120: Natural | J120: MICRO | K120: 4375572
B121: 5837 | C121: TURBO | D121: 5 | E121: ANTIOQUIA | F121: COMERCIO AL POR MAYOR Y AL POR MENOR; REPARACIÓN DE VEHÍCULOS AUTOMOTORES Y MOTOCICLETAS | G121: 4761 | H121: G | I121: Natural | J121: PEQUENA | K121: 4161847
B122: 5001 | C122: MEDELLÍN | D122: 5 | E122: ANTIOQUIA | F122: ACTIVIDADES PROFESIONALES, CIENTÍFICAS Y TÉCNICAS | G122: 6920 | H122: M | I122: Natural | J122: MICRO | K122: 1226818
B123: 70001 | C123: SINCELEJO | D123: 70 | E123: SUCRE | F123: COMERCIO AL POR MAYOR Y AL POR MENOR; REPARACIÓN DE VEHÍCULOS AUTOMOTORES Y MOTOCICLETAS | G123: 4530 | H123: G | I123: Natural | J123: MICRO | K123: 1176818
B124: 8638 | C124: SABANALARGA | D124: 8 | E124: ATLÁNTICO | F124: COMERCIO AL POR MAYOR Y AL POR MENOR; REPARACIÓN DE VEHÍCULOS AUTOMOTORES Y MOTOCICLETAS | G124: 4773 | H124: G | I124: Natural | J124: PEQUENA | K124: 8148128
B125: 8001 | C125: BARRANQUILLA | D125: 8 | E125: ATLÁNTICO | F125: ACTIVIDADES DE ATENCIÓN DE LA SALUD HUMANA Y DE ASISTENCIA SOCIAL | G125: 8621 | H125: Q | I125: Natural | J125: MICRO | K125: 227131
B126: 13001 | C126: CARTAGENA | D126: 13 | E126: BOLÍVAR | F126: COMERCIO AL POR MAYOR Y AL POR MENOR; REPARACIÓN DE VEHÍCULOS AUTOMOTORES Y MOTOCICLETAS | G126: 4759 | H126: G | I126: Natural | J126: MICRO | K126: 763409
B127: 15759 | C127: SOGAMOSO | D127: 15 | E127: BOYACÁ | F127: COMERCIO AL POR MAYOR Y AL POR MENOR; REPARACIÓN DE VEHÍCULOS AUTOMOTORES Y MOTOCICLETAS | G127: 4530 | H127: G | I127: Natural | J127: PEQUENA | K127: 1885655
B128: 15759 | C128: SOGAMOSO | D128: 15 | E128: BOYACÁ | F128: ALOJAMIENTO Y SERVICIOS DE COMIDA | G128: 5613 | H128: I | I128: Natural | J128: PEQUENA | K128: 227131
B129: 11001 | C129: BOGOTÁ, D.C. | D129: 11 | E129: BOGOTÁ, D.C. | F129: ACTIVIDADES PROFESIONALES, CIENTÍFICAS Y TÉCNICAS | G129: 6920 | H129: M | I129: Natural | J129: MICRO | K129: 800000
B130: 85139 | C130: MANÍ | D130: 85 | E130: CASANARE | F130: INDUSTRIAS MANUFACTURERAS | G130: 1630 | H130: C | I130: Natural | J130: MICRO | K130: 635966
B131: 85430 | C131: TRINIDAD | D131: 85 | E131: CASANARE | F131: ALOJAMIENTO Y SERVICIOS DE COMIDA | G131: 5511 | H131: I | I131: Natural | J131: MICRO | K131: 681393
B132: 20011 | C132: AGUACHICA | D132: 20 | E132: CESAR | F132: INDUSTRIAS MANUFACTURERAS | G132: 2511 | H132: C | I132: Natural | J132: PEQUENA | K132: 4339917
B133: 63001 | C133: ARMENIA | D133: 63 | E133: QUINDÍO | F133: TRANSPORTE Y ALMACENAMIENTO | G133: 4923 | H133: H | I133: Natural | J133: MICRO | K133: 781704
B134: 63001 | C134: ARMENIA | D134: 63 | E134: QUINDÍO | F134: TRANSPORTE Y ALMACENAMIENTO | G134: 4923 | H134: H | I134: Natural | J134: MICRO | K134: 795114
B135: 63001 | C135: ARMENIA | D135: 63 | E135: QUINDÍO | F135: TRANSPORTE Y ALMACENAMIENTO | G135: 4923 | H135: H | I135: Natural | J135: MICRO | K135: 317983
B136: 63001 | C136: ARMENIA | D136: 63 | E136: QUINDÍO | F136: INDUSTRIAS MANUFACTURERAS | G136: 1410 | H136: C | I136: Natural | J136: MICRO | K136: 727131
B137: 52001 | C137: PASTO | D137: 52 | E137: NARIÑO | F137: TRANSPORTE Y ALMACENAMIENTO | G137: 4923 | H137: H | I137: Natural | J137: MICRO | K137: 227131
B138: 63001 | C138: ARMENIA | D138: 63 | E138: QUINDÍO | F138: COMERCIO AL POR MAYOR Y AL POR MENOR; REPARACIÓN DE VEHÍCULOS AUTOMOTORES Y MOTOCICLETAS | G138: 4719 | H138: G | I138: Natural | J138: MICRO | K138: 1303949
B139: 66001 | C139: PEREIRA | D139: 66 | E139: RISARALDA | F139: ALOJAMIENTO Y SERVICIOS DE COMIDA | G139: 5613 | H139: I | I139: Natural | J139: MICRO | K139: 2089604
B140: 66170 | C140: DOSQUEBRADAS | D140: 66 | E140: RISARALDA | F140: CONSTRUCCIÓN | G140: 4111 | H140: F | I140: Natural | J140: MEDIANA | K140: 16171693
B141: 66594 | C141: QUINCHÍA | D141: 66 | E141: RISARALDA | F141: COMERCIO AL POR MAYOR Y AL POR MENOR; REPARACIÓN DE VEHÍCULOS AUTOMOTORES Y MOTOCICLETAS | G141: 4723 | H141: G | I141: Natural | J141: MICRO | K141: 772245
B142: 66001 | C142: PEREIRA | D142: 66 | E142: RISARALDA | F142: EDUCACIÓN | G142: 8512 | H142: P | I142: Natural | J142: MICRO | K142: 400000
B143: 66001 | C143: PEREIRA | D143: 66 | E143: RISARALDA | F143: TRANSPORTE Y ALMACENAMIENTO | G143: 5320 | H143: H | I143: Natural | J143: MICRO | K143: 200000
B144: 76001 | C144: CALI | D144: 76 | E144: VALLE DEL CAUCA | F144: COMERCIO AL POR MAYOR Y AL POR MENOR; REPARACIÓN DE VEHÍCULOS AUTOMOTORES Y MOTOCICLETAS | G144: 4669 | H144: G | I144: Natural | J144: MICRO | K144: 1135655
B145: 73001 | C145: IBAGUÉ | D145: 73 | E145: TOLIMA | F145: COMERCIO AL POR MAYOR Y AL POR MENOR; REPARACIÓN DE VEHÍCULOS AUTOMOTORES Y MOTOCICLETAS | G145: 4659 | H145: G | I145: Natural | J145: MICRO | K145: 500000
B146: 76001 | C146: CALI | D146: 76 | E146: VALLE DEL CAUCA | F146: COMERCIO AL POR MAYOR Y AL POR MENOR; REPARACIÓN DE VEHÍCULOS AUTOMOTORES Y MOTOCICLETAS | G146: 4771 | H146: G | I146: Natural | J146: PEQUENA | K146: 2000000
B147: 63001 | C147: ARMENIA | D147: 63 | E147: QUINDÍO | F147: TRANSPORTE Y ALMACENAMIENTO | G147: 5320 | H147: H | I147: Natural | J147: MICRO | K147: 2181393
B148: 5034 | C148: ANDES | D148: 5 | E148: ANTIOQUIA | F148: COMERCIO AL POR MAYOR Y AL POR MENOR; REPARACIÓN DE VEHÍCULOS AUTOMOTORES Y MOTOCICLETAS | G148: 4632 | H148: G | I148: Natural | J148: MICRO | K148: 3071617
B149: 66682 | C149: SANTA ROSA DE CABAL | D149: 66 | E149: RISARALDA | F149: CONSTRUCCIÓN | G149: 4111 | H149: F | I149: Natural | J149: PEQUENA | K149: 1135655
B150: 66001 | C150: PEREIRA | D150: 66 | E150: RISARALDA | F150: COMERCIO AL POR MAYOR Y AL POR MENOR; REPARACIÓN DE VEHÍCULOS AUTOMOTORES Y MOTOCICLETAS | G150: 4752 | H150: G | I150: Natural | J150: MICRO | K150: 850000
B151: 66001 | C151: PEREIRA | D151: 66 | E151: RISARALDA | F151: ACTIVIDADES PROFESIONALES, CIENTÍFICAS Y TÉCNICAS | G151: 7110 | H151: M | I151: Natural | J151: MICRO | K151: 250000
B152: 66001 | C152: PEREIRA | D152: 66 | E152: RISARALDA | F152: COMERCIO AL POR MAYOR Y AL POR MENOR; REPARACIÓN DE VEHÍCULOS AUTOMOTORES Y MOTOCICLETAS | G152: 4530 | H152: G | I152: Natural | J152: MICRO | K152: 727131
B153: 66001 | C153: PEREIRA | D153: 66 | E153: RISARALDA | F153: COMERCIO AL POR MAYOR Y AL POR MENOR; REPARACIÓN DE VEHÍCULOS AUTOMOTORES Y MOTOCICLETAS | G153: 4772 | H153: G | I153: Natural | J153: MICRO | K153: 1504262
B154: 17380 | C154: LA DORADA | D154: 17 | E154: CALDAS | F154: INDUSTRIAS MANUFACTURERAS | G154: 1610 | H154: C | I154: Natural | J154: MICRO | K154: 500000
B155: 17380 | C155: LA DORADA | D155: 17 | E155: CALDAS | F155: COMERCIO AL POR MAYOR Y AL POR MENOR; REPARACIÓN DE VEHÍCULOS AUTOMOTORES Y MOTOCICLETAS | G155: 4773 | H155: G | I155: Natural | J155: MICRO | K155: 450000
B156: 17001 | C156: MANIZALES | D156: 17 | E156: CALDAS | F156: CONSTRUCCIÓN | G156: 4290 | H156: F | I156: Natural | J156: PEQUENA | K156: 2650000
B157: 17001 | C157: MANIZALES | D157: 17 | E157: CALDAS | F157: COMERCIO AL POR MAYOR Y AL POR MENOR; REPARACIÓN DE VEHÍCULOS AUTOMOTORES Y MOTOCICLETAS | G157: 4662 | H157: G | I157: Natural | J157: MICRO | K157: 500000
B158: 17001 | C158: MANIZALES | D158: 17 | E158: CALDAS | F158: CONSTRUCCIÓN | G158: 4290 | H158: F | I158: Natural | J158: MICRO | K158: 23725134
B159: 73443 | C159: MARIQUITA | D159: 73 | E159: TOLIMA | F159: ALOJAMIENTO Y SERVICIOS DE COMIDA | G159: 5511 | H159: I | I159: Natural | J159: MICRO | K159: 681393
B160: 17001 | C160: MANIZALES | D160: 17 | E160: CALDAS | F160: AGRICULTURA, GANADERÍA, CAZA, SILVICULTURA Y PESCA | G160: 150 | H160: A | I160: Natural | J160: PEQUENA | K160: 227131
B161: 17001 | C161: MANIZALES | D161: 17 | E161: CALDAS | F161: COMERCIO AL POR MAYOR Y AL POR MENOR; REPARACIÓN DE VEHÍCULOS AUTOMOTORES Y MOTOCICLETAS | G161: 4752 | H161: G | I161: Natural | J161: MICRO | K161: 1408524
B162: 17001 | C162: MANIZALES | D162: 17 | E162: CALDAS | F162: COMERCIO AL POR MAYOR Y AL POR MENOR; REPARACIÓN DE VEHÍCULOS AUTOMOTORES Y MOTOCICLETAS | G162: 4721 | H162: G | I162: Natural | J162: PEQUENA | K162: 1954262
B163: 19001 | C163: POPAYÁN | D163: 19 | E163: CAUCA | F163: COMERCIO AL POR MAYOR Y AL POR MENOR; REPARACIÓN DE VEHÍCULOS AUTOMOTORES Y MOTOCICLETAS | G163: 4773 | H163: G | I163: Natural | J163: MICRO | K163: 727131
B164: 23001 | C164: MONTERÍA | D164: 23 | E164: CÓRDOBA | F164: COMERCIO AL POR MAYOR Y AL POR MENOR; REPARACIÓN DE VEHÍCULOS AUTOMOTORES Y MOTOCICLETAS | G164: 4530 | H164: G | I164: Natural | J164: PEQUENA | K164: 500000
B165: 50001 | C165: VILLAVICENCIO | D165: 50 | E165: META | F165: COMERCIO AL POR MAYOR Y AL POR MENOR; REPARACIÓN DE VEHÍCULOS AUTOMOTORES Y MOTOCICLETAS | G165: 4711 | H165: G | I165: Natural | J165: MICRO | K165: 181704
B166: 23001 | C166: MONTERÍA | D166: 23 | E166: CÓRDOBA | F166: COMERCIO AL POR MAYOR Y AL POR MENOR; REPARACIÓN DE VEHÍCULOS AUTOMOTORES Y MOTOCICLETAS | G166: 4719 | H166: G | I166: Natural | J166: PEQUENA | K166: 227131
B167: 11001 | C167: BOGOTÁ, D.C. | D167: 11 | E167: BOGOTÁ, D.C. | F167: ALOJAMIENTO Y SERVICIOS DE COMIDA | G167: 5611 | H167: I | I167: Natural | J167: MICRO | K167: 500000
B168: 41001 | C168: NEIVA | D168: 41 | E168: HUILA | F168: TRANSPORTE Y ALMACENAMIENTO | G168: 4923 | H168: H | I168: Natural | J168: MICRO | K168: 727131
B169: 68001 | C169: BUCARAMANGA | D169: 68 | E169: SANTANDER | F169: COMERCIO AL POR MAYOR Y AL POR MENOR; REPARACIÓN DE VEHÍCULOS AUTOMOTORES Y MOTOCICLETAS | G169: 4751 | H169: G | I169: Natural | J169: PEQUENA | K169: 2626505
B170: 25612 | C170: RICAURTE | D170: 25 | E170: CUNDINAMARCA | F170: TRANSPORTE Y ALMACENAMIENTO | G170: 4923 | H170: H | I170: Natural | J170: MICRO | K170: 90852
B171: 25899 | C171: ZIPAQUIRÁ | D171: 25 | E171: CUNDINAMARCA | F171: COMERCIO AL POR MAYOR Y AL POR MENOR; REPARACIÓN DE VEHÍCULOS AUTOMOTORES Y MOTOCICLETAS | G171: 4530 | H171: G | I171: Natural | J171: MICRO | K171: 136278
B172: 25126 | C172: CAJICÁ | D172: 25 | E172: CUNDINAMARCA | F172: AGRICULTURA, GANADERÍA, CAZA, SILVICULTURA Y PESCA | G172: 141 | H172: A | I172: Natural | J172: MICRO | K172: 227131
B173: 11001 | C173: BOGOTÁ, D.C. | D173: 11 | E173: BOGOTÁ, D.C. | F173: INDUSTRIAS MANUFACTURERAS | G173: 1410 | H173: C | I173: Natural | J173: MICRO | K173: 1408524
B174: 15759 | C174: SOGAMOSO | D174: 15 | E174: BOYACÁ | F174: COMERCIO AL POR MAYOR Y AL POR MENOR; REPARACIÓN DE VEHÍCULOS AUTOMOTORES Y MOTOCICLETAS | G174: 4541 | H174: G | I174: Natural | J174: MICRO | K174: 1204262
B175: 25286 | C175: FUNZA | D175: 25 | E175: CUNDINAMARCA | F175: ACTIVIDADES PROFESIONALES, CIENTÍFICAS Y TÉCNICAS | G175: 7020 | H175: M | I175: Natural | J175: MICRO | K175: 2163409
B176: 25269 | C176: FACATATIVÁ | D176: 25 | E176: CUNDINAMARCA | F176: COMERCIO AL POR MAYOR Y AL POR MENOR; REPARACIÓN DE VEHÍCULOS AUTOMOTORES Y MOTOCICLETAS | G176: 4773 | H176: G | I176: Natural | J176: MICRO | K176: 300000
B177: 63001 | C177: ARMENIA | D177: 63 | E177: QUINDÍO | F177: CONSTRUCCIÓN | G177: 4330 | H177: F | I177: Natural | J177: PEQUENA | K177: 5451142
B178: 52356 | C178: IPIALES | D178: 52 | E178: NARIÑO | F178: COMERCIO AL POR MAYOR Y AL POR MENOR; REPARACIÓN DE VEHÍCULOS AUTOMOTORES Y MOTOCICLETAS | G178: 4530 | H178: G | I178: Natural | J178: MICRO | K178: 250000
B179: 8001 | C179: BARRANQUILLA | D179: 8 | E179: ATLÁNTICO | F179: AGRICULTURA, GANADERÍA, CAZA, SILVICULTURA Y PESCA | G179: 126 | H179: A | I179: Natural | J179: MICRO | K179: 726818
B180: 18001 | C180: FLORENCIA | D180: 18 | E180: CAQUETÁ | F180: COMERCIO AL POR MAYOR Y AL POR MENOR; REPARACIÓN DE VEHÍCULOS AUTOMOTORES Y MOTOCICLETAS | G180: 4772 | H180: G | I180: Natural | J180: MICRO | K180: 1181080
B181: 41001 | C181: NEIVA | D181: 41 | E181: HUILA | F181: COMERCIO AL POR MAYOR Y AL POR MENOR; REPARACIÓN DE VEHÍCULOS AUTOMOTORES Y MOTOCICLETAS | G181: 4530 | H181: G | I181: Natural | J181: MICRO | K181: 950000
B182: 41551 | C182: PITALITO | D182: 41 | E182: HUILA | F182: OTRAS ACTIVIDADES DE SERVICIOS | G182: 9603 | H182: S | I182: Natural | J182: MICRO | K182: 2985653
B183: 41298 | C183: GARZÓN | D183: 41 | E183: HUILA | F183: EDUCACIÓN | G183: 8523 | H183: P | I183: Natural | J183: MICRO | K183: 477131
B184: 73001 | C184: IBAGUÉ | D184: 73 | E184: TOLIMA | F184: COMERCIO AL POR MAYOR Y AL POR MENOR; REPARACIÓN DE VEHÍCULOS AUTOMOTORES Y MOTOCICLETAS | G184: 4772 | H184: G | I184: Natural | J184: MICRO | K184: 250000
B185: 41298 | C185: GARZÓN | D185: 41 | E185: HUILA | F185: COMERCIO AL POR MAYOR Y AL POR MENOR; REPARACIÓN DE VEHÍCULOS AUTOMOTORES Y MOTOCICLETAS | G185: 4752 | H185: G | I185: Natural | J185: MICRO | K185: 227131
B186: 41396 | C186: LA PLATA | D186: 41 | E186: HUILA | F186: COMERCIO AL POR MAYOR Y AL POR MENOR; REPARACIÓN DE VEHÍCULOS AUTOMOTORES Y MOTOCICLETAS | G186: 4711 | H186: G | I186: Natural | J186: PEQUENA | K186: 681393
B187: 41001 | C187: NEIVA | D187: 41 | E187: HUILA | F187: TRANSPORTE Y ALMACENAMIENTO | G187: 4923 | H187: H | I187: Natural | J187: MICRO | K187: 181704
B188: 41551 | C188: PITALITO | D188: 41 | E188: HUILA | F188: COMERCIO AL POR MAYOR Y AL POR MENOR; REPARACIÓN DE VEHÍCULOS AUTOMOTORES Y MOTOCICLETAS | G188: 4772 | H188: G | I188: Natural | J188: MICRO | K188: 908524
B189: 11001 | C189: BOGOTÁ, D.C. | D189: 11 | E189: BOGOTÁ, D.C. | F189: INDUSTRIAS MANUFACTURERAS | G189: 2394 | H189: C | I189: Natural | J189: MICRO | K189: 1526818
B190: 41396 | C190: LA PLATA | D190: 41 | E190: HUILA | F190: COMERCIO AL POR MAYOR Y AL POR MENOR; REPARACIÓN DE VEHÍCULOS AUTOMOTORES Y MOTOCICLETAS | G190: 4773 | H190: G | I190: Natural | J190: MICRO | K190: 363408
B191: 41396 | C191: LA PLATA | D191: 41 | E191: HUILA | F191: COMERCIO AL POR MAYOR Y AL POR MENOR; REPARACIÓN DE VEHÍCULOS AUTOMOTORES Y MOTOCICLETAS | G191: 4754 | H191: G | I191: Natural | J191: MICRO | K191: 500000
B192: 41551 | C192: PITALITO | D192: 41 | E192: HUILA | F192: ALOJAMIENTO Y SERVICIOS DE COMIDA | G192: 5611 | H192: I | I192: Natural | J192: MICRO | K192: 3800000
B193: 20001 | C193: VALLEDUPAR | D193: 20 | E193: CESAR | F193: COMERCIO AL POR MAYOR Y AL POR MENOR; REPARACIÓN DE VEHÍCULOS AUTOMOTORES Y MOTOCICLETAS | G193: 4771 | H193: G | I193: Natural | J193: PEQUENA | K193: 272556
B194: 20001 | C194: VALLEDUPAR | D194: 20 | E194: CESAR | F194: COMERCIO AL POR MAYOR Y AL POR MENOR; REPARACIÓN DE VEHÍCULOS AUTOMOTORES Y MOTOCICLETAS | G194: 4530 | H194: G | I194: Natural | J194: MICRO | K194: 250000
B195: 20001 | C195: VALLEDUPAR | D195: 20 | E195: CESAR | F195: ACTIVIDADES DE ATENCIÓN DE LA SALUD HUMANA Y DE ASISTENCIA SOCIAL | G195: 8621 | H195: Q | I195: Natural | J195: MICRO | K195: 704262
B196: 52001 | C196: PASTO | D196: 52 | E196: NARIÑO | F196: CONSTRUCCIÓN | G196: 4290 | H196: F | I196: Natural | J196: PEQUENA | K196: 450000
B197: 52001 | C197: PASTO | D197: 52 | E197: NARIÑO | F197: COMERCIO AL POR MAYOR Y AL POR MENOR; REPARACIÓN DE VEHÍCULOS AUTOMOTORES Y MOTOCICLETAS | G197: 4541 | H197: G | I197: Natural | J197: MICRO | K197: 250000
B198: 52835 | C198: SAN ANDRES DE TUMACO | D198: 52 | E198: NARIÑO | F198: INDUSTRIAS MANUFACTURERAS | G198: 1410 | H198: C | I198: Natural | J198: MICRO | K198: 1300000
B199: 52001 | C199: PASTO | D199: 52 | E199: NARIÑO | F199: COMERCIO AL POR MAYOR Y AL POR MENOR; REPARACIÓN DE VEHÍCULOS AUTOMOTORES Y MOTOCICLETAS | G199: 4690 | H199: G | I199: Natural | J199: MEDIANA | K199: 3429834
B200: 52001 | C200: PASTO | D200: 52 | E200: NARIÑO | F200: INDUSTRIAS MANUFACTURERAS | G200: 1811 | H200: C | I200: Natural | J200: MICRO | K200: 136278
... 4300 more rows

Sheet insumos2 (hidden)
A1: TIPO DE IDENTIFICACION POSTULANTE | B1: NUMERO IDENTIFICACION EMPRESA | C1: CIUDAD - DIVIPOLA - R | D1: Municipio | E1: TOTAL COTIZANTES CON CONCEPTO DE CONFORMIDAD TOTAL A GIRAR | F1: TOTAL COTIZANTES CON CONCEPTO DE NO CONFORMIDAD | G1: TIPO DE PERSONA | H1: Departamento DIVIPOLA (P) | I1: Nombre dpto | J1: ESTADO_TOTAL A GIRAR | K1: Tamaño del Empleador | L1: STRCODPAR_CIIU_EMPRESA | M1: ACTIVIDAD ECONOMICA | N1: ACTIVIDAD ECONOMICA | O1: Division 3DC_TD 3D | P1: grupo especial 2DC_TD 3D | Q1: SEXO_F_ | R1: SEXO_M_ | S1: SEXO_ND_ | T1: Jovenes | U1: Mujeres 28 años | V1: Hombres 28 años | X1: Departamentos | Y1: empleadores | Z1: Departamentos | AA1: empleadores | AH1: TIPO DE IDENTIFICACION POSTULANTE | AI1: NUMERO IDENTIFICACION EMPRESA | AJ1: CIUDAD - DIVIPOLA - R | AK1: Municipio | AL1: TOTAL COTIZANTES CON CONCEPTO DE CONFORMIDAD TOTAL A GIRAR | AM1: TOTAL COTIZANTES CON CONCEPTO DE NO CONFORMIDAD | AN1: TIPO DE PERSONA | AO1: Departamento DIVIPOLA (P) | AP1: Nombre dpto | AQ1: ESTADO_TOTAL A GIRAR | AR1: Tamaño del Empleador | AS1: STRCODPAR_CIIU_EMPRESA | AT1: ACTIVIDAD ECONOMICA | AU1: ACTIVIDAD ECONOMICA | AV1: Division 3DC_TD 3D | AW1: grupo especial 2DC_TD 3D | AX1: SEXO_F_ | AY1: SEXO_M_ | AZ1: SEXO_ND_ | BA1: Jovenes | BB1: Mujeres 28 años | BC1: Hombres 28 años | BF1: Departamentos | BG1: empleadores | BH1: Departamentos | BI1: empleadores | BJ1: nomdpto | BL1: =BJ1 -> nomdpto | BM1: empleadores | BN1: empleados | BP1: codmunicipio | BQ1: aportantes | BR1: codmunicipio | BS1: aportantes | BT1: cod_dpto | BU1: nom_dpto | BV1: nom_mpio | BW1: empleadores | BX1: empleados | BZ1: Grupo | CA1: empleadores | CB1: empleados | CC1: Grupo | CD1: empleadores | CE1: empleados | CJ1: Jovenes | CK1: Mujeres > 28 años | CL1: Hombres> 28 años | CP1: Jovenes | CQ1: Mujeres > 28 años | CR1: Hombres> 28 años | CU1: Jovenes | CV1: Mujeres > 28 años | CW1: Hombres> 28 años
C2: 17380 | D2: LA DORADA | E2: 0 | F2: 0 | G2: Natural | H2: 17 | I2: CALDAS | J2: 0 | K2: MICRO | L2: 141 | M2: AGRICULTURA, GANADERÍA, CAZA, SILVICULTURA Y PESCA | N2: A | O2: Ganadería | P2: Ganadería | Q2: 0 | R2: 0 | S2: 0 | T2: 0 | U2: 0 | V2: 0 | X2: 68 | Y2: =COUNTIFS($J$2:$J$399999,"Aprobado con subsidio",$H$2:$H$399999,X2) -> 713 | Z2: =_xlfn._xlws.SORT($X$2:$Y$34,2,-1) -> 11 | AA2: 5066 | AB2: =VLOOKUP(Z2,Hoja4!$A$29:$B$61,2,FALSE) -> Bogotá | AH2: =_xlfn._xlws.FILTER($A$2:$V$399999,$N$2:$N$399999=Visor!$N$4,"") -> 0 | AI2: 0 | AJ2: 11001 | AK2: BOGOTÁ, D.C. | AL2: 2 | AM2: 1 | AN2: Natural | AO2: 11 | AP2: BOGOTÁ, D.C. | AQ2: Aprobado con subsidio | AR2: MICRO | AS2: 1313 | AT2: INDUSTRIAS MANUFACTURERAS | AU2: C | AV2: Preparación, hilatura, tejeduría y acabado de productos textiles | AW2: Fabricación de productos textiles | AX2: 2 | AY2: 0 | AZ2: 0 | BA2: 1 | BB2: 1 | BC2: 0 | BF2: 68 | BG2: =COUNTIFS($AQ$2:$AQ$399999,"Aprobado con subsidio",$AO$2:$AO$399999,BF2) -> 128 | BH2: =_xlfn._xlws.SORT($BF$2:$BG$34,2,-1) -> 11 | BI2: 676 | BJ2: =VLOOKUP(BH2,Hoja4!$A$29:$B$61,2,FALSE) -> Bogotá | BL2: =BJ2 -> Bogotá | BM2: =BI2 -> 676 | BN2: =SUMIFS($AL$2:$AL$399999,$AQ$2:$AQ$399999,"Aprobado con subsidio",$AO$2:$AO$399999,BH2) -> 10857 | BP2: =_xlfn.UNIQUE($AJ$2:$AJ$399999) -> 11001 | BQ2: =COUNTIFS($AQ$2:$AQ$399999,"Aprobado con subsidio",$AJ$2:$AJ$399999,BP2) -> 676 | BR2: =_xlfn._xlws.SORT($BP$2:$BQ$1122,2,-1) -> 11001 | BS2: 676 | BT2: =IF(LEN(BR2)=5,MID(BR2,1,2),MID(BR2,1,1))*1 -> 11 | BU2: =VLOOKUP(BT2,Hoja4!$A$29:$B$61,2,FALSE) -> Bogotá | BV2: =VLOOKUP(BR2,Hoja4!$D$29:$E$1150,2,FALSE) -> Bogotá, d.c. | BW2: =BS2 -> 676 | BX2: =SUMIFS($AL$2:$AL$399999,$AJ$2:$AJ$399999,BR2) -> 10857 | BZ2: =_xlfn.UNIQUE($AW$2:$AW$399999) -> Fabricación de productos textiles | CA2: =COUNTIFS($AW$2:$AW$399999,BZ2,$AQ$2:$AQ$399999,"Aprobado con subsidio") -> 105 | CB2: =SUMIFS($AL$2:$AL$399999,$AW$2:$AW$399999,BZ2,$AQ$2:$AQ$399999,"Aprobado con subsidio") -> 1761 | CC2: =_xlfn._xlws.SORT(BZ2:CB26,2,-1) -> Elaboración de productos alimenticios | CD2: 461 | CE2: 7123 | CI2: =_xlfn.UNIQUE($M$2:$M$400000) -> AGRICULTURA, GANADERÍA, CAZA, SILVICULTURA Y PESCA | CJ2: =SUMIFS(T$2:T$400000,$M$2:$M$400000,$CI2,$J$2:$J$400000,"Aprobado con subsidio") -> 6867 | CK2: =SUMIFS(U$2:U$400000,$M$2:$M$400000,$CI2,$J$2:$J$400000,"Aprobado con subsidio") -> 583 | CL2: 677 | CO2: =_xlfn._xlws.SORT(CI2:CL23,2,-1) -> ACTIVIDADES DE SERVICIOS ADMINISTRATIVOS Y DE APOYO | CP2: 91170 | CQ2: 19401 | CR2: 6105 | CT2: =IF(CO23=0,"TOTAL",CO23) -> TOTAL | CU2: =IF(CT2="Total",SUM($CP$2:$CP$23)/SUM($CP$2:$CR$23),CP23/SUM($CP23:$CR23)) -> 0.7392571668 | CV2: =IF(CT2="Total",SUM($CQ$2:$CQ$23)/SUM($CP$2:$CR$23),CQ23/SUM($CP23:$CR23)) -> 0.1425724441 | CW2: =IF(CT2="Total",SUM($CR$2:$CR$23)/SUM($CP$2:$CR$23),CR23/SUM($CP23:$CR23)) -> 0.1181703891
C3: 68001 | D3: BUCARAMANGA | E3: 0 | F3: 0 | G3: Natural | H3: 68 | I3: SANTANDER | J3: 0 | K3: 0 | L3: 4771 | M3: COMERCIO AL POR MAYOR Y AL POR MENOR; REPARACIÓN DE VEHÍCULOS AUTOMOTORES Y MOTOCICLETAS | N3: G | O3: Comercio al por menor de otros productos en establecimientos especializados | P3: Comercio al por menor de otros productos en establecimientos especializados | Q3: 0 | R3: 0 | S3: 0 | T3: 0 | U3: 0 | V3: 0 | X3: 13 | Y3: =COUNTIFS($J$2:$J$399999,"Aprobado con subsidio",$H$2:$H$399999,X3) -> 259 | Z3: 5 | AA3: 3065 | AB3: =VLOOKUP(Z3,Hoja4!$A$29:$B$61,2,FALSE) -> Antioquia | AH3: 0 | AI3: 0 | AJ3: 11001 | AK3: BOGOTÁ, D.C. | AL3: 0 | AM3: 0 | AN3: Natural | AO3: 11 | AP3: BOGOTÁ, D.C. | AQ3: 0 | AR3: PEQUEÑA | AS3: 1513 | AT3: INDUSTRIAS MANUFACTURERAS | AU3: C | AV3: Curtido y recurtido de cueros; fabricación de artículos de viaje, bolsos de mano y artículos similares, y fabricación de artículos de talabartería y guarnicionería; adobo y teñido de pieles | AW3: Curtido y recurtido de cueros; fabricación de calzado; fabricación de artículos de viaje, maletas, bolsos de mano y artículos similares, y fabricación de artículos de talabartería y guarnicionería; adobo y teñido de pieles | AX3: 0 | AY3: 0 | AZ3: 0 | BA3: 0 | BB3: 0 | BC3: 0 | BF3: 13 | BG3: 22 | BH3: 5 | BI3: 645 | BJ3: =VLOOKUP(BH3,Hoja4!$A$29:$B$61,2,FALSE) -> Antioquia | BL3: =BJ3 -> Antioquia | BM3: =BI3 -> 645 | BN3: 10652 | BP3: 25875 | BQ3: 1 | BR3: 5001 | BS3: 314 | BT3: =IF(LEN(BR3)=5,MID(BR3,1,2),MID(BR3,1,1))*1 -> 5 | BU3: =VLOOKUP(BT3,Hoja4!$A$29:$B$61,2,FALSE) -> Antioquia | BV3: =VLOOKUP(BR3,Hoja4!$D$29:$E$1150,2,FALSE) -> Medellín | BW3: 314 | BX3: 5259 | BZ3: Curtido y recurtido de cueros; fabricación de calzado; fabricación de artículos de viaje, maletas, bolsos de mano y artículos similares, y fabricación de artículos de talabartería y guarnicionería; adobo y teñido de pieles | CA3: 59 | CB3: 695 | CC3: Confección de prendas de vestir | CD3: 432 | CE3: 12260 | CI3: COMERCIO AL POR MAYOR Y AL POR MENOR; REPARACIÓN DE VEHÍCULOS AUTOMOTORES Y MOTOCICLETAS | CJ3: =SUMIFS(T$2:T$400000,$M$2:$M$400000,$CI3,$J$2:$J$400000,"Aprobado con subsidio") -> 25329 | CK3: 4248 | CL3: 2737 | CO3: INDUSTRIAS MANUFACTURERAS | CP3: 27109 | CQ3: 4559 | CR3: 3358 | CT3: =IF(CO2=0,"Total",CO2) -> ACTIVIDADES DE SERVICIOS ADMINISTRATIVOS Y DE APOYO | CU3: =IF(CT3="Total",SUM($CP$2:$CP$23)/SUM($CP$2:$CR$23),CP2/SUM($CP2:$CR2)) -> 0.7813946313 | CV3: =IF(CT3="Total",SUM($CQ$2:$CQ$23)/SUM($CP$2:$CR$23),CQ2/SUM($CP2:$CR2)) -> 0.1662809832 | CW3: =IF(CT3="Total",SUM($CR$2:$CR$23)/SUM($CP$2:$CR$23),CR2/SUM($CP2:$CR2)) -> 0.05232438548
C4: 5001 | D4: MEDELLÍN | E4: 2 | F4: 1 | G4: Natural | H4: 5 | I4: ANTIOQUIA | J4: Aprobado con subsidio | K4: MICRO | L4: 141 | M4: AGRICULTURA, GANADERÍA, CAZA, SILVICULTURA Y PESCA | N4: A | O4: Ganadería | P4: Ganadería | Q4: 0 | R4: 2 | S4: 0 | T4: 2 | U4: 0 | V4: 0 | X4: 15 | Y4: 201 | Z4: 76 | AA4: 1401 | AB4: =VLOOKUP(Z4,Hoja4!$A$29:$B$61,2,FALSE) -> Valle del cauca | AH4: 0 | AI4: 0 | AJ4: 25875 | AK4: VILLETA | AL4: 1 | AM4: 0 | AN4: Natural | AO4: 25 | AP4: CUNDINAMARCA | AQ4: Aprobado con subsidio | AR4: PEQUEÑA | AS4: 1081 | AT4: INDUSTRIAS MANUFACTURERAS | AU4: C | AV4: Elaboración de otros productos alimenticios | AW4: Elaboración de productos alimenticios | AX4: 1 | AY4: 0 | AZ4: 0 | BA4: 1 | BB4: 0 | BC4: 0 | BF4: 15 | BG4: 22 | BH4: 76 | BI4: 239 | BJ4: =VLOOKUP(BH4,Hoja4!$A$29:$B$61,2,FALSE) -> Valle del cauca | BL4: Valle del cauca | BM4: 239 | BN4: 4525 | BP4: 5001 | BQ4: 314 | BR4: 76001 | BS4: 151 | BT4: 76 | BU4: =VLOOKUP(BT4,Hoja4!$A$29:$B$61,2,FALSE) -> Valle del cauca | BV4: =VLOOKUP(BR4,Hoja4!$D$29:$E$1150,2,FALSE) -> Cali | BW4: 151 | BX4: 1836 | BZ4: Elaboración de productos alimenticios | CA4: 461 | CB4: 7123 | CC4: Instalación, mantenimiento y reparación especializado de maquinaria y equipo | CD4: 198 | CE4: 1595 | CI4: ALOJAMIENTO Y SERVICIOS DE COMIDA | CJ4: 12174 | CK4: 2889 | CL4: 1298 | CO4: COMERCIO AL POR MAYOR Y AL POR MENOR; REPARACIÓN DE VEHÍCULOS AUTOMOTORES Y MOTOCICLETAS | CP4: 25329 | CQ4: 4248 | CR4: 2737 | CT4: INDUSTRIAS MANUFACTURERAS | CU4: 0.7739679096 | CV4: 0.1301604522 | CW4: 0.09587163821
C5: 41001 | D5: NEIVA | E5: 0 | F5: 0 | G5: Natural | H5: 41 | I5: HUILA | J5: 0 | K5: 0 | L5: 4773 | M5: COMERCIO AL POR MAYOR Y AL POR MENOR; REPARACIÓN DE VEHÍCULOS AUTOMOTORES Y MOTOCICLETAS | N5: G | O5: Comercio al por menor de otros productos en establecimientos especializados | P5: Comercio al por menor de otros productos en establecimientos especializados | Q5: 0 | R5: 0 | S5: 0 | T5: 0 | U5: 0 | V5: 0 | X5: 5 | Y5: 3065 | Z5: 68 | AA5: 713 | AB5: =VLOOKUP(Z5,Hoja4!$A$29:$B$61,2,FALSE) -> Santander | AH5: 0 | AI5: 0 | AJ5: 5001 | AK5: MEDELLÍN | AL5: 1 | AM5: 0 | AN5: Natural | AO5: 5 | AP5: ANTIOQUIA | AQ5: Aprobado con subsidio | AR5: MICRO | AS5: 3240 | AT5: INDUSTRIAS MANUFACTURERAS | AU5: C | AV5: Fabricación de juegos, juguetes y rompecabezas | AW5: Otras industrias manufactureras | AX5: 1 | AY5: 0 | AZ5: 0 | BA5: 1 | BB5: 0 | BC5: 0 | BF5: 5 | BG5: 645 | BH5: 25 | BI5: 154 | BJ5: =VLOOKUP(BH5,Hoja4!$A$29:$B$61,2,FALSE) -> Cundinamarca | BL5: Cundinamarca | BM5: 154 | BN5: 1654 | BP5: 15176 | BQ5: 1 | BR5: 5360 | BS5: 92 | BT5: 5 | BU5: =VLOOKUP(BT5,Hoja4!$A$29:$B$61,2,FALSE) -> Antioquia | BV5: =VLOOKUP(BR5,Hoja4!$D$29:$E$1150,2,FALSE) -> Itagüí | BW5: 92 | BX5: 982 | BZ5: Otras industrias manufactureras | CA5: 85 | CB5: 805 | CC5: Fabricación de productos elaborados de metal, excepto maquinaria y equipo | CD5: 184 | CE5: 1641 | CI5: TRANSPORTE Y ALMACENAMIENTO | CJ5: 8581 | CK5: 1256 | CL5: 3770 | CO5: CONSTRUCCIÓN | CP5: 15456 | CQ5: 2501 | CR5: 13113 | CT5: COMERCIO AL POR MAYOR Y AL POR MENOR; REPARACIÓN DE VEHÍCULOS AUTOMOTORES Y MOTOCICLETAS | CU5: 0.7838398217 | CV5: 0.1314600483 | CW5: 0.08470012997
C6: 25307 | D6: GIRARDOT | E6: 1 | F6: 3 | G6: Natural | H6: 25 | I6: CUNDINAMARCA | J6: Aprobado con subsidio | K6: MICRO | L6: 4530 | M6: COMERCIO AL POR MAYOR Y AL POR MENOR; REPARACIÓN DE VEHÍCULOS AUTOMOTORES Y MOTOCICLETAS | N6: G | O6: Comercio de partes, piezas (autopartes) y accesorios (lujos) para vehículos automotores | P6: Comercio de partes, piezas (autopartes) y accesorios (lujos) para vehículos automotores | Q6: 1 | R6: 0 | S6: 0 | T6: 1 | U6: 0 | V6: 0 | X6: 76 | Y6: 1401 | Z6: 25 | AA6: 696 | AB6: =VLOOKUP(Z6,Hoja4!$A$29:$B$61,2,FALSE) -> Cundinamarca | AH6: 0 | AI6: 0 | AJ6: 11001 | AK6: BOGOTÁ, D.C. | AL6: 0 | AM6: 0 | AN6: Natural | AO6: 11 | AP6: BOGOTÁ, D.C. | AQ6: 0 | AR6: MICRO | AS6: 1410 | AT6: INDUSTRIAS MANUFACTURERAS | AU6: C | AV6: Confección de prendas de vestir, excepto prendas de piel | AW6: Confección de prendas de vestir | AX6: 0 | AY6: 0 | AZ6: 0 | BA6: 0 | BB6: 0 | BC6: 0 | BF6: 76 | BG6: 239 | BH6: 68 | BI6: 128 | BJ6: =VLOOKUP(BH6,Hoja4!$A$29:$B$61,2,FALSE) -> Santander | BL6: Santander | BM6: 128 | BN6: 1079 | BP6: 54001 | BQ6: 50 | BR6: 68001 | BS6: 78 | BT6: 68 | BU6: =VLOOKUP(BT6,Hoja4!$A$29:$B$61,2,FALSE) -> Santander | BV6: =VLOOKUP(BR6,Hoja4!$D$29:$E$1150,2,FALSE) -> Bucaramanga | BW6: 78 | BX6: 720 | BZ6: Confección de prendas de vestir | CA6: 432 | CB6: 12260 | CC6: Fabricación de productos de caucho y de plástico | CD6: 126 | CE6: 1621 | CI6: INDUSTRIAS MANUFACTURERAS | CJ6: 27109 | CK6: 4559 | CL6: 3358 | CO6: INFORMACIÓN Y COMUNICACIONES | CP6: 14957 | CQ6: 1793 | CR6: 2087 | CT6: CONSTRUCCIÓN | CU6: 0.4974573544 | CV6: 0.08049565497 | CW6: 0.4220469907
C7: 5001 | D7: MEDELLÍN | E7: 0 | F7: 0 | G7: Natural | H7: 5 | I7: ANTIOQUIA | J7: 0 | K7: MICRO | L7: 5611 | M7: ALOJAMIENTO Y SERVICIOS DE COMIDA | N7: I | O7: Actividades de restaurantes, cafeterías y servicio móvil de comidas | P7: Actividades de restaurantes, cafeterías y servicio móvil de comidas | Q7: 0 | R7: 0 | S7: 0 | T7: 0 | U7: 0 | V7: 0 | X7: 54 | Y7: 367 | Z7: 8 | AA7: 556 | AB7: =VLOOKUP(Z7,Hoja4!$A$29:$B$61,2,FALSE) -> Atlántico | AH7: 0 | AI7: 0 | AJ7: 15176 | AK7: CHIQUINQUIRÁ | AL7: 2 | AM7: 5 | AN7: Natural | AO7: 15 | AP7: BOYACÁ | AQ7: Aprobado con subsidio | AR7: MICRO | AS7: 1081 | AT7: INDUSTRIAS MANUFACTURERAS | AU7: C | AV7: Elaboración de otros productos alimenticios | AW7: Elaboración de productos alimenticios | AX7: 1 | AY7: 1 | AZ7: 0 | BA7: 2 | BB7: 0 | BC7: 0 | BF7: 54 | BG7: 60 | BH7: 8 | BI7: 79 | BJ7: =VLOOKUP(BH7,Hoja4!$A$29:$B$61,2,FALSE) -> Atlántico | BL7: Atlántico | BM7: 79 | BN7: 1715 | BP7: 68001 | BQ7: 78 | BR7: 8001 | BS7: 66 | BT7: 8 | BU7: =VLOOKUP(BT7,Hoja4!$A$29:$B$61,2,FALSE) -> Atlántico | BV7: =VLOOKUP(BR7,Hoja4!$D$29:$E$1150,2,FALSE) -> Barranquilla | BW7: 66 | BX7: 1365 | BZ7: Fabricación de productos elaborados de metal, excepto maquinaria y equipo | CA7: 184 | CB7: 1641 | CC7: Fabricación de productos textiles | CD7: 105 | CE7: 1761 | CI7: EDUCACIÓN | CJ7: 2416 | CK7: 1540 | CL7: 166 | CO7: ACTIVIDADES DE ATENCIÓN DE LA SALUD HUMANA Y DE ASISTENCIA SOCIAL | CP7: 12907 | CQ7: 2635 | CR7: 431 | CT7: INFORMACIÓN Y COMUNICACIONES | CU7: 0.7940224027 | CV7: 0.09518500823 | CW7: 0.1107925891
C8: 11001 | D8: BOGOTÁ, D.C. | E8: 2 | F8: 4 | G8: Natural | H8: 11 | I8: BOGOTÁ, D.C. | J8: Aprobado con subsidio | K8: MICRO | L8: 4663 | M8: COMERCIO AL POR MAYOR Y AL POR MENOR; REPARACIÓN DE VEHÍCULOS AUTOMOTORES Y MOTOCICLETAS | N8: G | O8: Comercio al por mayor especializado de otros productos | P8: Comercio al por mayor especializado de otros productos | Q8: 0 | R8: 2 | S8: 0 | T8: 2 | U8: 0 | V8: 0 | X8: 11 | Y8: 5066 | Z8: 66 | AA8: 369 | AB8: =VLOOKUP(Z8,Hoja4!$A$29:$B$61,2,FALSE) -> Risaralda | AH8: 0 | AI8: 0 | AJ8: 11001 | AK8: BOGOTÁ, D.C. | AL8: 0 | AM8: 0 | AN8: Natural | AO8: 11 | AP8: BOGOTÁ, D.C. | AQ8: 0 | AR8: PEQUEÑA | AS8: 1410 | AT8: INDUSTRIAS MANUFACTURERAS | AU8: C | AV8: Confección de prendas de vestir, excepto prendas de piel | AW8: Confección de prendas de vestir | AX8: 0 | AY8: 0 | AZ8: 0 | BA8: 0 | BB8: 0 | BC8: 0 | BF8: 11 | BG8: 676 | BH8: 66 | BI8: 62 | BJ8: =VLOOKUP(BH8,Hoja4!$A$29:$B$61,2,FALSE) -> Risaralda | BL8: Risaralda | BM8: 62 | BN8: 1268 | BP8: 68861 | BQ8: 2 | BR8: 54001 | BS8: 50 | BT8: 54 | BU8: =VLOOKUP(BT8,Hoja4!$A$29:$B$61,2,FALSE) -> Norte de stder | BV8: =VLOOKUP(BR8,Hoja4!$D$29:$E$1150,2,FALSE) -> Cucuta | BW8: 50 | BX8: 390 | BZ8: Transformación de la madera y fabricación de productos de madera y de corcho, excepto muebles; fabricación de artículos de cestería y espartería | CA8: 53 | CB8: 325 | CC8: Fabricación de sustancias y productos químicos | CD8: 104 | CE8: 1054 | CI8: CONSTRUCCIÓN | CJ8: 15456 | CK8: 2501 | CL8: 13113 | CO8: ALOJAMIENTO Y SERVICIOS DE COMIDA | CP8: 12174 | CQ8: 2889 | CR8: 1298 | CT8: ACTIVIDADES DE ATENCIÓN DE LA SALUD HUMANA Y DE ASISTENCIA SOCIAL | CU8: 0.8080510862 | CV8: 0.1649658799 | CW8: 0.02698303387
C9: 15176 | D9: CHIQUINQUIRÁ | E9: 1 | F9: 1 | G9: Natural | H9: 15 | I9: BOYACÁ | J9: Aprobado con subsidio | K9: MICRO | L9: 4752 | M9: COMERCIO AL POR MAYOR Y AL POR MENOR; REPARACIÓN DE VEHÍCULOS AUTOMOTORES Y MOTOCICLETAS | N9: G | O9: Comercio al por menor de otros enseres domésticos en establecimientos especializados | P9: Comercio al por menor de otros enseres domésticos en establecimientos especializados | Q9: 0 | R9: 1 | S9: 0 | T9: 1 | U9: 0 | V9: 0 | X9: 66 | Y9: 369 | Z9: 54 | AA9: 367 | AB9: =VLOOKUP(Z9,Hoja4!$A$29:$B$61,2,FALSE) -> Norte de stder | AH9: 0 | AI9: 0 | AJ9: 11001 | AK9: BOGOTÁ, D.C. | AL9: 1 | AM9: 5 | AN9: Natural | AO9: 11 | AP9: BOGOTÁ, D.C. | AQ9: Aprobado con subsidio | AR9: MICRO | AS9: 1081 | AT9: INDUSTRIAS MANUFACTURERAS | AU9: C | AV9: Elaboración de otros productos alimenticios | AW9: Elaboración de productos alimenticios | AX9: 0 | AY9: 1 | AZ9: 0 | BA9: 1 | BB9: 0 | BC9: 0 | BF9: 66 | BG9: 62 | BH9: 54 | BI9: 60 | BJ9: =VLOOKUP(BH9,Hoja4!$A$29:$B$61,2,FALSE) -> Norte de stder | BL9: Norte de stder | BM9: 60 | BN9: 459 | BP9: 76001 | BQ9: 151 | BR9: 17001 | BS9: 38 | BT9: 17 | BU9: =VLOOKUP(BT9,Hoja4!$A$29:$B$61,2,FALSE) -> Caldas | BV9: =VLOOKUP(BR9,Hoja4!$D$29:$E$1150,2,FALSE) -> Manizales | BW9: 38 | BX9: 325 | BZ9: Actividades de impresión y de producción de copias a partir de grabaciones originales | CA9: 61 | CB9: 381 | CC9: Otras industrias manufactureras | CD9: 85 | CE9: 805 | CI9: ACTIVIDADES PROFESIONALES, CIENTÍFICAS Y TÉCNICAS | CJ9: 10064 | CK9: 2095 | CL9: 2893 | CO9: ACTIVIDADES PROFESIONALES, CIENTÍFICAS Y TÉCNICAS | CP9: 10064 | CQ9: 2095 | CR9: 2893 | CT9: ALOJAMIENTO Y SERVICIOS DE COMIDA | CU9: 0.7440865473 | CV9: 0.1765784488 | CW9: 0.07933500397
C10: 76001 | D10: CALI | E10: 1 | F10: 0 | G10: Natural | H10: 76 | I10: VALLE DEL CAUCA | J10: Aprobado con subsidio | K10: MICRO | L10: 4774 | M10: COMERCIO AL POR MAYOR Y AL POR MENOR; REPARACIÓN DE VEHÍCULOS AUTOMOTORES Y MOTOCICLETAS | N10: G | O10: Comercio al por menor de otros productos en establecimientos especializados | P10: Comercio al por menor de otros productos en establecimientos especializados | Q10: 0 | R10: 1 | S10: 0 | T10: 1 | U10: 0 | V10: 0 | X10: 52 | Y10: 174 | Z10: 73 | AA10: 260 | AB10: =VLOOKUP(Z10,Hoja4!$A$29:$B$61,2,FALSE) -> Tolima | AH10: 0 | AI10: 0 | AJ10: 11001 | AK10: BOGOTÁ, D.C. | AL10: 0 | AM10: 0 | AN10: Natural | AO10: 11 | AP10: BOGOTÁ, D.C. | AQ10: 0 | AR10: MICRO | AS10: 2592 | AT10: INDUSTRIAS MANUFACTURERAS | AU10: C | AV10: Fabricación de otros productos elaborados de metal y actividades de servicios relacionadas con el trabajo de metales | AW10: Fabricación de productos elaborados de metal, excepto maquinaria y equipo | AX10: 0 | AY10: 0 | AZ10: 0 | BA10: 0 | BB10: 0 | BC10: 0 | BF10: 52 | BG10: 16 | BH10: 17 | BI10: 45 | BJ10: =VLOOKUP(BH10,Hoja4!$A$29:$B$61,2,FALSE) -> Caldas | BL10: Caldas | BM10: 45 | BN10: 368 | BP10: 76248 | BQ10: 3 | BR10: 76892 | BS10: 33 | BT10: 76 | BU10: =VLOOKUP(BT10,Hoja4!$A$29:$B$61,2,FALSE) -> Valle del cauca | BV10: =VLOOKUP(BR10,Hoja4!$D$29:$E$1150,2,FALSE) -> Yumbo | BW10: 33 | BX10: 1875 | BZ10: Fabricación de muebles, colchones y somieres | CA10: 78 | CB10: 606 | CC10: Fabricación de muebles, colchones y somieres | CD10: 78 | CE10: 606 | CI10: ACTIVIDADES ARTÍSTICAS, DE ENTRETENIMIENTO Y RECREACIÓN | CJ10: 3238 | CK10: 601 | CL10: 220 | CO10: TRANSPORTE Y ALMACENAMIENTO | CP10: 8581 | CQ10: 1256 | CR10: 3770 | CT10: ACTIVIDADES PROFESIONALES, CIENTÍFICAS Y TÉCNICAS | CU10: 0.6686154664 | CV10: 0.1391841616 | CW10: 0.192200372
C11: 76001 | D11: CALI | E11: 2 | F11: 1 | G11: Natural | H11: 76 | I11: VALLE DEL CAUCA | J11: Aprobado con subsidio | K11: MICRO | L11: 5511 | M11: ALOJAMIENTO Y SERVICIOS DE COMIDA | N11: I | O11: Actividades de alojamiento de estancias cortas | P11: Actividades de alojamiento de estancias cortas | Q11: 2 | R11: 0 | S11: 0 | T11: 2 | U11: 0 | V11: 0 | X11: 19 | Y11: 82 | Z11: 13 | AA11: 259 | AB11: =VLOOKUP(Z11,Hoja4!$A$29:$B$61,2,FALSE) -> Bolívar | AH11: 0 | AI11: 0 | AJ11: 54001 | AK11: CÚCUTA | AL11: 1 | AM11: 8 | AN11: Natural | AO11: 54 | AP11: NORTE DE SANTANDER | AQ11: Aprobado con subsidio | AR11: MICRO | AS11: 2599 | AT11: INDUSTRIAS MANUFACTURERAS | AU11: C | AV11: Fabricación de otros productos elaborados de metal y actividades de servicios relacionadas con el trabajo de metales | AW11: Fabricación de productos elaborados de metal, excepto maquinaria y equipo | AX11: 0 | AY11: 1 | AZ11: 0 | BA11: 1 | BB11: 0 | BC11: 0 | BF11: 19 | BG11: 12 | BH11: 63 | BI11: 28 | BJ11: =VLOOKUP(BH11,Hoja4!$A$29:$B$61,2,FALSE) -> Quindío | BL11: Quindío | BM11: 28 | BN11: 235 | BP11: 76892 | BQ11: 33 | BR11: 66170 | BS11: 32 | BT11: 66 | BU11: =VLOOKUP(BT11,Hoja4!$A$29:$B$61,2,FALSE) -> Risaralda | BV11: =VLOOKUP(BR11,Hoja4!$D$29:$E$1150,2,FALSE) -> Dosquebradas | BW11: 32 | BX11: 655 | BZ11: Fabricación de productos de caucho y de plástico | CA11: 126 | CB11: 1621 | CC11: Actividades de impresión y de producción de copias a partir de grabaciones originales | CD11: 61 | CE11: 381 | CI11: ACTIVIDADES INMOBILIARIAS | CJ11: 847 | CK11: 328 | CL11: 209 | CO11: AGRICULTURA, GANADERÍA, CAZA, SILVICULTURA Y PESCA | CP11: 6867 | CQ11: 583 | CR11: 677 | CT11: TRANSPORTE Y ALMACENAMIENTO | CU11: 0.6306312927 | CV11: 0.09230543103 | CW11: 0.2770632763
C12: 41001 | D12: NEIVA | E12: 1 | F12: 4 | G12: Natural | H12: 41 | I12: HUILA | J12: Aprobado con subsidio | K12: MICRO | L12: 4729 | M12: COMERCIO AL POR MAYOR Y AL POR MENOR; REPARACIÓN DE VEHÍCULOS AUTOMOTORES Y MOTOCICLETAS | N12: G | O12: Comercio al por menor de alimentos (víveres en general), bebidas y tabaco, en establecimientos especializados | P12: Comercio al por menor de alimentos (víveres en general), bebidas y tabaco, en establecimientos especializados | Q12: 1 | R12: 0 | S12: 0 | T12: 0 | U12: 1 | V12: 0 | X12: 47 | Y12: 137 | Z12: 50 | AA12: 248 | AB12: =VLOOKUP(Z12,Hoja4!$A$29:$B$61,2,FALSE) -> Meta | AH12: 0 | AI12: 0 | AJ12: 68001 | AK12: BUCARAMANGA | AL12: 1 | AM12: 1 | AN12: Natural | AO12: 68 | AP12: SANTANDER | AQ12: Aprobado con subsidio | AR12: PEQUEÑA | AS12: 1610 | AT12: INDUSTRIAS MANUFACTURERAS | AU12: C | AV12: Aserrado, acepillado e impregnación de la madera | AW12: Transformación de la madera y fabricación de productos de madera y de corcho, excepto muebles; fabricación de artículos de cestería y espartería | AX12: 0 | AY12: 1 | AZ12: 0 | BA12: 1 | BB12: 0 | BC12: 0 | BF12: 47 | BG12: 12 | BH12: 73 | BI12: 27 | BJ12: =VLOOKUP(BH12,Hoja4!$A$29:$B$61,2,FALSE) -> Tolima | BL12: Tolima | BM12: 27 | BN12: 311 | BP12: 15238 | BQ12: 6 | BR12: 5380 | BS12: 31 | BT12: 5 | BU12: =VLOOKUP(BT12,Hoja4!$A$29:$B$61,2,FALSE) -> Antioquia | BV12: =VLOOKUP(BR12,Hoja4!$D$29:$E$1150,2,FALSE) -> La estrella | BW12: 31 | BX12: 318 | BZ12: Instalación, mantenimiento y reparación especializado de maquinaria y equipo | CA12: 198 | CB12: 1595 | CC12: Fabricación de maquinaria y equipo n.c.p. | CD12: 60 | CE12: 683 | CI12: ACTIVIDADES FINANCIERAS Y DE SEGUROS | CJ12: 1898 | CK12: 451 | CL12: 67 | CO12: ACTIVIDADES ARTÍSTICAS, DE ENTRETENIMIENTO Y RECREACIÓN | CP12: 3238 | CQ12: 601 | CR12: 220 | CT12: AGRICULTURA, GANADERÍA, CAZA, SILVICULTURA Y PESCA | CU12: 0.8449612403 | CV12: 0.07173618802 | CW12: 0.08330257167
C13: 52356 | D13: IPIALES | E13: 2 | F13: 0 | G13: Natural | H13: 52 | I13: NARIÑO | J13: Aprobado con subsidio | K13: MICRO | L13: 4923 | M13: TRANSPORTE Y ALMACENAMIENTO | N13: H | O13: Transporte terrestre publico automotor | P13: Transporte terrestre publico automotor | Q13: 0 | R13: 2 | S13: 0 | T13: 0 | U13: 0 | V13: 2 | X13: 50 | Y13: 248 | Z13: 17 | AA13: 248 | AB13: =VLOOKUP(Z13,Hoja4!$A$29:$B$61,2,FALSE) -> Caldas | AH13: 0 | AI13: 0 | AJ13: 54001 | AK13: CÚCUTA | AL13: 2 | AM13: 2 | AN13: Natural | AO13: 54 | AP13: NORTE DE SANTANDER | AQ13: Aprobado con subsidio | AR13: MICRO | AS13: 1410 | AT13: INDUSTRIAS MANUFACTURERAS | AU13: C | AV13: Confección de prendas de vestir, excepto prendas de piel | AW13: Confección de prendas de vestir | AX13: 1 | AY13: 1 | AZ13: 0 | BA13: 2 | BB13: 0 | BC13: 0 | BF13: 50 | BG13: 16 | BH13: 13 | BI13: 22 | BJ13: =VLOOKUP(BH13,Hoja4!$A$29:$B$61,2,FALSE) -> Bolívar | BL13: Bolívar | BM13: 22 | BN13: 449 | BP13: 8001 | BQ13: 66 | BR13: 5266 | BS13: 31 | BT13: 5 | BU13: =VLOOKUP(BT13,Hoja4!$A$29:$B$61,2,FALSE) -> Antioquia | BV13: =VLOOKUP(BR13,Hoja4!$D$29:$E$1150,2,FALSE) -> Envigado | BW13: 31 | BX13: 779 | BZ13: Fabricación de aparatos y equipo eléctrico | CA13: 36 | CB13: 1034 | CC13: Curtido y recurtido de cueros; fabricación de calzado; fabricación de artículos de viaje, maletas, bolsos de mano y artículos similares, y fabricación de artículos de talabartería y guarnicionería; adobo y teñido de pieles | CD13: 59 | CE13: 695 | CI13: ACTIVIDADES DE SERVICIOS ADMINISTRATIVOS Y DE APOYO | CJ13: 91170 | CK13: 19401 | CL13: 6105 | CO13: EDUCACIÓN | CP13: 2416 | CQ13: 1540 | CR13: 166 | CT13: ACTIVIDADES ARTÍSTICAS, DE ENTRETENIMIENTO Y RECREACIÓN | CU13: 0.7977334319 | CV13: 0.1480660261 | CW13: 0.05420054201
C14: 54405 | D14: LOS PATIOS | E14: 2 | F14: 0 | G14: Natural | H14: 54 | I14: NORTE DE SANTANDER | J14: Aprobado con subsidio | K14: MICRO | L14: 4923 | M14: TRANSPORTE Y ALMACENAMIENTO | N14: H | O14: Transporte terrestre publico automotor | P14: Transporte terrestre publico automotor | Q14: 1 | R14: 1 | S14: 0 | T14: 1 | U14: 0 | V14: 1 | X14: 63 | Y14: 192 | Z14: 41 | AA14: 216 | AB14: =VLOOKUP(Z14,Hoja4!$A$29:$B$61,2,FALSE) -> Huila | AH14: 0 | AI14: 0 | AJ14: 68861 | AK14: VÉLEZ | AL14: 1 | AM14: 0 | AN14: Natural | AO14: 68 | AP14: SANTANDER | AQ14: Aprobado con subsidio | AR14: MICRO | AS14: 1089 | AT14: INDUSTRIAS MANUFACTURERAS | AU14: C | AV14: Elaboración de otros productos alimenticios | AW14: Elaboración de productos alimenticios | AX14: 1 | AY14: 0 | AZ14: 0 | BA14: 1 | BB14: 0 | BC14: 0 | BF14: 63 | BG14: 28 | BH14: 15 | BI14: 22 | BJ14: =VLOOKUP(BH14,Hoja4!$A$29:$B$61,2,FALSE) -> Boyacá | BL14: Boyacá | BM14: 22 | BN14: 397 | BP14: 20001 | BQ14: 6 | BR14: 25214 | BS14: 31 | BT14: 25 | BU14: =VLOOKUP(BT14,Hoja4!$A$29:$B$61,2,FALSE) -> Cundinamarca | BV14: =VLOOKUP(BR14,Hoja4!$D$29:$E$1150,2,FALSE) -> Cota | BW14: 31 | BX14: 216 | BZ14: Fabricación de otros productos minerales no metálicos | CA14: 56 | CB14: 788 | CC14: Fabricación de otros productos minerales no metálicos | CD14: 56 | CE14: 788 | CI14: ACTIVIDADES DE ATENCIÓN DE LA SALUD HUMANA Y DE ASISTENCIA SOCIAL | CJ14: 12907 | CK14: 2635 | CL14: 431 | CO14: OTRAS ACTIVIDADES DE SERVICIOS | CP14: 1988 | CQ14: 500 | CR14: 276 | CT14: EDUCACIÓN | CU14: 0.5861232411 | CV14: 0.3736050461 | CW14: 0.04027171276
C15: 76400 | D15: LA UNIÓN | E15: 0 | F15: 0 | G15: Natural | H15: 76 | I15: VALLE DEL CAUCA | J15: 0 | K15: MICRO | L15: 4620 | M15: COMERCIO AL POR MAYOR Y AL POR MENOR; REPARACIÓN DE VEHÍCULOS AUTOMOTORES Y MOTOCICLETAS | N15: G | O15: Comercio al por mayor de materias primas agropecuarias; animales vivos | P15: Comercio al por mayor de materias primas agropecuarias; animales vivos | Q15: 0 | R15: 0 | S15: 0 | T15: 0 | U15: 0 | V15: 0 | X15: 70 | Y15: 38 | Z15: 15 | AA15: 201 | AB15: =VLOOKUP(Z15,Hoja4!$A$29:$B$61,2,FALSE) -> Boyacá | AH15: 0 | AI15: 0 | AJ15: 76001 | AK15: CALI | AL15: 2 | AM15: 9 | AN15: Natural | AO15: 76 | AP15: VALLE DEL CAUCA | AQ15: Aprobado con subsidio | AR15: MICRO | AS15: 1811 | AT15: INDUSTRIAS MANUFACTURERAS | AU15: C | AV15: Actividades de impresión y actividades de servicios relacionados con la impresión | AW15: Actividades de impresión y de producción de copias a partir de grabaciones originales | AX15: 2 | AY15: 0 | AZ15: 0 | BA15: 2 | BB15: 0 | BC15: 0 | BF15: 70 | BG15: 3 | BH15: 52 | BI15: 16 | BJ15: =VLOOKUP(BH15,Hoja4!$A$29:$B$61,2,FALSE) -> Nariño | BL15: Nariño | BM15: 16 | BN15: 60 | BP15: 5318 | BQ15: 12 | BR15: 5631 | BS15: 30 | BT15: 5 | BU15: =VLOOKUP(BT15,Hoja4!$A$29:$B$61,2,FALSE) -> Antioquia | BV15: =VLOOKUP(BR15,Hoja4!$D$29:$E$1150,2,FALSE) -> Sabaneta | BW15: 30 | BX15: 568 | BZ15: Fabricación de papel, cartón y productos de papel y cartón | CA15: 38 | CB15: 247 | CC15: Transformación de la madera y fabricación de productos de madera y de corcho, excepto muebles; fabricación de artículos de cestería y espartería | CD15: 53 | CE15: 325 | CI15: OTRAS ACTIVIDADES DE SERVICIOS | CJ15: 1988 | CK15: 500 | CL15: 276 | CO15: ACTIVIDADES FINANCIERAS Y DE SEGUROS | CP15: 1898 | CQ15: 451 | CR15: 67 | CT15: OTRAS ACTIVIDADES DE SERVICIOS | CU15: 0.7192474674 | CV15: 0.1808972504 | CW15: 0.0998552822
C16: 63001 | D16: ARMENIA | E16: 0 | F16: 0 | G16: Natural | H16: 63 | I16: QUINDÍO | J16: 0 | K16: PEQUEÑA | L16: 4771 | M16: COMERCIO AL POR MAYOR Y AL POR MENOR; REPARACIÓN DE VEHÍCULOS AUTOMOTORES Y MOTOCICLETAS | N16: G | O16: Comercio al por menor de otros productos en establecimientos especializados | P16: Comercio al por menor de otros productos en establecimientos especializados | Q16: 0 | R16: 0 | S16: 0 | T16: 0 | U16: 0 | V16: 0 | X16: 41 | Y16: 216 | Z16: 63 | AA16: 192 | AB16: =VLOOKUP(Z16,Hoja4!$A$29:$B$61,2,FALSE) -> Quindío | AH16: 0 | AI16: 0 | AJ16: 5001 | AK16: MEDELLÍN | AL16: 0 | AM16: 0 | AN16: Natural | AO16: 5 | AP16: ANTIOQUIA | AQ16: 0 | AR16: PEQUEÑA | AS16: 1410 | AT16: INDUSTRIAS MANUFACTURERAS | AU16: C | AV16: Confección de prendas de vestir, excepto prendas de piel | AW16: Confección de prendas de vestir | AX16: 0 | AY16: 0 | AZ16: 0 | BA16: 0 | BB16: 0 | BC16: 0 | BF16: 41 | BG16: 16 | BH16: 50 | BI16: 16 | BJ16: =VLOOKUP(BH16,Hoja4!$A$29:$B$61,2,FALSE) -> Meta | BL16: Meta | BM16: 16 | BN16: 138 | BP16: 41001 | BQ16: 13 | BR16: 5615 | BS16: 29 | BT16: 5 | BU16: =VLOOKUP(BT16,Hoja4!$A$29:$B$61,2,FALSE) -> Antioquia | BV16: =VLOOKUP(BR16,Hoja4!$D$29:$E$1150,2,FALSE) -> Rionegro | BW16: 29 | BX16: 1000 | BZ16: Fabricación de sustancias y productos químicos | CA16: 104 | CB16: 1054 | CC16: Fabricación de papel, cartón y productos de papel y cartón | CD16: 38 | CE16: 247 | CI16: INFORMACIÓN Y COMUNICACIONES | CJ16: 14957 | CK16: 1793 | CL16: 2087 | CO16: EXPLOTACIÓN DE MINAS Y CANTERAS | CP16: 1126 | CQ16: 95 | CR16: 480 | CT16: ACTIVIDADES FINANCIERAS Y DE SEGUROS | CU16: 0.7855960265 | CV16: 0.1866721854 | CW16: 0.02773178808
C17: 52001 | D17: PASTO | E17: 0 | F17: 0 | G17: Natural | H17: 52 | I17: NARIÑO | J17: 0 | K17: MICRO | L17: 5611 | M17: ALOJAMIENTO Y SERVICIOS DE COMIDA | N17: I | O17: Actividades de restaurantes, cafeterías y servicio móvil de comidas | P17: Actividades de restaurantes, cafeterías y servicio móvil de comidas | Q17: 0 | R17: 0 | S17: 0 | T17: 0 | U17: 0 | V17: 0 | X17: 25 | Y17: 696 | Z17: 52 | AA17: 174 | AB17: =VLOOKUP(Z17,Hoja4!$A$29:$B$61,2,FALSE) -> Nariño | AH17: 0 | AI17: 0 | AJ17: 76248 | AK17: EL CERRITO | AL17: 0 | AM17: 0 | AN17: Natural | AO17: 76 | AP17: VALLE DEL CAUCA | AQ17: 0 | AR17: MICRO | AS17: 3110 | AT17: INDUSTRIAS MANUFACTURERAS | AU17: C | AV17: Fabricación de muebles | AW17: Fabricación de muebles, colchones y somieres | AX17: 0 | AY17: 0 | AZ17: 0 | BA17: 0 | BB17: 0 | BC17: 0 | BF17: 25 | BG17: 154 | BH17: 41 | BI17: 16 | BJ17: =VLOOKUP(BH17,Hoja4!$A$29:$B$61,2,FALSE) -> Huila | BL17: Huila | BM17: 16 | BN17: 83 | BP17: 18753 | BQ17: 1 | BR17: 66001 | BS17: 27 | BT17: 66 | BU17: =VLOOKUP(BT17,Hoja4!$A$29:$B$61,2,FALSE) -> Risaralda | BV17: =VLOOKUP(BR17,Hoja4!$D$29:$E$1150,2,FALSE) -> Pereira | BW17: 27 | BX17: 553 | BZ17: Elaboración de bebidas | CA17: 31 | CB17: 400 | CC17: Fabricación de vehículos automotores, remolques y semirremolques | CD17: 38 | CE17: 457 | CI17: SUMINISTRO DE ELECTRICIDAD, GAS, VAPOR Y AIRE ACONDICIONADO | CJ17: 137 | CK17: 17 | CL17: 23 | CO17: ADMINISTRACIÓN PÚBLICA Y DEFENSA; PLANES DE SEGURIDAD SOCIAL DE AFILIACIÓN OBLIGATORIA | CP17: 1100 | CQ17: 276 | CR17: 4 | CT17: EXPLOTACIÓN DE MINAS Y CANTERAS | CU17: 0.6619635509 | CV17: 0.05584950029 | CW17: 0.2821869489
C18: 76828 | D18: TRUJILLO | E18: 6 | F18: 0 | G18: Natural | H18: 76 | I18: VALLE DEL CAUCA | J18: Aprobado con subsidio | K18: MICRO | L18: 4752 | M18: COMERCIO AL POR MAYOR Y AL POR MENOR; REPARACIÓN DE VEHÍCULOS AUTOMOTORES Y MOTOCICLETAS | N18: G | O18: Comercio al por menor de otros enseres domésticos en establecimientos especializados | P18: Comercio al por menor de otros enseres domésticos en establecimientos especializados | Q18: 3 | R18: 3 | S18: 0 | T18: 3 | U18: 0 | V18: 3 | X18: 8 | Y18: 556 | Z18: 47 | AA18: 137 | AB18: =VLOOKUP(Z18,Hoja4!$A$29:$B$61,2,FALSE) -> Magdalena | AH18: 0 | AI18: 0 | AJ18: 76892 | AK18: YUMBO | AL18: 0 | AM18: 0 | AN18: Natural | AO18: 76 | AP18: VALLE DEL CAUCA | AQ18: 0 | AR18: MICRO | AS18: 1690 | AT18: INDUSTRIAS MANUFACTURERAS | AU18: C | AV18: Fabricación de otros productos de madera; fabricación de artículos de corcho, cestería y espartería | AW18: Transformación de la madera y fabricación de productos de madera y de corcho, excepto muebles; fabricación de artículos de cestería y espartería | AX18: 0 | AY18: 0 | AZ18: 0 | BA18: 0 | BB18: 0 | BC18: 0 | BF18: 8 | BG18: 79 | BH18: 19 | BI18: 12 | BJ18: =VLOOKUP(BH18,Hoja4!$A$29:$B$61,2,FALSE) -> Cauca | BL18: Cauca | BM18: 12 | BN18: 157 | BP18: 95001 | BQ18: 0 | BR18: 73001 | BS18: 25 | BT18: 73 | BU18: =VLOOKUP(BT18,Hoja4!$A$29:$B$61,2,FALSE) -> Tolima | BV18: =VLOOKUP(BR18,Hoja4!$D$29:$E$1150,2,FALSE) -> Ibagué | BW18: 25 | BX18: 306 | BZ18: Fabricación de productos metalúrgicos básicos | CA18: 25 | CB18: 517 | CC18: Fabricación de aparatos y equipo eléctrico | CD18: 36 | CE18: 1034 | CI18: OTRAS | CJ18: 1 | CK18: 2 | CL18: 0 | CO18: ACTIVIDADES INMOBILIARIAS | CP18: 847 | CQ18: 328 | CR18: 209 | CT18: ADMINISTRACIÓN PÚBLICA Y DEFENSA; PLANES DE SEGURIDAD SOCIAL DE AFILIACIÓN OBLIGATORIA | CU18: 0.7971014493 | CV18: 0.2 | CW18: 0.002898550725
C19: 76001 | D19: CALI | E19: 0 | F19: 0 | G19: Natural | H19: 76 | I19: VALLE DEL CAUCA | J19: 0 | K19: MICRO | L19: 121 | M19: AGRICULTURA, GANADERÍA, CAZA, SILVICULTURA Y PESCA | N19: A | O19: Cultivos agrícolas permanentes | P19: Cultivos agrícolas permanentes | Q19: 0 | R19: 0 | S19: 0 | T19: 0 | U19: 0 | V19: 0 | X19: 85 | Y19: 72 | Z19: 23 | AA19: 126 | AB19: =VLOOKUP(Z19,Hoja4!$A$29:$B$61,2,FALSE) -> Córdoba | AH19: 0 | AI19: 0 | AJ19: 76001 | AK19: CALI | AL19: 2 | AM19: 1 | AN19: Natural | AO19: 76 | AP19: VALLE DEL CAUCA | AQ19: Aprobado con subsidio | AR19: MICRO | AS19: 1081 | AT19: INDUSTRIAS MANUFACTURERAS | AU19: C | AV19: Elaboración de otros productos alimenticios | AW19: Elaboración de productos alimenticios | AX19: 1 | AY19: 1 | AZ19: 0 | BA19: 0 | BB19: 1 | BC19: 1 | BF19: 85 | BG19: 8 | BH19: 47 | BI19: 12 | BJ19: =VLOOKUP(BH19,Hoja4!$A$29:$B$61,2,FALSE) -> Magdalena | BL19: Magdalena | BM19: 12 | BN19: 41 | BP19: 5631 | BQ19: 30 | BR19: 25754 | BS19: 23 | BT19: 25 | BU19: =VLOOKUP(BT19,Hoja4!$A$29:$B$61,2,FALSE) -> Cundinamarca | BV19: =VLOOKUP(BR19,Hoja4!$D$29:$E$1150,2,FALSE) -> Soacha | BW19: 23 | BX19: 217 | BZ19: Fabricación de maquinaria y equipo n.c.p. | CA19: 60 | CB19: 683 | CC19: Elaboración de bebidas | CD19: 31 | CE19: 400 | CI19: ADMINISTRACIÓN PÚBLICA Y DEFENSA; PLANES DE SEGURIDAD SOCIAL DE AFILIACIÓN OBLIGATORIA | CJ19: 1100 | CK19: 276 | CL19: 4 | CO19: DISTRIBUCIÓN DE AGUA; EVACUACIÓN Y TRATAMIENTO DE AGUAS RESIDUALES, GESTIÓN DE DESECHOS Y ACTIVIDADES DE SANEAMIENTO AMBIENTAL | CP19: 774 | CQ19: 147 | CR19: 154 | CT19: ACTIVIDADES INMOBILIARIAS | CU19: 0.6119942197 | CV19: 0.2369942197 | CW19: 0.1510115607
C20: 11001 | D20: BOGOTÁ, D.C. | E20: 2 | F20: 1 | G20: Natural | H20: 11 | I20: BOGOTÁ, D.C. | J20: Aprobado con subsidio | K20: MICRO | L20: 1313 | M20: INDUSTRIAS MANUFACTURERAS | N20: C | O20: Preparación, hilatura, tejeduría y acabado de productos textiles | P20: Fabricación de productos textiles | Q20: 2 | R20: 0 | S20: 0 | T20: 1 | U20: 1 | V20: 0 | X20: 73 | Y20: 260 | Z20: 20 | AA20: 110 | AB20: =VLOOKUP(Z20,Hoja4!$A$29:$B$61,2,FALSE) -> Cesar | AH20: 0 | AI20: 0 | AJ20: 76001 | AK20: CALI | AL20: 1 | AM20: 11 | AN20: Natural | AO20: 76 | AP20: VALLE DEL CAUCA | AQ20: Aprobado con subsidio | AR20: PEQUEÑA | AS20: 1410 | AT20: INDUSTRIAS MANUFACTURERAS | AU20: C | AV20: Confección de prendas de vestir, excepto prendas de piel | AW20: Confección de prendas de vestir | AX20: 1 | AY20: 0 | AZ20: 0 | BA20: 1 | BB20: 0 | BC20: 0 | BF20: 73 | BG20: 27 | BH20: 85 | BI20: 8 | BJ20: =VLOOKUP(BH20,Hoja4!$A$29:$B$61,2,FALSE) -> Casanare | BL20: Casanare | BM20: 8 | BN20: 60 | BP20: 5368 | BQ20: 1 | BR20: 63001 | BS20: 22 | BT20: 63 | BU20: =VLOOKUP(BT20,Hoja4!$A$29:$B$61,2,FALSE) -> Quindío | BV20: =VLOOKUP(BR20,Hoja4!$D$29:$E$1150,2,FALSE) -> Armenia | BW20: 22 | BX20: 166 | BZ20: Fabricación de productos farmacéuticos, sustancias químicas medicinales y productos botánicos de uso farmacéutico | CA20: 31 | CB20: 496 | CC20: Fabricación de productos farmacéuticos, sustancias químicas medicinales y productos botánicos de uso farmacéutico | CD20: 31 | CE20: 496 | CI20: EXPLOTACIÓN DE MINAS Y CANTERAS | CJ20: 1126 | CK20: 95 | CL20: 480 | CO20: SUMINISTRO DE ELECTRICIDAD, GAS, VAPOR Y AIRE ACONDICIONADO | CP20: 137 | CQ20: 17 | CR20: 23 | CT20: DISTRIBUCIÓN DE AGUA; EVACUACIÓN Y TRATAMIENTO DE AGUAS RESIDUALES, GESTIÓN DE DESECHOS Y ACTIVIDADES DE SANEAMIENTO AMBIENTAL | CU20: 0.72 | CV20: 0.136744186 | CW20: 0.143255814
C21: 25214 | D21: COTA | E21: 0 | F21: 0 | G21: Natural | H21: 25 | I21: CUNDINAMARCA | J21: 0 | K21: PEQUEÑA | L21: 8530 | M21: EDUCACIÓN | N21: P | O21: Establecimientos que combinan diferentes niveles de educación | P21: Establecimientos que combinan diferentes niveles de educación | Q21: 0 | R21: 0 | S21: 0 | T21: 0 | U21: 0 | V21: 0 | X21: 20 | Y21: 110 | Z21: 19 | AA21: 82 | AB21: =VLOOKUP(Z21,Hoja4!$A$29:$B$61,2,FALSE) -> Cauca | AH21: 0 | AI21: 0 | AJ21: 11001 | AK21: BOGOTÁ, D.C. | AL21: 1 | AM21: 0 | AN21: Natural | AO21: 11 | AP21: BOGOTÁ, D.C. | AQ21: Aprobado con subsidio | AR21: MICRO | AS21: 1081 | AT21: INDUSTRIAS MANUFACTURERAS | AU21: C | AV21: Elaboración de otros productos alimenticios | AW21: Elaboración de productos alimenticios | AX21: 1 | AY21: 0 | AZ21: 0 | BA21: 0 | BB21: 1 | BC21: 0 | BF21: 20 | BG21: 8 | BH21: 20 | BI21: 8 | BJ21: =VLOOKUP(BH21,Hoja4!$A$29:$B$61,2,FALSE) -> Cesar | BL21: Cesar | BM21: 8 | BN21: 48 | BP21: 15759 | BQ21: 5 | BR21: 76520 | BS21: 21 | BT21: 76 | BU21: =VLOOKUP(BT21,Hoja4!$A$29:$B$61,2,FALSE) -> Valle del cauca | BV21: =VLOOKUP(BR21,Hoja4!$D$29:$E$1150,2,FALSE) -> Palmira | BW21: 21 | BX21: 271 | BZ21: Fabricación de vehículos automotores, remolques y semirremolques | CA21: 38 | CB21: 457 | CC21: Fabricación de productos metalúrgicos básicos | CD21: 25 | CE21: 517 | CI21: DISTRIBUCIÓN DE AGUA; EVACUACIÓN Y TRATAMIENTO DE AGUAS RESIDUALES, GESTIÓN DE DESECHOS Y ACTIVIDADES DE SANEAMIENTO AMBIENTAL | CJ21: 774 | CK21: 147 | CL21: 154 | CO21: ACTIVIDADES DE LOS HOGARES INDIVIDUALES EN CALIDAD DE EMPLEADORES; ACTIVIDADES NO DIFERENCIADAS DE LOS HOGARES INDIVIDUALES COMO PRODUCTORES DE BIENES Y SERVICIOS PARA USO PROPIO | CP21: 9 | CQ21: 12 | CR21: 0 | CT21: SUMINISTRO DE ELECTRICIDAD, GAS, VAPOR Y AIRE ACONDICIONADO | CU21: 0.7740112994 | CV21: 0.09604519774 | CW21: 0.1299435028
C22: 50001 | D22: VILLAVICENCIO | E22: 0 | F22: 0 | G22: Natural | H22: 50 | I22: META | J22: 0 | K22: MICRO | L22: 4530 | M22: COMERCIO AL POR MAYOR Y AL POR MENOR; REPARACIÓN DE VEHÍCULOS AUTOMOTORES Y MOTOCICLETAS | N22: G | O22: Comercio de partes, piezas (autopartes) y accesorios (lujos) para vehículos automotores | P22: Comercio de partes, piezas (autopartes) y accesorios (lujos) para vehículos automotores | Q22: 0 | R22: 0 | S22: 0 | T22: 0 | U22: 0 | V22: 0 | X22: 97 | Y22: 2 | Z22: 85 | AA22: 72 | AB22: =VLOOKUP(Z22,Hoja4!$A$29:$B$61,2,FALSE) -> Casanare | AH22: 0 | AI22: 0 | AJ22: 15238 | AK22: DUITAMA | AL22: 0 | AM22: 0 | AN22: Natural | AO22: 15 | AP22: BOYACÁ | AQ22: 0 | AR22: MICRO | AS22: 1040 | AT22: INDUSTRIAS MANUFACTURERAS | AU22: C | AV22: Elaboración de productos lácteos | AW22: Elaboración de productos alimenticios | AX22: 0 | AY22: 0 | AZ22: 0 | BA22: 0 | BB22: 0 | BC22: 0 | BF22: 97 | BG22: 0 | BH22: 23 | BI22: 8 | BJ22: =VLOOKUP(BH22,Hoja4!$A$29:$B$61,2,FALSE) -> Córdoba | BL22: Córdoba | BM22: 8 | BN22: 288 | BP22: 85139 | BQ22: 1 | BR22: 5088 | BS22: 20 | BT22: 5 | BU22: =VLOOKUP(BT22,Hoja4!$A$29:$B$61,2,FALSE) -> Antioquia | BV22: =VLOOKUP(BR22,Hoja4!$D$29:$E$1150,2,FALSE) -> Bello | BW22: 20 | BX22: 148 | BZ22: Coquización, fabricación de productos de la refinación del petróleo y actividad de mezcla de combustibles | CA22: 7 | CB22: 37 | CC22: Fabricación de productos informáticos, electrónicos y ópticos | CD22: 15 | CE22: 119 | CI22: ACTIVIDADES DE LOS HOGARES INDIVIDUALES EN CALIDAD DE EMPLEADORES; ACTIVIDADES NO DIFERENCIADAS DE LOS HOGARES INDIVIDUALES COMO PRODUCTORES DE BIENES Y SERVICIOS PARA USO PROPIO | CJ22: 9 | CK22: 12 | CL22: 0 | CO22: OTRAS | CP22: 1 | CQ22: 2 | CR22: 0 | CT22: ACTIVIDADES DE LOS HOGARES INDIVIDUALES EN CALIDAD DE EMPLEADORES; ACTIVIDADES NO DIFERENCIADAS DE LOS HOGARES INDIVIDUALES COMO PRODUCTORES DE BIENES Y SERVICIOS PARA USO PROPIO | CU22: 0.4285714286 | CV22: 0.5714285714 | CW22: 0
C23: 11001 | D23: BOGOTÁ, D.C. | E23: 1 | F23: 1 | G23: Natural | H23: 11 | I23: BOGOTÁ, D.C. | J23: Aprobado con subsidio | K23: MICRO | L23: 4754 | M23: COMERCIO AL POR MAYOR Y AL POR MENOR; REPARACIÓN DE VEHÍCULOS AUTOMOTORES Y MOTOCICLETAS | N23: G | O23: Comercio al por menor de otros enseres domésticos en establecimientos especializados | P23: Comercio al por menor de otros enseres domésticos en establecimientos especializados | Q23: 0 | R23: 1 | S23: 0 | T23: 1 | U23: 0 | V23: 0 | X23: 81 | Y23: 30 | Z23: 18 | AA23: 59 | AB23: =VLOOKUP(Z23,Hoja4!$A$29:$B$61,2,FALSE) -> Caquetá | AH23: 0 | AI23: 0 | AJ23: 8001 | AK23: BARRANQUILLA | AL23: 1 | AM23: 3 | AN23: Natural | AO23: 8 | AP23: ATLÁNTICO | AQ23: Aprobado con subsidio | AR23: PEQUEÑA | AS23: 1081 | AT23: INDUSTRIAS MANUFACTURERAS | AU23: C | AV23: Elaboración de otros productos alimenticios | AW23: Elaboración de productos alimenticios | AX23: 0 | AY23: 1 | AZ23: 0 | BA23: 1 | BB23: 0 | BC23: 0 | BF23: 81 | BG23: 1 | BH23: 18 | BI23: 4 | BJ23: =VLOOKUP(BH23,Hoja4!$A$29:$B$61,2,FALSE) -> Caquetá | BL23: Caquetá | BM23: 4 | BN23: 15 | BP23: 20011 | BQ23: 1 | BR23: 13001 | BS23: 20 | BT23: 13 | BU23: =VLOOKUP(BT23,Hoja4!$A$29:$B$61,2,FALSE) -> Bolívar | BV23: =VLOOKUP(BR23,Hoja4!$D$29:$E$1150,2,FALSE) -> Cartagena de ind | BW23: 20 | BX23: 187 | BZ23: Fabricación de productos informáticos, electrónicos y ópticos | CA23: 15 | CB23: 119 | CC23: Fabricación de otros tipos de equipo de transporte | CD23: 9 | CE23: 276 | CI23: 0 | CJ23: 0 | CK23: 0 | CL23: 0 | CO23: 0 | CP23: 0 | CQ23: 0 | CR23: 0 | CT23: OTRAS | CU23: 0.3333333333 | CV23: 0.6666666667 | CW23: 0
C24: 11001 | D24: BOGOTÁ, D.C. | E24: 0 | F24: 0 | G24: Natural | H24: 11 | I24: BOGOTÁ, D.C. | J24: 0 | K24: MICRO | L24: 8512 | M24: EDUCACIÓN | N24: P | O24: Educación de la primera infancia, preescolar y básica primaria | P24: Educación de la primera infancia, preescolar y básica primaria | Q24: 0 | R24: 0 | S24: 0 | T24: 0 | U24: 0 | V24: 0 | X24: 44 | Y24: 23 | Z24: 70 | AA24: 38 | AB24: =VLOOKUP(Z24,Hoja4!$A$29:$B$61,2,FALSE) -> Sucre | AH24: 0 | AI24: 0 | AJ24: 20001 | AK24: VALLEDUPAR | AL24: 11 | AM24: 0 | AN24: Natural | AO24: 20 | AP24: CESAR | AQ24: Aprobado con subsidio | AR24: PEQUEÑA | AS24: 1410 | AT24: INDUSTRIAS MANUFACTURERAS | AU24: C | AV24: Confección de prendas de vestir, excepto prendas de piel | AW24: Confección de prendas de vestir | AX24: 6 | AY24: 5 | AZ24: 0 | BA24: 3 | BB24: 4 | BC24: 4 | BF24: 44 | BG24: 0 | BH24: 70 | BI24: 3 | BJ24: =VLOOKUP(BH24,Hoja4!$A$29:$B$61,2,FALSE) -> Sucre | BL24: Sucre | BM24: 3 | BN24: 15 | BP24: 63001 | BQ24: 22 | BR24: 68307 | BS24: 19 | BT24: 68 | BU24: =VLOOKUP(BT24,Hoja4!$A$29:$B$61,2,FALSE) -> Santander | BV24: =VLOOKUP(BR24,Hoja4!$D$29:$E$1150,2,FALSE) -> Girón | BW24: 19 | BX24: 235 | BZ24: Elaboración de productos de tabaco | CA24: 2 | CB24: 105 | CC24: Coquización, fabricación de productos de la refinación del petróleo y actividad de mezcla de combustibles | CD24: 7 | CE24: 37
C25: 25181 | D25: CHOACHÍ | E25: 1 | F25: 0 | G25: Natural | H25: 25 | I25: CUNDINAMARCA | J25: Aprobado con subsidio | K25: PEQUEÑA | L25: 4663 | M25: COMERCIO AL POR MAYOR Y AL POR MENOR; REPARACIÓN DE VEHÍCULOS AUTOMOTORES Y MOTOCICLETAS | N25: G | O25: Comercio al por mayor especializado de otros productos | P25: Comercio al por mayor especializado de otros productos | Q25: 0 | R25: 1 | S25: 0 | T25: 0 | U25: 0 | V25: 1 | X25: 17 | Y25: 248 | Z25: 86 | AA25: 33 | AB25: =VLOOKUP(Z25,Hoja4!$A$29:$B$61,2,FALSE) -> Putumayo | AH25: 0 | AI25: 0 | AJ25: 5318 | AK25: GUARNE | AL25: 6 | AM25: 13 | AN25: Natural | AO25: 5 | AP25: ANTIOQUIA | AQ25: Aprobado con subsidio | AR25: PEQUEÑA | AS25: 2221 | AT25: INDUSTRIAS MANUFACTURERAS | AU25: C | AV25: Fabricación de productos de plástico | AW25: Fabricación de productos de caucho y de plástico | AX25: 4 | AY25: 2 | AZ25: 0 | BA25: 2 | BB25: 4 | BC25: 0 | BF25: 17 | BG25: 45 | BH25: 86 | BI25: 3 | BJ25: =VLOOKUP(BH25,Hoja4!$A$29:$B$61,2,FALSE) -> Putumayo | BL25: =BJ25 -> Putumayo | BM25: =BI25 -> 3 | BN25: 5 | BP25: 66170 | BQ25: 32 | BR25: 25286 | BS25: 18 | BT25: 25 | BU25: =VLOOKUP(BT25,Hoja4!$A$29:$B$61,2,FALSE) -> Cundinamarca | BV25: =VLOOKUP(BR25,Hoja4!$D$29:$E$1150,2,FALSE) -> Funza | BW25: 18 | BX25: 163 | BZ25: Fabricación de otros tipos de equipo de transporte | CA25: 9 | CB25: 276 | CC25: Elaboración de productos de tabaco | CD25: 2 | CE25: 105
C26: 25279 | D26: FOMEQUE | E26: 1 | F26: 5 | G26: Natural | H26: 25 | I26: CUNDINAMARCA | J26: Aprobado con subsidio | K26: PEQUEÑA | L26: 145 | M26: AGRICULTURA, GANADERÍA, CAZA, SILVICULTURA Y PESCA | N26: A | O26: Ganadería | P26: Ganadería | Q26: 0 | R26: 1 | S26: 0 | T26: 1 | U26: 0 | V26: 0 | X26: 18 | Y26: 59 | Z26: 81 | AA26: 30 | AB26: =VLOOKUP(Z26,Hoja4!$A$29:$B$61,2,FALSE) -> Arauca | AH26: 0 | AI26: 0 | AJ26: 76001 | AK26: CALI | AL26: 1 | AM26: 1 | AN26: Natural | AO26: 76 | AP26: VALLE DEL CAUCA | AQ26: Aprobado con subsidio | AR26: PEQUEÑA | AS26: 1313 | AT26: INDUSTRIAS MANUFACTURERAS | AU26: C | AV26: Preparación, hilatura, tejeduría y acabado de productos textiles | AW26: Fabricación de productos textiles | AX26: 1 | AY26: 0 | AZ26: 0 | BA26: 1 | BB26: 0 | BC26: 0 | BF26: 18 | BG26: 4 | BH26: 81 | BI26: 1 | BJ26: =VLOOKUP(BH26,Hoja4!$A$29:$B$61,2,FALSE) -> Arauca | BL26: Arauca | BM26: =BI26 -> 1 | BN26: 147 | BP26: 66682 | BQ26: 2 | BR26: 25817 | BS26: 17 | BT26: 25 | BU26: =VLOOKUP(BT26,Hoja4!$A$29:$B$61,2,FALSE) -> Cundinamarca | BV26: =VLOOKUP(BR26,Hoja4!$D$29:$E$1150,2,FALSE) -> Tocancipá | BW26: 17 | BX26: 276 | BZ26: 0 | CA26: 0 | CB26: 0 | CC26: 0 | CD26: 0 | CE26: 0
C27: 25214 | D27: COTA | E27: 1 | F27: 6 | G27: Natural | H27: 25 | I27: CUNDINAMARCA | J27: Aprobado con subsidio | K27: MICRO | L27: 4290 | M27: CONSTRUCCIÓN | N27: F | O27: Construcción de otras obras de ingeniería civil | P27: Construcción de otras obras de ingeniería civil | Q27: 0 | R27: 1 | S27: 0 | T27: 0 | U27: 0 | V27: 1 | X27: 23 | Y27: 126 | Z27: 44 | AA27: 23 | AB27: =VLOOKUP(Z27,Hoja4!$A$29:$B$61,2,FALSE) -> La guajira | AH27: 0 | AI27: 0 | AJ27: 41001 | AK27: NEIVA | AL27: 2 | AM27: 3 | AN27: Natural | AO27: 41 | AP27: HUILA | AQ27: Aprobado con subsidio | AR27: MICRO | AS27: 1081 | AT27: INDUSTRIAS MANUFACTURERAS | AU27: C | AV27: Elaboración de otros productos alimenticios | AW27: Elaboración de productos alimenticios | AX27: 1 | AY27: 1 | AZ27: 0 | BA27: 2 | BB27: 0 | BC27: 0 | BF27: 23 | BG27: 8 | BH27: 97 | BI27: 0 | BJ27: =VLOOKUP(BH27,Hoja4!$A$29:$B$61,2,FALSE) -> Vaupés | BL27: Vaupés | BM27: =BI27 -> 0 | BN27: 0 | BP27: 66001 | BQ27: 27 | BR27: 25473 | BS27: 17 | BT27: 25 | BU27: =VLOOKUP(BT27,Hoja4!$A$29:$B$61,2,FALSE) -> Cundinamarca | BV27: =VLOOKUP(BR27,Hoja4!$D$29:$E$1150,2,FALSE) -> Mosquera | BW27: 17 | BX27: 188 | CA27: 0 | CB27: 0
C28: 25297 | D28: GACHETÁ | E28: 1 | F28: 1 | G28: Natural | H28: 25 | I28: CUNDINAMARCA | J28: Aprobado con subsidio | K28: MICRO | L28: 4663 | M28: COMERCIO AL POR MAYOR Y AL POR MENOR; REPARACIÓN DE VEHÍCULOS AUTOMOTORES Y MOTOCICLETAS | N28: G | O28: Comercio al por mayor especializado de otros productos | P28: Comercio al por mayor especializado de otros productos | Q28: 1 | R28: 0 | S28: 0 | T28: 1 | U28: 0 | V28: 0 | X28: 88 | Y28: 18 | Z28: 88 | AA28: 18 | AB28: =VLOOKUP(Z28,Hoja4!$A$29:$B$61,2,FALSE) -> San Andrés | AH28: 0 | AI28: 0 | AJ28: 18753 | AK28: SAN VICENTE DEL CAGUÁN | AL28: 0 | AM28: 0 | AN28: Natural | AO28: 18 | AP28: CAQUETÁ | AQ28: 0 | AR28: MICRO | AS28: 1040 | AT28: INDUSTRIAS MANUFACTURERAS | AU28: C | AV28: Elaboración de productos lácteos | AW28: Elaboración de productos alimenticios | AX28: 0 | AY28: 0 | AZ28: 0 | BA28: 0 | BB28: 0 | BC28: 0 | BF28: 88 | BG28: 0 | BH28: 44 | BI28: 0 | BJ28: =VLOOKUP(BH28,Hoja4!$A$29:$B$61,2,FALSE) -> La guajira | BL28: La guajira | BM28: =BI28 -> 0 | BN28: 0 | BP28: 5088 | BQ28: 20 | BR28: 50001 | BS28: 14 | BT28: 50 | BU28: =VLOOKUP(BT28,Hoja4!$A$29:$B$61,2,FALSE) -> Meta | BV28: =VLOOKUP(BR28,Hoja4!$D$29:$E$1150,2,FALSE) -> Villavicencio | BW28: 14 | BX28: 134 | CA28: =SUM(CA2:CA27) -> 2294 | CB28: =SUM(CB2:CB27) -> 35026
C29: 11001 | D29: BOGOTÁ, D.C. | E29: 0 | F29: 0 | G29: Natural | H29: 11 | I29: BOGOTÁ, D.C. | J29: 0 | K29: PEQUEÑA | L29: 8521 | M29: EDUCACIÓN | N29: P | O29: Educación secundaria y de formación laboral | P29: Educación secundaria y de formación laboral | Q29: 0 | R29: 0 | S29: 0 | T29: 0 | U29: 0 | V29: 0 | X29: 91 | Y29: 5 | Z29: 27 | AA29: 11 | AB29: =VLOOKUP(Z29,Hoja4!$A$29:$B$61,2,FALSE) -> Chocó | AH29: 0 | AI29: 0 | AJ29: 95001 | AK29: SAN JOSÉ DEL GUAVIARE | AL29: 0 | AM29: 0 | AN29: Natural | AO29: 95 | AP29: GUAVIARE | AQ29: 0 | AR29: MICRO | AS29: 1040 | AT29: INDUSTRIAS MANUFACTURERAS | AU29: C | AV29: Elaboración de productos lácteos | AW29: Elaboración de productos alimenticios | AX29: 0 | AY29: 0 | AZ29: 0 | BA29: 0 | BB29: 0 | BC29: 0 | BF29: 91 | BG29: 0 | BH29: 88 | BI29: 0 | BJ29: =VLOOKUP(BH29,Hoja4!$A$29:$B$61,2,FALSE) -> San Andrés | BL29: Otros | BM29: =SUM(BI29:BI34) -> 0 | BN29: =SUMIFS($AL$2:$AL$399999,$AQ$2:$AQ$399999,"Aprobado con subsidio")-SUM(BN2:BN28) -> 0 | BP29: 17380 | BQ29: 1 | BR29: 41001 | BS29: 13 | BU29: Otros | BV29: Otros | BW29: =SUM(BS29:BS1000) -> 369 | BX29: =SUMIFS($AL$2:$AL$399999,$AQ$2:$AQ$399999,"Aprobado con subsidio")-SUM(BX2:BX28) -> 5037
C30: 11001 | D30: BOGOTÁ, D.C. | E30: 0 | F30: 0 | G30: Natural | H30: 11 | I30: BOGOTÁ, D.C. | J30: 0 | K30: PEQUEÑA | L30: 1513 | M30: INDUSTRIAS MANUFACTURERAS | N30: C | O30: Curtido y recurtido de cueros; fabricación de artículos de viaje, bolsos de mano y artículos similares, y fabricación de artículos de talabartería y guarnicionería; adobo y teñido de pieles | P30: Curtido y recurtido de cueros; fabricación de calzado; fabricación de artículos de viaje, maletas, bolsos de mano y artículos similares, y fabricación de artículos de talabartería y guarnicionería; adobo y teñido de pieles | Q30: 0 | R30: 0 | S30: 0 | T30: 0 | U30: 0 | V30: 0 | X30: 95 | Y30: 6 | Z30: 95 | AA30: 6 | AB30: =VLOOKUP(Z30,Hoja4!$A$29:$B$61,2,FALSE) -> Guaviare | AH30: 0 | AI30: 0 | AJ30: 5001 | AK30: MEDELLÍN | AL30: 1 | AM30: 2 | AN30: Natural | AO30: 5 | AP30: ANTIOQUIA | AQ30: Aprobado con subsidio | AR30: MICRO | AS30: 2511 | AT30: INDUSTRIAS MANUFACTURERAS | AU30: C | AV30: Fabricación de productos metálicos para uso estructural, tanques, depósitos y generadores de vapor. | AW30: Fabricación de productos elaborados de metal, excepto maquinaria y equipo | AX30: 0 | AY30: 1 | AZ30: 0 | BA30: 1 | BB30: 0 | BC30: 0 | BF30: 95 | BG30: 0 | BH30: 91 | BI30: 0 | BJ30: =VLOOKUP(BH30,Hoja4!$A$29:$B$61,2,FALSE) -> Amazonas | BL30: Total | BM30: =SUM(BM2:BM29) -> 2294 | BN30: =SUM(BN2:BN29) -> 35026 | BP30: 17001 | BQ30: 38 | BR30: 52001 | BS30: 13 | BU30: Total | BW30: =SUM(BW2:BW29) -> 2294 | BX30: =SUM(BX2:BX29) -> 35026
C31: 11001 | D31: BOGOTÁ, D.C. | E31: 1 | F31: 3 | G31: Natural | H31: 11 | I31: BOGOTÁ, D.C. | J31: Aprobado con subsidio | K31: MICRO | L31: 7310 | M31: ACTIVIDADES PROFESIONALES, CIENTÍFICAS Y TÉCNICAS | N31: M | O31: Publicidad | P31: Publicidad | Q31: 0 | R31: 1 | S31: 0 | T31: 1 | U31: 0 | V31: 0 | X31: 86 | Y31: 33 | Z31: 91 | AA31: 5 | AB31: =VLOOKUP(Z31,Hoja4!$A$29:$B$61,2,FALSE) -> Amazonas | AH31: 0 | AI31: 0 | AJ31: 5001 | AK31: MEDELLÍN | AL31: 1 | AM31: 6 | AN31: Natural | AO31: 5 | AP31: ANTIOQUIA | AQ31: Aprobado con subsidio | AR31: PEQUEÑA | AS31: 1081 | AT31: INDUSTRIAS MANUFACTURERAS | AU31: C | AV31: Elaboración de otros productos alimenticios | AW31: Elaboración de productos alimenticios | AX31: 0 | AY31: 1 | AZ31: 0 | BA31: 1 | BB31: 0 | BC31: 0 | BF31: 86 | BG31: 3 | BH31: 95 | BI31: 0 | BJ31: =VLOOKUP(BH31,Hoja4!$A$29:$B$61,2,FALSE) -> Guaviare | BP31: 19698 | BQ31: 0 | BR31: 5318 | BS31: 12
C32: 11001 | D32: BOGOTÁ, D.C. | E32: 12 | F32: 12 | G32: Natural | H32: 11 | I32: BOGOTÁ, D.C. | J32: Aprobado con subsidio | K32: PEQUEÑA | L32: 6910 | M32: ACTIVIDADES PROFESIONALES, CIENTÍFICAS Y TÉCNICAS | N32: M | O32: Actividades jurídicas | P32: Actividades jurídicas | Q32: 9 | R32: 3 | S32: 0 | T32: 12 | U32: 0 | V32: 0 | X32: 27 | Y32: 11 | Z32: 97 | AA32: 2 | AB32: =VLOOKUP(Z32,Hoja4!$A$29:$B$61,2,FALSE) -> Vaupés | AH32: 0 | AI32: 0 | AJ32: 5631 | AK32: SABANETA | AL32: 5 | AM32: 18 | AN32: Natural | AO32: 5 | AP32: ANTIOQUIA | AQ32: Aprobado con subsidio | AR32: PEQUEÑA | AS32: 3110 | AT32: INDUSTRIAS MANUFACTURERAS | AU32: C | AV32: Fabricación de muebles | AW32: Fabricación de muebles, colchones y somieres | AX32: 3 | AY32: 2 | AZ32: 0 | BA32: 1 | BB32: 3 | BC32: 1 | BF32: 27 | BG32: 0 | BH32: 27 | BI32: 0 | BJ32: =VLOOKUP(BH32,Hoja4!$A$29:$B$61,2,FALSE) -> Chocó | BP32: 52835 | BQ32: 1 | BR32: 47001 | BS32: 11
C33: 11001 | D33: BOGOTÁ, D.C. | E33: 1 | F33: 2 | G33: Natural | H33: 11 | I33: BOGOTÁ, D.C. | J33: Aprobado con subsidio | K33: MICRO | L33: 4751 | M33: COMERCIO AL POR MAYOR Y AL POR MENOR; REPARACIÓN DE VEHÍCULOS AUTOMOTORES Y MOTOCICLETAS | N33: G | O33: Comercio al por menor de otros enseres domésticos en establecimientos especializados | P33: Comercio al por menor de otros enseres domésticos en establecimientos especializados | Q33: 1 | R33: 0 | S33: 0 | T33: 1 | U33: 0 | V33: 0 | X33: 94 | Y33: 2 | Z33: 94 | AA33: 2 | AB33: =VLOOKUP(Z33,Hoja4!$A$29:$B$61,2,FALSE) -> Guainía | AH33: 0 | AI33: 0 | AJ33: 5368 | AK33: JERICÓ | AL33: 9 | AM33: 3 | AN33: Natural | AO33: 5 | AP33: ANTIOQUIA | AQ33: Aprobado con subsidio | AR33: MICRO | AS33: 1084 | AT33: INDUSTRIAS MANUFACTURERAS | AU33: C | AV33: Elaboración de otros productos alimenticios | AW33: Elaboración de productos alimenticios | AX33: 6 | AY33: 3 | AZ33: 0 | BA33: 5 | BB33: 3 | BC33: 1 | BF33: 94 | BG33: 0 | BH33: 94 | BI33: 0 | BJ33: =VLOOKUP(BH33,Hoja4!$A$29:$B$61,2,FALSE) -> Guainía | BP33: 52001 | BQ33: 13 | BR33: 25430 | BS33: 11
C34: 25785 | D34: TABIO | E34: 1 | F34: 2 | G34: Natural | H34: 25 | I34: CUNDINAMARCA | J34: Aprobado con subsidio | K34: MICRO | L34: 9004 | M34: ACTIVIDADES ARTÍSTICAS, DE ENTRETENIMIENTO Y RECREACIÓN | N34: R | O34: Actividades creativas, artísticas y de entretenimiento | P34: Actividades creativas, artísticas y de entretenimiento | Q34: 1 | R34: 0 | S34: 0 | T34: 1 | U34: 0 | V34: 0 | X34: 99 | Y34: 2 | Z34: 99 | AA34: 2 | AB34: =VLOOKUP(Z34,Hoja4!$A$29:$B$61,2,FALSE) -> Vichada | AH34: 0 | AI34: 0 | AJ34: 8001 | AK34: BARRANQUILLA | AL34: 0 | AM34: 0 | AN34: Natural | AO34: 8 | AP34: ATLÁNTICO | AQ34: 0 | AR34: MICRO | AS34: 3312 | AT34: INDUSTRIAS MANUFACTURERAS | AU34: C | AV34: Mantenimiento y reparación especializado de productos elaborados en metal y de maquinaria y equipo | AW34: Instalación, mantenimiento y reparación especializado de maquinaria y equipo | AX34: 0 | AY34: 0 | AZ34: 0 | BA34: 0 | BB34: 0 | BC34: 0 | BF34: 99 | BG34: 0 | BH34: 99 | BI34: 0 | BJ34: =VLOOKUP(BH34,Hoja4!$A$29:$B$61,2,FALSE) -> Vichada | BP34: 68081 | BQ34: 8 | BR34: 5697 | BS34: 11
C35: 25799 | D35: TENJO | E35: 0 | F35: 0 | G35: Natural | H35: 25 | I35: CUNDINAMARCA | J35: 0 | K35: PEQUEÑA | L35: 4711 | M35: COMERCIO AL POR MAYOR Y AL POR MENOR; REPARACIÓN DE VEHÍCULOS AUTOMOTORES Y MOTOCICLETAS | N35: G | O35: Comercio al por menor en establecimientos no especializados | P35: Comercio al por menor en establecimientos no especializados | Q35: 0 | R35: 0 | S35: 0 | T35: 0 | U35: 0 | V35: 0 | AH35: 0 | AI35: 0 | AJ35: 15759 | AK35: SOGAMOSO | AL35: 0 | AM35: 0 | AN35: Natural | AO35: 15 | AP35: BOYACÁ | AQ35: 0 | AR35: MICRO | AS35: 2790 | AT35: INDUSTRIAS MANUFACTURERAS | AU35: C | AV35: Fabricación de otros tipos de equipo eléctrico n.c.p. | AW35: Fabricación de aparatos y equipo eléctrico | AX35: 0 | AY35: 0 | AZ35: 0 | BA35: 0 | BB35: 0 | BC35: 0 | BP35: 50006 | BQ35: 1 | BR35: 5440 | BS35: 10
C36: 50001 | D36: VILLAVICENCIO | E36: 2 | F36: 2 | G36: Natural | H36: 50 | I36: META | J36: Aprobado con subsidio | K36: MICRO | L36: 4729 | M36: COMERCIO AL POR MAYOR Y AL POR MENOR; REPARACIÓN DE VEHÍCULOS AUTOMOTORES Y MOTOCICLETAS | N36: G | O36: Comercio al por menor de alimentos (víveres en general), bebidas y tabaco, en establecimientos especializados | P36: Comercio al por menor de alimentos (víveres en general), bebidas y tabaco, en establecimientos especializados | Q36: 0 | R36: 2 | S36: 0 | T36: 2 | U36: 0 | V36: 0 | AH36: 0 | AI36: 0 | AJ36: 85139 | AK36: MANÍ | AL36: 2 | AM36: 0 | AN36: Natural | AO36: 85 | AP36: CASANARE | AQ36: Aprobado con subsidio | AR36: MICRO | AS36: 1630 | AT36: INDUSTRIAS MANUFACTURERAS | AU36: C | AV36: Fabricación de partes y piezas de madera, de carpintería y ebanistería para la construcción | AW36: Transformación de la madera y fabricación de productos de madera y de corcho, excepto muebles; fabricación de artículos de cestería y espartería | AX36: 0 | AY36: 2 | AZ36: 0 | BA36: 1 | BB36: 0 | BC36: 1 | BP36: 76834 | BQ36: 3 | BR36: 5308 | BS36: 10
C37: 25875 | D37: VILLETA | E37: 1 | F37: 0 | G37: Natural | H37: 25 | I37: CUNDINAMARCA | J37: Aprobado con subsidio | K37: PEQUEÑA | L37: 1081 | M37: INDUSTRIAS MANUFACTURERAS | N37: C | O37: Elaboración de otros productos alimenticios | P37: Elaboración de productos alimenticios | Q37: 1 | R37: 0 | S37: 0 | T37: 1 | U37: 0 | V37: 0 | AH37: 0 | AI37: 0 | AJ37: 20011 | AK37: AGUACHICA | AL37: 6 | AM37: 6 | AN37: Natural | AO37: 20 | AP37: CESAR | AQ37: Aprobado con subsidio | AR37: PEQUEÑA | AS37: 2511 | AT37: INDUSTRIAS MANUFACTURERAS | AU37: C | AV37: Fabricación de productos metálicos para uso estructural, tanques, depósitos y generadores de vapor. | AW37: Fabricación de productos elaborados de metal, excepto maquinaria y equipo | AX37: 1 | AY37: 5 | AZ37: 0 | BA37: 6 | BB37: 0 | BC37: 0 | BP37: 5360 | BQ37: 92 | BR37: 68081 | BS37: 8
C38: 85001 | D38: YOPAL | E38: 3 | F38: 1 | G38: Natural | H38: 85 | I38: CASANARE | J38: Aprobado con subsidio | K38: MICRO | L38: 4769 | M38: COMERCIO AL POR MAYOR Y AL POR MENOR; REPARACIÓN DE VEHÍCULOS AUTOMOTORES Y MOTOCICLETAS | N38: G | O38: Comercio al por menor de artículos culturales y de entretenimiento, en establecimientos especializados | P38: Comercio al por menor de artículos culturales y de entretenimiento, en establecimientos especializados | Q38: 3 | R38: 0 | S38: 0 | T38: 2 | U38: 1 | V38: 0 | AH38: 0 | AI38: 0 | AJ38: 63001 | AK38: ARMENIA | AL38: 1 | AM38: 0 | AN38: Natural | AO38: 63 | AP38: QUINDÍO | AQ38: Aprobado con subsidio | AR38: MICRO | AS38: 1410 | AT38: INDUSTRIAS MANUFACTURERAS | AU38: C | AV38: Confección de prendas de vestir, excepto prendas de piel | AW38: Confección de prendas de vestir | AX38: 0 | AY38: 1 | AZ38: 0 | BA38: 1 | BB38: 0 | BC38: 0 | BP38: 5148 | BQ38: 1 | BR38: 5237 | BS38: 8
C39: 50001 | D39: VILLAVICENCIO | E39: 0 | F39: 0 | G39: Natural | H39: 50 | I39: META | J39: 0 | K39: MICRO | L39: 6810 | M39: ACTIVIDADES INMOBILIARIAS | N39: L | O39: Actividades inmobiliarias realizadas con bienes propios o arrendados | P39: Actividades inmobiliarias realizadas con bienes propios o arrendados | Q39: 0 | R39: 0 | S39: 0 | T39: 0 | U39: 0 | V39: 0 | AH39: 0 | AI39: 0 | AJ39: 66170 | AK39: DOSQUEBRADAS | AL39: 0 | AM39: 0 | AN39: Natural | AO39: 66 | AP39: RISARALDA | AQ39: 0 | AR39: PEQUEÑA | AS39: 3311 | AT39: INDUSTRIAS MANUFACTURERAS | AU39: C | AV39: Mantenimiento y reparación especializado de productos elaborados en metal y de maquinaria y equipo | AW39: Instalación, mantenimiento y reparación especializado de maquinaria y equipo | AX39: 0 | AY39: 0 | AZ39: 0 | BA39: 0 | BB39: 0 | BC39: 0 | BP39: 19130 | BQ39: 1 | BR39: 5212 | BS39: 7
C40: 15759 | D40: SOGAMOSO | E40: 0 | F40: 0 | G40: Natural | H40: 15 | I40: BOYACÁ | J40: 0 | K40: MICRO | L40: 4799 | M40: COMERCIO AL POR MAYOR Y AL POR MENOR; REPARACIÓN DE VEHÍCULOS AUTOMOTORES Y MOTOCICLETAS | N40: G | O40: Comercio al por menor no realizado en establecimientos, puestos de venta o mercados | P40: Comercio al por menor no realizado en establecimientos, puestos de venta o mercados | Q40: 0 | R40: 0 | S40: 0 | T40: 0 | U40: 0 | V40: 0 | AH40: 0 | AI40: 0 | AJ40: 66682 | AK40: SANTA ROSA DE CABAL | AL40: 0 | AM40: 0 | AN40: Natural | AO40: 66 | AP40: RISARALDA | AQ40: 0 | AR40: PEQUEÑA | AS40: 2712 | AT40: INDUSTRIAS MANUFACTURERAS | AU40: C | AV40: Fabricación de motores, generadores y transformadores eléctricos y de aparatos de distribución y control de la energía eléctrica | AW40: Fabricación de aparatos y equipo eléctrico | AX40: 0 | AY40: 0 | AZ40: 0 | BA40: 0 | BB40: 0 | BC40: 0 | BP40: 5376 | BQ40: 3 | BR40: 68276 | BS40: 7
C41: 5001 | D41: MEDELLÍN | E41: 0 | F41: 0 | G41: Natural | H41: 5 | I41: ANTIOQUIA | J41: 0 | K41: MICRO | L41: 141 | M41: AGRICULTURA, GANADERÍA, CAZA, SILVICULTURA Y PESCA | N41: A | O41: Ganadería | P41: Ganadería | Q41: 0 | R41: 0 | S41: 0 | T41: 0 | U41: 0 | V41: 0 | AH41: 0 | AI41: 0 | AJ41: 66001 | AK41: PEREIRA | AL41: 0 | AM41: 0 | AN41: Natural | AO41: 66 | AP41: RISARALDA | AQ41: 0 | AR41: MICRO | AS41: 1081 | AT41: INDUSTRIAS MANUFACTURERAS | AU41: C | AV41: Elaboración de otros productos alimenticios | AW41: Elaboración de productos alimenticios | AX41: 0 | AY41: 0 | AZ41: 0 | BA41: 0 | BB41: 0 | BC41: 0 | BP41: 73001 | BQ41: 25 | BR41: 23001 | BS41: 7
C42: 5001 | D42: MEDELLÍN | E42: 3 | F42: 0 | G42: Natural | H42: 5 | I42: ANTIOQUIA | J42: Aprobado con subsidio | K42: MICRO | L42: 4722 | M42: COMERCIO AL POR MAYOR Y AL POR MENOR; REPARACIÓN DE VEHÍCULOS AUTOMOTORES Y MOTOCICLETAS | N42: G | O42: Comercio al por menor de alimentos (víveres en general), bebidas y tabaco, en establecimientos especializados | P42: Comercio al por menor de alimentos (víveres en general), bebidas y tabaco, en establecimientos especializados | Q42: 1 | R42: 2 | S42: 0 | T42: 1 | U42: 1 | V42: 1 | AH42: 0 | AI42: 0 | AJ42: 5088 | AK42: BELLO | AL42: 0 | AM42: 0 | AN42: Natural | AO42: 5 | AP42: ANTIOQUIA | AQ42: 0 | AR42: MICRO | AS42: 1081 | AT42: INDUSTRIAS MANUFACTURERAS | AU42: C | AV42: Elaboración de otros productos alimenticios | AW42: Elaboración de productos alimenticios | AX42: 0 | AY42: 0 | AZ42: 0 | BA42: 0 | BB42: 0 | BC42: 0 | BP42: 25290 | BQ42: 3 | BR42: 76147 | BS42: 7
C43: 5001 | D43: MEDELLÍN | E43: 1 | F43: 0 | G43: Natural | H43: 5 | I43: ANTIOQUIA | J43: Aprobado con subsidio | K43: MICRO | L43: 3240 | M43: INDUSTRIAS MANUFACTURERAS | N43: C | O43: Fabricación de juegos, juguetes y rompecabezas | P43: Otras industrias manufactureras | Q43: 1 | R43: 0 | S43: 0 | T43: 1 | U43: 0 | V43: 0 | AH43: 0 | AI43: 0 | AJ43: 17380 | AK43: LA DORADA | AL43: 1 | AM43: 0 | AN43: Natural | AO43: 17 | AP43: CALDAS | AQ43: Aprobado con subsidio | AR43: MICRO | AS43: 1610 | AT43: INDUSTRIAS MANUFACTURERAS | AU43: C | AV43: Aserrado, acepillado e impregnación de la madera | AW43: Transformación de la madera y fabricación de productos de madera y de corcho, excepto muebles; fabricación de artículos de cestería y espartería | AX43: 0 | AY43: 1 | AZ43: 0 | BA43: 1 | BB43: 0 | BC43: 0 | BP43: 50001 | BQ43: 14 | BR43: 15238 | BS43: 6
C44: 5001 | D44: MEDELLÍN | E44: 1 | F44: 0 | G44: Natural | H44: 5 | I44: ANTIOQUIA | J44: Aprobado con subsidio | K44: MICRO | L44: 4771 | M44: COMERCIO AL POR MAYOR Y AL POR MENOR; REPARACIÓN DE VEHÍCULOS AUTOMOTORES Y MOTOCICLETAS | N44: G | O44: Comercio al por menor de otros productos en establecimientos especializados | P44: Comercio al por menor de otros productos en establecimientos especializados | Q44: 1 | R44: 0 | S44: 0 | T44: 1 | U44: 0 | V44: 0 | AH44: 0 | AI44: 0 | AJ44: 17001 | AK44: MANIZALES | AL44: 0 | AM44: 0 | AN44: Natural | AO44: 17 | AP44: CALDAS | AQ44: 0 | AR44: MEDIANA | AS44: 1523 | AT44: INDUSTRIAS MANUFACTURERAS | AU44: C | AV44: Fabricación de calzado | AW44: Curtido y recurtido de cueros; fabricación de calzado; fabricación de artículos de viaje, maletas, bolsos de mano y artículos similares, y fabricación de artículos de talabartería y guarnicionería; adobo y teñido de pieles | AX44: 0 | AY44: 0 | AZ44: 0 | BA44: 0 | BB44: 0 | BC44: 0 | BP44: 18001 | BQ44: 3 | BR44: 20001 | BS44: 6
C45: 41001 | D45: NEIVA | E45: 0 | F45: 0 | G45: Natural | H45: 41 | I45: HUILA | J45: 0 | K45: MICRO | L45: 4755 | M45: COMERCIO AL POR MAYOR Y AL POR MENOR; REPARACIÓN DE VEHÍCULOS AUTOMOTORES Y MOTOCICLETAS | N45: G | O45: Comercio al por menor de otros enseres domésticos en establecimientos especializados | P45: Comercio al por menor de otros enseres domésticos en establecimientos especializados | Q45: 0 | R45: 0 | S45: 0 | T45: 0 | U45: 0 | V45: 0 | AH45: 0 | AI45: 0 | AJ45: 19698 | AK45: SANTANDER DE QUILICHAO | AL45: 0 | AM45: 0 | AN45: Natural | AO45: 19 | AP45: CAUCA | AQ45: 0 | AR45: MICRO | AS45: 1052 | AT45: INDUSTRIAS MANUFACTURERAS | AU45: C | AV45: Elaboración de productos de molinería, almidones y productos derivados del almidón | AW45: Elaboración de productos alimenticios | AX45: 0 | AY45: 0 | AZ45: 0 | BA45: 0 | BB45: 0 | BC45: 0 | BP45: 66400 | BQ45: 1 | BR45: 5129 | BS45: 6
C46: 5591 | D46: PUERTO TRIUNFO | E46: 0 | F46: 0 | G46: Natural | H46: 5 | I46: ANTIOQUIA | J46: 0 | K46: MICRO | L46: 4711 | M46: COMERCIO AL POR MAYOR Y AL POR MENOR; REPARACIÓN DE VEHÍCULOS AUTOMOTORES Y MOTOCICLETAS | N46: G | O46: Comercio al por menor en establecimientos no especializados | P46: Comercio al por menor en establecimientos no especializados | Q46: 0 | R46: 0 | S46: 0 | T46: 0 | U46: 0 | V46: 0 | AH46: 0 | AI46: 0 | AJ46: 11001 | AK46: BOGOTÁ, D.C. | AL46: 1 | AM46: 0 | AN46: Natural | AO46: 11 | AP46: BOGOTÁ, D.C. | AQ46: Aprobado con subsidio | AR46: MICRO | AS46: 1410 | AT46: INDUSTRIAS MANUFACTURERAS | AU46: C | AV46: Confección de prendas de vestir, excepto prendas de piel | AW46: Confección de prendas de vestir | AX46: 0 | AY46: 1 | AZ46: 0 | BA46: 1 | BB46: 0 | BC46: 0 | BP46: 25754 | BQ46: 23 | BR46: 15759 | BS46: 5
C47: 5264 | D47: ENTRERRIOS | E47: 0 | F47: 0 | G47: Natural | H47: 5 | I47: ANTIOQUIA | J47: 0 | K47: MEDIANA | L47: 121 | M47: AGRICULTURA, GANADERÍA, CAZA, SILVICULTURA Y PESCA | N47: A | O47: Cultivos agrícolas permanentes | P47: Cultivos agrícolas permanentes | Q47: 0 | R47: 0 | S47: 0 | T47: 0 | U47: 0 | V47: 0 | AH47: 0 | AI47: 0 | AJ47: 11001 | AK47: BOGOTÁ, D.C. | AL47: 3 | AM47: 4 | AN47: Natural | AO47: 11 | AP47: BOGOTÁ, D.C. | AQ47: Aprobado con subsidio | AR47: MICRO | AS47: 2394 | AT47: INDUSTRIAS MANUFACTURERAS | AU47: C | AV47: Fabricación de productos minerales no metálicos n.c.p. | AW47: Fabricación de otros productos minerales no metálicos | AX47: 2 | AY47: 1 | AZ47: 0 | BA47: 2 | BB47: 1 | BC47: 0 | BP47: 15087 | BQ47: 0 | BR47: 68547 | BS47: 5
C48: 5264 | D48: ENTRERRIOS | E48: 0 | F48: 0 | G48: Natural | H48: 5 | I48: ANTIOQUIA | J48: 0 | K48: MICRO | L48: 121 | M48: AGRICULTURA, GANADERÍA, CAZA, SILVICULTURA Y PESCA | N48: A | O48: Cultivos agrícolas permanentes | P48: Cultivos agrícolas permanentes | Q48: 0 | R48: 0 | S48: 0 | T48: 0 | U48: 0 | V48: 0 | AH48: 0 | AI48: 0 | AJ48: 20001 | AK48: VALLEDUPAR | AL48: 0 | AM48: 0 | AN48: Natural | AO48: 20 | AP48: CESAR | AQ48: 0 | AR48: MICRO | AS48: 1089 | AT48: INDUSTRIAS MANUFACTURERAS | AU48: C | AV48: Elaboración de otros productos alimenticios | AW48: Elaboración de productos alimenticios | AX48: 0 | AY48: 0 | AZ48: 0 | BA48: 0 | BB48: 0 | BC48: 0 | BP48: 47288 | BQ48: 1 | BR48: 76111 | BS48: 5
C49: 23001 | D49: MONTERÍA | E49: 0 | F49: 0 | G49: Natural | H49: 23 | I49: CÓRDOBA | J49: 0 | K49: MEDIANA | L49: 4711 | M49: COMERCIO AL POR MAYOR Y AL POR MENOR; REPARACIÓN DE VEHÍCULOS AUTOMOTORES Y MOTOCICLETAS | N49: G | O49: Comercio al por menor en establecimientos no especializados | P49: Comercio al por menor en establecimientos no especializados | Q49: 0 | R49: 0 | S49: 0 | T49: 0 | U49: 0 | V49: 0 | AH49: 0 | AI49: 0 | AJ49: 52835 | AK49: SAN ANDRES DE TUMACO | AL49: 3 | AM49: 0 | AN49: Natural | AO49: 52 | AP49: NARIÑO | AQ49: Aprobado con subsidio | AR49: MICRO | AS49: 1410 | AT49: INDUSTRIAS MANUFACTURERAS | AU49: C | AV49: Confección de prendas de vestir, excepto prendas de piel | AW49: Confección de prendas de vestir | AX49: 2 | AY49: 1 | AZ49: 0 | BA49: 2 | BB49: 1 | BC49: 0 | BP49: 5045 | BQ49: 1 | BR49: 8296 | BS49: 5
C50: 5001 | D50: MEDELLÍN | E50: 0 | F50: 0 | G50: Natural | H50: 5 | I50: ANTIOQUIA | J50: 0 | K50: PEQUEÑA | L50: 4711 | M50: COMERCIO AL POR MAYOR Y AL POR MENOR; REPARACIÓN DE VEHÍCULOS AUTOMOTORES Y MOTOCICLETAS | N50: G | O50: Comercio al por menor en establecimientos no especializados | P50: Comercio al por menor en establecimientos no especializados | Q50: 0 | R50: 0 | S50: 0 | T50: 0 | U50: 0 | V50: 0 | AH50: 0 | AI50: 0 | AJ50: 52001 | AK50: PASTO | AL50: 0 | AM50: 0 | AN50: Natural | AO50: 52 | AP50: NARIÑO | AQ50: 0 | AR50: MICRO | AS50: 1081 | AT50: INDUSTRIAS MANUFACTURERAS | AU50: C | AV50: Elaboración de otros productos alimenticios | AW50: Elaboración de productos alimenticios | AX50: 0 | AY50: 0 | AZ50: 0 | BA50: 0 | BB50: 0 | BC50: 0 | BP50: 70001 | BQ50: 1 | BR50: 54405 | BS50: 5
C51: 11001 | D51: BOGOTÁ, D.C. | E51: 0 | F51: 0 | G51: Natural | H51: 11 | I51: BOGOTÁ, D.C. | J51: 0 | K51: MICRO | L51: 1410 | M51: INDUSTRIAS MANUFACTURERAS | N51: C | O51: Confección de prendas de vestir, excepto prendas de piel | P51: Confección de prendas de vestir | Q51: 0 | R51: 0 | S51: 0 | T51: 0 | U51: 0 | V51: 0 | AH51: 0 | AI51: 0 | AJ51: 52001 | AK51: PASTO | AL51: 1 | AM51: 3 | AN51: Natural | AO51: 52 | AP51: NARIÑO | AQ51: Aprobado con subsidio | AR51: MICRO | AS51: 1811 | AT51: INDUSTRIAS MANUFACTURERAS | AU51: C | AV51: Actividades de impresión y actividades de servicios relacionados con la impresión | AW51: Actividades de impresión y de producción de copias a partir de grabaciones originales | AX51: 1 | AY51: 0 | AZ51: 0 | BA51: 0 | BB51: 1 | BC51: 0 | BP51: 54518 | BQ51: 1 | BR51: 8758 | BS51: 5
C52: 11001 | D52: BOGOTÁ, D.C. | E52: 1 | F52: 7 | G52: Natural | H52: 11 | I52: BOGOTÁ, D.C. | J52: Aprobado con subsidio | K52: PEQUEÑA | L52: 4771 | M52: COMERCIO AL POR MAYOR Y AL POR MENOR; REPARACIÓN DE VEHÍCULOS AUTOMOTORES Y MOTOCICLETAS | N52: G | O52: Comercio al por menor de otros productos en establecimientos especializados | P52: Comercio al por menor de otros productos en establecimientos especializados | Q52: 1 | R52: 0 | S52: 0 | T52: 1 | U52: 0 | V52: 0 | AH52: 0 | AI52: 0 | AJ52: 54001 | AK52: CÚCUTA | AL52: 3 | AM52: 0 | AN52: Natural | AO52: 54 | AP52: NORTE DE SANTANDER | AQ52: Aprobado con subsidio | AR52: PEQUEÑA | AS52: 1610 | AT52: INDUSTRIAS MANUFACTURERAS | AU52: C | AV52: Aserrado, acepillado e impregnación de la madera | AW52: Transformación de la madera y fabricación de productos de madera y de corcho, excepto muebles; fabricación de artículos de cestería y espartería | AX52: 0 | AY52: 3 | AZ52: 0 | BA52: 3 | BB52: 0 | BC52: 0 | BP52: 68547 | BQ52: 5 | BR52: 85001 | BS52: 5
C53: 5697 | D53: EL SANTUARIO | E53: 1 | F53: 1 | G53: Natural | H53: 5 | I53: ANTIOQUIA | J53: Aprobado con subsidio | K53: MICRO | L53: 4773 | M53: COMERCIO AL POR MAYOR Y AL POR MENOR; REPARACIÓN DE VEHÍCULOS AUTOMOTORES Y MOTOCICLETAS | N53: G | O53: Comercio al por menor de otros productos en establecimientos especializados | P53: Comercio al por menor de otros productos en establecimientos especializados | Q53: 1 | R53: 0 | S53: 0 | T53: 1 | U53: 0 | V53: 0 | AH53: 0 | AI53: 0 | AJ53: 54001 | AK53: CÚCUTA | AL53: 2 | AM53: 3 | AN53: Natural | AO53: 54 | AP53: NORTE DE SANTANDER | AQ53: Aprobado con subsidio | AR53: PEQUEÑA | AS53: 1630 | AT53: INDUSTRIAS MANUFACTURERAS | AU53: C | AV53: Fabricación de partes y piezas de madera, de carpintería y ebanistería para la construcción | AW53: Transformación de la madera y fabricación de productos de madera y de corcho, excepto muebles; fabricación de artículos de cestería y espartería | AX53: 0 | AY53: 2 | AZ53: 0 | BA53: 2 | BB53: 0 | BC53: 0 | BP53: 15001 | BQ53: 4 | BR53: 15001 | BS53: 4
C54: 5001 | D54: MEDELLÍN | E54: 0 | F54: 0 | G54: Natural | H54: 5 | I54: ANTIOQUIA | J54: 0 | K54: PEQUEÑA | L54: 141 | M54: AGRICULTURA, GANADERÍA, CAZA, SILVICULTURA Y PESCA | N54: A | O54: Ganadería | P54: Ganadería | Q54: 0 | R54: 0 | S54: 0 | T54: 0 | U54: 0 | V54: 0 | AH54: 0 | AI54: 0 | AJ54: 54001 | AK54: CÚCUTA | AL54: 0 | AM54: 0 | AN54: Natural | AO54: 54 | AP54: NORTE DE SANTANDER | AQ54: 0 | AR54: MICRO | AS54: 3313 | AT54: INDUSTRIAS MANUFACTURERAS | AU54: C | AV54: Mantenimiento y reparación especializado de productos elaborados en metal y de maquinaria y equipo | AW54: Instalación, mantenimiento y reparación especializado de maquinaria y equipo | AX54: 0 | AY54: 0 | AZ54: 0 | BA54: 0 | BB54: 0 | BC54: 0 | BP54: 54820 | BQ54: 1 | BR54: 5079 | BS54: 4
C55: 11001 | D55: BOGOTÁ, D.C. | E55: 1 | F55: 1 | G55: Natural | H55: 11 | I55: BOGOTÁ, D.C. | J55: Aprobado con subsidio | K55: MICRO | L55: 4652 | M55: COMERCIO AL POR MAYOR Y AL POR MENOR; REPARACIÓN DE VEHÍCULOS AUTOMOTORES Y MOTOCICLETAS | N55: G | O55: Comercio al por mayor de maquinaria y equipo | P55: Comercio al por mayor de maquinaria y equipo | Q55: 0 | R55: 1 | S55: 0 | T55: 1 | U55: 0 | V55: 0 | AH55: 0 | AI55: 0 | AJ55: 68081 | AK55: BARRANCABERMEJA | AL55: 1 | AM55: 0 | AN55: Natural | AO55: 68 | AP55: SANTANDER | AQ55: Aprobado con subsidio | AR55: MICRO | AS55: 3311 | AT55: INDUSTRIAS MANUFACTURERAS | AU55: C | AV55: Mantenimiento y reparación especializado de productos elaborados en metal y de maquinaria y equipo | AW55: Instalación, mantenimiento y reparación especializado de maquinaria y equipo | AX55: 0 | AY55: 1 | AZ55: 0 | BA55: 1 | BB55: 0 | BC55: 0 | BP55: 76109 | BQ55: 2 | BR55: 76130 | BS55: 4
C56: 54001 | D56: CÚCUTA | E56: 2 | F56: 0 | G56: Natural | H56: 54 | I56: NORTE DE SANTANDER | J56: Aprobado con subsidio | K56: PEQUEÑA | L56: 4631 | M56: COMERCIO AL POR MAYOR Y AL POR MENOR; REPARACIÓN DE VEHÍCULOS AUTOMOTORES Y MOTOCICLETAS | N56: G | O56: Comercio al por mayor de alimentos, bebidas y tabaco | P56: Comercio al por mayor de alimentos, bebidas y tabaco | Q56: 0 | R56: 2 | S56: 0 | T56: 2 | U56: 0 | V56: 0 | AH56: 0 | AI56: 0 | AJ56: 68001 | AK56: BUCARAMANGA | AL56: 1 | AM56: 1 | AN56: Natural | AO56: 68 | AP56: SANTANDER | AQ56: Aprobado con subsidio | AR56: MICRO | AS56: 1410 | AT56: INDUSTRIAS MANUFACTURERAS | AU56: C | AV56: Confección de prendas de vestir, excepto prendas de piel | AW56: Confección de prendas de vestir | AX56: 1 | AY56: 0 | AZ56: 0 | BA56: 0 | BB56: 1 | BC56: 0 | BP56: 5642 | BQ56: 2 | BR56: 25175 | BS56: 4
C57: 5001 | D57: MEDELLÍN | E57: 1 | F57: 2 | G57: Natural | H57: 5 | I57: ANTIOQUIA | J57: Aprobado con subsidio | K57: MICRO | L57: 6810 | M57: ACTIVIDADES INMOBILIARIAS | N57: L | O57: Actividades inmobiliarias realizadas con bienes propios o arrendados | P57: Actividades inmobiliarias realizadas con bienes propios o arrendados | Q57: 0 | R57: 1 | S57: 0 | T57: 0 | U57: 0 | V57: 1 | AH57: 0 | AI57: 0 | AJ57: 68001 | AK57: BUCARAMANGA | AL57: 1 | AM57: 2 | AN57: Natural | AO57: 68 | AP57: SANTANDER | AQ57: Aprobado con subsidio | AR57: MICRO | AS57: 1410 | AT57: INDUSTRIAS MANUFACTURERAS | AU57: C | AV57: Confección de prendas de vestir, excepto prendas de piel | AW57: Confección de prendas de vestir | AX57: 1 | AY57: 0 | AZ57: 0 | BA57: 1 | BB57: 0 | BC57: 0 | BP57: 5129 | BQ57: 6 | BR57: 63401 | BS57: 4
C58: 15667 | D58: SAN LUIS DE GACENO | E58: 0 | F58: 0 | G58: Natural | H58: 15 | I58: BOYACÁ | J58: 0 | K58: MICRO | L58: 4711 | M58: COMERCIO AL POR MAYOR Y AL POR MENOR; REPARACIÓN DE VEHÍCULOS AUTOMOTORES Y MOTOCICLETAS | N58: G | O58: Comercio al por menor en establecimientos no especializados | P58: Comercio al por menor en establecimientos no especializados | Q58: 0 | R58: 0 | S58: 0 | T58: 0 | U58: 0 | V58: 0 | AH58: 0 | AI58: 0 | AJ58: 50006 | AK58: ACACÍAS | AL58: 0 | AM58: 0 | AN58: Natural | AO58: 50 | AP58: META | AQ58: 0 | AR58: PEQUEÑA | AS58: 3110 | AT58: INDUSTRIAS MANUFACTURERAS | AU58: C | AV58: Fabricación de muebles | AW58: Fabricación de muebles, colchones y somieres | AX58: 0 | AY58: 0 | AZ58: 0 | BA58: 0 | BB58: 0 | BC58: 0 | BP58: 5209 | BQ58: 1 | BR58: 25899 | BS58: 4
C59: 15176 | D59: CHIQUINQUIRÁ | E59: 2 | F59: 5 | G59: Natural | H59: 15 | I59: BOYACÁ | J59: Aprobado con subsidio | K59: MICRO | L59: 1081 | M59: INDUSTRIAS MANUFACTURERAS | N59: C | O59: Elaboración de otros productos alimenticios | P59: Elaboración de productos alimenticios | Q59: 1 | R59: 1 | S59: 0 | T59: 2 | U59: 0 | V59: 0 | AH59: 0 | AI59: 0 | AJ59: 68001 | AK59: BUCARAMANGA | AL59: 1 | AM59: 0 | AN59: Natural | AO59: 68 | AP59: SANTANDER | AQ59: Aprobado con subsidio | AR59: MICRO | AS59: 3110 | AT59: INDUSTRIAS MANUFACTURERAS | AU59: C | AV59: Fabricación de muebles | AW59: Fabricación de muebles, colchones y somieres | AX59: 0 | AY59: 1 | AZ59: 0 | BA59: 0 | BB59: 0 | BC59: 1 | BP59: 5615 | BQ59: 29 | BR59: 5686 | BS59: 4
C60: 85001 | D60: YOPAL | E60: 1 | F60: 1 | G60: Natural | H60: 85 | I60: CASANARE | J60: Aprobado con subsidio | K60: MICRO | L60: 4542 | M60: COMERCIO AL POR MAYOR Y AL POR MENOR; REPARACIÓN DE VEHÍCULOS AUTOMOTORES Y MOTOCICLETAS | N60: G | O60: Comercio, mantenimiento y reparación de motocicletas y de sus partes, piezas y accesorios | P60: Comercio, mantenimiento y reparación de motocicletas y de sus partes, piezas y accesorios | Q60: 1 | R60: 0 | S60: 0 | T60: 1 | U60: 0 | V60: 0 | AH60: 0 | AI60: 0 | AJ60: 76834 | AK60: TULUÁ | AL60: 0 | AM60: 0 | AN60: Natural | AO60: 76 | AP60: VALLE DEL CAUCA | AQ60: 0 | AR60: PEQUEÑA | AS60: 3110 | AT60: INDUSTRIAS MANUFACTURERAS | AU60: C | AV60: Fabricación de muebles | AW60: Fabricación de muebles, colchones y somieres | AX60: 0 | AY60: 0 | AZ60: 0 | BA60: 0 | BB60: 0 | BC60: 0 | BP60: 5212 | BQ60: 7 | BR60: 76248 | BS60: 3
C61: 11001 | D61: BOGOTÁ, D.C. | E61: 1 | F61: 1 | G61: Natural | H61: 11 | I61: BOGOTÁ, D.C. | J61: Aprobado con subsidio | K61: MICRO | L61: 4663 | M61: COMERCIO AL POR MAYOR Y AL POR MENOR; REPARACIÓN DE VEHÍCULOS AUTOMOTORES Y MOTOCICLETAS | N61: G | O61: Comercio al por mayor especializado de otros productos | P61: Comercio al por mayor especializado de otros productos | Q61: 0 | R61: 1 | S61: 0 | T61: 1 | U61: 0 | V61: 0 | AH61: 0 | AI61: 0 | AJ61: 5001 | AK61: MEDELLÍN | AL61: 12 | AM61: 26 | AN61: Natural | AO61: 5 | AP61: ANTIOQUIA | AQ61: Aprobado con subsidio | AR61: PEQUEÑA | AS61: 1410 | AT61: INDUSTRIAS MANUFACTURERAS | AU61: C | AV61: Confección de prendas de vestir, excepto prendas de piel | AW61: Confección de prendas de vestir | AX61: 7 | AY61: 5 | AZ61: 0 | BA61: 0 | BB61: 7 | BC61: 5 | BP61: 68307 | BQ61: 19 | BR61: 76834 | BS61: 3
C62: 11001 | D62: BOGOTÁ, D.C. | E62: 0 | F62: 0 | G62: Natural | H62: 11 | I62: BOGOTÁ, D.C. | J62: 0 | K62: PEQUEÑA | L62: 1410 | M62: INDUSTRIAS MANUFACTURERAS | N62: C | O62: Confección de prendas de vestir, excepto prendas de piel | P62: Confección de prendas de vestir | Q62: 0 | R62: 0 | S62: 0 | T62: 0 | U62: 0 | V62: 0 | AH62: 0 | AI62: 0 | AJ62: 5001 | AK62: MEDELLÍN | AL62: 0 | AM62: 0 | AN62: Natural | AO62: 5 | AP62: ANTIOQUIA | AQ62: 0 | AR62: PEQUEÑA | AS62: 1709 | AT62: INDUSTRIAS MANUFACTURERAS | AU62: C | AV62: Fabricación de papel, cartón y productos de papel y cartón | AW62: Fabricación de papel, cartón y productos de papel y cartón | AX62: 0 | AY62: 0 | AZ62: 0 | BA62: 0 | BB62: 0 | BC62: 0 | BP62: 25123 | BQ62: 1 | BR62: 5376 | BS62: 3
C63: 15753 | D63: SOATÁ | E63: 2 | F63: 0 | G63: Natural | H63: 15 | I63: BOYACÁ | J63: Aprobado con subsidio | K63: MICRO | L63: 4631 | M63: COMERCIO AL POR MAYOR Y AL POR MENOR; REPARACIÓN DE VEHÍCULOS AUTOMOTORES Y MOTOCICLETAS | N63: G | O63: Comercio al por mayor de alimentos, bebidas y tabaco | P63: Comercio al por mayor de alimentos, bebidas y tabaco | Q63: 0 | R63: 2 | S63: 0 | T63: 0 | U63: 0 | V63: 2 | AH63: 0 | AI63: 0 | AJ63: 5360 | AK63: ITAGUI | AL63: 7 | AM63: 26 | AN63: Natural | AO63: 5 | AP63: ANTIOQUIA | AQ63: Aprobado con subsidio | AR63: MEDIANA | AS63: 1011 | AT63: INDUSTRIAS MANUFACTURERAS | AU63: C | AV63: Procesamiento y conservación de carne, pescado, crustáceos y moluscos | AW63: Elaboración de productos alimenticios | AX63: 3 | AY63: 4 | AZ63: 0 | BA63: 7 | BB63: 0 | BC63: 0 | BP63: 47001 | BQ63: 11 | BR63: 25290 | BS63: 3
C64: 54874 | D64: VILLA DEL ROSARIO | E64: 0 | F64: 0 | G64: Natural | H64: 54 | I64: NORTE DE SANTANDER | J64: 0 | K64: MICRO | L64: 5630 | M64: ALOJAMIENTO Y SERVICIOS DE COMIDA | N64: I | O64: Expendio de bebidas alcohólicas para el consumo dentro del establecimiento | P64: Expendio de bebidas alcohólicas para el consumo dentro del establecimiento | Q64: 0 | R64: 0 | S64: 0 | T64: 0 | U64: 0 | V64: 0 | AH64: 0 | AI64: 0 | AJ64: 5148 | AK64: EL CARMEN DE VIBORAL | AL64: 0 | AM64: 0 | AN64: Natural | AO64: 5 | AP64: ANTIOQUIA | AQ64: 0 | AR64: MICRO | AS64: 1630 | AT64: INDUSTRIAS MANUFACTURERAS | AU64: C | AV64: Fabricación de partes y piezas de madera, de carpintería y ebanistería para la construcción | AW64: Transformación de la madera y fabricación de productos de madera y de corcho, excepto muebles; fabricación de artículos de cestería y espartería | AX64: 0 | AY64: 0 | AZ64: 0 | BA64: 0 | BB64: 0 | BC64: 0 | BP64: 76520 | BQ64: 21 | BR64: 18001 | BS64: 3
C65: 11001 | D65: BOGOTÁ, D.C. | E65: 1 | F65: 5 | G65: Natural | H65: 11 | I65: BOGOTÁ, D.C. | J65: Aprobado con subsidio | K65: MICRO | L65: 1081 | M65: INDUSTRIAS MANUFACTURERAS | N65: C | O65: Elaboración de otros productos alimenticios | P65: Elaboración de productos alimenticios | Q65: 0 | R65: 1 | S65: 0 | T65: 1 | U65: 0 | V65: 0 | AH65: 0 | AI65: 0 | AJ65: 19130 | AK65: CAJIBÍO | AL65: 2 | AM65: 10 | AN65: Natural | AO65: 19 | AP65: CAUCA | AQ65: Aprobado con subsidio | AR65: MICRO | AS65: 1610 | AT65: INDUSTRIAS MANUFACTURERAS | AU65: C | AV65: Aserrado, acepillado e impregnación de la madera | AW65: Transformación de la madera y fabricación de productos de madera y de corcho, excepto muebles; fabricación de artículos de cestería y espartería | AX65: 0 | AY65: 2 | AZ65: 0 | BA65: 2 | BB65: 0 | BC65: 0 | BP65: 5079 | BQ65: 4 | BR65: 86001 | BS65: 3
C66: 11001 | D66: BOGOTÁ, D.C. | E66: 3 | F66: 3 | G66: Natural | H66: 11 | I66: BOGOTÁ, D.C. | J66: Aprobado con subsidio | K66: MICRO | L66: 4923 | M66: TRANSPORTE Y ALMACENAMIENTO | N66: H | O66: Transporte terrestre publico automotor | P66: Transporte terrestre publico automotor | Q66: 0 | R66: 3 | S66: 0 | T66: 1 | U66: 0 | V66: 2 | AH66: 0 | AI66: 0 | AJ66: 5376 | AK66: LA CEJA | AL66: 1 | AM66: 2 | AN66: Natural | AO66: 5 | AP66: ANTIOQUIA | AQ66: Aprobado con subsidio | AR66: MICRO | AS66: 1610 | AT66: INDUSTRIAS MANUFACTURERAS | AU66: C | AV66: Aserrado, acepillado e impregnación de la madera | AW66: Transformación de la madera y fabricación de productos de madera y de corcho, excepto muebles; fabricación de artículos de cestería y espartería | AX66: 0 | AY66: 1 | AZ66: 0 | BA66: 1 | BB66: 0 | BC66: 0 | BP66: 5664 | BQ66: =COUNTIFS($AQ$2:$AQ$399999,"Aprobado con subsidio",$AJ$2:$AJ$399999,BP66) -> 2 | BR66: 25799 | BS66: 3
C67: 11001 | D67: BOGOTÁ, D.C. | E67: 0 | F67: 0 | G67: Natural | H67: 11 | I67: BOGOTÁ, D.C. | J67: 0 | K67: MICRO | L67: 2592 | M67: INDUSTRIAS MANUFACTURERAS | N67: C | O67: Fabricación de otros productos elaborados de metal y actividades de servicios relacionadas con el trabajo de metales | P67: Fabricación de productos elaborados de metal, excepto maquinaria y equipo | Q67: 0 | R67: 0 | S67: 0 | T67: 0 | U67: 0 | V67: 0 | AH67: 0 | AI67: 0 | AJ67: 73001 | AK67: IBAGUÉ | AL67: 8 | AM67: 6 | AN67: Natural | AO67: 73 | AP67: TOLIMA | AQ67: Aprobado con subsidio | AR67: MICRO | AS67: 1410 | AT67: INDUSTRIAS MANUFACTURERAS | AU67: C | AV67: Confección de prendas de vestir, excepto prendas de piel | AW67: Confección de prendas de vestir | AX67: 8 | AY67: 0 | AZ67: 0 | BA67: 2 | BB67: 6 | BC67: 0 | BP67: 5237 | BQ67: 8 | BR67: 25126 | BS67: 3
C68: 5266 | D68: ENVIGADO | E68: 1 | F68: 0 | G68: Natural | H68: 5 | I68: ANTIOQUIA | J68: Aprobado con subsidio | K68: MICRO | L68: 4541 | M68: COMERCIO AL POR MAYOR Y AL POR MENOR; REPARACIÓN DE VEHÍCULOS AUTOMOTORES Y MOTOCICLETAS | N68: G | O68: Comercio, mantenimiento y reparación de motocicletas y de sus partes, piezas y accesorios | P68: Comercio, mantenimiento y reparación de motocicletas y de sus partes, piezas y accesorios | Q68: 1 | R68: 0 | S68: 0 | T68: 1 | U68: 0 | V68: 0 | AH68: 0 | AI68: 0 | AJ68: 66170 | AK68: DOSQUEBRADAS | AL68: 3 | AM68: 6 | AN68: Natural | AO68: 66 | AP68: RISARALDA | AQ68: Aprobado con subsidio | AR68: PEQUEÑA | AS68: 2511 | AT68: INDUSTRIAS MANUFACTURERAS | AU68: C | AV68: Fabricación de productos metálicos para uso estructural, tanques, depósitos y generadores de vapor. | AW68: Fabricación de productos elaborados de metal, excepto maquinaria y equipo | AX68: 1 | AY68: 2 | AZ68: 0 | BA68: 2 | BB68: 1 | BC68: 0 | BP68: 63130 | BQ68: 1 | BR68: 25758 | BS68: 3
C69: 76001 | D69: CALI | E69: 0 | F69: 0 | G69: Natural | H69: 76 | I69: VALLE DEL CAUCA | J69: 0 | K69: MICRO | L69: 4530 | M69: COMERCIO AL POR MAYOR Y AL POR MENOR; REPARACIÓN DE VEHÍCULOS AUTOMOTORES Y MOTOCICLETAS | N69: G | O69: Comercio de partes, piezas (autopartes) y accesorios (lujos) para vehículos automotores | P69: Comercio de partes, piezas (autopartes) y accesorios (lujos) para vehículos automotores | Q69: 0 | R69: 0 | S69: 0 | T69: 0 | U69: 0 | V69: 0 | AH69: 0 | AI69: 0 | AJ69: 76001 | AK69: CALI | AL69: 1 | AM69: 1 | AN69: Natural | AO69: 76 | AP69: VALLE DEL CAUCA | AQ69: Aprobado con subsidio | AR69: MICRO | AS69: 1522 | AT69: INDUSTRIAS MANUFACTURERAS | AU69: C | AV69: Fabricación de calzado | AW69: Curtido y recurtido de cueros; fabricación de calzado; fabricación de artículos de viaje, maletas, bolsos de mano y artículos similares, y fabricación de artículos de talabartería y guarnicionería; adobo y teñido de pieles | AX69: 1 | AY69: 0 | AZ69: 0 | BA69: 1 | BB69: 0 | BC69: 0 | BP69: 25286 | BQ69: 18 | BR69: 68679 | BS69: 3
C70: 66001 | D70: PEREIRA | E70: 3 | F70: 0 | G70: Natural | H70: 66 | I70: RISARALDA | J70: Aprobado con subsidio | K70: MICRO | L70: 4290 | M70: CONSTRUCCIÓN | N70: F | O70: Construcción de otras obras de ingeniería civil | P70: Construcción de otras obras de ingeniería civil | Q70: 1 | R70: 2 | S70: 0 | T70: 1 | U70: 1 | V70: 1 | AH70: 0 | AI70: 0 | AJ70: 76001 | AK70: CALI | AL70: 1 | AM70: 0 | AN70: Natural | AO70: 76 | AP70: VALLE DEL CAUCA | AQ70: Aprobado con subsidio | AR70: MICRO | AS70: 1811 | AT70: INDUSTRIAS MANUFACTURERAS | AU70: C | AV70: Actividades de impresión y actividades de servicios relacionados con la impresión | AW70: Actividades de impresión y de producción de copias a partir de grabaciones originales | AX70: 0 | AY70: 1 | AZ70: 0 | BA70: 1 | BB70: 0 | BC70: 0 | BP70: 52227 | BQ70: 1 | BR70: 76364 | BS70: 3
C71: 63001 | D71: ARMENIA | E71: 0 | F71: 0 | G71: Natural | H71: 63 | I71: QUINDÍO | J71: 0 | K71: MICRO | L71: 5611 | M71: ALOJAMIENTO Y SERVICIOS DE COMIDA | N71: I | O71: Actividades de restaurantes, cafeterías y servicio móvil de comidas | P71: Actividades de restaurantes, cafeterías y servicio móvil de comidas | Q71: 0 | R71: 0 | S71: 0 | T71: 0 | U71: 0 | V71: 0 | AH71: 0 | AI71: 0 | AJ71: 76001 | AK71: CALI | AL71: 3 | AM71: 1 | AN71: Natural | AO71: 76 | AP71: VALLE DEL CAUCA | AQ71: Aprobado con subsidio | AR71: MICRO | AS71: 2023 | AT71: INDUSTRIAS MANUFACTURERAS | AU71: C | AV71: Fabricación de otros productos químicos | AW71: Fabricación de sustancias y productos químicos | AX71: 3 | AY71: 0 | AZ71: 0 | BA71: 3 | BB71: 0 | BC71: 0 | BP71: 86001 | BQ71: 3 | BR71: 19001 | BS71: 3
C72: 66170 | D72: DOSQUEBRADAS | E72: 1 | F72: 0 | G72: Natural | H72: 66 | I72: RISARALDA | J72: Aprobado con subsidio | K72: MICRO | L72: 4775 | M72: COMERCIO AL POR MAYOR Y AL POR MENOR; REPARACIÓN DE VEHÍCULOS AUTOMOTORES Y MOTOCICLETAS | N72: G | O72: Comercio al por menor de otros productos en establecimientos especializados | P72: Comercio al por menor de otros productos en establecimientos especializados | Q72: 0 | R72: 1 | S72: 0 | T72: 1 | U72: 0 | V72: 0 | AH72: 0 | AI72: 0 | AJ72: 76001 | AK72: CALI | AL72: 2 | AM72: 3 | AN72: Natural | AO72: 76 | AP72: VALLE DEL CAUCA | AQ72: Aprobado con subsidio | AR72: MICRO | AS72: 1081 | AT72: INDUSTRIAS MANUFACTURERAS | AU72: C | AV72: Elaboración de otros productos alimenticios | AW72: Elaboración de productos alimenticios | AX72: 2 | AY72: 0 | AZ72: 0 | BA72: 1 | BB72: 1 | BC72: 0 | BP72: 25745 | BQ72: 1 | BR72: 68861 | BS72: 2
C73: 66170 | D73: DOSQUEBRADAS | E73: 5 | F73: 4 | G73: Natural | H73: 66 | I73: RISARALDA | J73: Aprobado con subsidio | K73: PEQUEÑA | L73: 6910 | M73: ACTIVIDADES PROFESIONALES, CIENTÍFICAS Y TÉCNICAS | N73: M | O73: Actividades jurídicas | P73: Actividades jurídicas | Q73: 4 | R73: 1 | S73: 0 | T73: 3 | U73: 2 | V73: 0 | AH73: 0 | AI73: 0 | AJ73: 76001 | AK73: CALI | AL73: 0 | AM73: 0 | AN73: Natural | AO73: 76 | AP73: VALLE DEL CAUCA | AQ73: 0 | AR73: MICRO | AS73: 1410 | AT73: INDUSTRIAS MANUFACTURERAS | AU73: C | AV73: Confección de prendas de vestir, excepto prendas de piel | AW73: Confección de prendas de vestir | AX73: 0 | AY73: 0 | AZ73: 0 | BA73: 0 | BB73: 0 | BC73: 0 | BP73: 25430 | BQ73: 11 | BR73: 66682 | BS73: 2
C74: 17777 | D74: SUPÍA | E74: 0 | F74: 0 | G74: Natural | H74: 17 | I74: CALDAS | J74: 0 | K74: PEQUEÑA | L74: 4759 | M74: COMERCIO AL POR MAYOR Y AL POR MENOR; REPARACIÓN DE VEHÍCULOS AUTOMOTORES Y MOTOCICLETAS | N74: G | O74: Comercio al por menor de otros enseres domésticos en establecimientos especializados | P74: Comercio al por menor de otros enseres domésticos en establecimientos especializados | Q74: 0 | R74: 0 | S74: 0 | T74: 0 | U74: 0 | V74: 0 | AH74: 0 | AI74: 0 | AJ74: 66001 | AK74: PEREIRA | AL74: 4 | AM74: 2 | AN74: Natural | AO74: 66 | AP74: RISARALDA | AQ74: Aprobado con subsidio | AR74: MICRO | AS74: 1410 | AT74: INDUSTRIAS MANUFACTURERAS | AU74: C | AV74: Confección de prendas de vestir, excepto prendas de piel | AW74: Confección de prendas de vestir | AX74: 2 | AY74: 2 | AZ74: 0 | BA74: 2 | BB74: 2 | BC74: 0 | BP74: 68276 | BQ74: 7 | BR74: 76109 | BS74: 2
C75: 19001 | D75: POPAYÁN | E75: 3 | F75: 0 | G75: Natural | H75: 19 | I75: CAUCA | J75: Aprobado con subsidio | K75: MICRO | L75: 8559 | M75: EDUCACIÓN | N75: P | O75: Otros tipos de educación | P75: Otros tipos de educación | Q75: 1 | R75: 2 | S75: 0 | T75: 0 | U75: 1 | V75: 2 | AH75: 0 | AI75: 0 | AJ75: 11001 | AK75: BOGOTÁ, D.C. | AL75: 0 | AM75: 0 | AN75: Natural | AO75: 11 | AP75: BOGOTÁ, D.C. | AQ75: 0 | AR75: PEQUEÑA | AS75: 2229 | AT75: INDUSTRIAS MANUFACTURERAS | AU75: C | AV75: Fabricación de productos de plástico | AW75: Fabricación de productos de caucho y de plástico | AX75: 0 | AY75: 0 | AZ75: 0 | BA75: 0 | BB75: 0 | BC75: 0 | BP75: 5380 | BQ75: 31 | BR75: 5642 | BS75: 2
C76: 19698 | D76: SANTANDER DE QUILICHAO | E76: 0 | F76: 0 | G76: Natural | H76: 19 | I76: CAUCA | J76: 0 | K76: MICRO | L76: 4719 | M76: COMERCIO AL POR MAYOR Y AL POR MENOR; REPARACIÓN DE VEHÍCULOS AUTOMOTORES Y MOTOCICLETAS | N76: G | O76: Comercio al por menor en establecimientos no especializados | P76: Comercio al por menor en establecimientos no especializados | Q76: 0 | R76: 0 | S76: 0 | T76: 0 | U76: 0 | V76: 0 | AH76: 0 | AI76: 0 | AJ76: 25290 | AK76: FUSAGASUGÁ | AL76: 0 | AM76: 0 | AN76: Natural | AO76: 25 | AP76: CUNDINAMARCA | AQ76: 0 | AR76: MICRO | AS76: 3110 | AT76: INDUSTRIAS MANUFACTURERAS | AU76: C | AV76: Fabricación de muebles | AW76: Fabricación de muebles, colchones y somieres | AX76: 0 | AY76: 0 | AZ76: 0 | BA76: 0 | BB76: 0 | BC76: 0 | BP76: 13836 | BQ76: 2 | BR76: 5664 | BS76: 2
C77: 76001 | D77: CALI | E77: 3 | F77: 0 | G77: Natural | H77: 76 | I77: VALLE DEL CAUCA | J77: Aprobado con subsidio | K77: MICRO | L77: 4752 | M77: COMERCIO AL POR MAYOR Y AL POR MENOR; REPARACIÓN DE VEHÍCULOS AUTOMOTORES Y MOTOCICLETAS | N77: G | O77: Comercio al por menor de otros enseres domésticos en establecimientos especializados | P77: Comercio al por menor de otros enseres domésticos en establecimientos especializados | Q77: 3 | R77: 0 | S77: 0 | T77: 3 | U77: 0 | V77: 0 | AH77: 0 | AI77: 0 | AJ77: 54001 | AK77: CÚCUTA | AL77: 1 | AM77: 0 | AN77: Natural | AO77: 54 | AP77: NORTE DE SANTANDER | AQ77: Aprobado con subsidio | AR77: PEQUEÑA | AS77: 3312 | AT77: INDUSTRIAS MANUFACTURERAS | AU77: C | AV77: Mantenimiento y reparación especializado de productos elaborados en metal y de maquinaria y equipo | AW77: Instalación, mantenimiento y reparación especializado de maquinaria y equipo | AX77: 0 | AY77: 1 | AZ77: 0 | BA77: 1 | BB77: 0 | BC77: 0 | BP77: 76111 | BQ77: 5 | BR77: 13836 | BS77: 2
C78: 41001 | D78: NEIVA | E78: 1 | F78: 8 | G78: Natural | H78: 41 | I78: HUILA | J78: Aprobado con subsidio | K78: PEQUEÑA | L78: 4711 | M78: COMERCIO AL POR MAYOR Y AL POR MENOR; REPARACIÓN DE VEHÍCULOS AUTOMOTORES Y MOTOCICLETAS | N78: G | O78: Comercio al por menor en establecimientos no especializados | P78: Comercio al por menor en establecimientos no especializados | Q78: 1 | R78: 0 | S78: 0 | T78: 1 | U78: 0 | V78: 0 | AH78: 0 | AI78: 0 | AJ78: 50001 | AK78: VILLAVICENCIO | AL78: 11 | AM78: 1 | AN78: Natural | AO78: 50 | AP78: META | AQ78: Aprobado con subsidio | AR78: MICRO | AS78: 1081 | AT78: INDUSTRIAS MANUFACTURERAS | AU78: C | AV78: Elaboración de otros productos alimenticios | AW78: Elaboración de productos alimenticios | AX78: 5 | AY78: 6 | AZ78: 0 | BA78: 3 | BB78: 4 | BC78: 4 | BP78: 8296 | BQ78: 5 | BR78: 17541 | BS78: 2
C79: 41551 | D79: PITALITO | E79: 2 | F79: 3 | G79: Natural | H79: 41 | I79: HUILA | J79: Aprobado con subsidio | K79: MICRO | L79: 4754 | M79: COMERCIO AL POR MAYOR Y AL POR MENOR; REPARACIÓN DE VEHÍCULOS AUTOMOTORES Y MOTOCICLETAS | N79: G | O79: Comercio al por menor de otros enseres domésticos en establecimientos especializados | P79: Comercio al por menor de otros enseres domésticos en establecimientos especializados | Q79: 1 | R79: 1 | S79: 0 | T79: 1 | U79: 1 | V79: 0 | AH79: 0 | AI79: 0 | AJ79: 18753 | AK79: SAN VICENTE DEL CAGUÁN | AL79: 3 | AM79: 1 | AN79: Natural | AO79: 18 | AP79: CAQUETÁ | AQ79: Aprobado con subsidio | AR79: MICRO | AS79: 1104 | AT79: INDUSTRIAS MANUFACTURERAS | AU79: C | AV79: Elaboración de bebidas | AW79: Elaboración de bebidas | AX79: 0 | AY79: 3 | AZ79: 0 | BA79: 0 | BB79: 0 | BC79: 3 | BP79: 13001 | BQ79: 20 | BR79: 19845 | BS79: 2
C80: 41551 | D80: PITALITO | E80: 2 | F80: 0 | G80: Natural | H80: 41 | I80: HUILA | J80: Aprobado con subsidio | K80: MICRO | L80: 4620 | M80: COMERCIO AL POR MAYOR Y AL POR MENOR; REPARACIÓN DE VEHÍCULOS AUTOMOTORES Y MOTOCICLETAS | N80: G | O80: Comercio al por mayor de materias primas agropecuarias; animales vivos | P80: Comercio al por mayor de materias primas agropecuarias; animales vivos | Q80: 1 | R80: 1 | S80: 0 | T80: 2 | U80: 0 | V80: 0 | AH80: 0 | AI80: 0 | AJ80: 18001 | AK80: FLORENCIA | AL80: 0 | AM80: 0 | AN80: Natural | AO80: 18 | AP80: CAQUETÁ | AQ80: 0 | AR80: MICRO | AS80: 1081 | AT80: INDUSTRIAS MANUFACTURERAS | AU80: C | AV80: Elaboración de otros productos alimenticios | AW80: Elaboración de productos alimenticios | AX80: 0 | AY80: 0 | AZ80: 0 | BA80: 0 | BB80: 0 | BC80: 0 | BP80: 25799 | BQ80: 3 | BR80: 25269 | BS80: 2
C81: 54498 | D81: OCAÑA | E81: 2 | F81: 2 | G81: Natural | H81: 54 | I81: NORTE DE SANTANDER | J81: Aprobado con subsidio | K81: MICRO | L81: 4541 | M81: COMERCIO AL POR MAYOR Y AL POR MENOR; REPARACIÓN DE VEHÍCULOS AUTOMOTORES Y MOTOCICLETAS | N81: G | O81: Comercio, mantenimiento y reparación de motocicletas y de sus partes, piezas y accesorios | P81: Comercio, mantenimiento y reparación de motocicletas y de sus partes, piezas y accesorios | Q81: 1 | R81: 1 | S81: 0 | T81: 2 | U81: 0 | V81: 0 | AH81: 0 | AI81: 0 | AJ81: 18001 | AK81: FLORENCIA | AL81: 2 | AM81: 0 | AN81: Natural | AO81: 18 | AP81: CAQUETÁ | AQ81: Aprobado con subsidio | AR81: MICRO | AS81: 2511 | AT81: INDUSTRIAS MANUFACTURERAS | AU81: C | AV81: Fabricación de productos metálicos para uso estructural, tanques, depósitos y generadores de vapor. | AW81: Fabricación de productos elaborados de metal, excepto maquinaria y equipo | AX81: 0 | AY81: 2 | AZ81: 0 | BA81: 2 | BB81: 0 | BC81: 0 | BP81: 25126 | BQ81: 3 | BR81: 17873 | BS81: 2
C82: 52001 | D82: PASTO | E82: 0 | F82: 0 | G82: Natural | H82: 52 | I82: NARIÑO | J82: 0 | K82: MICRO | L82: 4530 | M82: COMERCIO AL POR MAYOR Y AL POR MENOR; REPARACIÓN DE VEHÍCULOS AUTOMOTORES Y MOTOCICLETAS | N82: G | O82: Comercio de partes, piezas (autopartes) y accesorios (lujos) para vehículos automotores | P82: Comercio de partes, piezas (autopartes) y accesorios (lujos) para vehículos automotores | Q82: 0 | R82: 0 | S82: 0 | T82: 0 | U82: 0 | V82: 0 | AH82: 0 | AI82: 0 | AJ82: 5001 | AK82: MEDELLÍN | AL82: 1 | AM82: 1 | AN82: Natural | AO82: 5 | AP82: ANTIOQUIA | AQ82: Aprobado con subsidio | AR82: MICRO | AS82: 1081 | AT82: INDUSTRIAS MANUFACTURERAS | AU82: C | AV82: Elaboración de otros productos alimenticios | AW82: Elaboración de productos alimenticios | AX82: 0 | AY82: 1 | AZ82: 0 | BA82: 1 | BB82: 0 | BC82: 0 | BP82: 23001 | BQ82: 7 | BR82: 8433 | BS82: 2
C83: 52001 | D83: PASTO | E83: 0 | F83: 0 | G83: Natural | H83: 52 | I83: NARIÑO | J83: 0 | K83: MICRO | L83: 4752 | M83: COMERCIO AL POR MAYOR Y AL POR MENOR; REPARACIÓN DE VEHÍCULOS AUTOMOTORES Y MOTOCICLETAS | N83: G | O83: Comercio al por menor de otros enseres domésticos en establecimientos especializados | P83: Comercio al por menor de otros enseres domésticos en establecimientos especializados | Q83: 0 | R83: 0 | S83: 0 | T83: 0 | U83: 0 | V83: 0 | AH83: 0 | AI83: 0 | AJ83: 11001 | AK83: BOGOTÁ, D.C. | AL83: 0 | AM83: 0 | AN83: Natural | AO83: 11 | AP83: BOGOTÁ, D.C. | AQ83: 0 | AR83: MICRO | AS83: 1313 | AT83: INDUSTRIAS MANUFACTURERAS | AU83: C | AV83: Preparación, hilatura, tejeduría y acabado de productos textiles | AW83: Fabricación de productos textiles | AX83: 0 | AY83: 0 | AZ83: 0 | BA83: 0 | BB83: 0 | BC83: 0 | BP83: 5266 | BQ83: 31 | BR83: 19573 | BS83: 2
C84: 52001 | D84: PASTO | E84: 0 | F84: 0 | G84: Natural | H84: 52 | I84: NARIÑO | J84: 0 | K84: MICRO | L84: 5512 | M84: ALOJAMIENTO Y SERVICIOS DE COMIDA | N84: I | O84: Actividades de alojamiento de estancias cortas | P84: Actividades de alojamiento de estancias cortas | Q84: 0 | R84: 0 | S84: 0 | T84: 0 | U84: 0 | V84: 0 | AH84: 0 | AI84: 0 | AJ84: 66400 | AK84: LA VIRGINIA | AL84: 2 | AM84: 1 | AN84: Natural | AO84: 66 | AP84: RISARALDA | AQ84: Aprobado con subsidio | AR84: MICRO | AS84: 2511 | AT84: INDUSTRIAS MANUFACTURERAS | AU84: C | AV84: Fabricación de productos metálicos para uso estructural, tanques, depósitos y generadores de vapor. | AW84: Fabricación de productos elaborados de metal, excepto maquinaria y equipo | AX84: 0 | AY84: 2 | AZ84: 0 | BA84: 2 | BB84: 0 | BC84: 0 | BP84: 25817 | BQ84: 17 | BR84: 76020 | BS84: 2
C85: 52317 | D85: GUACHUCAL | E85: 2 | F85: 0 | G85: Natural | H85: 52 | I85: NARIÑO | J85: Aprobado con subsidio | K85: PEQUEÑA | L85: 4731 | M85: COMERCIO AL POR MAYOR Y AL POR MENOR; REPARACIÓN DE VEHÍCULOS AUTOMOTORES Y MOTOCICLETAS | N85: G | O85: Comercio al por menor de combustible, lubricantes, aditivos y productos de limpieza para automotores, en establecimientos especializados | P85: Comercio al por menor de combustible, lubricantes, aditivos y productos de limpieza para automotores, en establecimientos especializados | Q85: 0 | R85: 2 | S85: 0 | T85: 2 | U85: 0 | V85: 0 | AH85: 0 | AI85: 0 | AJ85: 11001 | AK85: BOGOTÁ, D.C. | AL85: 2 | AM85: 0 | AN85: Natural | AO85: 11 | AP85: BOGOTÁ, D.C. | AQ85: Aprobado con subsidio | AR85: MICRO | AS85: 1811 | AT85: INDUSTRIAS MANUFACTURERAS | AU85: C | AV85: Actividades de impresión y actividades de servicios relacionados con la impresión | AW85: Actividades de impresión y de producción de copias a partir de grabaciones originales | AX85: 1 | AY85: 1 | AZ85: 0 | BA85: 2 | BB85: 0 | BC85: 0 | BP85: 76130 | BQ85: 4 | BR85: 5670 | BS85: 2
C86: 52001 | D86: PASTO | E86: 0 | F86: 0 | G86: Natural | H86: 52 | I86: NARIÑO | J86: 0 | K86: MICRO | L86: 4731 | M86: COMERCIO AL POR MAYOR Y AL POR MENOR; REPARACIÓN DE VEHÍCULOS AUTOMOTORES Y MOTOCICLETAS | N86: G | O86: Comercio al por menor de combustible, lubricantes, aditivos y productos de limpieza para automotores, en establecimientos especializados | P86: Comercio al por menor de combustible, lubricantes, aditivos y productos de limpieza para automotores, en establecimientos especializados | Q86: 0 | R86: 0 | S86: 0 | T86: 0 | U86: 0 | V86: 0 | AH86: 0 | AI86: 0 | AJ86: 11001 | AK86: BOGOTÁ, D.C. | AL86: 2 | AM86: 0 | AN86: Natural | AO86: 11 | AP86: BOGOTÁ, D.C. | AQ86: Aprobado con subsidio | AR86: MICRO | AS86: 1081 | AT86: INDUSTRIAS MANUFACTURERAS | AU86: C | AV86: Elaboración de otros productos alimenticios | AW86: Elaboración de productos alimenticios | AX86: 2 | AY86: 0 | AZ86: 0 | BA86: 0 | BB86: 2 | BC86: 0 | BP86: 25758 | BQ86: 3 | BR86: 19142 | BS86: 2
C87: 54001 | D87: CÚCUTA | E87: 1 | F87: 8 | G87: Natural | H87: 54 | I87: NORTE DE SANTANDER | J87: Aprobado con subsidio | K87: MICRO | L87: 2599 | M87: INDUSTRIAS MANUFACTURERAS | N87: C | O87: Fabricación de otros productos elaborados de metal y actividades de servicios relacionadas con el trabajo de metales | P87: Fabricación de productos elaborados de metal, excepto maquinaria y equipo | Q87: 0 | R87: 1 | S87: 0 | T87: 1 | U87: 0 | V87: 0 | AH87: 0 | AI87: 0 | AJ87: 11001 | AK87: BOGOTÁ, D.C. | AL87: 0 | AM87: 0 | AN87: Natural | AO87: 11 | AP87: BOGOTÁ, D.C. | AQ87: 0 | AR87: MICRO | AS87: 1081 | AT87: INDUSTRIAS MANUFACTURERAS | AU87: C | AV87: Elaboración de otros productos alimenticios | AW87: Elaboración de productos alimenticios | AX87: 0 | AY87: 0 | AZ87: 0 | BA87: 0 | BB87: 0 | BC87: 0 | BP87: 5440 | BQ87: 10 | BR87: 54874 | BS87: 2
C88: 54001 | D88: CÚCUTA | E88: 1 | F88: 5 | G88: Natural | H88: 54 | I88: NORTE DE SANTANDER | J88: Aprobado con subsidio | K88: MICRO | L88: 4923 | M88: TRANSPORTE Y ALMACENAMIENTO | N88: H | O88: Transporte terrestre publico automotor | P88: Transporte terrestre publico automotor | Q88: 0 | R88: 1 | S88: 0 | T88: 1 | U88: 0 | V88: 0 | AH88: 0 | AI88: 0 | AJ88: 25754 | AK88: SOACHA | AL88: 1 | AM88: 1 | AN88: Natural | AO88: 25 | AP88: CUNDINAMARCA | AQ88: Aprobado con subsidio | AR88: MICRO | AS88: 2399 | AT88: INDUSTRIAS MANUFACTURERAS | AU88: C | AV88: Fabricación de productos minerales no metálicos n.c.p. | AW88: Fabricación de otros productos minerales no metálicos | AX88: 0 | AY88: 1 | AZ88: 0 | BA88: 0 | BB88: 0 | BC88: 1 | BP88: 25473 | BQ88: 17 | BR88: 25875 | BS88: 1
C89: 54518 | D89: PAMPLONA | E89: 2 | F89: 4 | G89: Natural | H89: 54 | I89: NORTE DE SANTANDER | J89: Aprobado con subsidio | K89: PEQUEÑA | L89: 5611 | M89: ALOJAMIENTO Y SERVICIOS DE COMIDA | N89: I | O89: Actividades de restaurantes, cafeterías y servicio móvil de comidas | P89: Actividades de restaurantes, cafeterías y servicio móvil de comidas | Q89: 2 | R89: 0 | S89: 0 | T89: 2 | U89: 0 | V89: 0 | AH89: 0 | AI89: 0 | AJ89: 11001 | AK89: BOGOTÁ, D.C. | AL89: 2 | AM89: 0 | AN89: Natural | AO89: 11 | AP89: BOGOTÁ, D.C. | AQ89: Aprobado con subsidio | AR89: MICRO | AS89: 3312 | AT89: INDUSTRIAS MANUFACTURERAS | AU89: C | AV89: Mantenimiento y reparación especializado de productos elaborados en metal y de maquinaria y equipo | AW89: Instalación, mantenimiento y reparación especializado de maquinaria y equipo | AX89: 0 | AY89: 2 | AZ89: 0 | BA89: 1 | BB89: 0 | BC89: 1 | BP89: 25214 | BQ89: 31 | BR89: 15176 | BS89: 1
C90: 54001 | D90: CÚCUTA | E90: 0 | F90: 0 | G90: Natural | H90: 54 | I90: NORTE DE SANTANDER | J90: 0 | K90: MICRO | L90: 4752 | M90: COMERCIO AL POR MAYOR Y AL POR MENOR; REPARACIÓN DE VEHÍCULOS AUTOMOTORES Y MOTOCICLETAS | N90: G | O90: Comercio al por menor de otros enseres domésticos en establecimientos especializados | P90: Comercio al por menor de otros enseres domésticos en establecimientos especializados | Q90: 0 | R90: 0 | S90: 0 | T90: 0 | U90: 0 | V90: 0 | AH90: 0 | AI90: 0 | AJ90: 11001 | AK90: BOGOTÁ, D.C. | AL90: 0 | AM90: 0 | AN90: Natural | AO90: 11 | AP90: BOGOTÁ, D.C. | AQ90: 0 | AR90: MICRO | AS90: 2229 | AT90: INDUSTRIAS MANUFACTURERAS | AU90: C | AV90: Fabricación de productos de plástico | AW90: Fabricación de productos de caucho y de plástico | AX90: 0 | AY90: 0 | AZ90: 0 | BA90: 0 | BB90: 0 | BC90: 0 | BP90: 5308 | BQ90: 10 | BR90: 18753 | BS90: 1
C91: 68001 | D91: BUCARAMANGA | E91: 1 | F91: 1 | G91: Natural | H91: 68 | I91: SANTANDER | J91: Aprobado con subsidio | K91: PEQUEÑA | L91: 1610 | M91: INDUSTRIAS MANUFACTURERAS | N91: C | O91: Aserrado, acepillado e impregnación de la madera | P91: Transformación de la madera y fabricación de productos de madera y de corcho, excepto muebles; fabricación de artículos de cestería y espartería | Q91: 0 | R91: 1 | S91: 0 | T91: 1 | U91: 0 | V91: 0 | AH91: 0 | AI91: 0 | AJ91: 11001 | AK91: BOGOTÁ, D.C. | AL91: 2 | AM91: 2 | AN91: Natural | AO91: 11 | AP91: BOGOTÁ, D.C. | AQ91: Aprobado con subsidio | AR91: MICRO | AS91: 1410 | AT91: INDUSTRIAS MANUFACTURERAS | AU91: C | AV91: Confección de prendas de vestir, excepto prendas de piel | AW91: Confección de prendas de vestir | AX91: 2 | AY91: 0 | AZ91: 0 | BA91: 2 | BB91: 0 | BC91: 0 | BP91: 25175 | BQ91: 4 | BR91: 5368 | BS91: 1
C92: 11001 | D92: BOGOTÁ, D.C. | E92: 0 | F92: 0 | G92: Natural | H92: 11 | I92: BOGOTÁ, D.C. | J92: 0 | K92: MICRO | L92: 4773 | M92: COMERCIO AL POR MAYOR Y AL POR MENOR; REPARACIÓN DE VEHÍCULOS AUTOMOTORES Y MOTOCICLETAS | N92: G | O92: Comercio al por menor de otros productos en establecimientos especializados | P92: Comercio al por menor de otros productos en establecimientos especializados | Q92: 0 | R92: 0 | S92: 0 | T92: 0 | U92: 0 | V92: 0 | AH92: 0 | AI92: 0 | AJ92: 11001 | AK92: BOGOTÁ, D.C. | AL92: 2 | AM92: 5 | AN92: Natural | AO92: 11 | AP92: BOGOTÁ, D.C. | AQ92: Aprobado con subsidio | AR92: MICRO | AS92: 1410 | AT92: INDUSTRIAS MANUFACTURERAS | AU92: C | AV92: Confección de prendas de vestir, excepto prendas de piel | AW92: Confección de prendas de vestir | AX92: 0 | AY92: 2 | AZ92: 0 | BA92: 2 | BB92: 0 | BC92: 0 | BP92: 76100 | BQ92: 0 | BR92: 85139 | BS92: 1
C93: 68001 | D93: BUCARAMANGA | E93: 2 | F93: 3 | G93: Natural | H93: 68 | I93: SANTANDER | J93: Aprobado con subsidio | K93: MICRO | L93: 4774 | M93: COMERCIO AL POR MAYOR Y AL POR MENOR; REPARACIÓN DE VEHÍCULOS AUTOMOTORES Y MOTOCICLETAS | N93: G | O93: Comercio al por menor de otros productos en establecimientos especializados | P93: Comercio al por menor de otros productos en establecimientos especializados | Q93: 2 | R93: 0 | S93: 0 | T93: 2 | U93: 0 | V93: 0 | AH93: 0 | AI93: 0 | AJ93: 15087 | AK93: BELÉN | AL93: 0 | AM93: 0 | AN93: Natural | AO93: 15 | AP93: BOYACÁ | AQ93: 0 | AR93: MICRO | AS93: 1040 | AT93: INDUSTRIAS MANUFACTURERAS | AU93: C | AV93: Elaboración de productos lácteos | AW93: Elaboración de productos alimenticios | AX93: 0 | AY93: 0 | AZ93: 0 | BA93: 0 | BB93: 0 | BC93: 0 | BP93: 54498 | BQ93: 0 | BR93: 20011 | BS93: 1
C94: 68001 | D94: BUCARAMANGA | E94: 0 | F94: 0 | G94: Natural | H94: 68 | I94: SANTANDER | J94: 0 | K94: MICRO | L94: 4729 | M94: COMERCIO AL POR MAYOR Y AL POR MENOR; REPARACIÓN DE VEHÍCULOS AUTOMOTORES Y MOTOCICLETAS | N94: G | O94: Comercio al por menor de alimentos (víveres en general), bebidas y tabaco, en establecimientos especializados | P94: Comercio al por menor de alimentos (víveres en general), bebidas y tabaco, en establecimientos especializados | Q94: 0 | R94: 0 | S94: 0 | T94: 0 | U94: 0 | V94: 0 | AH94: 0 | AI94: 0 | AJ94: 11001 | AK94: BOGOTÁ, D.C. | AL94: 0 | AM94: 0 | AN94: Natural | AO94: 11 | AP94: BOGOTÁ, D.C. | AQ94: 0 | AR94: MICRO | AS94: 2410 | AT94: INDUSTRIAS MANUFACTURERAS | AU94: C | AV94: Industrias básicas de hierro y de acero | AW94: Fabricación de productos metalúrgicos básicos | AX94: 0 | AY94: 0 | AZ94: 0 | BA94: 0 | BB94: 0 | BC94: 0 | BP94: 68406 | BQ94: 1 | BR94: 17380 | BS94: 1
C95: 68307 | D95: GIRÓN | E95: 0 | F95: 0 | G95: Natural | H95: 68 | I95: SANTANDER | J95: 0 | K95: PEQUEÑA | L95: 8513 | M95: EDUCACIÓN | N95: P | O95: Educación de la primera infancia, preescolar y básica primaria | P95: Educación de la primera infancia, preescolar y básica primaria | Q95: 0 | R95: 0 | S95: 0 | T95: 0 | U95: 0 | V95: 0 | AH95: 0 | AI95: 0 | AJ95: 11001 | AK95: BOGOTÁ, D.C. | AL95: 4 | AM95: 0 | AN95: Natural | AO95: 11 | AP95: BOGOTÁ, D.C. | AQ95: Aprobado con subsidio | AR95: MICRO | AS95: 1521 | AT95: INDUSTRIAS MANUFACTURERAS | AU95: C | AV95: Fabricación de calzado | AW95: Curtido y recurtido de cueros; fabricación de calzado; fabricación de artículos de viaje, maletas, bolsos de mano y artículos similares, y fabricación de artículos de talabartería y guarnicionería; adobo y teñido de pieles | AX95: 1 | AY95: 3 | AZ95: 0 | BA95: 1 | BB95: 0 | BC95: 3 | BP95: 25200 | BQ95: 1 | BR95: 52835 | BS95: 1
C96: 11001 | D96: BOGOTÁ, D.C. | E96: 11 | F96: 9 | G96: Natural | H96: 11 | I96: BOGOTÁ, D.C. | J96: Aprobado con subsidio | K96: MICRO | L96: 4731 | M96: COMERCIO AL POR MAYOR Y AL POR MENOR; REPARACIÓN DE VEHÍCULOS AUTOMOTORES Y MOTOCICLETAS | N96: G | O96: Comercio al por menor de combustible, lubricantes, aditivos y productos de limpieza para automotores, en establecimientos especializados | P96: Comercio al por menor de combustible, lubricantes, aditivos y productos de limpieza para automotores, en establecimientos especializados | Q96: 7 | R96: 4 | S96: 0 | T96: 5 | U96: 3 | V96: 3 | AH96: 0 | AI96: 0 | AJ96: 11001 | AK96: BOGOTÁ, D.C. | AL96: 8 | AM96: 31 | AN96: Natural | AO96: 11 | AP96: BOGOTÁ, D.C. | AQ96: Aprobado con subsidio | AR96: MEDIANA | AS96: 1081 | AT96: INDUSTRIAS MANUFACTURERAS | AU96: C | AV96: Elaboración de otros productos alimenticios | AW96: Elaboración de productos alimenticios | AX96: 7 | AY96: 1 | AZ96: 0 | BA96: 8 | BB96: 0 | BC96: 0 | BP96: 63594 | BQ96: 1 | BR96: 50006 | BS96: 1
C97: 54001 | D97: CÚCUTA | E97: 2 | F97: 2 | G97: Natural | H97: 54 | I97: NORTE DE SANTANDER | J97: Aprobado con subsidio | K97: MICRO | L97: 1410 | M97: INDUSTRIAS MANUFACTURERAS | N97: C | O97: Confección de prendas de vestir, excepto prendas de piel | P97: Confección de prendas de vestir | Q97: 1 | R97: 1 | S97: 0 | T97: 2 | U97: 0 | V97: 0 | AH97: 0 | AI97: 0 | AJ97: 47288 | AK97: FUNDACIÓN | AL97: 4 | AM97: 0 | AN97: Natural | AO97: 47 | AP97: MAGDALENA | AQ97: Aprobado con subsidio | AR97: MICRO | AS97: 1011 | AT97: INDUSTRIAS MANUFACTURERAS | AU97: C | AV97: Procesamiento y conservación de carne, pescado, crustáceos y moluscos | AW97: Elaboración de productos alimenticios | AX97: 0 | AY97: 4 | AZ97: 0 | BA97: 3 | BB97: 0 | BC97: 1 | BP97: 63401 | BQ97: 4 | BR97: 5148 | BS97: 1
C98: 68001 | D98: BUCARAMANGA | E98: 1 | F98: 0 | G98: Natural | H98: 68 | I98: SANTANDER | J98: Aprobado con subsidio | K98: MICRO | L98: 7420 | M98: ACTIVIDADES PROFESIONALES, CIENTÍFICAS Y TÉCNICAS | N98: M | O98: Actividades de fotografía | P98: Actividades de fotografía | Q98: 0 | R98: 1 | S98: 0 | T98: 0 | U98: 0 | V98: 1 | AH98: 0 | AI98: 0 | AJ98: 5045 | AK98: APARTADÓ | AL98: 25 | AM98: 29 | AN98: Natural | AO98: 5 | AP98: ANTIOQUIA | AQ98: Aprobado con subsidio | AR98: PEQUEÑA | AS98: 1089 | AT98: INDUSTRIAS MANUFACTURERAS | AU98: C | AV98: Elaboración de otros productos alimenticios | AW98: Elaboración de productos alimenticios | AX98: 21 | AY98: 4 | AZ98: 0 | BA98: 25 | BB98: 0 | BC98: 0 | BP98: 68679 | BQ98: 3 | BR98: 19130 | BS98: 1
C99: 68081 | D99: BARRANCABERMEJA | E99: 0 | F99: 0 | G99: Natural | H99: 68 | I99: SANTANDER | J99: 0 | K99: MICRO | L99: 4731 | M99: COMERCIO AL POR MAYOR Y AL POR MENOR; REPARACIÓN DE VEHÍCULOS AUTOMOTORES Y MOTOCICLETAS | N99: G | O99: Comercio al por menor de combustible, lubricantes, aditivos y productos de limpieza para automotores, en establecimientos especializados | P99: Comercio al por menor de combustible, lubricantes, aditivos y productos de limpieza para automotores, en establecimientos especializados | Q99: 0 | R99: 0 | S99: 0 | T99: 0 | U99: 0 | V99: 0 | AH99: 0 | AI99: 0 | AJ99: 5001 | AK99: MEDELLÍN | AL99: 1 | AM99: 0 | AN99: Natural | AO99: 5 | AP99: ANTIOQUIA | AQ99: Aprobado con subsidio | AR99: MICRO | AS99: 1081 | AT99: INDUSTRIAS MANUFACTURERAS | AU99: C | AV99: Elaboración de otros productos alimenticios | AW99: Elaboración de productos alimenticios | AX99: 1 | AY99: 0 | AZ99: 0 | BA99: 1 | BB99: 0 | BC99: 0 | BP99: 76364 | BQ99: 3 | BR99: 66400 | BS99: 1
C100: 68861 | D100: VÉLEZ | E100: 1 | F100: 0 | G100: Natural | H100: 68 | I100: SANTANDER | J100: Aprobado con subsidio | K100: MICRO | L100: 1089 | M100: INDUSTRIAS MANUFACTURERAS | N100: C | O100: Elaboración de otros productos alimenticios | P100: Elaboración de productos alimenticios | Q100: 1 | R100: 0 | S100: 0 | T100: 1 | U100: 0 | V100: 0 | AH100: 0 | AI100: 0 | AJ100: 5001 | AK100: MEDELLÍN | AL100: 19 | AM100: 2 | AN100: Natural | AO100: 5 | AP100: ANTIOQUIA | AQ100: Aprobado con subsidio | AR100: MICRO | AS100: 1410 | AT100: INDUSTRIAS MANUFACTURERAS | AU100: C | AV100: Confección de prendas de vestir, excepto prendas de piel | AW100: Confección de prendas de vestir | AX100: 16 | AY100: 3 | AZ100: 0 | BA100: 6 | BB100: 13 | BC100: 0 | BP100: 54405 | BQ100: 5 | BR100: 47288 | BS100: 1
C101: 68001 | D101: BUCARAMANGA | E101: 0 | F101: 0 | G101: Natural | H101: 68 | I101: SANTANDER | J101: 0 | K101: MICRO | L101: 6621 | M101: ACTIVIDADES FINANCIERAS Y DE SEGUROS | N101: K | O101: Actividades de servicios auxiliares de los servicios de seguros y pensiones | P101: Actividades de servicios auxiliares de los servicios de seguros y pensiones | Q101: 0 | R101: 0 | S101: 0 | T101: 0 | U101: 0 | V101: 0 | AH101: 0 | AI101: 0 | AJ101: 5360 | AK101: ITAGUI | AL101: 0 | AM101: 0 | AN101: Natural | AO101: 5 | AP101: ANTIOQUIA | AQ101: 0 | AR101: PEQUEÑA | AS101: 1020 | AT101: INDUSTRIAS MANUFACTURERAS | AU101: C | AV101: Procesamiento y conservación de frutas, legumbres, hortalizas y tubérculos | AW101: Elaboración de productos alimenticios | AX101: 0 | AY101: 0 | AZ101: 0 | BA101: 0 | BB101: 0 | BC101: 0 | BP101: 5607 | BQ101: 1 | BR101: 5045 | BS101: 1
C102: 68079 | D102: BARICHARA | E102: 0 | F102: 0 | G102: Natural | H102: 68 | I102: SANTANDER | J102: 0 | K102: PEQUEÑA | L102: 5511 | M102: ALOJAMIENTO Y SERVICIOS DE COMIDA | N102: I | O102: Actividades de alojamiento de estancias cortas | P102: Actividades de alojamiento de estancias cortas | Q102: 0 | R102: 0 | S102: 0 | T102: 0 | U102: 0 | V102: 0 | AH102: 0 | AI102: 0 | AJ102: 8001 | AK102: BARRANQUILLA | AL102: 7 | AM102: 11 | AN102: Natural | AO102: 8 | AP102: ATLÁNTICO | AQ102: Aprobado con subsidio | AR102: PEQUEÑA | AS102: 1089 | AT102: INDUSTRIAS MANUFACTURERAS | AU102: C | AV102: Elaboración de otros productos alimenticios | AW102: Elaboración de productos alimenticios | AX102: 5 | AY102: 2 | AZ102: 0 | BA102: 2 | BB102: 5 | BC102: 0 | BP102: 5579 | BQ102: 1 | BR102: 70001 | BS102: 1
C103: 11001 | D103: BOGOTÁ, D.C. | E103: 3 | F103: 0 | G103: Natural | H103: 11 | I103: BOGOTÁ, D.C. | J103: Aprobado con subsidio | K103: MICRO | L103: 8121 | M103: ACTIVIDADES DE SERVICIOS ADMINISTRATIVOS Y DE APOYO | N103: N | O103: Actividades de limpieza | P103: Actividades de limpieza | Q103: 2 | R103: 1 | S103: 0 | T103: 0 | U103: 2 | V103: 1 | AH103: 0 | AI103: 0 | AJ103: 70001 | AK103: SINCELEJO | AL103: 1 | AM103: 0 | AN103: Natural | AO103: 70 | AP103: SUCRE | AQ103: Aprobado con subsidio | AR103: MICRO | AS103: 1081 | AT103: INDUSTRIAS MANUFACTURERAS | AU103: C | AV103: Elaboración de otros productos alimenticios | AW103: Elaboración de productos alimenticios | AX103: 0 | AY103: 1 | AZ103: 0 | BA103: 0 | BB103: 0 | BC103: 1 | BP103: 5310 | BQ103: 1 | BR103: 54518 | BS103: 1
C104: 73001 | D104: IBAGUÉ | E104: 0 | F104: 0 | G104: Natural | H104: 73 | I104: TOLIMA | J104: 0 | K104: MICRO | L104: 4751 | M104: COMERCIO AL POR MAYOR Y AL POR MENOR; REPARACIÓN DE VEHÍCULOS AUTOMOTORES Y MOTOCICLETAS | N104: G | O104: Comercio al por menor de otros enseres domésticos en establecimientos especializados | P104: Comercio al por menor de otros enseres domésticos en establecimientos especializados | Q104: 0 | R104: 0 | S104: 0 | T104: 0 | U104: 0 | V104: 0 | AH104: 0 | AI104: 0 | AJ104: 11001 | AK104: BOGOTÁ, D.C. | AL104: 0 | AM104: 0 | AN104: Natural | AO104: 11 | AP104: BOGOTÁ, D.C. | AQ104: 0 | AR104: MICRO | AS104: 1081 | AT104: INDUSTRIAS MANUFACTURERAS | AU104: C | AV104: Elaboración de otros productos alimenticios | AW104: Elaboración de productos alimenticios | AX104: 0 | AY104: 0 | AZ104: 0 | BA104: 0 | BB104: 0 | BC104: 0 | BP104: 5147 | BQ104: 1 | BR104: 54820 | BS104: 1
C105: 11001 | D105: BOGOTÁ, D.C. | E105: 0 | F105: 0 | G105: Natural | H105: 11 | I105: BOGOTÁ, D.C. | J105: 0 | K105: MICRO | L105: 6910 | M105: ACTIVIDADES PROFESIONALES, CIENTÍFICAS Y TÉCNICAS | N105: M | O105: Actividades jurídicas | P105: Actividades jurídicas | Q105: 0 | R105: 0 | S105: 0 | T105: 0 | U105: 0 | V105: 0 | AH105: 0 | AI105: 0 | AJ105: 11001 | AK105: BOGOTÁ, D.C. | AL105: 0 | AM105: 0 | AN105: Natural | AO105: 11 | AP105: BOGOTÁ, D.C. | AQ105: 0 | AR105: MICRO | AS105: 1081 | AT105: INDUSTRIAS MANUFACTURERAS | AU105: C | AV105: Elaboración de otros productos alimenticios | AW105: Elaboración de productos alimenticios | AX105: 0 | AY105: 0 | AZ105: 0 | BA105: 0 | BB105: 0 | BC105: 0 | BP105: 23162 | BQ105: 0 | BR105: 5209 | BS105: 1
C106: 76001 | D106: CALI | E106: 2 | F106: 9 | G106: Natural | H106: 76 | I106: VALLE DEL CAUCA | J106: Aprobado con subsidio | K106: MICRO | L106: 1811 | M106: INDUSTRIAS MANUFACTURERAS | N106: C | O106: Actividades de impresión y actividades de servicios relacionados con la impresión | P106: Actividades de impresión y de producción de copias a partir de grabaciones originales | Q106: 2 | R106: 0 | S106: 0 | T106: 2 | U106: 0 | V106: 0 | AH106: 0 | AI106: 0 | AJ106: 15238 | AK106: DUITAMA | AL106: 1 | AM106: 6 | AN106: Natural | AO106: 15 | AP106: BOYACÁ | AQ106: Aprobado con subsidio | AR106: MICRO | AS106: 2599 | AT106: INDUSTRIAS MANUFACTURERAS | AU106: C | AV106: Fabricación de otros productos elaborados de metal y actividades de servicios relacionadas con el trabajo de metales | AW106: Fabricación de productos elaborados de metal, excepto maquinaria y equipo | AX106: 0 | AY106: 1 | AZ106: 0 | BA106: 1 | BB106: 0 | BC106: 0 | BP106: 23417 | BQ106: 0 | BR106: 25123 | BS106: 1
C107: 73001 | D107: IBAGUÉ | E107: 1 | F107: 0 | G107: Natural | H107: 73 | I107: TOLIMA | J107: Aprobado con subsidio | K107: MICRO | L107: 4752 | M107: COMERCIO AL POR MAYOR Y AL POR MENOR; REPARACIÓN DE VEHÍCULOS AUTOMOTORES Y MOTOCICLETAS | N107: G | O107: Comercio al por menor de otros enseres domésticos en establecimientos especializados | P107: Comercio al por menor de otros enseres domésticos en establecimientos especializados | Q107: 0 | R107: 1 | S107: 0 | T107: 1 | U107: 0 | V107: 0 | AH107: 0 | AI107: 0 | AJ107: 17001 | AK107: MANIZALES | AL107: 0 | AM107: 0 | AN107: Natural | AO107: 17 | AP107: CALDAS | AQ107: 0 | AR107: MICRO | AS107: 1084 | AT107: INDUSTRIAS MANUFACTURERAS | AU107: C | AV107: Elaboración de otros productos alimenticios | AW107: Elaboración de productos alimenticios | AX107: 0 | AY107: 0 | AZ107: 0 | BA107: 0 | BB107: 0 | BC107: 0 | BP107: 76275 | BQ107: 0 | BR107: 63130 | BS107: 1
C108: 73268 | D108: ESPINAL | E108: 0 | F108: 0 | G108: Natural | H108: 73 | I108: TOLIMA | J108: 0 | K108: PEQUEÑA | L108: 4290 | M108: CONSTRUCCIÓN | N108: F | O108: Construcción de otras obras de ingeniería civil | P108: Construcción de otras obras de ingeniería civil | Q108: 0 | R108: 0 | S108: 0 | T108: 0 | U108: 0 | V108: 0 | AH108: 0 | AI108: 0 | AJ108: 17001 | AK108: MANIZALES | AL108: 11 | AM108: 33 | AN108: Natural | AO108: 17 | AP108: CALDAS | AQ108: Aprobado con subsidio | AR108: PEQUEÑA | AS108: 1523 | AT108: INDUSTRIAS MANUFACTURERAS | AU108: C | AV108: Fabricación de calzado | AW108: Curtido y recurtido de cueros; fabricación de calzado; fabricación de artículos de viaje, maletas, bolsos de mano y artículos similares, y fabricación de artículos de talabartería y guarnicionería; adobo y teñido de pieles | AX108: 10 | AY108: 1 | AZ108: 0 | BA108: 5 | BB108: 6 | BC108: 0 | BP108: 17541 | BQ108: 2 | BR108: 52227 | BS108: 1
C109: 5001 | D109: MEDELLÍN | E109: 0 | F109: 0 | G109: Natural | H109: 5 | I109: ANTIOQUIA | J109: 0 | K109: MICRO | L109: 4719 | M109: COMERCIO AL POR MAYOR Y AL POR MENOR; REPARACIÓN DE VEHÍCULOS AUTOMOTORES Y MOTOCICLETAS | N109: G | O109: Comercio al por menor en establecimientos no especializados | P109: Comercio al por menor en establecimientos no especializados | Q109: 0 | R109: 0 | S109: 0 | T109: 0 | U109: 0 | V109: 0 | AH109: 0 | AI109: 0 | AJ109: 17001 | AK109: MANIZALES | AL109: 6 | AM109: 17 | AN109: Natural | AO109: 17 | AP109: CALDAS | AQ109: Aprobado con subsidio | AR109: PEQUEÑA | AS109: 1081 | AT109: INDUSTRIAS MANUFACTURERAS | AU109: C | AV109: Elaboración de otros productos alimenticios | AW109: Elaboración de productos alimenticios | AX109: 6 | AY109: 0 | AZ109: 0 | BA109: 6 | BB109: 0 | BC109: 0 | BP109: 19001 | BQ109: 3 | BR109: 25745 | BS109: 1
C110: 50001 | D110: VILLAVICENCIO | E110: 7 | F110: 10 | G110: Natural | H110: 50 | I110: META | J110: Aprobado con subsidio | K110: PEQUEÑA | L110: 5511 | M110: ALOJAMIENTO Y SERVICIOS DE COMIDA | N110: I | O110: Actividades de alojamiento de estancias cortas | P110: Actividades de alojamiento de estancias cortas | Q110: 4 | R110: 3 | S110: 0 | T110: 4 | U110: 3 | V110: 0 | AH110: 0 | AI110: 0 | AJ110: 76001 | AK110: CALI | AL110: 0 | AM110: 0 | AN110: Natural | AO110: 76 | AP110: VALLE DEL CAUCA | AQ110: 0 | AR110: MICRO | AS110: 1089 | AT110: INDUSTRIAS MANUFACTURERAS | AU110: C | AV110: Elaboración de otros productos alimenticios | AW110: Elaboración de productos alimenticios | AX110: 0 | AY110: 0 | AZ110: 0 | BA110: 0 | BB110: 0 | BC110: 0 | BP110: 19300 | BQ110: 1 | BR110: 68406 | BS110: 1
C111: 76834 | D111: TULUÁ | E111: 1 | F111: 5 | G111: Natural | H111: 76 | I111: VALLE DEL CAUCA | J111: Aprobado con subsidio | K111: PEQUEÑA | L111: 4751 | M111: COMERCIO AL POR MAYOR Y AL POR MENOR; REPARACIÓN DE VEHÍCULOS AUTOMOTORES Y MOTOCICLETAS | N111: G | O111: Comercio al por menor de otros enseres domésticos en establecimientos especializados | P111: Comercio al por menor de otros enseres domésticos en establecimientos especializados | Q111: 1 | R111: 0 | S111: 0 | T111: 0 | U111: 1 | V111: 0 | AH111: 0 | AI111: 0 | AJ111: 17001 | AK111: MANIZALES | AL111: 0 | AM111: 0 | AN111: Natural | AO111: 17 | AP111: CALDAS | AQ111: 0 | AR111: PEQUEÑA | AS111: 1523 | AT111: INDUSTRIAS MANUFACTURERAS | AU111: C | AV111: Fabricación de calzado | AW111: Curtido y recurtido de cueros; fabricación de calzado; fabricación de artículos de viaje, maletas, bolsos de mano y artículos similares, y fabricación de artículos de talabartería y guarnicionería; adobo y teñido de pieles | AX111: 0 | AY111: 0 | AZ111: 0 | BA111: 0 | BB111: 0 | BC111: 0 | BP111: 19845 | BQ111: 2 | BR111: 25200 | BS111: 1
C112: 76020 | D112: ALCALÁ | E112: 6 | F112: 1 | G112: Natural | H112: 76 | I112: VALLE DEL CAUCA | J112: Aprobado con subsidio | K112: MICRO | L112: 4752 | M112: COMERCIO AL POR MAYOR Y AL POR MENOR; REPARACIÓN DE VEHÍCULOS AUTOMOTORES Y MOTOCICLETAS | N112: G | O112: Comercio al por menor de otros enseres domésticos en establecimientos especializados | P112: Comercio al por menor de otros enseres domésticos en establecimientos especializados | Q112: 2 | R112: 4 | S112: 0 | T112: 2 | U112: 2 | V112: 2 | AH112: 0 | AI112: 0 | AJ112: 66170 | AK112: DOSQUEBRADAS | AL112: 2 | AM112: 3 | AN112: Natural | AO112: 66 | AP112: RISARALDA | AQ112: Aprobado con subsidio | AR112: MICRO | AS112: 2511 | AT112: INDUSTRIAS MANUFACTURERAS | AU112: C | AV112: Fabricación de productos metálicos para uso estructural, tanques, depósitos y generadores de vapor. | AW112: Fabricación de productos elaborados de metal, excepto maquinaria y equipo | AX112: 0 | AY112: 2 | AZ112: 0 | BA112: 0 | BB112: 0 | BC112: 2 | BP112: 20621 | BQ112: 1 | BR112: 63594 | BS112: 1
C113: 76001 | D113: CALI | E113: 0 | F113: 0 | G113: Natural | H113: 76 | I113: VALLE DEL CAUCA | J113: 0 | K113: PEQUEÑA | L113: 4762 | M113: COMERCIO AL POR MAYOR Y AL POR MENOR; REPARACIÓN DE VEHÍCULOS AUTOMOTORES Y MOTOCICLETAS | N113: G | O113: Comercio al por menor de artículos culturales y de entretenimiento, en establecimientos especializados | P113: Comercio al por menor de artículos culturales y de entretenimiento, en establecimientos especializados | Q113: 0 | R113: 0 | S113: 0 | T113: 0 | U113: 0 | V113: 0 | AH113: 0 | AI113: 0 | AJ113: 73001 | AK113: IBAGUÉ | AL113: 1 | AM113: 0 | AN113: Natural | AO113: 73 | AP113: TOLIMA | AQ113: Aprobado con subsidio | AR113: MICRO | AS113: 1081 | AT113: INDUSTRIAS MANUFACTURERAS | AU113: C | AV113: Elaboración de otros productos alimenticios | AW113: Elaboración de productos alimenticios | AX113: 0 | AY113: 1 | AZ113: 0 | BA113: 1 | BB113: 0 | BC113: 0 | BP113: 25899 | BQ113: 4 | BR113: 5607 | BS113: 1
C114: 76001 | D114: CALI | E114: 0 | F114: 0 | G114: Natural | H114: 76 | I114: VALLE DEL CAUCA | J114: 0 | K114: PEQUEÑA | L114: 150 | M114: AGRICULTURA, GANADERÍA, CAZA, SILVICULTURA Y PESCA | N114: A | O114: Explotación mixta (agrícola y pecuaria) | P114: Explotación mixta (agrícola y pecuaria) | Q114: 0 | R114: 0 | S114: 0 | T114: 0 | U114: 0 | V114: 0 | AH114: 0 | AI114: 0 | AJ114: 54518 | AK114: PAMPLONA | AL114: 2 | AM114: 2 | AN114: Natural | AO114: 54 | AP114: NORTE DE SANTANDER | AQ114: Aprobado con subsidio | AR114: PEQUEÑA | AS114: 1081 | AT114: INDUSTRIAS MANUFACTURERAS | AU114: C | AV114: Elaboración de otros productos alimenticios | AW114: Elaboración de productos alimenticios | AX114: 2 | AY114: 0 | AZ114: 0 | BA114: 0 | BB114: 2 | BC114: 0 | BP114: 81001 | BQ114: 1 | BR114: 5579 | BS114: 1
C115: 5001 | D115: MEDELLÍN | E115: 0 | F115: 0 | G115: Natural | H115: 5 | I115: ANTIOQUIA | J115: 0 | K115: PEQUEÑA | L115: 1410 | M115: INDUSTRIAS MANUFACTURERAS | N115: C | O115: Confección de prendas de vestir, excepto prendas de piel | P115: Confección de prendas de vestir | Q115: 0 | R115: 0 | S115: 0 | T115: 0 | U115: 0 | V115: 0 | AH115: 0 | AI115: 0 | AJ115: 68861 | AK115: VÉLEZ | AL115: 1 | AM115: 2 | AN115: Natural | AO115: 68 | AP115: SANTANDER | AQ115: Aprobado con subsidio | AR115: PEQUEÑA | AS115: 1089 | AT115: INDUSTRIAS MANUFACTURERAS | AU115: C | AV115: Elaboración de otros productos alimenticios | AW115: Elaboración de productos alimenticios | AX115: 0 | AY115: 1 | AZ115: 0 | BA115: 1 | BB115: 0 | BC115: 0 | BP115: 8758 | BQ115: 5 | BR115: 5310 | BS115: 1
C116: 76122 | D116: CAICEDONIA | E116: 1 | F116: 1 | G116: Natural | H116: 76 | I116: VALLE DEL CAUCA | J116: Aprobado con subsidio | K116: MICRO | L116: 6920 | M116: ACTIVIDADES PROFESIONALES, CIENTÍFICAS Y TÉCNICAS | N116: M | O116: Actividades de contabilidad, teneduría de libros, auditoria financiera y asesoría tributaria | P116: Actividades de contabilidad, teneduría de libros, auditoria financiera y asesoría tributaria | Q116: 1 | R116: 0 | S116: 0 | T116: 1 | U116: 0 | V116: 0 | AH116: 0 | AI116: 0 | AJ116: 17001 | AK116: MANIZALES | AL116: 3 | AM116: 4 | AN116: Natural | AO116: 17 | AP116: CALDAS | AQ116: Aprobado con subsidio | AR116: PEQUEÑA | AS116: 1081 | AT116: INDUSTRIAS MANUFACTURERAS | AU116: C | AV116: Elaboración de otros productos alimenticios | AW116: Elaboración de productos alimenticios | AX116: 2 | AY116: 1 | AZ116: 0 | BA116: 3 | BB116: 0 | BC116: 0 | BP116: 25740 | BQ116: 1 | BR116: 5147 | BS116: 1
C117: 76248 | D117: EL CERRITO | E117: 0 | F117: 0 | G117: Natural | H117: 76 | I117: VALLE DEL CAUCA | J117: 0 | K117: MICRO | L117: 3110 | M117: INDUSTRIAS MANUFACTURERAS | N117: C | O117: Fabricación de muebles | P117: Fabricación de muebles, colchones y somieres | Q117: 0 | R117: 0 | S117: 0 | T117: 0 | U117: 0 | V117: 0 | AH117: 0 | AI117: 0 | AJ117: 17001 | AK117: MANIZALES | AL117: 0 | AM117: 0 | AN117: Natural | AO117: 17 | AP117: CALDAS | AQ117: 0 | AR117: MICRO | AS117: 1812 | AT117: INDUSTRIAS MANUFACTURERAS | AU117: C | AV117: Actividades de impresión y actividades de servicios relacionados con la impresión | AW117: Fabricación de papel, cartón y productos de papel y cartón | AX117: 0 | AY117: 0 | AZ117: 0 | BA117: 0 | BB117: 0 | BC117: 0 | BP117: 25269 | BQ117: 2 | BR117: 19300 | BS117: 1
C118: 50001 | D118: VILLAVICENCIO | E118: 0 | F118: 0 | G118: Natural | H118: 50 | I118: META | J118: 0 | K118: MICRO | L118: 4719 | M118: COMERCIO AL POR MAYOR Y AL POR MENOR; REPARACIÓN DE VEHÍCULOS AUTOMOTORES Y MOTOCICLETAS | N118: G | O118: Comercio al por menor en establecimientos no especializados | P118: Comercio al por menor en establecimientos no especializados | Q118: 0 | R118: 0 | S118: 0 | T118: 0 | U118: 0 | V118: 0 | AH118: 0 | AI118: 0 | AJ118: 17001 | AK118: MANIZALES | AL118: 2 | AM118: 13 | AN118: Natural | AO118: 17 | AP118: CALDAS | AQ118: Aprobado con subsidio | AR118: PEQUEÑA | AS118: 1523 | AT118: INDUSTRIAS MANUFACTURERAS | AU118: C | AV118: Fabricación de calzado | AW118: Curtido y recurtido de cueros; fabricación de calzado; fabricación de artículos de viaje, maletas, bolsos de mano y artículos similares, y fabricación de artículos de talabartería y guarnicionería; adobo y teñido de pieles | AX118: 2 | AY118: 0 | AZ118: 0 | BA118: 2 | BB118: 0 | BC118: 0 | BP118: 25288 | BQ118: 1 | BR118: 20621 | BS118: 1
C119: 76892 | D119: YUMBO | E119: 0 | F119: 0 | G119: Natural | H119: 76 | I119: VALLE DEL CAUCA | J119: 0 | K119: MICRO | L119: 1690 | M119: INDUSTRIAS MANUFACTURERAS | N119: C | O119: Fabricación de otros productos de madera; fabricación de artículos de corcho, cestería y espartería | P119: Transformación de la madera y fabricación de productos de madera y de corcho, excepto muebles; fabricación de artículos de cestería y espartería | Q119: 0 | R119: 0 | S119: 0 | T119: 0 | U119: 0 | V119: 0 | AH119: 0 | AI119: 0 | AJ119: 52001 | AK119: PASTO | AL119: 0 | AM119: 0 | AN119: Natural | AO119: 52 | AP119: NARIÑO | AQ119: 0 | AR119: MICRO | AS119: 2229 | AT119: INDUSTRIAS MANUFACTURERAS | AU119: C | AV119: Fabricación de productos de plástico | AW119: Fabricación de productos de caucho y de plástico | AX119: 0 | AY119: 0 | AZ119: 0 | BA119: 0 | BB119: 0 | BC119: 0 | BP119: 25873 | BQ119: 1 | BR119: 81001 | BS119: 1
C120: 76400 | D120: LA UNIÓN | E120: 3 | F120: 14 | G120: Natural | H120: 76 | I120: VALLE DEL CAUCA | J120: Aprobado con subsidio | K120: PEQUEÑA | L120: 130 | M120: AGRICULTURA, GANADERÍA, CAZA, SILVICULTURA Y PESCA | N120: A | O120: Propagación de plantas (actividades de los viveros, excepto viveros forestales) | P120: Propagación de plantas (actividades de los viveros, excepto viveros forestales) | Q120: 0 | R120: 3 | S120: 0 | T120: 3 | U120: 0 | V120: 0 | AH120: 0 | AI120: 0 | AJ120: 76001 | AK120: CALI | AL120: 0 | AM120: 0 | AN120: Natural | AO120: 76 | AP120: VALLE DEL CAUCA | AQ120: 0 | AR120: PEQUEÑA | AS120: 1690 | AT120: INDUSTRIAS MANUFACTURERAS | AU120: C | AV120: Fabricación de otros productos de madera; fabricación de artículos de corcho, cestería y espartería | AW120: Transformación de la madera y fabricación de productos de madera y de corcho, excepto muebles; fabricación de artículos de cestería y espartería | AX120: 0 | AY120: 0 | AZ120: 0 | BA120: 0 | BB120: 0 | BC120: 0 | BP120: 5030 | BQ120: 1 | BR120: 25740 | BS120: 1
C121: 76001 | D121: CALI | E121: 1 | F121: 0 | G121: Natural | H121: 76 | I121: VALLE DEL CAUCA | J121: Aprobado con subsidio | K121: MICRO | L121: 4741 | M121: COMERCIO AL POR MAYOR Y AL POR MENOR; REPARACIÓN DE VEHÍCULOS AUTOMOTORES Y MOTOCICLETAS | N121: G | O121: Comercio al por menor de equipos de informática y de comunicaciones, en establecimientos especializados | P121: Comercio al por menor de equipos de informática y de comunicaciones, en establecimientos especializados | Q121: 0 | R121: 1 | S121: 0 | T121: 0 | U121: 0 | V121: 1 | AH121: 0 | AI121: 0 | AJ121: 76001 | AK121: CALI | AL121: 3 | AM121: 4 | AN121: Natural | AO121: 76 | AP121: VALLE DEL CAUCA | AQ121: Aprobado con subsidio | AR121: PEQUEÑA | AS121: 1089 | AT121: INDUSTRIAS MANUFACTURERAS | AU121: C | AV121: Elaboración de otros productos alimenticios | AW121: Elaboración de productos alimenticios | AX121: 1 | AY121: 2 | AZ121: 0 | BA121: 2 | BB121: 1 | BC121: 0 | BP121: 5697 | BQ121: 11 | BR121: 25288 | BS121: 1
C122: 76001 | D122: CALI | E122: 2 | F122: 1 | G122: Natural | H122: 76 | I122: VALLE DEL CAUCA | J122: Aprobado con subsidio | K122: MICRO | L122: 1081 | M122: INDUSTRIAS MANUFACTURERAS | N122: C | O122: Elaboración de otros productos alimenticios | P122: Elaboración de productos alimenticios | Q122: 1 | R122: 1 | S122: 0 | T122: 0 | U122: 1 | V122: 1 | AH122: 0 | AI122: 0 | AJ122: 76001 | AK122: CALI | AL122: 2 | AM122: 2 | AN122: Natural | AO122: 76 | AP122: VALLE DEL CAUCA | AQ122: Aprobado con subsidio | AR122: PEQUEÑA | AS122: 1089 | AT122: INDUSTRIAS MANUFACTURERAS | AU122: C | AV122: Elaboración de otros productos alimenticios | AW122: Elaboración de productos alimenticios | AX122: 2 | AY122: 0 | AZ122: 0 | BA122: 2 | BB122: 0 | BC122: 0 | BP122: 19455 | BQ122: 1 | BR122: 25873 | BS122: 1
C123: 76122 | D123: CAICEDONIA | E123: 0 | F123: 0 | G123: Natural | H123: 76 | I123: VALLE DEL CAUCA | J123: 0 | K123: MEDIANA | L123: 4669 | M123: COMERCIO AL POR MAYOR Y AL POR MENOR; REPARACIÓN DE VEHÍCULOS AUTOMOTORES Y MOTOCICLETAS | N123: G | O123: Comercio al por mayor especializado de otros productos | P123: Comercio al por mayor especializado de otros productos | Q123: 0 | R123: 0 | S123: 0 | T123: 0 | U123: 0 | V123: 0 | AH123: 0 | AI123: 0 | AJ123: 5001 | AK123: MEDELLÍN | AL123: 6 | AM123: 15 | AN123: Natural | AO123: 5 | AP123: ANTIOQUIA | AQ123: Aprobado con subsidio | AR123: PEQUEÑA | AS123: 1051 | AT123: INDUSTRIAS MANUFACTURERAS | AU123: C | AV123: Elaboración de productos de molinería, almidones y productos derivados del almidón | AW123: Elaboración de productos alimenticios | AX123: 2 | AY123: 4 | AZ123: 0 | BA123: 6 | BB123: 0 | BC123: 0 | BP123: 15542 | BQ123: 0 | BR123: 5030 | BS123: 1
C124: 76001 | D124: CALI | E124: 1 | F124: 11 | G124: Natural | H124: 76 | I124: VALLE DEL CAUCA | J124: Aprobado con subsidio | K124: PEQUEÑA | L124: 1410 | M124: INDUSTRIAS MANUFACTURERAS | N124: C | O124: Confección de prendas de vestir, excepto prendas de piel | P124: Confección de prendas de vestir | Q124: 1 | R124: 0 | S124: 0 | T124: 1 | U124: 0 | V124: 0 | AH124: 0 | AI124: 0 | AJ124: 5001 | AK124: MEDELLÍN | AL124: 2 | AM124: 0 | AN124: Natural | AO124: 5 | AP124: ANTIOQUIA | AQ124: Aprobado con subsidio | AR124: MICRO | AS124: 1410 | AT124: INDUSTRIAS MANUFACTURERAS | AU124: C | AV124: Confección de prendas de vestir, excepto prendas de piel | AW124: Confección de prendas de vestir | AX124: 2 | AY124: 0 | AZ124: 0 | BA124: 0 | BB124: 2 | BC124: 0 | BP124: 76403 | BQ124: 1 | BR124: 19455 | BS124: 1
C125: 76834 | D125: TULUÁ | E125: 6 | F125: 0 | G125: Natural | H125: 76 | I125: VALLE DEL CAUCA | J125: Aprobado con subsidio | K125: MICRO | L125: 4774 | M125: COMERCIO AL POR MAYOR Y AL POR MENOR; REPARACIÓN DE VEHÍCULOS AUTOMOTORES Y MOTOCICLETAS | N125: G | O125: Comercio al por menor de otros productos en establecimientos especializados | P125: Comercio al por menor de otros productos en establecimientos especializados | Q125: 3 | R125: 3 | S125: 0 | T125: 4 | U125: 2 | V125: 0 | AH125: 0 | AI125: 0 | AJ125: 5318 | AK125: GUARNE | AL125: 2 | AM125: 0 | AN125: Natural | AO125: 5 | AP125: ANTIOQUIA | AQ125: Aprobado con subsidio | AR125: MICRO | AS125: 1081 | AT125: INDUSTRIAS MANUFACTURERAS | AU125: C | AV125: Elaboración de otros productos alimenticios | AW125: Elaboración de productos alimenticios | AX125: 1 | AY125: 1 | AZ125: 0 | BA125: 2 | BB125: 0 | BC125: 0 | BP125: 5042 | BQ125: 1 | BR125: 76403 | BS125: 1
C126: 76111 | D126: GUADALAJARA DE BUGA | E126: 1 | F126: 1 | G126: Natural | H126: 76 | I126: VALLE DEL CAUCA | J126: Aprobado con subsidio | K126: MICRO | L126: 4923 | M126: TRANSPORTE Y ALMACENAMIENTO | N126: H | O126: Transporte terrestre publico automotor | P126: Transporte terrestre publico automotor | Q126: 0 | R126: 1 | S126: 0 | T126: 0 | U126: 0 | V126: 1 | AH126: 0 | AI126: 0 | AJ126: 8001 | AK126: BARRANQUILLA | AL126: 0 | AM126: 0 | AN126: Natural | AO126: 8 | AP126: ATLÁNTICO | AQ126: 0 | AR126: MICRO | AS126: 1811 | AT126: INDUSTRIAS MANUFACTURERAS | AU126: C | AV126: Actividades de impresión y actividades de servicios relacionados con la impresión | AW126: Actividades de impresión y de producción de copias a partir de grabaciones originales | AX126: 0 | AY126: 0 | AZ126: 0 | BA126: 0 | BB126: 0 | BC126: 0 | BP126: 17614 | BQ126: 1 | BR126: 5042 | BS126: 1
C127: 76001 | D127: CALI | E127: 0 | F127: 0 | G127: Natural | H127: 76 | I127: VALLE DEL CAUCA | J127: 0 | K127: PEQUEÑA | L127: 4773 | M127: COMERCIO AL POR MAYOR Y AL POR MENOR; REPARACIÓN DE VEHÍCULOS AUTOMOTORES Y MOTOCICLETAS | N127: G | O127: Comercio al por menor de otros productos en establecimientos especializados | P127: Comercio al por menor de otros productos en establecimientos especializados | Q127: 0 | R127: 0 | S127: 0 | T127: 0 | U127: 0 | V127: 0 | AH127: 0 | AI127: 0 | AJ127: 11001 | AK127: BOGOTÁ, D.C. | AL127: 3 | AM127: 1 | AN127: Natural | AO127: 11 | AP127: BOGOTÁ, D.C. | AQ127: Aprobado con subsidio | AR127: MICRO | AS127: 1410 | AT127: INDUSTRIAS MANUFACTURERAS | AU127: C | AV127: Confección de prendas de vestir, excepto prendas de piel | AW127: Confección de prendas de vestir | AX127: 1 | AY127: 2 | AZ127: 0 | BA127: 3 | BB127: 0 | BC127: 0 | BP127: 54261 | BQ127: 1 | BR127: 17614 | BS127: 1
C128: 41551 | D128: PITALITO | E128: 1 | F128: 35 | G128: Natural | H128: 41 | I128: HUILA | J128: Aprobado con subsidio | K128: MEDIANA | L128: 4711 | M128: COMERCIO AL POR MAYOR Y AL POR MENOR; REPARACIÓN DE VEHÍCULOS AUTOMOTORES Y MOTOCICLETAS | N128: G | O128: Comercio al por menor en establecimientos no especializados | P128: Comercio al por menor en establecimientos no especializados | Q128: 1 | R128: 0 | S128: 0 | T128: 1 | U128: 0 | V128: 0 | AH128: 0 | AI128: 0 | AJ128: 50001 | AK128: VILLAVICENCIO | AL128: 0 | AM128: 0 | AN128: Natural | AO128: 50 | AP128: META | AQ128: 0 | AR128: MICRO | AS128: 1410 | AT128: INDUSTRIAS MANUFACTURERAS | AU128: C | AV128: Confección de prendas de vestir, excepto prendas de piel | AW128: Confección de prendas de vestir | AX128: 0 | AY128: 0 | AZ128: 0 | BA128: 0 | BB128: 0 | BC128: 0 | BP128: 5686 | BQ128: 4 | BR128: 54261 | BS128: 1
C129: 15001 | D129: TUNJA | E129: 0 | F129: 0 | G129: Natural | H129: 15 | I129: BOYACÁ | J129: 0 | K129: MICRO | L129: 7420 | M129: ACTIVIDADES PROFESIONALES, CIENTÍFICAS Y TÉCNICAS | N129: M | O129: Actividades de fotografía | P129: Actividades de fotografía | Q129: 0 | R129: 0 | S129: 0 | T129: 0 | U129: 0 | V129: 0 | AH129: 0 | AI129: 0 | AJ129: 68001 | AK129: BUCARAMANGA | AL129: 8 | AM129: 6 | AN129: Natural | AO129: 68 | AP129: SANTANDER | AQ129: Aprobado con subsidio | AR129: MICRO | AS129: 1410 | AT129: INDUSTRIAS MANUFACTURERAS | AU129: C | AV129: Confección de prendas de vestir, excepto prendas de piel | AW129: Confección de prendas de vestir | AX129: 5 | AY129: 3 | AZ129: 0 | BA129: 6 | BB129: 1 | BC129: 1 | BP129: 70771 | BQ129: 1 | BR129: 70771 | BS129: 1
C130: 15001 | D130: TUNJA | E130: 0 | F130: 0 | G130: Natural | H130: 15 | I130: BOYACÁ | J130: 0 | K130: MICRO | L130: 8512 | M130: EDUCACIÓN | N130: P | O130: Educación de la primera infancia, preescolar y básica primaria | P130: Educación de la primera infancia, preescolar y básica primaria | Q130: 0 | R130: 0 | S130: 0 | T130: 0 | U130: 0 | V130: 0 | AH130: 0 | AI130: 0 | AJ130: 68547 | AK130: PIEDECUESTA | AL130: 0 | AM130: 0 | AN130: Natural | AO130: 68 | AP130: SANTANDER | AQ130: 0 | AR130: PEQUEÑA | AS130: 1410 | AT130: INDUSTRIAS MANUFACTURERAS | AU130: C | AV130: Confección de prendas de vestir, excepto prendas de piel | AW130: Confección de prendas de vestir | AX130: 0 | AY130: 0 | AZ130: 0 | BA130: 0 | BB130: 0 | BC130: 0 | BP130: 17873 | BQ130: =COUNTIFS($AQ$2:$AQ$399999,"Aprobado con subsidio",$AJ$2:$AJ$399999,BP130) -> 2 | BR130: 25769 | BS130: 1
C131: 11001 | D131: BOGOTÁ, D.C. | E131: 2 | F131: 5 | G131: Natural | H131: 11 | I131: BOGOTÁ, D.C. | J131: Aprobado con subsidio | K131: PEQUEÑA | L131: 8521 | M131: EDUCACIÓN | N131: P | O131: Educación secundaria y de formación laboral | P131: Educación secundaria y de formación laboral | Q131: 1 | R131: 1 | S131: 0 | T131: 2 | U131: 0 | V131: 0 | AH131: 0 | AI131: 0 | AJ131: 68001 | AK131: BUCARAMANGA | AL131: 0 | AM131: 0 | AN131: Natural | AO131: 68 | AP131: SANTANDER | AQ131: 0 | AR131: MICRO | AS131: 1084 | AT131: INDUSTRIAS MANUFACTURERAS | AU131: C | AV131: Elaboración de otros productos alimenticios | AW131: Elaboración de productos alimenticios | AX131: 0 | AY131: 0 | AZ131: 0 | BA131: 0 | BB131: 0 | BC131: 0 | BP131: 25769 | BQ131: 1 | BR131: 23189 | BS131: 1
C132: 11001 | D132: BOGOTÁ, D.C. | E132: 2 | F132: 4 | G132: Natural | H132: 11 | I132: BOGOTÁ, D.C. | J132: Aprobado con subsidio | K132: MICRO | L132: 5611 | M132: ALOJAMIENTO Y SERVICIOS DE COMIDA | N132: I | O132: Actividades de restaurantes, cafeterías y servicio móvil de comidas | P132: Actividades de restaurantes, cafeterías y servicio móvil de comidas | Q132: 1 | R132: 1 | S132: 0 | T132: 2 | U132: 0 | V132: 0 | AH132: 0 | AI132: 0 | AJ132: 5001 | AK132: MEDELLÍN | AL132: 5 | AM132: 3 | AN132: Natural | AO132: 5 | AP132: ANTIOQUIA | AQ132: Aprobado con subsidio | AR132: MICRO | AS132: 2221 | AT132: INDUSTRIAS MANUFACTURERAS | AU132: C | AV132: Fabricación de productos de plástico | AW132: Fabricación de productos de caucho y de plástico | AX132: 2 | AY132: 3 | AZ132: 0 | BA132: 5 | BB132: 0 | BC132: 0 | BP132: 15131 | BQ132: 0 | BR132: 5400 | BS132: 1
C133: 5631 | D133: SABANETA | E133: 2 | F133: 4 | G133: Natural | H133: 5 | I133: ANTIOQUIA | J133: Aprobado con subsidio | K133: MICRO | L133: 4711 | M133: COMERCIO AL POR MAYOR Y AL POR MENOR; REPARACIÓN DE VEHÍCULOS AUTOMOTORES Y MOTOCICLETAS | N133: G | O133: Comercio al por menor en establecimientos no especializados | P133: Comercio al por menor en establecimientos no especializados | Q133: 2 | R133: 0 | S133: 0 | T133: 2 | U133: 0 | V133: 0 | AH133: 0 | AI133: 0 | AJ133: 15001 | AK133: TUNJA | AL133: 4 | AM133: 1 | AN133: Natural | AO133: 15 | AP133: BOYACÁ | AQ133: Aprobado con subsidio | AR133: MICRO | AS133: 1630 | AT133: INDUSTRIAS MANUFACTURERAS | AU133: C | AV133: Fabricación de partes y piezas de madera, de carpintería y ebanistería para la construcción | AW133: Transformación de la madera y fabricación de productos de madera y de corcho, excepto muebles; fabricación de artículos de cestería y espartería | AX133: 2 | AY133: 2 | AZ133: 0 | BA133: 2 | BB133: 2 | BC133: 0 | BP133: 25183 | BQ133: 0 | BR133: 68077 | BS133: 1
C134: 18001 | D134: FLORENCIA | E134: 3 | F134: 0 | G134: Natural | H134: 18 | I134: CAQUETÁ | J134: Aprobado con subsidio | K134: MICRO | L134: 4643 | M134: COMERCIO AL POR MAYOR Y AL POR MENOR; REPARACIÓN DE VEHÍCULOS AUTOMOTORES Y MOTOCICLETAS | N134: G | O134: Comercio al por mayor de artículos y enseres domésticos (incluidas prendas de vestir) | P134: Comercio al por mayor de artículos y enseres domésticos (incluidas prendas de vestir) | Q134: 1 | R134: 2 | S134: 0 | T134: 2 | U134: 1 | V134: 0 | AH134: 0 | AI134: 0 | AJ134: 54820 | AK134: TOLEDO | AL134: 3 | AM134: 2 | AN134: Natural | AO134: 54 | AP134: NORTE DE SANTANDER | AQ134: Aprobado con subsidio | AR134: MICRO | AS134: 1040 | AT134: INDUSTRIAS MANUFACTURERAS | AU134: C | AV134: Elaboración de productos lácteos | AW134: Elaboración de productos alimenticios | AX134: 0 | AY134: 3 | AZ134: 0 | BA134: 2 | BB134: 0 | BC134: 1 | BP134: 8433 | BQ134: 2 | BR134: 15516 | BS134: 1
C135: 41001 | D135: NEIVA | E135: 0 | F135: 0 | G135: Natural | H135: 41 | I135: HUILA | J135: 0 | K135: MICRO | L135: 4661 | M135: COMERCIO AL POR MAYOR Y AL POR MENOR; REPARACIÓN DE VEHÍCULOS AUTOMOTORES Y MOTOCICLETAS | N135: G | O135: Comercio al por mayor especializado de otros productos | P135: Comercio al por mayor especializado de otros productos | Q135: 0 | R135: 0 | S135: 0 | T135: 0 | U135: 0 | V135: 0 | AH135: 0 | AI135: 0 | AJ135: 25290 | AK135: FUSAGASUGÁ | AL135: 2 | AM135: 1 | AN135: Natural | AO135: 25 | AP135: CUNDINAMARCA | AQ135: Aprobado con subsidio | AR135: MICRO | AS135: 1020 | AT135: INDUSTRIAS MANUFACTURERAS | AU135: C | AV135: Procesamiento y conservación de frutas, legumbres, hortalizas y tubérculos | AW135: Elaboración de productos alimenticios | AX135: 0 | AY135: 2 | AZ135: 0 | BA135: 2 | BB135: 0 | BC135: 0 | BP135: 23189 | BQ135: 1 | BR135: 41551 | BS135: 1
C136: 18001 | D136: FLORENCIA | E136: 1 | F136: 1 | G136: Natural | H136: 18 | I136: CAQUETÁ | J136: Aprobado con subsidio | K136: MICRO | L136: 8020 | M136: ACTIVIDADES DE SERVICIOS ADMINISTRATIVOS Y DE APOYO | N136: N | O136: Actividades de servicios de sistemas de seguridad | P136: Actividades de servicios de sistemas de seguridad | Q136: 0 | R136: 1 | S136: 0 | T136: 1 | U136: 0 | V136: 0 | AH136: 0 | AI136: 0 | AJ136: 63001 | AK136: ARMENIA | AL136: 0 | AM136: 0 | AN136: Natural | AO136: 63 | AP136: QUINDÍO | AQ136: 0 | AR136: MICRO | AS136: 1511 | AT136: INDUSTRIAS MANUFACTURERAS | AU136: C | AV136: Curtido y recurtido de cueros; fabricación de artículos de viaje, bolsos de mano y artículos similares, y fabricación de artículos de talabartería y guarnicionería; adobo y teñido de pieles | AW136: Curtido y recurtido de cueros; fabricación de calzado; fabricación de artículos de viaje, maletas, bolsos de mano y artículos similares, y fabricación de artículos de talabartería y guarnicionería; adobo y teñido de pieles | AX136: 0 | AY136: 0 | AZ136: 0 | BA136: 0 | BB136: 0 | BC136: 0 | BP136: 19573 | BQ136: 2 | BR136: 17174 | BS136: 1
C137: 18001 | D137: FLORENCIA | E137: 1 | F137: 2 | G137: Natural | H137: 18 | I137: CAQUETÁ | J137: Aprobado con subsidio | K137: MICRO | L137: 4741 | M137: COMERCIO AL POR MAYOR Y AL POR MENOR; REPARACIÓN DE VEHÍCULOS AUTOMOTORES Y MOTOCICLETAS | N137: G | O137: Comercio al por menor de equipos de informática y de comunicaciones, en establecimientos especializados | P137: Comercio al por menor de equipos de informática y de comunicaciones, en establecimientos especializados | Q137: 0 | R137: 1 | S137: 0 | T137: 1 | U137: 0 | V137: 0 | AH137: 0 | AI137: 0 | AJ137: 63001 | AK137: ARMENIA | AL137: 0 | AM137: 0 | AN137: Natural | AO137: 63 | AP137: QUINDÍO | AQ137: 0 | AR137: MICRO | AS137: 1082 | AT137: INDUSTRIAS MANUFACTURERAS | AU137: C | AV137: Elaboración de otros productos alimenticios | AW137: Elaboración de productos alimenticios | AX137: 0 | AY137: 0 | AZ137: 0 | BA137: 0 | BB137: 0 | BC137: 0 | BP137: 85001 | BQ137: 5 | BR137: 25377 | BS137: 1
C138: 70001 | D138: SINCELEJO | E138: 1 | F138: 1 | G138: Natural | H138: 70 | I138: SUCRE | J138: Aprobado con subsidio | K138: MICRO | L138: 4530 | M138: COMERCIO AL POR MAYOR Y AL POR MENOR; REPARACIÓN DE VEHÍCULOS AUTOMOTORES Y MOTOCICLETAS | N138: G | O138: Comercio de partes, piezas (autopartes) y accesorios (lujos) para vehículos automotores | P138: Comercio de partes, piezas (autopartes) y accesorios (lujos) para vehículos automotores | Q138: 1 | R138: 0 | S138: 0 | T138: 1 | U138: 0 | V138: 0 | AH138: 0 | AI138: 0 | AJ138: 5001 | AK138: MEDELLÍN | AL138: 0 | AM138: 0 | AN138: Natural | AO138: 5 | AP138: ANTIOQUIA | AQ138: 0 | AR138: PEQUEÑA | AS138: 1313 | AT138: INDUSTRIAS MANUFACTURERAS | AU138: C | AV138: Preparación, hilatura, tejeduría y acabado de productos textiles | AW138: Fabricación de productos textiles | AX138: 0 | AY138: 0 | AZ138: 0 | BA138: 0 | BB138: 0 | BC138: 0 | BP138: 76020 | BQ138: 2 | BR138: 76233 | BS138: 1
C139: 23001 | D139: MONTERÍA | E139: 2 | F139: 0 | G139: Natural | H139: 23 | I139: CÓRDOBA | J139: Aprobado con subsidio | K139: MICRO | L139: 4541 | M139: COMERCIO AL POR MAYOR Y AL POR MENOR; REPARACIÓN DE VEHÍCULOS AUTOMOTORES Y MOTOCICLETAS | N139: G | O139: Comercio, mantenimiento y reparación de motocicletas y de sus partes, piezas y accesorios | P139: Comercio, mantenimiento y reparación de motocicletas y de sus partes, piezas y accesorios | Q139: 1 | R139: 1 | S139: 0 | T139: 2 | U139: 0 | V139: 0 | AH139: 0 | AI139: 0 | AJ139: 76109 | AK139: BUENAVENTURA | AL139: 1 | AM139: 9 | AN139: Natural | AO139: 76 | AP139: VALLE DEL CAUCA | AQ139: Aprobado con subsidio | AR139: PEQUEÑA | AS139: 1081 | AT139: INDUSTRIAS MANUFACTURERAS | AU139: C | AV139: Elaboración de otros productos alimenticios | AW139: Elaboración de productos alimenticios | AX139: 1 | AY139: 0 | AZ139: 0 | BA139: 1 | BB139: 0 | BC139: 0 | BP139: 5400 | BQ139: 1 | BR139: 25402 | BS139: 1
C140: 23001 | D140: MONTERÍA | E140: 0 | F140: 0 | G140: Natural | H140: 23 | I140: CÓRDOBA | J140: 0 | K140: MICRO | L140: 4752 | M140: COMERCIO AL POR MAYOR Y AL POR MENOR; REPARACIÓN DE VEHÍCULOS AUTOMOTORES Y MOTOCICLETAS | N140: G | O140: Comercio al por menor de otros enseres domésticos en establecimientos especializados | P140: Comercio al por menor de otros enseres domésticos en establecimientos especializados | Q140: 0 | R140: 0 | S140: 0 | T140: 0 | U140: 0 | V140: 0 | AH140: 0 | AI140: 0 | AJ140: 5642 | AK140: SALGAR | AL140: 3 | AM140: 1 | AN140: Natural | AO140: 5 | AP140: ANTIOQUIA | AQ140: Aprobado con subsidio | AR140: MICRO | AS140: 1081 | AT140: INDUSTRIAS MANUFACTURERAS | AU140: C | AV140: Elaboración de otros productos alimenticios | AW140: Elaboración de productos alimenticios | AX140: 3 | AY140: 0 | AZ140: 0 | BA140: 2 | BB140: 1 | BC140: 0 | BP140: 68077 | BQ140: 1 | BR140: 25718 | BS140: 1
C141: 91001 | D141: LETICIA | E141: 3 | F141: 2 | G141: Natural | H141: 91 | I141: AMAZONAS | J141: Aprobado con subsidio | K141: MICRO | L141: 5613 | M141: ALOJAMIENTO Y SERVICIOS DE COMIDA | N141: I | O141: Actividades de restaurantes, cafeterías y servicio móvil de comidas | P141: Actividades de restaurantes, cafeterías y servicio móvil de comidas | Q141: 3 | R141: 0 | S141: 0 | T141: 2 | U141: 1 | V141: 0 | AH141: 0 | AI141: 0 | AJ141: 5129 | AK141: CALDAS | AL141: 0 | AM141: 0 | AN141: Natural | AO141: 5 | AP141: ANTIOQUIA | AQ141: 0 | AR141: MICRO | AS141: 1610 | AT141: INDUSTRIAS MANUFACTURERAS | AU141: C | AV141: Aserrado, acepillado e impregnación de la madera | AW141: Transformación de la madera y fabricación de productos de madera y de corcho, excepto muebles; fabricación de artículos de cestería y espartería | AX141: 0 | AY141: 0 | AZ141: 0 | BA141: 0 | BB141: 0 | BC141: 0 | BP141: 15516 | BQ141: 1 | BR141: 15491 | BS141: 1
C142: 15776 | D142: SUTAMARCHÁN | E142: 6 | F142: 6 | G142: Natural | H142: 15 | I142: BOYACÁ | J142: Aprobado con subsidio | K142: PEQUEÑA | L142: 5611 | M142: ALOJAMIENTO Y SERVICIOS DE COMIDA | N142: I | O142: Actividades de restaurantes, cafeterías y servicio móvil de comidas | P142: Actividades de restaurantes, cafeterías y servicio móvil de comidas | Q142: 3 | R142: 3 | S142: 0 | T142: 4 | U142: 2 | V142: 0 | AH142: 0 | AI142: 0 | AJ142: 5001 | AK142: MEDELLÍN | AL142: 0 | AM142: 0 | AN142: Natural | AO142: 5 | AP142: ANTIOQUIA | AQ142: 0 | AR142: PEQUEÑA | AS142: 1020 | AT142: INDUSTRIAS MANUFACTURERAS | AU142: C | AV142: Procesamiento y conservación de frutas, legumbres, hortalizas y tubérculos | AW142: Elaboración de productos alimenticios | AX142: 0 | AY142: 0 | AZ142: 0 | BA142: 0 | BB142: 0 | BC142: 0 | BP142: 41524 | BQ142: 0 | BR142: 25307 | BS142: 1
C143: 15001 | D143: TUNJA | E143: 1 | F143: 0 | G143: Natural | H143: 15 | I143: BOYACÁ | J143: Aprobado con subsidio | K143: MICRO | L143: 7310 | M143: ACTIVIDADES PROFESIONALES, CIENTÍFICAS Y TÉCNICAS | N143: M | O143: Publicidad | P143: Publicidad | Q143: 0 | R143: 1 | S143: 0 | T143: 1 | U143: 0 | V143: 0 | AH143: 0 | AI143: 0 | AJ143: 5001 | AK143: MEDELLÍN | AL143: 0 | AM143: 0 | AN143: Natural | AO143: 5 | AP143: ANTIOQUIA | AQ143: 0 | AR143: MICRO | AS143: 1089 | AT143: INDUSTRIAS MANUFACTURERAS | AU143: C | AV143: Elaboración de otros productos alimenticios | AW143: Elaboración de productos alimenticios | AX143: 0 | AY143: 0 | AZ143: 0 | BA143: 0 | BB143: 0 | BC143: 0 | BP143: 41551 | BQ143: 1 | BR143: 25736 | BS143: 1
C144: 15001 | D144: TUNJA | E144: 5 | F144: 0 | G144: Natural | H144: 15 | I144: BOYACÁ | J144: Aprobado con subsidio | K144: MICRO | L144: 9311 | M144: ACTIVIDADES ARTÍSTICAS, DE ENTRETENIMIENTO Y RECREACIÓN | N144: R | O144: Actividades deportivas | P144: Actividades deportivas | Q144: 3 | R144: 2 | S144: 0 | T144: 4 | U144: 1 | V144: 0 | AH144: 0 | AI144: 0 | AJ144: 5209 | AK144: CONCORDIA | AL144: 1 | AM144: 0 | AN144: Natural | AO144: 5 | AP144: ANTIOQUIA | AQ144: Aprobado con subsidio | AR144: MICRO | AS144: 1062 | AT144: INDUSTRIAS MANUFACTURERAS | AU144: C | AV144: Elaboración de productos de café | AW144: Elaboración de productos alimenticios | AX144: 1 | AY144: 0 | AZ144: 0 | BA144: 1 | BB144: 0 | BC144: 0 | BP144: 76147 | BQ144: 7 | BR144: 68689 | BS144: 1
C145: 15001 | D145: TUNJA | E145: 0 | F145: 0 | G145: Natural | H145: 15 | I145: BOYACÁ | J145: 0 | K145: MICRO | L145: 4541 | M145: COMERCIO AL POR MAYOR Y AL POR MENOR; REPARACIÓN DE VEHÍCULOS AUTOMOTORES Y MOTOCICLETAS | N145: G | O145: Comercio, mantenimiento y reparación de motocicletas y de sus partes, piezas y accesorios | P145: Comercio, mantenimiento y reparación de motocicletas y de sus partes, piezas y accesorios | Q145: 0 | R145: 0 | S145: 0 | T145: 0 | U145: 0 | V145: 0 | AH145: 0 | AI145: 0 | AJ145: 5001 | AK145: MEDELLÍN | AL145: 3 | AM145: 0 | AN145: Natural | AO145: 5 | AP145: ANTIOQUIA | AQ145: Aprobado con subsidio | AR145: MICRO | AS145: 1410 | AT145: INDUSTRIAS MANUFACTURERAS | AU145: C | AV145: Confección de prendas de vestir, excepto prendas de piel | AW145: Confección de prendas de vestir | AX145: 3 | AY145: 0 | AZ145: 0 | BA145: 0 | BB145: 3 | BC145: 0 | BP145: 17174 | BQ145: 1 | BR145: 76036 | BS145: 1
C146: 15001 | D146: TUNJA | E146: 0 | F146: 0 | G146: Natural | H146: 15 | I146: BOYACÁ | J146: 0 | K146: MICRO | L146: 4752 | M146: COMERCIO AL POR MAYOR Y AL POR MENOR; REPARACIÓN DE VEHÍCULOS AUTOMOTORES Y MOTOCICLETAS | N146: G | O146: Comercio al por menor de otros enseres domésticos en establecimientos especializados | P146: Comercio al por menor de otros enseres domésticos en establecimientos especializados | Q146: 0 | R146: 0 | S146: 0 | T146: 0 | U146: 0 | V146: 0 | AH146: 0 | AI146: 0 | AJ146: 5615 | AK146: RIONEGRO | AL146: 2 | AM146: 1 | AN146: Natural | AO146: 5 | AP146: ANTIOQUIA | AQ146: Aprobado con subsidio | AR146: MICRO | AS146: 1630 | AT146: INDUSTRIAS MANUFACTURERAS | AU146: C | AV146: Fabricación de partes y piezas de madera, de carpintería y ebanistería para la construcción | AW146: Transformación de la madera y fabricación de productos de madera y de corcho, excepto muebles; fabricación de artículos de cestería y espartería | AX146: 0 | AY146: 2 | AZ146: 0 | BA146: 2 | BB146: 0 | BC146: 0 | BP146: 25377 | BQ146: 1 | BR146: 5138 | BS146: 1
C147: 15001 | D147: TUNJA | E147: 0 | F147: 0 | G147: Natural | H147: 15 | I147: BOYACÁ | J147: 0 | K147: MICRO | L147: 6920 | M147: ACTIVIDADES PROFESIONALES, CIENTÍFICAS Y TÉCNICAS | N147: M | O147: Actividades de contabilidad, teneduría de libros, auditoria financiera y asesoría tributaria | P147: Actividades de contabilidad, teneduría de libros, auditoria financiera y asesoría tributaria | Q147: 0 | R147: 0 | S147: 0 | T147: 0 | U147: 0 | V147: 0 | AH147: 0 | AI147: 0 | AJ147: 5001 | AK147: MEDELLÍN | AL147: 0 | AM147: 0 | AN147: Natural | AO147: 5 | AP147: ANTIOQUIA | AQ147: 0 | AR147: MICRO | AS147: 2511 | AT147: INDUSTRIAS MANUFACTURERAS | AU147: C | AV147: Fabricación de productos metálicos para uso estructural, tanques, depósitos y generadores de vapor. | AW147: Fabricación de productos elaborados de metal, excepto maquinaria y equipo | AX147: 0 | AY147: 0 | AZ147: 0 | BA147: 0 | BB147: 0 | BC147: 0 | BP147: 76233 | BQ147: 1 | BR147: 8573 | BS147: 1
C148: 15646 | D148: SAMACÁ | E148: 0 | F148: 0 | G148: Natural | H148: 15 | I148: BOYACÁ | J148: 0 | K148: MICRO | L148: 4729 | M148: COMERCIO AL POR MAYOR Y AL POR MENOR; REPARACIÓN DE VEHÍCULOS AUTOMOTORES Y MOTOCICLETAS | N148: G | O148: Comercio al por menor de alimentos (víveres en general), bebidas y tabaco, en establecimientos especializados | P148: Comercio al por menor de alimentos (víveres en general), bebidas y tabaco, en establecimientos especializados | Q148: 0 | R148: 0 | S148: 0 | T148: 0 | U148: 0 | V148: 0 | AH148: 0 | AI148: 0 | AJ148: 5212 | AK148: COPACABANA | AL148: 1 | AM148: 3 | AN148: Natural | AO148: 5 | AP148: ANTIOQUIA | AQ148: Aprobado con subsidio | AR148: MICRO | AS148: 3319 | AT148: INDUSTRIAS MANUFACTURERAS | AU148: C | AV148: Mantenimiento y reparación especializado de productos elaborados en metal y de maquinaria y equipo | AW148: Instalación, mantenimiento y reparación especializado de maquinaria y equipo | AX148: 0 | AY148: 1 | AZ148: 0 | BA148: 1 | BB148: 0 | BC148: 0 | BP148: 25402 | BQ148: 1 | BR148: 68755 | BS148: 1
C149: 15238 | D149: DUITAMA | E149: 0 | F149: 0 | G149: Natural | H149: 15 | I149: BOYACÁ | J149: 0 | K149: MICRO | L149: 4923 | M149: TRANSPORTE Y ALMACENAMIENTO | N149: H | O149: Transporte terrestre publico automotor | P149: Transporte terrestre publico automotor | Q149: 0 | R149: 0 | S149: 0 | T149: 0 | U149: 0 | V149: 0 | AH149: 0 | AI149: 0 | AJ149: 5001 | AK149: MEDELLÍN | AL149: 8 | AM149: 4 | AN149: Natural | AO149: 5 | AP149: ANTIOQUIA | AQ149: Aprobado con subsidio | AR149: PEQUEÑA | AS149: 3290 | AT149: INDUSTRIAS MANUFACTURERAS | AU149: C | AV149: Otras industrias manufactureras n.c.p. | AW149: Otras industrias manufactureras | AX149: 7 | AY149: 1 | AZ149: 0 | BA149: 1 | BB149: 6 | BC149: 1 | BP149: 17616 | BQ149: 0 | BR149: 73268 | BS149: 1
C150: 15238 | D150: DUITAMA | E150: 1 | F150: 1 | G150: Natural | H150: 15 | I150: BOYACÁ | J150: Aprobado con subsidio | K150: MICRO | L150: 4732 | M150: COMERCIO AL POR MAYOR Y AL POR MENOR; REPARACIÓN DE VEHÍCULOS AUTOMOTORES Y MOTOCICLETAS | N150: G | O150: Comercio al por menor de combustible, lubricantes, aditivos y productos de limpieza para automotores, en establecimientos especializados | P150: Comercio al por menor de combustible, lubricantes, aditivos y productos de limpieza para automotores, en establecimientos especializados | Q150: 0 | R150: 1 | S150: 0 | T150: 1 | U150: 0 | V150: 0 | AH150: 0 | AI150: 0 | AJ150: 5088 | AK150: BELLO | AL150: 19 | AM150: 12 | AN150: Natural | AO150: 5 | AP150: ANTIOQUIA | AQ150: Aprobado con subsidio | AR150: MICRO | AS150: 2511 | AT150: INDUSTRIAS MANUFACTURERAS | AU150: C | AV150: Fabricación de productos metálicos para uso estructural, tanques, depósitos y generadores de vapor. | AW150: Fabricación de productos elaborados de metal, excepto maquinaria y equipo | AX150: 4 | AY150: 15 | AZ150: 0 | BA150: 4 | BB150: 3 | BC150: 12 | BP150: 25718 | BQ150: 1 | BR150: 68655 | BS150: 1
C151: 15759 | D151: SOGAMOSO | E151: 0 | F151: 0 | G151: Natural | H151: 15 | I151: BOYACÁ | J151: 0 | K151: MICRO | L151: 4530 | M151: COMERCIO AL POR MAYOR Y AL POR MENOR; REPARACIÓN DE VEHÍCULOS AUTOMOTORES Y MOTOCICLETAS | N151: G | O151: Comercio de partes, piezas (autopartes) y accesorios (lujos) para vehículos automotores | P151: Comercio de partes, piezas (autopartes) y accesorios (lujos) para vehículos automotores | Q151: 0 | R151: 0 | S151: 0 | T151: 0 | U151: 0 | V151: 0 | AH151: 0 | AI151: 0 | AJ151: 5001 | AK151: MEDELLÍN | AL151: 2 | AM151: 3 | AN151: Natural | AO151: 5 | AP151: ANTIOQUIA | AQ151: Aprobado con subsidio | AR151: MICRO | AS151: 1313 | AT151: INDUSTRIAS MANUFACTURERAS | AU151: C | AV151: Preparación, hilatura, tejeduría y acabado de productos textiles | AW151: Fabricación de productos textiles | AX151: 1 | AY151: 1 | AZ151: 0 | BA151: 2 | BB151: 0 | BC151: 0 | BP151: 20045 | BQ151: 0 | BR151: 85162 | BS151: 1
C152: 15238 | D152: DUITAMA | E152: 0 | F152: 0 | G152: Natural | H152: 15 | I152: BOYACÁ | J152: 0 | K152: MICRO | L152: 4761 | M152: COMERCIO AL POR MAYOR Y AL POR MENOR; REPARACIÓN DE VEHÍCULOS AUTOMOTORES Y MOTOCICLETAS | N152: G | O152: Comercio al por menor de artículos culturales y de entretenimiento, en establecimientos especializados | P152: Comercio al por menor de artículos culturales y de entretenimiento, en establecimientos especializados | Q152: 0 | R152: 0 | S152: 0 | T152: 0 | U152: 0 | V152: 0 | AH152: 0 | AI152: 0 | AJ152: 5615 | AK152: RIONEGRO | AL152: 1 | AM152: 0 | AN152: Natural | AO152: 5 | AP152: ANTIOQUIA | AQ152: Aprobado con subsidio | AR152: PEQUEÑA | AS152: 1089 | AT152: INDUSTRIAS MANUFACTURERAS | AU152: C | AV152: Elaboración de otros productos alimenticios | AW152: Elaboración de productos alimenticios | AX152: 0 | AY152: 1 | AZ152: 0 | BA152: 1 | BB152: 0 | BC152: 0 | BP152: 5670 | BQ152: 2 | BR152: 5154 | BS152: 1
C153: 15759 | D153: SOGAMOSO | E153: 2 | F153: 2 | G153: Natural | H153: 15 | I153: BOYACÁ | J153: Aprobado con subsidio | K153: MICRO | L153: 5619 | M153: ALOJAMIENTO Y SERVICIOS DE COMIDA | N153: I | O153: Actividades de restaurantes, cafeterías y servicio móvil de comidas | P153: Actividades de restaurantes, cafeterías y servicio móvil de comidas | Q153: 0 | R153: 2 | S153: 0 | T153: 2 | U153: 0 | V153: 0 | AH153: 0 | AI153: 0 | AJ153: 5001 | AK153: MEDELLÍN | AL153: 1 | AM153: 0 | AN153: Natural | AO153: 5 | AP153: ANTIOQUIA | AQ153: Aprobado con subsidio | AR153: MICRO | AS153: 1410 | AT153: INDUSTRIAS MANUFACTURERAS | AU153: C | AV153: Confección de prendas de vestir, excepto prendas de piel | AW153: Confección de prendas de vestir | AX153: 0 | AY153: 1 | AZ153: 0 | BA153: 1 | BB153: 0 | BC153: 0 | BP153: 15491 | BQ153: 1 | BR153: 25743 | BS153: 1
C154: 11001 | D154: BOGOTÁ, D.C. | E154: 1 | F154: 0 | G154: Natural | H154: 11 | I154: BOGOTÁ, D.C. | J154: Aprobado con subsidio | K154: MICRO | L154: 1081 | M154: INDUSTRIAS MANUFACTURERAS | N154: C | O154: Elaboración de otros productos alimenticios | P154: Elaboración de productos alimenticios | Q154: 1 | R154: 0 | S154: 0 | T154: 0 | U154: 1 | V154: 0 | AH154: 0 | AI154: 0 | AJ154: 5615 | AK154: RIONEGRO | AL154: 0 | AM154: 0 | AN154: Natural | AO154: 5 | AP154: ANTIOQUIA | AQ154: 0 | AR154: MICRO | AS154: 1051 | AT154: INDUSTRIAS MANUFACTURERAS | AU154: C | AV154: Elaboración de productos de molinería, almidones y productos derivados del almidón | AW154: Elaboración de productos alimenticios | AX154: 0 | AY154: 0 | AZ154: 0 | BA154: 0 | BB154: 0 | BC154: 0 | BP154: 25307 | BQ154: 1 | BR154: 15469 | BS154: 1
C155: 15238 | D155: DUITAMA | E155: 1 | F155: 8 | G155: Natural | H155: 15 | I155: BOYACÁ | J155: Aprobado con subsidio | K155: PEQUEÑA | L155: 4722 | M155: COMERCIO AL POR MAYOR Y AL POR MENOR; REPARACIÓN DE VEHÍCULOS AUTOMOTORES Y MOTOCICLETAS | N155: G | O155: Comercio al por menor de alimentos (víveres en general), bebidas y tabaco, en establecimientos especializados | P155: Comercio al por menor de alimentos (víveres en general), bebidas y tabaco, en establecimientos especializados | Q155: 1 | R155: 0 | S155: 0 | T155: 0 | U155: 1 | V155: 0 | AH155: 0 | AI155: 0 | AJ155: 5001 | AK155: MEDELLÍN | AL155: 1 | AM155: 4 | AN155: Natural | AO155: 5 | AP155: ANTIOQUIA | AQ155: Aprobado con subsidio | AR155: PEQUEÑA | AS155: 2395 | AT155: INDUSTRIAS MANUFACTURERAS | AU155: C | AV155: Fabricación de productos minerales no metálicos n.c.p. | AW155: Fabricación de otros productos minerales no metálicos | AX155: 0 | AY155: 1 | AZ155: 0 | BA155: 1 | BB155: 0 | BC155: 0 | BP155: 54810 | BQ155: 0 | BR155: 15646 | BS155: 1
C156: 15238 | D156: DUITAMA | E156: 0 | F156: 0 | G156: Natural | H156: 15 | I156: BOYACÁ | J156: 0 | K156: MICRO | L156: 1040 | M156: INDUSTRIAS MANUFACTURERAS | N156: C | O156: Elaboración de productos lácteos | P156: Elaboración de productos alimenticios | Q156: 0 | R156: 0 | S156: 0 | T156: 0 | U156: 0 | V156: 0 | AH156: 0 | AI156: 0 | AJ156: 5001 | AK156: MEDELLÍN | AL156: 1 | AM156: 0 | AN156: Natural | AO156: 5 | AP156: ANTIOQUIA | AQ156: Aprobado con subsidio | AR156: MICRO | AS156: 3250 | AT156: INDUSTRIAS MANUFACTURERAS | AU156: C | AV156: Fabricación de instrumentos, aparatos y materiales médicos y odontológicos (incluido mobiliario) | AW156: Otras industrias manufactureras | AX156: 1 | AY156: 0 | AZ156: 0 | BA156: 1 | BB156: 0 | BC156: 0 | BP156: 25736 | BQ156: 1 | BR156: 85010 | BS156: 1
C157: 11001 | D157: BOGOTÁ, D.C. | E157: 1 | F157: 1 | G157: Natural | H157: 11 | I157: BOGOTÁ, D.C. | J157: Aprobado con subsidio | K157: MICRO | L157: 4752 | M157: COMERCIO AL POR MAYOR Y AL POR MENOR; REPARACIÓN DE VEHÍCULOS AUTOMOTORES Y MOTOCICLETAS | N157: G | O157: Comercio al por menor de otros enseres domésticos en establecimientos especializados | P157: Comercio al por menor de otros enseres domésticos en establecimientos especializados | Q157: 1 | R157: 0 | S157: 0 | T157: 1 | U157: 0 | V157: 0 | AH157: 0 | AI157: 0 | AJ157: 5001 | AK157: MEDELLÍN | AL157: 4 | AM157: 0 | AN157: Natural | AO157: 5 | AP157: ANTIOQUIA | AQ157: Aprobado con subsidio | AR157: MICRO | AS157: 1313 | AT157: INDUSTRIAS MANUFACTURERAS | AU157: C | AV157: Preparación, hilatura, tejeduría y acabado de productos textiles | AW157: Fabricación de productos textiles | AX157: 1 | AY157: 3 | AZ157: 0 | BA157: 1 | BB157: 1 | BC157: 2 | BP157: 19142 | BQ157: 2 | BR157: 41396 | BS157: 1
C158: 15176 | D158: CHIQUINQUIRÁ | E158: 3 | F158: 0 | G158: Natural | H158: 15 | I158: BOYACÁ | J158: Aprobado con subsidio | K158: MICRO | L158: 4112 | M158: CONSTRUCCIÓN | N158: F | O158: Construcción de edificios | P158: Construcción de edificios | Q158: 0 | R158: 3 | S158: 0 | T158: 1 | U158: 0 | V158: 2 | AH158: 0 | AI158: 0 | AJ158: 17001 | AK158: MANIZALES | AL158: 2 | AM158: 0 | AN158: Natural | AO158: 17 | AP158: CALDAS | AQ158: Aprobado con subsidio | AR158: MICRO | AS158: 1084 | AT158: INDUSTRIAS MANUFACTURERAS | AU158: C | AV158: Elaboración de otros productos alimenticios | AW158: Elaboración de productos alimenticios | AX158: 1 | AY158: 1 | AZ158: 0 | BA158: 1 | BB158: 0 | BC158: 1 | BP158: 25295 | BQ158: 0 | BR158: 5313 | BS158: 1
C159: 15176 | D159: CHIQUINQUIRÁ | E159: 0 | F159: 0 | G159: Natural | H159: 15 | I159: BOYACÁ | J159: 0 | K159: MICRO | L159: 4729 | M159: COMERCIO AL POR MAYOR Y AL POR MENOR; REPARACIÓN DE VEHÍCULOS AUTOMOTORES Y MOTOCICLETAS | N159: G | O159: Comercio al por menor de alimentos (víveres en general), bebidas y tabaco, en establecimientos especializados | P159: Comercio al por menor de alimentos (víveres en general), bebidas y tabaco, en establecimientos especializados | Q159: 0 | R159: 0 | S159: 0 | T159: 0 | U159: 0 | V159: 0 | AH159: 0 | AI159: 0 | AJ159: 5001 | AK159: MEDELLÍN | AL159: 0 | AM159: 0 | AN159: Natural | AO159: 5 | AP159: ANTIOQUIA | AQ159: 0 | AR159: MICRO | AS159: 1081 | AT159: INDUSTRIAS MANUFACTURERAS | AU159: C | AV159: Elaboración de otros productos alimenticios | AW159: Elaboración de productos alimenticios | AX159: 0 | AY159: 0 | AZ159: 0 | BA159: 0 | BB159: 0 | BC159: 0 | BP159: 68689 | BQ159: 1 | BR159: 50287 | BS159: 1
C160: 8001 | D160: BARRANQUILLA | E160: 1 | F160: 3 | G160: Natural | H160: 8 | I160: ATLÁNTICO | J160: Aprobado con subsidio | K160: PEQUEÑA | L160: 1081 | M160: INDUSTRIAS MANUFACTURERAS | N160: C | O160: Elaboración de otros productos alimenticios | P160: Elaboración de productos alimenticios | Q160: 0 | R160: 1 | S160: 0 | T160: 1 | U160: 0 | V160: 0 | AH160: 0 | AI160: 0 | AJ160: 5001 | AK160: MEDELLÍN | AL160: 0 | AM160: 0 | AN160: Natural | AO160: 5 | AP160: ANTIOQUIA | AQ160: 0 | AR160: MEDIANA | AS160: 1410 | AT160: INDUSTRIAS MANUFACTURERAS | AU160: C | AV160: Confección de prendas de vestir, excepto prendas de piel | AW160: Confección de prendas de vestir | AX160: 0 | AY160: 0 | AZ160: 0 | BA160: 0 | BB160: 0 | BC160: 0 | BP160: 76036 | BQ160: 1 | BR160: 25438 | BS160: 1
C161: 47001 | D161: SANTA MARTA | E161: 0 | F161: 0 | G161: Natural | H161: 47 | I161: MAGDALENA | J161: 0 | K161: MICRO | L161: 4773 | M161: COMERCIO AL POR MAYOR Y AL POR MENOR; REPARACIÓN DE VEHÍCULOS AUTOMOTORES Y MOTOCICLETAS | N161: G | O161: Comercio al por menor de otros productos en establecimientos especializados | P161: Comercio al por menor de otros productos en establecimientos especializados | Q161: 0 | R161: 0 | S161: 0 | T161: 0 | U161: 0 | V161: 0 | AH161: 0 | AI161: 0 | AJ161: 68307 | AK161: GIRÓN | AL161: 3 | AM161: 4 | AN161: Natural | AO161: 68 | AP161: SANTANDER | AQ161: Aprobado con subsidio | AR161: MICRO | AS161: 1410 | AT161: INDUSTRIAS MANUFACTURERAS | AU161: C | AV161: Confección de prendas de vestir, excepto prendas de piel | AW161: Confección de prendas de vestir | AX161: 2 | AY161: 1 | AZ161: 0 | BA161: 3 | BB161: 0 | BC161: 0 | BP161: 5138 | BQ161: 1 | BR161: 5190 | BS161: 1
C162: 8001 | D162: BARRANQUILLA | E162: 0 | F162: 0 | G162: Natural | H162: 8 | I162: ATLÁNTICO | J162: 0 | K162: PEQUEÑA | L162: 6910 | M162: ACTIVIDADES PROFESIONALES, CIENTÍFICAS Y TÉCNICAS | N162: M | O162: Actividades jurídicas | P162: Actividades jurídicas | Q162: 0 | R162: 0 | S162: 0 | T162: 0 | U162: 0 | V162: 0 | AH162: 0 | AI162: 0 | AJ162: 11001 | AK162: BOGOTÁ, D.C. | AL162: 2 | AM162: 1 | AN162: Natural | AO162: 11 | AP162: BOGOTÁ, D.C. | AQ162: Aprobado con subsidio | AR162: MICRO | AS162: 1410 | AT162: INDUSTRIAS MANUFACTURERAS | AU162: C | AV162: Confección de prendas de vestir, excepto prendas de piel | AW162: Confección de prendas de vestir | AX162: 1 | AY162: 1 | AZ162: 0 | BA162: 1 | BB162: 1 | BC162: 0 | BP162: 8573 | BQ162: 1 | BR162: 15835 | BS162: 1
C163: 63001 | D163: ARMENIA | E163: 0 | F163: 0 | G163: Natural | H163: 63 | I163: QUINDÍO | J163: 0 | K163: MICRO | L163: 4773 | M163: COMERCIO AL POR MAYOR Y AL POR MENOR; REPARACIÓN DE VEHÍCULOS AUTOMOTORES Y MOTOCICLETAS | N163: G | O163: Comercio al por menor de otros productos en establecimientos especializados | P163: Comercio al por menor de otros productos en establecimientos especializados | Q163: 0 | R163: 0 | S163: 0 | T163: 0 | U163: 0 | V163: 0 | AH163: 0 | AI163: 0 | AJ163: 15238 | AK163: DUITAMA | AL163: 3 | AM163: 5 | AN163: Natural | AO163: 15 | AP163: BOYACÁ | AQ163: Aprobado con subsidio | AR163: MICRO | AS163: 1081 | AT163: INDUSTRIAS MANUFACTURERAS | AU163: C | AV163: Elaboración de otros productos alimenticios | AW163: Elaboración de productos alimenticios | AX163: 2 | AY163: 1 | AZ163: 0 | BA163: 1 | BB163: 2 | BC163: 0 | BP163: 68755 | BQ163: 1 | BR163: 76126 | BS163: 1
C164: 63001 | D164: ARMENIA | E164: 11 | F164: 33 | G164: Natural | H164: 63 | I164: QUINDÍO | J164: Aprobado con subsidio | K164: PEQUEÑA | L164: 4330 | M164: CONSTRUCCIÓN | N164: F | O164: Terminación y acabado de edificios y obras de ingeniería civil | P164: Terminación y acabado de edificios y obras de ingeniería civil | Q164: 0 | R164: 11 | S164: 0 | T164: 3 | U164: 0 | V164: 8 | AH164: 0 | AI164: 0 | AJ164: 20001 | AK164: VALLEDUPAR | AL164: 3 | AM164: 0 | AN164: Natural | AO164: 20 | AP164: CESAR | AQ164: Aprobado con subsidio | AR164: MICRO | AS164: 3250 | AT164: INDUSTRIAS MANUFACTURERAS | AU164: C | AV164: Fabricación de instrumentos, aparatos y materiales médicos y odontológicos (incluido mobiliario) | AW164: Otras industrias manufactureras | AX164: 1 | AY164: 2 | AZ164: 0 | BA164: 1 | BB164: 0 | BC164: 2 | BP164: 73268 | BQ164: 1 | BR164: 70823 | BS164: 1
C165: 63001 | D165: ARMENIA | E165: 0 | F165: 0 | G165: Natural | H165: 63 | I165: QUINDÍO | J165: 0 | K165: MICRO | L165: 6920 | M165: ACTIVIDADES PROFESIONALES, CIENTÍFICAS Y TÉCNICAS | N165: M | O165: Actividades de contabilidad, teneduría de libros, auditoria financiera y asesoría tributaria | P165: Actividades de contabilidad, teneduría de libros, auditoria financiera y asesoría tributaria | Q165: 0 | R165: 0 | S165: 0 | T165: 0 | U165: 0 | V165: 0 | AH165: 0 | AI165: 0 | AJ165: 11001 | AK165: BOGOTÁ, D.C. | AL165: 1 | AM165: 1 | AN165: Natural | AO165: 11 | AP165: BOGOTÁ, D.C. | AQ165: Aprobado con subsidio | AR165: MICRO | AS165: 2826 | AT165: INDUSTRIAS MANUFACTURERAS | AU165: C | AV165: Fabricación de maquinaria y equipo de uso especial | AW165: Fabricación de maquinaria y equipo n.c.p. | AX165: 1 | AY165: 0 | AZ165: 0 | BA165: 1 | BB165: 0 | BC165: 0 | BP165: 68655 | BQ165: 1 | BR165: 52260 | BS165: 1
C166: 63001 | D166: ARMENIA | E166: 7 | F166: 9 | G166: Natural | H166: 63 | I166: QUINDÍO | J166: Aprobado con subsidio | K166: MICRO | L166: 4111 | M166: CONSTRUCCIÓN | N166: F | O166: Construcción de edificios | P166: Construcción de edificios | Q166: 0 | R166: 7 | S166: 0 | T166: 3 | U166: 0 | V166: 4 | AH166: 0 | AI166: 0 | AJ166: 11001 | AK166: BOGOTÁ, D.C. | AL166: 1 | AM166: 1 | AN166: Natural | AO166: 11 | AP166: BOGOTÁ, D.C. | AQ166: Aprobado con subsidio | AR166: MICRO | AS166: 1523 | AT166: INDUSTRIAS MANUFACTURERAS | AU166: C | AV166: Fabricación de calzado | AW166: Curtido y recurtido de cueros; fabricación de calzado; fabricación de artículos de viaje, maletas, bolsos de mano y artículos similares, y fabricación de artículos de talabartería y guarnicionería; adobo y teñido de pieles | AX166: 0 | AY166: 1 | AZ166: 0 | BA166: 1 | BB166: 0 | BC166: 0 | BP166: 85162 | BQ166: 1 | BR166: 5120 | BS166: 1
C167: 50001 | D167: VILLAVICENCIO | E167: 0 | F167: 0 | G167: Natural | H167: 50 | I167: META | J167: 0 | K167: MICRO | L167: 4761 | M167: COMERCIO AL POR MAYOR Y AL POR MENOR; REPARACIÓN DE VEHÍCULOS AUTOMOTORES Y MOTOCICLETAS | N167: G | O167: Comercio al por menor de artículos culturales y de entretenimiento, en establecimientos especializados | P167: Comercio al por menor de artículos culturales y de entretenimiento, en establecimientos especializados | Q167: 0 | R167: 0 | S167: 0 | T167: 0 | U167: 0 | V167: 0 | AH167: 0 | AI167: 0 | AJ167: 11001 | AK167: BOGOTÁ, D.C. | AL167: 0 | AM167: 0 | AN167: Natural | AO167: 11 | AP167: BOGOTÁ, D.C. | AQ167: 0 | AR167: MICRO | AS167: 2511 | AT167: INDUSTRIAS MANUFACTURERAS | AU167: C | AV167: Fabricación de productos metálicos para uso estructural, tanques, depósitos y generadores de vapor. | AW167: Fabricación de productos elaborados de metal, excepto maquinaria y equipo | AX167: 0 | AY167: 0 | AZ167: 0 | BA167: 0 | BB167: 0 | BC167: 0 | BP167: 5154 | BQ167: 1 | BR167: 68079 | BS167: 1
C168: 63001 | D168: ARMENIA | E168: 0 | F168: 0 | G168: Natural | H168: 63 | I168: QUINDÍO | J168: 0 | K168: MICRO | L168: 4774 | M168: COMERCIO AL POR MAYOR Y AL POR MENOR; REPARACIÓN DE VEHÍCULOS AUTOMOTORES Y MOTOCICLETAS | N168: G | O168: Comercio al por menor de otros productos en establecimientos especializados | P168: Comercio al por menor de otros productos en establecimientos especializados | Q168: 0 | R168: 0 | S168: 0 | T168: 0 | U168: 0 | V168: 0 | AH168: 0 | AI168: 0 | AJ168: 41001 | AK168: NEIVA | AL168: 0 | AM168: 0 | AN168: Natural | AO168: 41 | AP168: HUILA | AQ168: 0 | AR168: MICRO | AS168: 1104 | AT168: INDUSTRIAS MANUFACTURERAS | AU168: C | AV168: Elaboración de bebidas | AW168: Elaboración de bebidas | AX168: 0 | AY168: 0 | AZ168: 0 | BA168: 0 | BB168: 0 | BC168: 0 | BP168: 25743 | BQ168: 1 | BR168: 73555 | BS168: 1
C169: 5266 | D169: ENVIGADO | E169: 4 | F169: 4 | G169: Natural | H169: 5 | I169: ANTIOQUIA | J169: Aprobado con subsidio | K169: MICRO | L169: 7111 | M169: ACTIVIDADES PROFESIONALES, CIENTÍFICAS Y TÉCNICAS | N169: M | O169: Actividades de arquitectura e ingeniería y otras actividades conexas de consultoría técnica | P169: Actividades de arquitectura e ingeniería y otras actividades conexas de consultoría técnica | Q169: 2 | R169: 2 | S169: 0 | T169: 3 | U169: 1 | V169: 0 | AH169: 0 | AI169: 0 | AJ169: 11001 | AK169: BOGOTÁ, D.C. | AL169: 0 | AM169: 0 | AN169: Natural | AO169: 11 | AP169: BOGOTÁ, D.C. | AQ169: 0 | AR169: MICRO | AS169: 1811 | AT169: INDUSTRIAS MANUFACTURERAS | AU169: C | AV169: Actividades de impresión y actividades de servicios relacionados con la impresión | AW169: Actividades de impresión y de producción de copias a partir de grabaciones originales | AX169: 0 | AY169: 0 | AZ169: 0 | BA169: 0 | BB169: 0 | BC169: 0 | BP169: 54874 | BQ169: 2 | BR169: 76869 | BS169: 1
C170: 63001 | D170: ARMENIA | E170: 0 | F170: 0 | G170: Natural | H170: 63 | I170: QUINDÍO | J170: 0 | K170: MICRO | L170: 7112 | M170: ACTIVIDADES PROFESIONALES, CIENTÍFICAS Y TÉCNICAS | N170: M | O170: Actividades de arquitectura e ingeniería y otras actividades conexas de consultoría técnica | P170: Actividades de arquitectura e ingeniería y otras actividades conexas de consultoría técnica | Q170: 0 | R170: 0 | S170: 0 | T170: 0 | U170: 0 | V170: 0 | AH170: 0 | AI170: 0 | AJ170: 11001 | AK170: BOGOTÁ, D.C. | AL170: 0 | AM170: 0 | AN170: Natural | AO170: 11 | AP170: BOGOTÁ, D.C. | AQ170: 0 | AR170: PEQUEÑA | AS170: 1523 | AT170: INDUSTRIAS MANUFACTURERAS | AU170: C | AV170: Fabricación de calzado | AW170: Curtido y recurtido de cueros; fabricación de calzado; fabricación de artículos de viaje, maletas, bolsos de mano y artículos similares, y fabricación de artículos de talabartería y guarnicionería; adobo y teñido de pieles | AX170: 0 | AY170: 0 | AZ170: 0 | BA170: 0 | BB170: 0 | BC170: 0 | BP170: 15469 | BQ170: 1 | BR170: 5890 | BS170: 1
C171: 25899 | D171: ZIPAQUIRÁ | E171: 3 | F171: 5 | G171: Natural | H171: 25 | I171: CUNDINAMARCA | J171: Aprobado con subsidio | K171: MICRO | L171: 5511 | M171: ALOJAMIENTO Y SERVICIOS DE COMIDA | N171: I | O171: Actividades de alojamiento de estancias cortas | P171: Actividades de alojamiento de estancias cortas | Q171: 2 | R171: 1 | S171: 0 | T171: 3 | U171: 0 | V171: 0 | AH171: 0 | AI171: 0 | AJ171: 11001 | AK171: BOGOTÁ, D.C. | AL171: 3 | AM171: 4 | AN171: Natural | AO171: 11 | AP171: BOGOTÁ, D.C. | AQ171: Aprobado con subsidio | AR171: MICRO | AS171: 1081 | AT171: INDUSTRIAS MANUFACTURERAS | AU171: C | AV171: Elaboración de otros productos alimenticios | AW171: Elaboración de productos alimenticios | AX171: 3 | AY171: 0 | AZ171: 0 | BA171: 3 | BB171: 0 | BC171: 0 | BP171: 15646 | BQ171: 1 | BR171: 15189 | BS171: 1
C172: 63001 | D172: ARMENIA | E172: 1 | F172: 2 | G172: Natural | H172: 63 | I172: QUINDÍO | J172: Aprobado con subsidio | K172: PEQUEÑA | L172: 4661 | M172: COMERCIO AL POR MAYOR Y AL POR MENOR; REPARACIÓN DE VEHÍCULOS AUTOMOTORES Y MOTOCICLETAS | N172: G | O172: Comercio al por mayor especializado de otros productos | P172: Comercio al por mayor especializado de otros productos | Q172: 1 | R172: 0 | S172: 0 | T172: 1 | U172: 0 | V172: 0 | AH172: 0 | AI172: 0 | AJ172: 11001 | AK172: BOGOTÁ, D.C. | AL172: 3 | AM172: 1 | AN172: Natural | AO172: 11 | AP172: BOGOTÁ, D.C. | AQ172: Aprobado con subsidio | AR172: MICRO | AS172: 1012 | AT172: INDUSTRIAS MANUFACTURERAS | AU172: C | AV172: Procesamiento y conservación de carne, pescado, crustáceos y moluscos | AW172: Elaboración de productos alimenticios | AX172: 3 | AY172: 0 | AZ172: 0 | BA172: 0 | BB172: 3 | BC172: 0 | BP172: 85010 | BQ172: 1 | BR172: 41016 | BS172: 1
C173: 20001 | D173: VALLEDUPAR | E173: 11 | F173: 0 | G173: Natural | H173: 20 | I173: CESAR | J173: Aprobado con subsidio | K173: PEQUEÑA | L173: 1410 | M173: INDUSTRIAS MANUFACTURERAS | N173: C | O173: Confección de prendas de vestir, excepto prendas de piel | P173: Confección de prendas de vestir | Q173: 6 | R173: 5 | S173: 0 | T173: 3 | U173: 4 | V173: 4 | AH173: 0 | AI173: 0 | AJ173: 25123 | AK173: CACHIPAY | AL173: 7 | AM173: 0 | AN173: Natural | AO173: 25 | AP173: CUNDINAMARCA | AQ173: Aprobado con subsidio | AR173: MICRO | AS173: 1081 | AT173: INDUSTRIAS MANUFACTURERAS | AU173: C | AV173: Elaboración de otros productos alimenticios | AW173: Elaboración de productos alimenticios | AX173: 3 | AY173: 4 | AZ173: 0 | BA173: 4 | BB173: 0 | BC173: 3 | BP173: 41396 | BQ173: 1 | BR173: 95001 | BS173: 0
C174: 5318 | D174: GUARNE | E174: 6 | F174: 13 | G174: Natural | H174: 5 | I174: ANTIOQUIA | J174: Aprobado con subsidio | K174: PEQUEÑA | L174: 2221 | M174: INDUSTRIAS MANUFACTURERAS | N174: C | O174: Fabricación de productos de plástico | P174: Fabricación de productos de caucho y de plástico | Q174: 4 | R174: 2 | S174: 0 | T174: 2 | U174: 4 | V174: 0 | AH174: 0 | AI174: 0 | AJ174: 11001 | AK174: BOGOTÁ, D.C. | AL174: 0 | AM174: 0 | AN174: Natural | AO174: 11 | AP174: BOGOTÁ, D.C. | AQ174: 0 | AR174: MICRO | AS174: 1081 | AT174: INDUSTRIAS MANUFACTURERAS | AU174: C | AV174: Elaboración de otros productos alimenticios | AW174: Elaboración de productos alimenticios | AX174: 0 | AY174: 0 | AZ174: 0 | BA174: 0 | BB174: 0 | BC174: 0 | BP174: 5313 | BQ174: 1 | BR174: 19698 | BS174: 0
C175: 76001 | D175: CALI | E175: 1 | F175: 1 | G175: Natural | H175: 76 | I175: VALLE DEL CAUCA | J175: Aprobado con subsidio | K175: PEQUEÑA | L175: 1313 | M175: INDUSTRIAS MANUFACTURERAS | N175: C | O175: Preparación, hilatura, tejeduría y acabado de productos textiles | P175: Fabricación de productos textiles | Q175: 1 | R175: 0 | S175: 0 | T175: 1 | U175: 0 | V175: 0 | AH175: 0 | AI175: 0 | AJ175: 11001 | AK175: BOGOTÁ, D.C. | AL175: 0 | AM175: 0 | AN175: Natural | AO175: 11 | AP175: BOGOTÁ, D.C. | AQ175: 0 | AR175: PEQUEÑA | AS175: 1410 | AT175: INDUSTRIAS MANUFACTURERAS | AU175: C | AV175: Confección de prendas de vestir, excepto prendas de piel | AW175: Confección de prendas de vestir | AX175: 0 | AY175: 0 | AZ175: 0 | BA175: 0 | BB175: 0 | BC175: 0 | BP175: 50287 | BQ175: 1 | BR175: 15087 | BS175: 0
C176: 41001 | D176: NEIVA | E176: 0 | F176: 0 | G176: Natural | H176: 41 | I176: HUILA | J176: 0 | K176: PEQUEÑA | L176: 6621 | M176: ACTIVIDADES FINANCIERAS Y DE SEGUROS | N176: K | O176: Actividades de servicios auxiliares de los servicios de seguros y pensiones | P176: Actividades de servicios auxiliares de los servicios de seguros y pensiones | Q176: 0 | R176: 0 | S176: 0 | T176: 0 | U176: 0 | V176: 0 | AH176: 0 | AI176: 0 | AJ176: 5088 | AK176: BELLO | AL176: 0 | AM176: 0 | AN176: Natural | AO176: 5 | AP176: ANTIOQUIA | AQ176: 0 | AR176: MICRO | AS176: 3312 | AT176: INDUSTRIAS MANUFACTURERAS | AU176: C | AV176: Mantenimiento y reparación especializado de productos elaborados en metal y de maquinaria y equipo | AW176: Instalación, mantenimiento y reparación especializado de maquinaria y equipo | AX176: 0 | AY176: 0 | AZ176: 0 | BA176: 0 | BB176: 0 | BC176: 0 | BP176: 81065 | BQ176: 0 | BR176: 76100 | BS176: 0
C177: 73001 | D177: IBAGUÉ | E177: 9 | F177: 1 | G177: Natural | H177: 73 | I177: TOLIMA | J177: Aprobado con subsidio | K177: MICRO | L177: 4729 | M177: COMERCIO AL POR MAYOR Y AL POR MENOR; REPARACIÓN DE VEHÍCULOS AUTOMOTORES Y MOTOCICLETAS | N177: G | O177: Comercio al por menor de alimentos (víveres en general), bebidas y tabaco, en establecimientos especializados | P177: Comercio al por menor de alimentos (víveres en general), bebidas y tabaco, en establecimientos especializados | Q177: 9 | R177: 0 | S177: 0 | T177: 6 | U177: 3 | V177: 0 | AH177: 0 | AI177: 0 | AJ177: 11001 | AK177: BOGOTÁ, D.C. | AL177: 3 | AM177: 0 | AN177: Natural | AO177: 11 | AP177: BOGOTÁ, D.C. | AQ177: Aprobado con subsidio | AR177: MICRO | AS177: 1410 | AT177: INDUSTRIAS MANUFACTURERAS | AU177: C | AV177: Confección de prendas de vestir, excepto prendas de piel | AW177: Confección de prendas de vestir | AX177: 2 | AY177: 1 | AZ177: 0 | BA177: 2 | BB177: 1 | BC177: 0 | BP177: 25438 | BQ177: 1 | BR177: 54498 | BS177: 0
C178: 41001 | D178: NEIVA | E178: 2 | F178: 3 | G178: Natural | H178: 41 | I178: HUILA | J178: Aprobado con subsidio | K178: MICRO | L178: 1081 | M178: INDUSTRIAS MANUFACTURERAS | N178: C | O178: Elaboración de otros productos alimenticios | P178: Elaboración de productos alimenticios | Q178: 1 | R178: 1 | S178: 0 | T178: 2 | U178: 0 | V178: 0 | AH178: 0 | AI178: 0 | AJ178: 11001 | AK178: BOGOTÁ, D.C. | AL178: 1 | AM178: 1 | AN178: Natural | AO178: 11 | AP178: BOGOTÁ, D.C. | AQ178: Aprobado con subsidio | AR178: MICRO | AS178: 1089 | AT178: INDUSTRIAS MANUFACTURERAS | AU178: C | AV178: Elaboración de otros productos alimenticios | AW178: Elaboración de productos alimenticios | AX178: 0 | AY178: 1 | AZ178: 0 | BA178: 1 | BB178: 0 | BC178: 0 | BP178: 5190 | BQ178: 1 | BR178: 23162 | BS178: 0
C179: 41001 | D179: NEIVA | E179: 1 | F179: 1 | G179: Natural | H179: 41 | I179: HUILA | J179: Aprobado con subsidio | K179: MICRO | L179: 4653 | M179: COMERCIO AL POR MAYOR Y AL POR MENOR; REPARACIÓN DE VEHÍCULOS AUTOMOTORES Y MOTOCICLETAS | N179: G | O179: Comercio al por mayor de maquinaria y equipo | P179: Comercio al por mayor de maquinaria y equipo | Q179: 1 | R179: 0 | S179: 0 | T179: 1 | U179: 0 | V179: 0 | AH179: 0 | AI179: 0 | AJ179: 5001 | AK179: MEDELLÍN | AL179: 2 | AM179: 0 | AN179: Natural | AO179: 5 | AP179: ANTIOQUIA | AQ179: Aprobado con subsidio | AR179: MICRO | AS179: 1410 | AT179: INDUSTRIAS MANUFACTURERAS | AU179: C | AV179: Confección de prendas de vestir, excepto prendas de piel | AW179: Confección de prendas de vestir | AX179: 2 | AY179: 0 | AZ179: 0 | BA179: 1 | BB179: 1 | BC179: 0 | BP179: 15835 | BQ179: 1 | BR179: 23417 | BS179: 0
C180: 41298 | D180: GARZÓN | E180: 0 | F180: 0 | G180: Natural | H180: 41 | I180: HUILA | J180: 0 | K180: MICRO | L180: 8530 | M180: EDUCACIÓN | N180: P | O180: Establecimientos que combinan diferentes niveles de educación | P180: Establecimientos que combinan diferentes niveles de educación | Q180: 0 | R180: 0 | S180: 0 | T180: 0 | U180: 0 | V180: 0 | AH180: 0 | AI180: 0 | AJ180: 41001 | AK180: NEIVA | AL180: 0 | AM180: 0 | AN180: Natural | AO180: 41 | AP180: HUILA | AQ180: 0 | AR180: MICRO | AS180: 1081 | AT180: INDUSTRIAS MANUFACTURERAS | AU180: C | AV180: Elaboración de otros productos alimenticios | AW180: Elaboración de productos alimenticios | AX180: 0 | AY180: 0 | AZ180: 0 | BA180: 0 | BB180: 0 | BC180: 0 | BP180: 5656 | BQ180: 0 | BR180: 76275 | BS180: 0
C181: 41001 | D181: NEIVA | E181: 0 | F181: 0 | G181: Natural | H181: 41 | I181: HUILA | J181: 0 | K181: PEQUEÑA | L181: 8622 | M181: ACTIVIDADES DE ATENCIÓN DE LA SALUD HUMANA Y DE ASISTENCIA SOCIAL | N181: Q | O181: Actividades de práctica médica y odontológica, sin internación | P181: Actividades de práctica médica y odontológica, sin internación | Q181: 0 | R181: 0 | S181: 0 | T181: 0 | U181: 0 | V181: 0 | AH181: 0 | AI181: 0 | AJ181: 47001 | AK181: SANTA MARTA | AL181: 0 | AM181: 0 | AN181: Natural | AO181: 47 | AP181: MAGDALENA | AQ181: 0 | AR181: MICRO | AS181: 1104 | AT181: INDUSTRIAS MANUFACTURERAS | AU181: C | AV181: Elaboración de bebidas | AW181: Elaboración de bebidas | AX181: 0 | AY181: 0 | AZ181: 0 | BA181: 0 | BB181: 0 | BC181: 0 | BP181: 76126 | BQ181: 1 | BR181: 15542 | BS181: 0
C182: 41298 | D182: GARZÓN | E182: 1 | F182: 1 | G182: Natural | H182: 41 | I182: HUILA | J182: Aprobado con subsidio | K182: MICRO | L182: 4923 | M182: TRANSPORTE Y ALMACENAMIENTO | N182: H | O182: Transporte terrestre publico automotor | P182: Transporte terrestre publico automotor | Q182: 0 | R182: 1 | S182: 0 | T182: 1 | U182: 0 | V182: 0 | AH182: 0 | AI182: 0 | AJ182: 52835 | AK182: SAN ANDRES DE TUMACO | AL182: 0 | AM182: 0 | AN182: Natural | AO182: 52 | AP182: NARIÑO | AQ182: 0 | AR182: PEQUEÑA | AS182: 1081 | AT182: INDUSTRIAS MANUFACTURERAS | AU182: C | AV182: Elaboración de otros productos alimenticios | AW182: Elaboración de productos alimenticios | AX182: 0 | AY182: 0 | AZ182: 0 | BA182: 0 | BB182: 0 | BC182: 0 | BP182: 70823 | BQ182: 1 | BR182: 15131 | BS182: 0
C183: 41001 | D183: NEIVA | E183: 4 | F183: 9 | G183: Natural | H183: 41 | I183: HUILA | J183: Aprobado con subsidio | K183: MICRO | L183: 8230 | M183: ACTIVIDADES DE SERVICIOS ADMINISTRATIVOS Y DE APOYO | N183: N | O183: Organización de convenciones y eventos comerciales | P183: Organización de convenciones y eventos comerciales | Q183: 1 | R183: 3 | S183: 0 | T183: 1 | U183: 1 | V183: 2 | AH183: 0 | AI183: 0 | AJ183: 54001 | AK183: CÚCUTA | AL183: 0 | AM183: 0 | AN183: Natural | AO183: 54 | AP183: NORTE DE SANTANDER | AQ183: 0 | AR183: PEQUEÑA | AS183: 1011 | AT183: INDUSTRIAS MANUFACTURERAS | AU183: C | AV183: Procesamiento y conservación de carne, pescado, crustáceos y moluscos | AW183: Elaboración de productos alimenticios | AX183: 0 | AY183: 0 | AZ183: 0 | BA183: 0 | BB183: 0 | BC183: 0 | BP183: 52260 | BQ183: 1 | BR183: 25183 | BS183: 0
C184: 18753 | D184: SAN VICENTE DEL CAGUÁN | E184: 0 | F184: 0 | G184: Natural | H184: 18 | I184: CAQUETÁ | J184: 0 | K184: MICRO | L184: 1040 | M184: INDUSTRIAS MANUFACTURERAS | N184: C | O184: Elaboración de productos lácteos | P184: Elaboración de productos alimenticios | Q184: 0 | R184: 0 | S184: 0 | T184: 0 | U184: 0 | V184: 0 | AH184: 0 | AI184: 0 | AJ184: 54001 | AK184: CÚCUTA | AL184: 0 | AM184: 0 | AN184: Natural | AO184: 54 | AP184: NORTE DE SANTANDER | AQ184: 0 | AR184: MICRO | AS184: 2599 | AT184: INDUSTRIAS MANUFACTURERAS | AU184: C | AV184: Fabricación de otros productos elaborados de metal y actividades de servicios relacionadas con el trabajo de metales | AW184: Fabricación de productos elaborados de metal, excepto maquinaria y equipo | AX184: 0 | AY184: 0 | AZ184: 0 | BA184: 0 | BB184: 0 | BC184: 0 | BP184: 5120 | BQ184: 1 | BR184: 41524 | BS184: 0
C185: 73671 | D185: SALDAÑA | E185: 0 | F185: 0 | G185: Natural | H185: 73 | I185: TOLIMA | J185: 0 | K185: MICRO | L185: 4923 | M185: TRANSPORTE Y ALMACENAMIENTO | N185: H | O185: Transporte terrestre publico automotor | P185: Transporte terrestre publico automotor | Q185: 0 | R185: 0 | S185: 0 | T185: 0 | U185: 0 | V185: 0 | AH185: 0 | AI185: 0 | AJ185: 68001 | AK185: BUCARAMANGA | AL185: 0 | AM185: 0 | AN185: Natural | AO185: 68 | AP185: SANTANDER | AQ185: 0 | AR185: MICRO | AS185: 2410 | AT185: INDUSTRIAS MANUFACTURERAS | AU185: C | AV185: Industrias básicas de hierro y de acero | AW185: Fabricación de productos metalúrgicos básicos | AX185: 0 | AY185: 0 | AZ185: 0 | BA185: 0 | BB185: 0 | BC185: 0 | BP185: 68079 | BQ185: 1 | BR185: 17616 | BS185: 0
C186: 95001 | D186: SAN JOSÉ DEL GUAVIARE | E186: 0 | F186: 0 | G186: Natural | H186: 95 | I186: GUAVIARE | J186: 0 | K186: MICRO | L186: 1040 | M186: INDUSTRIAS MANUFACTURERAS | N186: C | O186: Elaboración de productos lácteos | P186: Elaboración de productos alimenticios | Q186: 0 | R186: 0 | S186: 0 | T186: 0 | U186: 0 | V186: 0 | AH186: 0 | AI186: 0 | AJ186: 68001 | AK186: BUCARAMANGA | AL186: 1 | AM186: 16 | AN186: Natural | AO186: 68 | AP186: SANTANDER | AQ186: Aprobado con subsidio | AR186: PEQUEÑA | AS186: 1410 | AT186: INDUSTRIAS MANUFACTURERAS | AU186: C | AV186: Confección de prendas de vestir, excepto prendas de piel | AW186: Confección de prendas de vestir | AX186: 1 | AY186: 0 | AZ186: 0 | BA186: 1 | BB186: 0 | BC186: 0 | BP186: 73555 | BQ186: 1 | BR186: 20045 | BS186: 0
C187: 13001 | D187: CARTAGENA | E187: 1 | F187: 0 | G187: Natural | H187: 13 | I187: BOLÍVAR | J187: Aprobado con subsidio | K187: MICRO | L187: 5310 | M187: TRANSPORTE Y ALMACENAMIENTO | N187: H | O187: Actividades postales nacionales | P187: Actividades postales nacionales | Q187: 1 | R187: 0 | S187: 0 | T187: 0 | U187: 1 | V187: 0 | AH187: 0 | AI187: 0 | AJ187: 68001 | AK187: BUCARAMANGA | AL187: 1 | AM187: 1 | AN187: Natural | AO187: 68 | AP187: SANTANDER | AQ187: Aprobado con subsidio | AR187: MICRO | AS187: 1410 | AT187: INDUSTRIAS MANUFACTURERAS | AU187: C | AV187: Confección de prendas de vestir, excepto prendas de piel | AW187: Confección de prendas de vestir | AX187: 0 | AY187: 1 | AZ187: 0 | BA187: 1 | BB187: 0 | BC187: 0 | BP187: 76869 | BQ187: 1 | BR187: 54810 | BS187: 0
C188: 5001 | D188: MEDELLÍN | E188: 1 | F188: 2 | G188: Natural | H188: 5 | I188: ANTIOQUIA | J188: Aprobado con subsidio | K188: MICRO | L188: 2511 | M188: INDUSTRIAS MANUFACTURERAS | N188: C | O188: Fabricación de productos metálicos para uso estructural, tanques, depósitos y generadores de vapor. | P188: Fabricación de productos elaborados de metal, excepto maquinaria y equipo | Q188: 0 | R188: 1 | S188: 0 | T188: 1 | U188: 0 | V188: 0 | AH188: 0 | AI188: 0 | AJ188: 68001 | AK188: BUCARAMANGA | AL188: 0 | AM188: 0 | AN188: Natural | AO188: 68 | AP188: SANTANDER | AQ188: 0 | AR188: MICRO | AS188: 3110 | AT188: INDUSTRIAS MANUFACTURERAS | AU188: C | AV188: Fabricación de muebles | AW188: Fabricación de muebles, colchones y somieres | AX188: 0 | AY188: 0 | AZ188: 0 | BA188: 0 | BB188: 0 | BC188: 0 | BP188: 5890 | BQ188: 1 | BR188: 25295 | BS188: 0
C189: 5360 | D189: ITAGUI | E189: 0 | F189: 0 | G189: Natural | H189: 5 | I189: ANTIOQUIA | J189: 0 | K189: MICRO | L189: 4759 | M189: COMERCIO AL POR MAYOR Y AL POR MENOR; REPARACIÓN DE VEHÍCULOS AUTOMOTORES Y MOTOCICLETAS | N189: G | O189: Comercio al por menor de otros enseres domésticos en establecimientos especializados | P189: Comercio al por menor de otros enseres domésticos en establecimientos especializados | Q189: 0 | R189: 0 | S189: 0 | T189: 0 | U189: 0 | V189: 0 | AH189: 0 | AI189: 0 | AJ189: 68001 | AK189: BUCARAMANGA | AL189: 0 | AM189: 0 | AN189: Natural | AO189: 68 | AP189: SANTANDER | AQ189: 0 | AR189: PEQUEÑA | AS189: 2100 | AT189: INDUSTRIAS MANUFACTURERAS | AU189: C | AV189: Fabricación de productos farmacéuticos, sustancias químicas medicinales y productos botánicos de uso farmacéutico | AW189: Fabricación de productos farmacéuticos, sustancias químicas medicinales y productos botánicos de uso farmacéutico | AX189: 0 | AY189: 0 | AZ189: 0 | BA189: 0 | BB189: 0 | BC189: 0 | BP189: 15189 | BQ189: 1 | BR189: 81065 | BS189: 0
C190: 5001 | D190: MEDELLÍN | E190: 0 | F190: 0 | G190: Natural | H190: 5 | I190: ANTIOQUIA | J190: 0 | K190: MICRO | L190: 6920 | M190: ACTIVIDADES PROFESIONALES, CIENTÍFICAS Y TÉCNICAS | N190: M | O190: Actividades de contabilidad, teneduría de libros, auditoria financiera y asesoría tributaria | P190: Actividades de contabilidad, teneduría de libros, auditoria financiera y asesoría tributaria | Q190: 0 | R190: 0 | S190: 0 | T190: 0 | U190: 0 | V190: 0 | AH190: 0 | AI190: 0 | AJ190: 68001 | AK190: BUCARAMANGA | AL190: 1 | AM190: 0 | AN190: Natural | AO190: 68 | AP190: SANTANDER | AQ190: Aprobado con subsidio | AR190: MICRO | AS190: 1020 | AT190: INDUSTRIAS MANUFACTURERAS | AU190: C | AV190: Procesamiento y conservación de frutas, legumbres, hortalizas y tubérculos | AW190: Elaboración de productos alimenticios | AX190: 1 | AY190: 0 | AZ190: 0 | BA190: 1 | BB190: 0 | BC190: 0 | BP190: 41016 | BQ190: 1 | BR190: 5656 | BS190: 0
C191: 5631 | D191: SABANETA | E191: 2 | F191: 0 | G191: Natural | H191: 5 | I191: ANTIOQUIA | J191: Aprobado con subsidio | K191: MICRO | L191: 5630 | M191: ALOJAMIENTO Y SERVICIOS DE COMIDA | N191: I | O191: Expendio de bebidas alcohólicas para el consumo dentro del establecimiento | P191: Expendio de bebidas alcohólicas para el consumo dentro del establecimiento | Q191: 1 | R191: 1 | S191: 0 | T191: 1 | U191: 1 | V191: 0 | AH191: 0 | AI191: 0 | AJ191: 76520 | AK191: PALMIRA | AL191: 0 | AM191: 0 | AN191: Natural | AO191: 76 | AP191: VALLE DEL CAUCA | AQ191: 0 | AR191: MICRO | AS191: 1410 | AT191: INDUSTRIAS MANUFACTURERAS | AU191: C | AV191: Confección de prendas de vestir, excepto prendas de piel | AW191: Confección de prendas de vestir | AX191: 0 | AY191: 0 | AZ191: 0 | BA191: 0 | BB191: 0 | BC191: 0 | BP191: 0 | BQ191: 0 | BR191: 0 | BS191: 0
C192: 5001 | D192: MEDELLÍN | E192: 1 | F192: 1 | G192: Natural | H192: 5 | I192: ANTIOQUIA | J192: Aprobado con subsidio | K192: MICRO | L192: 7420 | M192: ACTIVIDADES PROFESIONALES, CIENTÍFICAS Y TÉCNICAS | N192: M | O192: Actividades de fotografía | P192: Actividades de fotografía | Q192: 1 | R192: 0 | S192: 0 | T192: 1 | U192: 0 | V192: 0 | AH192: 0 | AI192: 0 | AJ192: 76001 | AK192: CALI | AL192: 0 | AM192: 0 | AN192: Natural | AO192: 76 | AP192: VALLE DEL CAUCA | AQ192: 0 | AR192: PEQUEÑA | AS192: 1811 | AT192: INDUSTRIAS MANUFACTURERAS | AU192: C | AV192: Actividades de impresión y actividades de servicios relacionados con la impresión | AW192: Actividades de impresión y de producción de copias a partir de grabaciones originales | AX192: 0 | AY192: 0 | AZ192: 0 | BA192: 0 | BB192: 0 | BC192: 0 | BQ192: 0 | BR192: 0 | BS192: 0
C193: 5001 | D193: MEDELLÍN | E193: 4 | F193: 0 | G193: Natural | H193: 5 | I193: ANTIOQUIA | J193: Aprobado con subsidio | K193: MICRO | L193: 5612 | M193: ALOJAMIENTO Y SERVICIOS DE COMIDA | N193: I | O193: Actividades de restaurantes, cafeterías y servicio móvil de comidas | P193: Actividades de restaurantes, cafeterías y servicio móvil de comidas | Q193: 2 | R193: 2 | S193: 0 | T193: 1 | U193: 2 | V193: 1 | AH193: 0 | AI193: 0 | AJ193: 63001 | AK193: ARMENIA | AL193: 5 | AM193: 1 | AN193: Natural | AO193: 63 | AP193: QUINDÍO | AQ193: Aprobado con subsidio | AR193: PEQUEÑA | AS193: 2229 | AT193: INDUSTRIAS MANUFACTURERAS | AU193: C | AV193: Fabricación de productos de plástico | AW193: Fabricación de productos de caucho y de plástico | AX193: 2 | AY193: 3 | AZ193: 0 | BA193: 4 | BB193: 1 | BC193: 0 | BQ193: 0 | BR193: 0 | BS193: 0
C194: 5686 | D194: SANTA ROSA DE OSOS | E194: 1 | F194: 1 | G194: Natural | H194: 5 | I194: ANTIOQUIA | J194: Aprobado con subsidio | K194: MICRO | L194: 141 | M194: AGRICULTURA, GANADERÍA, CAZA, SILVICULTURA Y PESCA | N194: A | O194: Ganadería | P194: Ganadería | Q194: 0 | R194: 1 | S194: 0 | T194: 0 | U194: 0 | V194: 1 | AH194: 0 | AI194: 0 | AJ194: 5001 | AK194: MEDELLÍN | AL194: 0 | AM194: 0 | AN194: Natural | AO194: 5 | AP194: ANTIOQUIA | AQ194: 0 | AR194: MICRO | AS194: 1081 | AT194: INDUSTRIAS MANUFACTURERAS | AU194: C | AV194: Elaboración de otros productos alimenticios | AW194: Elaboración de productos alimenticios | AX194: 0 | AY194: 0 | AZ194: 0 | BA194: 0 | BB194: 0 | BC194: 0 | BQ194: =COUNTIFS($AQ$2:$AQ$399999,"Aprobado con subsidio",$AJ$2:$AJ$399999,BP194) -> 0 | BR194: 0 | BS194: 0
C195: 5001 | D195: MEDELLÍN | E195: 3 | F195: 0 | G195: Natural | H195: 5 | I195: ANTIOQUIA | J195: Aprobado con subsidio | K195: MICRO | L195: 4741 | M195: COMERCIO AL POR MAYOR Y AL POR MENOR; REPARACIÓN DE VEHÍCULOS AUTOMOTORES Y MOTOCICLETAS | N195: G | O195: Comercio al por menor de equipos de informática y de comunicaciones, en establecimientos especializados | P195: Comercio al por menor de equipos de informática y de comunicaciones, en establecimientos especializados | Q195: 1 | R195: 2 | S195: 0 | T195: 2 | U195: 0 | V195: 1 | AH195: 0 | AI195: 0 | AJ195: 5079 | AK195: BARBOSA | AL195: 5 | AM195: 3 | AN195: Natural | AO195: 5 | AP195: ANTIOQUIA | AQ195: Aprobado con subsidio | AR195: MICRO | AS195: 3210 | AT195: INDUSTRIAS MANUFACTURERAS | AU195: C | AV195: Fabricación de joyas, bisutería y artículos conexos | AW195: Otras industrias manufactureras | AX195: 3 | AY195: 2 | AZ195: 0 | BA195: 1 | BB195: 2 | BC195: 2 | BQ195: 0 | BR195: 0 | BS195: 0
C196: 5001 | D196: MEDELLÍN | E196: 0 | F196: 0 | G196: Natural | H196: 5 | I196: ANTIOQUIA | J196: 0 | K196: MICRO | L196: 9609 | M196: OTRAS ACTIVIDADES DE SERVICIOS | N196: S | O196: Otras actividades de servicios personales | P196: Otras actividades de servicios personales | Q196: 0 | R196: 0 | S196: 0 | T196: 0 | U196: 0 | V196: 0 | AH196: 0 | AI196: 0 | AJ196: 5664 | AK196: SAN PEDRO DE LOS MILAGROS | AL196: 15 | AM196: 53 | AN196: Natural | AO196: 5 | AP196: ANTIOQUIA | AQ196: Aprobado con subsidio | AR196: MEDIANA | AS196: 1610 | AT196: INDUSTRIAS MANUFACTURERAS | AU196: C | AV196: Aserrado, acepillado e impregnación de la madera | AW196: Transformación de la madera y fabricación de productos de madera y de corcho, excepto muebles; fabricación de artículos de cestería y espartería | AX196: 1 | AY196: 14 | AZ196: 0 | BA196: 13 | BB196: 0 | BC196: 2 | BQ196: 0 | BR196: 0 | BS196: 0
C197: 5001 | D197: MEDELLÍN | E197: 1 | F197: 6 | G197: Natural | H197: 5 | I197: ANTIOQUIA | J197: Aprobado con subsidio | K197: PEQUEÑA | L197: 1081 | M197: INDUSTRIAS MANUFACTURERAS | N197: C | O197: Elaboración de otros productos alimenticios | P197: Elaboración de productos alimenticios | Q197: 0 | R197: 1 | S197: 0 | T197: 1 | U197: 0 | V197: 0 | AH197: 0 | AI197: 0 | AJ197: 5360 | AK197: ITAGUI | AL197: 0 | AM197: 0 | AN197: Natural | AO197: 5 | AP197: ANTIOQUIA | AQ197: 0 | AR197: MICRO | AS197: 1312 | AT197: INDUSTRIAS MANUFACTURERAS | AU197: C | AV197: Preparación, hilatura, tejeduría y acabado de productos textiles | AW197: Fabricación de productos textiles | AX197: 0 | AY197: 0 | AZ197: 0 | BA197: 0 | BB197: 0 | BC197: 0 | BQ197: 0 | BR197: 0 | BS197: 0
C198: 23001 | D198: MONTERÍA | E198: 0 | F198: 0 | G198: Natural | H198: 23 | I198: CÓRDOBA | J198: 0 | K198: PEQUEÑA | L198: 5611 | M198: ALOJAMIENTO Y SERVICIOS DE COMIDA | N198: I | O198: Actividades de restaurantes, cafeterías y servicio móvil de comidas | P198: Actividades de restaurantes, cafeterías y servicio móvil de comidas | Q198: 0 | R198: 0 | S198: 0 | T198: 0 | U198: 0 | V198: 0 | AH198: 0 | AI198: 0 | AJ198: 5001 | AK198: MEDELLÍN | AL198: 2 | AM198: 9 | AN198: Natural | AO198: 5 | AP198: ANTIOQUIA | AQ198: Aprobado con subsidio | AR198: PEQUEÑA | AS198: 1081 | AT198: INDUSTRIAS MANUFACTURERAS | AU198: C | AV198: Elaboración de otros productos alimenticios | AW198: Elaboración de productos alimenticios | AX198: 0 | AY198: 2 | AZ198: 0 | BA198: 2 | BB198: 0 | BC198: 0 | BQ198: 0 | BR198: 0 | BS198: 0
C199: 5001 | D199: MEDELLÍN | E199: 0 | F199: 0 | G199: Natural | H199: 5 | I199: ANTIOQUIA | J199: 0 | K199: MICRO | L199: 5611 | M199: ALOJAMIENTO Y SERVICIOS DE COMIDA | N199: I | O199: Actividades de restaurantes, cafeterías y servicio móvil de comidas | P199: Actividades de restaurantes, cafeterías y servicio móvil de comidas | Q199: 0 | R199: 0 | S199: 0 | T199: 0 | U199: 0 | V199: 0 | AH199: 0 | AI199: 0 | AJ199: 66170 | AK199: DOSQUEBRADAS | AL199: 0 | AM199: 0 | AN199: Natural | AO199: 66 | AP199: RISARALDA | AQ199: 0 | AR199: PEQUEÑA | AS199: 1702 | AT199: INDUSTRIAS MANUFACTURERAS | AU199: C | AV199: Fabricación de papel, cartón y productos de papel y cartón | AW199: Fabricación de papel, cartón y productos de papel y cartón | AX199: 0 | AY199: 0 | AZ199: 0 | BA199: 0 | BB199: 0 | BC199: 0 | BQ199: 0 | BR199: 0 | BS199: 0
C200: 5266 | D200: ENVIGADO | E200: 3 | F200: 1 | G200: Natural | H200: 5 | I200: ANTIOQUIA | J200: Aprobado con subsidio | K200: MICRO | L200: 4620 | M200: COMERCIO AL POR MAYOR Y AL POR MENOR; REPARACIÓN DE VEHÍCULOS AUTOMOTORES Y MOTOCICLETAS | N200: G | O200: Comercio al por mayor de materias primas agropecuarias; animales vivos | P200: Comercio al por mayor de materias primas agropecuarias; animales vivos | Q200: 1 | R200: 2 | S200: 0 | T200: 0 | U200: 1 | V200: 2 | AH200: 0 | AI200: 0 | AJ200: 5001 | AK200: MEDELLÍN | AL200: 0 | AM200: 0 | AN200: Natural | AO200: 5 | AP200: ANTIOQUIA | AQ200: 0 | AR200: MICRO | AS200: 2511 | AT200: INDUSTRIAS MANUFACTURERAS | AU200: C | AV200: Fabricación de productos metálicos para uso estructural, tanques, depósitos y generadores de vapor. | AW200: Fabricación de productos elaborados de metal, excepto maquinaria y equipo | AX200: 0 | AY200: 0 | AZ200: 0 | BA200: 0 | BB200: 0 | BC200: 0 | BQ200: 0 | BR200: 0 | BS200: 0
... 925 more rows

Sheet Hoja4 (hidden)
A1: Descripción Sección Rev. 4 | B1: Sección Rev. 4 | C1: Nombre | D1: Seccion | E1: Total | G1: Nombre | H1: Seccion | I1: Total empleadores | J1: Empleadores % | K1: Total empleados | L1: Empleados % | M1: Monto | N1: Hombres | O1: Mujeres | P1: no disponible | Q1: Actividad | R1: Indice | T1: cod_dpto | U1: Departamento | V1: % empleadores general | W1: ="% empleadores sección "&Visor!$N$4 -> % empleadores sección C
A2: AGRICULTURA, GANADERÍA, CAZA, SILVICULTURA Y PESCA | B2: A | C2: Agricultura, ganadería, caza, silvicultura y pesca | D2: =B2 -> A | E2: =COUNTIFS(insumos2!$N$2:$N$399999,Hoja4!D2,insumos2!$J$2:$J$399999,"Aprobado con subsidio") -> 375 | G2: =MID(VLOOKUP(H2,$B$2:$C$23,2,FALSE),1,36) -> Comercio al por mayor y al por menor | H2: =_xlfn._xlws.SORT($D$2:$E$23,2,-1) -> G | I2: 3325 | J2: =I2/$I$24 -> 0.224859674 | K2: =SUMIFS(insumos2!$E$2:$E$399999,insumos2!$J$2:$J$399999,"Aprobado con subsidio",insumos2!$N$2:$N$399999,Hoja4!H2) -> 32314 | L2: =K2/$K$24 -> 0.1003088671 | M2: =SUMIFS(insumos1!$K$2:$K$372158,insumos1!$H$2:$H$372158,Hoja4!H2) -> 15294188595 | N2: =SUMIFS(insumos2!$R$2:$R$399999,insumos2!$J$2:$J$399999,"Aprobado con subsidio",insumos2!$N$2:$N$399999,Hoja4!H2) -> 13141 | O2: =SUMIFS(insumos2!$Q$2:$Q$399999,insumos2!$J$2:$J$399999,"Aprobado con subsidio",insumos2!$N$2:$N$399999,Hoja4!H2) -> 19173 | P2: =SUMIFS(insumos2!$S$2:$S$399999,insumos2!$J$2:$J$399999,"Aprobado con subsidio",insumos2!$N$2:$N$399999,Hoja4!H2) -> 0 | Q2: =G2 -> Comercio al por mayor y al por menor | R2: =O2/N2*100 -> 145.9021383 | T2: 11 | U2: BOGOTÁ, D.C. | V2: =(VLOOKUP(T2,_xlfn.ANCHORARRAY(insumos2!$Z$2),2,0)/SUM(insumos2!$AA$2:$AA$34)) -> 0.3425982282 | W2: =VLOOKUP(T2,insumos2!$BF$2:$BG$34,2,FALSE)/insumos2!$BM$30 -> 0.2946817786
A3: EXPLOTACIÓN DE MINAS Y CANTERAS | B3: B | C3: Explotación de minas y canteras | D3: =B3 -> B | E3: =COUNTIFS(insumos2!$N$2:$N$399999,Hoja4!D3,insumos2!$J$2:$J$399999,"Aprobado con subsidio") -> 68 | G3: =MID(VLOOKUP(H3,$B$2:$C$23,2,FALSE),1,30) -> Industrias manufactureras | H3: C | I3: 2294 | J3: 0.1551362683 | K3: =SUMIFS(insumos2!$E$2:$E$399999,insumos2!$J$2:$J$399999,"Aprobado con subsidio",insumos2!$N$2:$N$399999,Hoja4!H3) -> 35026 | L3: =K3/$K$24 -> 0.1087274364 | M3: =SUMIFS(insumos1!$K$2:$K$372158,insumos1!$H$2:$H$372158,Hoja4!H3) -> 17121967800 | N3: =SUMIFS(insumos2!$R$2:$R$399999,insumos2!$J$2:$J$399999,"Aprobado con subsidio",insumos2!$N$2:$N$399999,Hoja4!H3) -> 15879 | O3: =SUMIFS(insumos2!$Q$2:$Q$399999,insumos2!$J$2:$J$399999,"Aprobado con subsidio",insumos2!$N$2:$N$399999,Hoja4!H3) -> 19147 | P3: =SUMIFS(insumos2!$S$2:$S$399999,insumos2!$J$2:$J$399999,"Aprobado con subsidio",insumos2!$N$2:$N$399999,Hoja4!H3) -> 0 | Q3: =G3 -> Industrias manufactureras | R3: 120.5806411 | T3: 5 | U3: ANTIOQUIA | V3: =(VLOOKUP(T3,_xlfn.ANCHORARRAY(insumos2!$Z$2),2,0)/SUM(insumos2!$AA$2:$AA$34)) -> 0.2072766619 | W3: =VLOOKUP(T3,insumos2!$BF$2:$BG$34,2,FALSE)/insumos2!$BM$30 -> 0.281168265
A4: INDUSTRIAS MANUFACTURERAS | B4: C | C4: Industrias manufactureras | D4: C | E4: =COUNTIFS(insumos2!$N$2:$N$399999,Hoja4!D4,insumos2!$J$2:$J$399999,"Aprobado con subsidio") -> 2294 | G4: =MID(VLOOKUP(H4,$B$2:$C$23,2,FALSE),1,85) -> Actividades profesionales, científicas y técnicas | H4: M | I4: 1799 | J4: 0.1216609184 | K4: =SUMIFS(insumos2!$E$2:$E$399999,insumos2!$J$2:$J$399999,"Aprobado con subsidio",insumos2!$N$2:$N$399999,Hoja4!H4) -> 15052 | L4: 0.04672430117 | M4: =SUMIFS(insumos1!$K$2:$K$372158,insumos1!$H$2:$H$372158,Hoja4!H4) -> 7183416224 | N4: =SUMIFS(insumos2!$R$2:$R$399999,insumos2!$J$2:$J$399999,"Aprobado con subsidio",insumos2!$N$2:$N$399999,Hoja4!H4) -> 7853 | O4: =SUMIFS(insumos2!$Q$2:$Q$399999,insumos2!$J$2:$J$399999,"Aprobado con subsidio",insumos2!$N$2:$N$399999,Hoja4!H4) -> 7199 | P4: =SUMIFS(insumos2!$S$2:$S$399999,insumos2!$J$2:$J$399999,"Aprobado con subsidio",insumos2!$N$2:$N$399999,Hoja4!H4) -> 0 | Q4: Actividades profesionales, científicas y técnicas | R4: 91.67197249 | T4: 76 | U4: VALLE DEL CAUCA | V4: =(VLOOKUP(T4,_xlfn.ANCHORARRAY(insumos2!$Z$2),2,0)/SUM(insumos2!$AA$2:$AA$34)) -> 0.09474538446 | W4: =VLOOKUP(T4,insumos2!$BF$2:$BG$34,2,FALSE)/insumos2!$BM$30 -> 0.10418483
A5: SUMINISTRO DE ELECTRICIDAD, GAS, VAPOR Y AIRE ACONDICIONADO | B5: D | C5: Suministro de electricidad, gas, vapor y aire acondicionado | D5: D | E5: =COUNTIFS(insumos2!$N$2:$N$399999,Hoja4!D5,insumos2!$J$2:$J$399999,"Aprobado con subsidio") -> 17 | G5: =MID(VLOOKUP(H5,$B$2:$C$23,2,FALSE),1,30) -> Construcción | H5: F | I5: 1351 | J5: 0.09136403598 | K5: =SUMIFS(insumos2!$E$2:$E$399999,insumos2!$J$2:$J$399999,"Aprobado con subsidio",insumos2!$N$2:$N$399999,Hoja4!H5) -> 31070 | L5: 0.09644725201 | M5: =SUMIFS(insumos1!$K$2:$K$372158,insumos1!$H$2:$H$372158,Hoja4!H5) -> 11651813179 | N5: =SUMIFS(insumos2!$R$2:$R$399999,insumos2!$J$2:$J$399999,"Aprobado con subsidio",insumos2!$N$2:$N$399999,Hoja4!H5) -> 25643 | O5: =SUMIFS(insumos2!$Q$2:$Q$399999,insumos2!$J$2:$J$399999,"Aprobado con subsidio",insumos2!$N$2:$N$399999,Hoja4!H5) -> 5427 | P5: =SUMIFS(insumos2!$S$2:$S$399999,insumos2!$J$2:$J$399999,"Aprobado con subsidio",insumos2!$N$2:$N$399999,Hoja4!H5) -> 0 | Q5: Construcción | R5: 21.1636704 | T5: 8 | U5: ATLÁNTICO | V5: =(VLOOKUP(T5,_xlfn.ANCHORARRAY(insumos2!$Z$2),2,0)/SUM(insumos2!$AA$2:$AA$34)) -> 0.03760059512 | W5: =VLOOKUP(T5,insumos2!$BF$2:$BG$34,2,FALSE)/insumos2!$BM$30 -> 0.03443766347
A6: DISTRIBUCIÓN DE AGUA; EVACUACIÓN Y TRATAMIENTO DE AGUAS RESIDUALES, GESTIÓN DE DESECHOS Y ACTIVIDADES DE SANEAMIENTO AMBIENTAL | B6: E | C6: Distribución de agua; evacuación y tratamiento de aguas residuales, gestión de desechos y actividades de saneamiento ambiental | D6: E | E6: =COUNTIFS(insumos2!$N$2:$N$399999,Hoja4!D6,insumos2!$J$2:$J$399999,"Aprobado con subsidio") -> 69 | G6: =MID(VLOOKUP(H6,$B$2:$C$23,2,FALSE),1,35) -> Actividades de servicios administra | H6: N | I6: 1175 | J6: 0.07946168932 | K6: =SUMIFS(insumos2!$E$2:$E$399999,insumos2!$J$2:$J$399999,"Aprobado con subsidio",insumos2!$N$2:$N$399999,Hoja4!H6) -> 116676 | L6: 0.3621847305 | M6: =SUMIFS(insumos1!$K$2:$K$372158,insumos1!$H$2:$H$372158,Hoja4!H6) -> 60296081068 | N6: =SUMIFS(insumos2!$R$2:$R$399999,insumos2!$J$2:$J$399999,"Aprobado con subsidio",insumos2!$N$2:$N$399999,Hoja4!H6) -> 37004 | O6: =SUMIFS(insumos2!$Q$2:$Q$399999,insumos2!$J$2:$J$399999,"Aprobado con subsidio",insumos2!$N$2:$N$399999,Hoja4!H6) -> 79672 | P6: =SUMIFS(insumos2!$S$2:$S$399999,insumos2!$J$2:$J$399999,"Aprobado con subsidio",insumos2!$N$2:$N$399999,Hoja4!H6) -> 0 | Q6: Actividades de servicios administra | R6: 215.3064534 | T6: 25 | U6: CUNDINAMARCA | V6: =(VLOOKUP(T6,_xlfn.ANCHORARRAY(insumos2!$Z$2),2,0)/SUM(insumos2!$AA$2:$AA$34)) -> 0.04706837087 | W6: =VLOOKUP(T6,insumos2!$BF$2:$BG$34,2,FALSE)/insumos2!$BM$30 -> 0.06713164778
A7: CONSTRUCCIÓN | B7: F | C7: Construcción | D7: F | E7: =COUNTIFS(insumos2!$N$2:$N$399999,Hoja4!D7,insumos2!$J$2:$J$399999,"Aprobado con subsidio") -> 1351 | G7: =MID(VLOOKUP(H7,$B$2:$C$23,2,FALSE),1,30) -> Alojamiento y servicios de com | H7: I | I7: 915 | J7: 0.06187867722 | K7: =SUMIFS(insumos2!$E$2:$E$399999,insumos2!$J$2:$J$399999,"Aprobado con subsidio",insumos2!$N$2:$N$399999,Hoja4!H7) -> 16361 | L7: 0.05078768877 | M7: =SUMIFS(insumos1!$K$2:$K$372158,insumos1!$H$2:$H$372158,Hoja4!H7) -> 7879440924 | N7: =SUMIFS(insumos2!$R$2:$R$399999,insumos2!$J$2:$J$399999,"Aprobado con subsidio",insumos2!$N$2:$N$399999,Hoja4!H7) -> 5835 | O7: =SUMIFS(insumos2!$Q$2:$Q$399999,insumos2!$J$2:$J$399999,"Aprobado con subsidio",insumos2!$N$2:$N$399999,Hoja4!H7) -> 10526 | P7: =SUMIFS(insumos2!$S$2:$S$399999,insumos2!$J$2:$J$399999,"Aprobado con subsidio",insumos2!$N$2:$N$399999,Hoja4!H7) -> 0 | Q7: Alojamiento y servicios de com | R7: 180.3941731 | T7: 68 | U7: SANTANDER | V7: =(VLOOKUP(T7,_xlfn.ANCHORARRAY(insumos2!$Z$2),2,0)/SUM(insumos2!$AA$2:$AA$34)) -> 0.04821802935 | W7: =VLOOKUP(T7,insumos2!$BF$2:$BG$34,2,FALSE)/insumos2!$BM$30 -> 0.05579773322
A8: COMERCIO AL POR MAYOR Y AL POR MENOR; REPARACIÓN DE VEHÍCULOS AUTOMOTORES Y MOTOCICLETAS | B8: G | C8: Comercio al por mayor y al por menor; reparación de vehículos automotores y motocicletas | D8: G | E8: =COUNTIFS(insumos2!$N$2:$N$399999,Hoja4!D8,insumos2!$J$2:$J$399999,"Aprobado con subsidio") -> 3325 | G8: =MID(VLOOKUP(H8,$B$2:$C$23,2,FALSE),1,40) -> información y comunicaciones | H8: J | I8: 773 | J8: 0.05227564753 | K8: =SUMIFS(insumos2!$E$2:$E$399999,insumos2!$J$2:$J$399999,"Aprobado con subsidio",insumos2!$N$2:$N$399999,Hoja4!H8) -> 18837 | L8: 0.05847366869 | M8: =SUMIFS(insumos1!$K$2:$K$372158,insumos1!$H$2:$H$372158,Hoja4!H8) -> 10618420483 | N8: =SUMIFS(insumos2!$R$2:$R$399999,insumos2!$J$2:$J$399999,"Aprobado con subsidio",insumos2!$N$2:$N$399999,Hoja4!H8) -> 10479 | O8: =SUMIFS(insumos2!$Q$2:$Q$399999,insumos2!$J$2:$J$399999,"Aprobado con subsidio",insumos2!$N$2:$N$399999,Hoja4!H8) -> 8358 | P8: =SUMIFS(insumos2!$S$2:$S$399999,insumos2!$J$2:$J$399999,"Aprobado con subsidio",insumos2!$N$2:$N$399999,Hoja4!H8) -> 0 | Q8: información y comunicaciones | R8: 79.75951904 | T8: 13 | U8: BOLÍVAR | V8: =(VLOOKUP(T8,_xlfn.ANCHORARRAY(insumos2!$Z$2),2,0)/SUM(insumos2!$AA$2:$AA$34)) -> 0.01751538514 | W8: =VLOOKUP(T8,insumos2!$BF$2:$BG$34,2,FALSE)/insumos2!$BM$30 -> 0.009590235397
A9: TRANSPORTE Y ALMACENAMIENTO | B9: H | C9: Transporte y almacenamiento | D9: H | E9: =COUNTIFS(insumos2!$N$2:$N$399999,Hoja4!D9,insumos2!$J$2:$J$399999,"Aprobado con subsidio") -> 656 | G9: =MID(VLOOKUP(H9,$B$2:$C$23,2,FALSE),1,42) -> Actividades de atención de la salud humana | H9: Q | I9: 680 | J9: 0.04598633935 | K9: =SUMIFS(insumos2!$E$2:$E$399999,insumos2!$J$2:$J$399999,"Aprobado con subsidio",insumos2!$N$2:$N$399999,Hoja4!H9) -> 15973 | L9: 0.0495832622 | M9: =SUMIFS(insumos1!$K$2:$K$372158,insumos1!$H$2:$H$372158,Hoja4!H9) -> 8300876600 | N9: =SUMIFS(insumos2!$R$2:$R$399999,insumos2!$J$2:$J$399999,"Aprobado con subsidio",insumos2!$N$2:$N$399999,Hoja4!H9) -> 2321 | O9: =SUMIFS(insumos2!$Q$2:$Q$399999,insumos2!$J$2:$J$399999,"Aprobado con subsidio",insumos2!$N$2:$N$399999,Hoja4!H9) -> 13652 | P9: =SUMIFS(insumos2!$S$2:$S$399999,insumos2!$J$2:$J$399999,"Aprobado con subsidio",insumos2!$N$2:$N$399999,Hoja4!H9) -> 0 | Q9: Actividades de atención de la salud humana | R9: 588.1947436 | T9: 66 | U9: RISARALDA | V9: =(VLOOKUP(T9,_xlfn.ANCHORARRAY(insumos2!$Z$2),2,0)/SUM(insumos2!$AA$2:$AA$34)) -> 0.0249543518 | W9: =VLOOKUP(T9,insumos2!$BF$2:$BG$34,2,FALSE)/insumos2!$BM$30 -> 0.02702702703
A10: ALOJAMIENTO Y SERVICIOS DE COMIDA | B10: I | C10: Alojamiento y servicios de comida | D10: I | E10: =COUNTIFS(insumos2!$N$2:$N$399999,Hoja4!D10,insumos2!$J$2:$J$399999,"Aprobado con subsidio") -> 915 | G10: =MID(VLOOKUP(H10,$B$2:$C$23,2,FALSE),1,30) -> Transporte y almacenamiento | H10: H | I10: 656 | J10: 0.04436329208 | K10: =SUMIFS(insumos2!$E$2:$E$399999,insumos2!$J$2:$J$399999,"Aprobado con subsidio",insumos2!$N$2:$N$399999,Hoja4!H10) -> 13607 | L10: 0.04223874342 | M10: =SUMIFS(insumos1!$K$2:$K$372158,insumos1!$H$2:$H$372158,Hoja4!H10) -> 6213964794 | N10: =SUMIFS(insumos2!$R$2:$R$399999,insumos2!$J$2:$J$399999,"Aprobado con subsidio",insumos2!$N$2:$N$399999,Hoja4!H10) -> 8848 | O10: =SUMIFS(insumos2!$Q$2:$Q$399999,insumos2!$J$2:$J$399999,"Aprobado con subsidio",insumos2!$N$2:$N$399999,Hoja4!H10) -> 4759 | P10: =SUMIFS(insumos2!$S$2:$S$399999,insumos2!$J$2:$J$399999,"Aprobado con subsidio",insumos2!$N$2:$N$399999,Hoja4!H10) -> 0 | Q10: Transporte y almacenamiento | R10: 53.78616637 | T10: 54 | U10: NORTE DE SANTANDER | V10: =(VLOOKUP(T10,_xlfn.ANCHORARRAY(insumos2!$Z$2),2,0)/SUM(insumos2!$AA$2:$AA$34)) -> 0.02481909786 | W10: =VLOOKUP(T10,insumos2!$BF$2:$BG$34,2,FALSE)/insumos2!$BM$30 -> 0.02615518745
A11: INFORMACIÓN Y COMUNICACIONES | B11: J | C11: información y comunicaciones | D11: J | E11: =COUNTIFS(insumos2!$N$2:$N$399999,Hoja4!D11,insumos2!$J$2:$J$399999,"Aprobado con subsidio") -> 773 | G11: =MID(VLOOKUP(H11,$B$2:$C$23,2,FALSE),1,30) -> Agricultura, ganadería, caza, | H11: A | I11: 375 | J11: 0.02536011361 | K11: =SUMIFS(insumos2!$E$2:$E$399999,insumos2!$J$2:$J$399999,"Aprobado con subsidio",insumos2!$N$2:$N$399999,Hoja4!H11) -> 8127 | L11: 0.0252277701 | M11: =SUMIFS(insumos1!$K$2:$K$372158,insumos1!$H$2:$H$372158,Hoja4!H11) -> 3789876267 | N11: =SUMIFS(insumos2!$R$2:$R$399999,insumos2!$J$2:$J$399999,"Aprobado con subsidio",insumos2!$N$2:$N$399999,Hoja4!H11) -> 3374 | O11: =SUMIFS(insumos2!$Q$2:$Q$399999,insumos2!$J$2:$J$399999,"Aprobado con subsidio",insumos2!$N$2:$N$399999,Hoja4!H11) -> 4753 | P11: =SUMIFS(insumos2!$S$2:$S$399999,insumos2!$J$2:$J$399999,"Aprobado con subsidio",insumos2!$N$2:$N$399999,Hoja4!H11) -> 0 | Q11: Agricultura, ganadería, caza, | R11: 140.8713693 | T11: 15 | U11: BOYACÁ | V11: =(VLOOKUP(T11,_xlfn.ANCHORARRAY(insumos2!$Z$2),2,0)/SUM(insumos2!$AA$2:$AA$34)) -> 0.0135930209 | W11: =VLOOKUP(T11,insumos2!$BF$2:$BG$34,2,FALSE)/insumos2!$BM$30 -> 0.009590235397
A12: ACTIVIDADES FINANCIERAS Y DE SEGUROS | B12: K | C12: Actividades financieras y de seguros | D12: K | E12: =COUNTIFS(insumos2!$N$2:$N$399999,Hoja4!D12,insumos2!$J$2:$J$399999,"Aprobado con subsidio") -> 230 | G12: =MID(VLOOKUP(H12,$B$2:$C$23,2,FALSE),1,30) -> Educación | H12: P | I12: 335 | J12: 0.02265503483 | K12: =SUMIFS(insumos2!$E$2:$E$399999,insumos2!$J$2:$J$399999,"Aprobado con subsidio",insumos2!$N$2:$N$399999,Hoja4!H12) -> 4122 | L12: 0.0127954803 | M12: =SUMIFS(insumos1!$K$2:$K$372158,insumos1!$H$2:$H$372158,Hoja4!H12) -> 1770952814 | N12: =SUMIFS(insumos2!$R$2:$R$399999,insumos2!$J$2:$J$399999,"Aprobado con subsidio",insumos2!$N$2:$N$399999,Hoja4!H12) -> 576 | O12: =SUMIFS(insumos2!$Q$2:$Q$399999,insumos2!$J$2:$J$399999,"Aprobado con subsidio",insumos2!$N$2:$N$399999,Hoja4!H12) -> 3546 | P12: =SUMIFS(insumos2!$S$2:$S$399999,insumos2!$J$2:$J$399999,"Aprobado con subsidio",insumos2!$N$2:$N$399999,Hoja4!H12) -> 0 | Q12: Educación | R12: 615.625 | T12: 73 | U12: TOLIMA | V12: =(VLOOKUP(T12,_xlfn.ANCHORARRAY(insumos2!$Z$2),2,0)/SUM(insumos2!$AA$2:$AA$34)) -> 0.01758301211 | W12: =VLOOKUP(T12,insumos2!$BF$2:$BG$34,2,FALSE)/insumos2!$BM$30 -> 0.01176983435
A13: ACTIVIDADES INMOBILIARIAS | B13: L | C13: Actividades inmobiliarias | D13: L | E13: =COUNTIFS(insumos2!$N$2:$N$399999,Hoja4!D13,insumos2!$J$2:$J$399999,"Aprobado con subsidio") -> 284 | G13: =MID(VLOOKUP(H13,$B$2:$C$23,2,FALSE),1,30) -> Actividades inmobiliarias | H13: L | I13: 284 | J13: 0.01920605938 | K13: =SUMIFS(insumos2!$E$2:$E$399999,insumos2!$J$2:$J$399999,"Aprobado con subsidio",insumos2!$N$2:$N$399999,Hoja4!H13) -> 1384 | L13: 0.004296202021 | M13: =SUMIFS(insumos1!$K$2:$K$372158,insumos1!$H$2:$H$372158,Hoja4!H13) -> 499642978 | N13: =SUMIFS(insumos2!$R$2:$R$399999,insumos2!$J$2:$J$399999,"Aprobado con subsidio",insumos2!$N$2:$N$399999,Hoja4!H13) -> 565 | O13: =SUMIFS(insumos2!$Q$2:$Q$399999,insumos2!$J$2:$J$399999,"Aprobado con subsidio",insumos2!$N$2:$N$399999,Hoja4!H13) -> 819 | P13: =SUMIFS(insumos2!$S$2:$S$399999,insumos2!$J$2:$J$399999,"Aprobado con subsidio",insumos2!$N$2:$N$399999,Hoja4!H13) -> 0 | Q13: Actividades inmobiliarias | R13: 144.9557522 | T13: 17 | U13: CALDAS | V13: =(VLOOKUP(T13,_xlfn.ANCHORARRAY(insumos2!$Z$2),2,0)/SUM(insumos2!$AA$2:$AA$34)) -> 0.01677148847 | W13: =VLOOKUP(T13,insumos2!$BF$2:$BG$34,2,FALSE)/insumos2!$BM$30 -> 0.01961639058
A14: ACTIVIDADES PROFESIONALES, CIENTÍFICAS Y TÉCNICAS | B14: M | C14: Actividades profesionales, científicas y técnicas | D14: M | E14: =COUNTIFS(insumos2!$N$2:$N$399999,Hoja4!D14,insumos2!$J$2:$J$399999,"Aprobado con subsidio") -> 1799 | G14: =MID(VLOOKUP(H14,$B$2:$C$23,2,FALSE),1,34) -> Otras actividades de servicios | H14: S | I14: 255 | J14: 0.01724487726 | K14: =SUMIFS(insumos2!$E$2:$E$399999,insumos2!$J$2:$J$399999,"Aprobado con subsidio",insumos2!$N$2:$N$399999,Hoja4!H14) -> 2764 | L14: 0.008579987273 | M14: =SUMIFS(insumos1!$K$2:$K$372158,insumos1!$H$2:$H$372158,Hoja4!H14) -> 1423825457 | N14: =SUMIFS(insumos2!$R$2:$R$399999,insumos2!$J$2:$J$399999,"Aprobado con subsidio",insumos2!$N$2:$N$399999,Hoja4!H14) -> 1124 | O14: =SUMIFS(insumos2!$Q$2:$Q$399999,insumos2!$J$2:$J$399999,"Aprobado con subsidio",insumos2!$N$2:$N$399999,Hoja4!H14) -> 1640 | P14: =SUMIFS(insumos2!$S$2:$S$399999,insumos2!$J$2:$J$399999,"Aprobado con subsidio",insumos2!$N$2:$N$399999,Hoja4!H14) -> 0 | Q14: Otras actividades de servicios | R14: 145.9074733 | T14: 50 | U14: META | V14: =(VLOOKUP(T14,_xlfn.ANCHORARRAY(insumos2!$Z$2),2,0)/SUM(insumos2!$AA$2:$AA$34)) -> 0.01677148847 | W14: =VLOOKUP(T14,insumos2!$BF$2:$BG$34,2,FALSE)/insumos2!$BM$30 -> 0.006974716652
A15: ACTIVIDADES DE SERVICIOS ADMINISTRATIVOS Y DE APOYO | B15: N | C15: Actividades de servicios administrativos y de apoyo | D15: N | E15: =COUNTIFS(insumos2!$N$2:$N$399999,Hoja4!D15,insumos2!$J$2:$J$399999,"Aprobado con subsidio") -> 1175 | G15: =MID(VLOOKUP(H15,$B$2:$C$23,2,FALSE),1,40) -> Actividades financieras y de seguros | H15: K | I15: 230 | J15: 0.01555420302 | K15: =SUMIFS(insumos2!$E$2:$E$399999,insumos2!$J$2:$J$399999,"Aprobado con subsidio",insumos2!$N$2:$N$399999,Hoja4!H15) -> 2416 | L15: 0.007499728383 | M15: =SUMIFS(insumos1!$K$2:$K$372158,insumos1!$H$2:$H$372158,Hoja4!H15) -> 1184561313 | N15: =SUMIFS(insumos2!$R$2:$R$399999,insumos2!$J$2:$J$399999,"Aprobado con subsidio",insumos2!$N$2:$N$399999,Hoja4!H15) -> 666 | O15: =SUMIFS(insumos2!$Q$2:$Q$399999,insumos2!$J$2:$J$399999,"Aprobado con subsidio",insumos2!$N$2:$N$399999,Hoja4!H15) -> 1750 | P15: =SUMIFS(insumos2!$S$2:$S$399999,insumos2!$J$2:$J$399999,"Aprobado con subsidio",insumos2!$N$2:$N$399999,Hoja4!H15) -> 0 | Q15: Actividades financieras y de seguros | R15: 262.7627628 | T15: 41 | U15: HUILA | V15: =(VLOOKUP(T15,_xlfn.ANCHORARRAY(insumos2!$Z$2),2,0)/SUM(insumos2!$AA$2:$AA$34)) -> 0.01460742544 | W15: =VLOOKUP(T15,insumos2!$BF$2:$BG$34,2,FALSE)/insumos2!$BM$30 -> 0.006974716652
A16: ADMINISTRACIÓN PÚBLICA Y DEFENSA; PLANES DE SEGURIDAD SOCIAL DE AFILIACIÓN OBLIGATORIA | B16: O | C16: Administración pública y defensa; planes de seguridad social de afiliación obligatoria | D16: O | E16: =COUNTIFS(insumos2!$N$2:$N$399999,Hoja4!D16,insumos2!$J$2:$J$399999,"Aprobado con subsidio") -> 16 | G16: =MID(VLOOKUP(H16,$B$2:$C$23,2,FALSE),1,35) -> Actividades artísticas de entreteni | H16: R | I16: 163 | J16: 0.01102319605 | K16: =SUMIFS(insumos2!$E$2:$E$399999,insumos2!$J$2:$J$399999,"Aprobado con subsidio",insumos2!$N$2:$N$399999,Hoja4!H16) -> 4059 | L16: 0.01259991619 | M16: =SUMIFS(insumos1!$K$2:$K$372158,insumos1!$H$2:$H$372158,Hoja4!H16) -> 2425999607 | N16: =SUMIFS(insumos2!$R$2:$R$399999,insumos2!$J$2:$J$399999,"Aprobado con subsidio",insumos2!$N$2:$N$399999,Hoja4!H16) -> 1033 | O16: =SUMIFS(insumos2!$Q$2:$Q$399999,insumos2!$J$2:$J$399999,"Aprobado con subsidio",insumos2!$N$2:$N$399999,Hoja4!H16) -> 3026 | P16: =SUMIFS(insumos2!$S$2:$S$399999,insumos2!$J$2:$J$399999,"Aprobado con subsidio",insumos2!$N$2:$N$399999,Hoja4!H16) -> 0 | Q16: Actividades artísticas de entreteni | R16: 292.9332043 | T16: 52 | U16: NARIÑO | V16: =(VLOOKUP(T16,_xlfn.ANCHORARRAY(insumos2!$Z$2),2,0)/SUM(insumos2!$AA$2:$AA$34)) -> 0.01176709272 | W16: =VLOOKUP(T16,insumos2!$BF$2:$BG$34,2,FALSE)/insumos2!$BM$30 -> 0.006974716652
A17: EDUCACIÓN | B17: P | C17: Educación | D17: P | E17: =COUNTIFS(insumos2!$N$2:$N$399999,Hoja4!D17,insumos2!$J$2:$J$399999,"Aprobado con subsidio") -> 335 | G17: =MID(VLOOKUP(H17,$B$2:$C$23,2,FALSE),1,31) -> Distribución de agua; evacuació | H17: E | I17: 69 | J17: 0.004666260905 | K17: =SUMIFS(insumos2!$E$2:$E$399999,insumos2!$J$2:$J$399999,"Aprobado con subsidio",insumos2!$N$2:$N$399999,Hoja4!H17) -> 1075 | L17: 0.003337006627 | M17: =SUMIFS(insumos1!$K$2:$K$372158,insumos1!$H$2:$H$372158,Hoja4!H17) -> 519630321 | N17: =SUMIFS(insumos2!$R$2:$R$399999,insumos2!$J$2:$J$399999,"Aprobado con subsidio",insumos2!$N$2:$N$399999,Hoja4!H17) -> 617 | O17: =SUMIFS(insumos2!$Q$2:$Q$399999,insumos2!$J$2:$J$399999,"Aprobado con subsidio",insumos2!$N$2:$N$399999,Hoja4!H17) -> 458 | P17: =SUMIFS(insumos2!$S$2:$S$399999,insumos2!$J$2:$J$399999,"Aprobado con subsidio",insumos2!$N$2:$N$399999,Hoja4!H17) -> 0 | Q17: Distribución de agua; evacuació | R17: 74.23014587 | T17: 23 | U17: CÓRDOBA | V17: =(VLOOKUP(T17,_xlfn.ANCHORARRAY(insumos2!$Z$2),2,0)/SUM(insumos2!$AA$2:$AA$34)) -> 0.008520998174 | W17: =VLOOKUP(T17,insumos2!$BF$2:$BG$34,2,FALSE)/insumos2!$BM$30 -> 0.003487358326
A18: ACTIVIDADES DE ATENCIÓN DE LA SALUD HUMANA Y DE ASISTENCIA SOCIAL | B18: Q | C18: Actividades de atención de la salud humana y de asistencia social | D18: Q | E18: =COUNTIFS(insumos2!$N$2:$N$399999,Hoja4!D18,insumos2!$J$2:$J$399999,"Aprobado con subsidio") -> 680 | G18: =MID(VLOOKUP(H18,$B$2:$C$23,2,FALSE),1,20) -> Explotación de minas | H18: B | I18: 68 | J18: 0.004598633935 | K18: =SUMIFS(insumos2!$E$2:$E$399999,insumos2!$J$2:$J$399999,"Aprobado con subsidio",insumos2!$N$2:$N$399999,Hoja4!H18) -> 1701 | L18: 0.005280230952 | M18: =SUMIFS(insumos1!$K$2:$K$372158,insumos1!$H$2:$H$372158,Hoja4!H18) -> 654107818 | N18: =SUMIFS(insumos2!$R$2:$R$399999,insumos2!$J$2:$J$399999,"Aprobado con subsidio",insumos2!$N$2:$N$399999,Hoja4!H18) -> 1356 | O18: =SUMIFS(insumos2!$Q$2:$Q$399999,insumos2!$J$2:$J$399999,"Aprobado con subsidio",insumos2!$N$2:$N$399999,Hoja4!H18) -> 345 | P18: =SUMIFS(insumos2!$S$2:$S$399999,insumos2!$J$2:$J$399999,"Aprobado con subsidio",insumos2!$N$2:$N$399999,Hoja4!H18) -> 0 | Q18: Explotación de minas | R18: 25.44247788 | T18: 63 | U18: QUINDÍO | V18: =(VLOOKUP(T18,_xlfn.ANCHORARRAY(insumos2!$Z$2),2,0)/SUM(insumos2!$AA$2:$AA$34)) -> 0.01298437817 | W18: =VLOOKUP(T18,insumos2!$BF$2:$BG$34,2,FALSE)/insumos2!$BM$30 -> 0.01220575414
A19: ACTIVIDADES ARTÍSTICAS, DE ENTRETENIMIENTO Y RECREACIÓN | B19: R | C19: Actividades artísticas de entretenimiento y recreación | D19: R | E19: =COUNTIFS(insumos2!$N$2:$N$399999,Hoja4!D19,insumos2!$J$2:$J$399999,"Aprobado con subsidio") -> 163 | G19: =MID(VLOOKUP(H19,$B$2:$C$23,2,FALSE),1,32) -> Suministro de electricidad, gas, | H19: D | I19: 17 | J19: 0.001149658484 | K19: =SUMIFS(insumos2!$E$2:$E$399999,insumos2!$J$2:$J$399999,"Aprobado con subsidio",insumos2!$N$2:$N$399999,Hoja4!H19) -> 177 | L19: 0.0005494420214 | M19: =SUMIFS(insumos1!$K$2:$K$372158,insumos1!$H$2:$H$372158,Hoja4!H19) -> 55923793 | N19: =SUMIFS(insumos2!$R$2:$R$399999,insumos2!$J$2:$J$399999,"Aprobado con subsidio",insumos2!$N$2:$N$399999,Hoja4!H19) -> 100 | O19: =SUMIFS(insumos2!$Q$2:$Q$399999,insumos2!$J$2:$J$399999,"Aprobado con subsidio",insumos2!$N$2:$N$399999,Hoja4!H19) -> 77 | P19: =SUMIFS(insumos2!$S$2:$S$399999,insumos2!$J$2:$J$399999,"Aprobado con subsidio",insumos2!$N$2:$N$399999,Hoja4!H19) -> 0 | Q19: Suministro de electricidad, gas, | R19: 77 | T19: 47 | U19: MAGDALENA | V19: =(VLOOKUP(T19,_xlfn.ANCHORARRAY(insumos2!$Z$2),2,0)/SUM(insumos2!$AA$2:$AA$34)) -> 0.00926489484 | W19: =VLOOKUP(T19,insumos2!$BF$2:$BG$34,2,FALSE)/insumos2!$BM$30 -> 0.005231037489
A20: OTRAS ACTIVIDADES DE SERVICIOS | B20: S | C20: Otras actividades de servicios | D20: S | E20: =COUNTIFS(insumos2!$N$2:$N$399999,Hoja4!D20,insumos2!$J$2:$J$399999,"Aprobado con subsidio") -> 255 | G20: =MID(VLOOKUP(H20,$B$2:$C$23,2,FALSE),1,33) -> Administración pública y defensa; | H20: O | I20: 16 | J20: 0.001082031514 | K20: =SUMIFS(insumos2!$E$2:$E$399999,insumos2!$J$2:$J$399999,"Aprobado con subsidio",insumos2!$N$2:$N$399999,Hoja4!H20) -> 1380 | L20: 0.004283785252 | M20: =SUMIFS(insumos1!$K$2:$K$372158,insumos1!$H$2:$H$372158,Hoja4!H20) -> 538617842 | N20: =SUMIFS(insumos2!$R$2:$R$399999,insumos2!$J$2:$J$399999,"Aprobado con subsidio",insumos2!$N$2:$N$399999,Hoja4!H20) -> 250 | O20: =SUMIFS(insumos2!$Q$2:$Q$399999,insumos2!$J$2:$J$399999,"Aprobado con subsidio",insumos2!$N$2:$N$399999,Hoja4!H20) -> 1130 | P20: =SUMIFS(insumos2!$S$2:$S$399999,insumos2!$J$2:$J$399999,"Aprobado con subsidio",insumos2!$N$2:$N$399999,Hoja4!H20) -> 0 | Q20: Administración pública y defensa; | R20: 452 | T20: 20 | U20: CESAR | V20: =(VLOOKUP(T20,_xlfn.ANCHORARRAY(insumos2!$Z$2),2,0)/SUM(insumos2!$AA$2:$AA$34)) -> 0.00743896666 | W20: =VLOOKUP(T20,insumos2!$BF$2:$BG$34,2,FALSE)/insumos2!$BM$30 -> 0.003487358326
A21: ACTIVIDADES DE LOS HOGARES INDIVIDUALES EN CALIDAD DE EMPLEADORES; ACTIVIDADES NO DIFERENCIADAS DE LOS HOGARES INDIVIDUALES COMO PRODUCTORES DE BIENES Y SERVICIOS PARA USO PROPIO | B21: T | C21: Actividad de los hogares en calidad de empleadores; actividades no diferenciadas de los hogares individuales como productores de bienes y servicios para uso propio | D21: T | E21: =COUNTIFS(insumos2!$N$2:$N$399999,Hoja4!D21,insumos2!$J$2:$J$399999,"Aprobado con subsidio") -> 4 | G21: =MID(VLOOKUP(H21,$B$2:$C$23,2,FALSE),1,30) -> Actividad de los hogares en ca | H21: T | I21: 4 | J21: 0.0002705078785 | K21: =SUMIFS(insumos2!$E$2:$E$399999,insumos2!$J$2:$J$399999,"Aprobado con subsidio",insumos2!$N$2:$N$399999,Hoja4!H21) -> 21 | L21: 6.518803644e-05 | M21: =SUMIFS(insumos1!$K$2:$K$372158,insumos1!$H$2:$H$372158,Hoja4!H21) -> 6297809 | N21: =SUMIFS(insumos2!$R$2:$R$399999,insumos2!$J$2:$J$399999,"Aprobado con subsidio",insumos2!$N$2:$N$399999,Hoja4!H21) -> 0 | O21: =SUMIFS(insumos2!$Q$2:$Q$399999,insumos2!$J$2:$J$399999,"Aprobado con subsidio",insumos2!$N$2:$N$399999,Hoja4!H21) -> 21 | P21: =SUMIFS(insumos2!$S$2:$S$399999,insumos2!$J$2:$J$399999,"Aprobado con subsidio",insumos2!$N$2:$N$399999,Hoja4!H21) -> 0 | Q21: Actividad de los hogares en ca | T21: 19 | U21: CAUCA | V21: =(VLOOKUP(T21,_xlfn.ANCHORARRAY(insumos2!$Z$2),2,0)/SUM(insumos2!$AA$2:$AA$34)) -> 0.00554541151 | W21: =VLOOKUP(T21,insumos2!$BF$2:$BG$34,2,FALSE)/insumos2!$BM$30 -> 0.005231037489
A22: ACTIVIDADES DE ORGANIZACIONES Y ENTIDADES EXTRATERRITORIALES | B22: U | C22: Actividad de organizaciones y entidades extraterritoriales | D22: U | E22: =COUNTIFS(insumos2!$N$2:$N$399999,Hoja4!D22,insumos2!$J$2:$J$399999,"Aprobado con subsidio") -> 0 | G22: =MID(VLOOKUP(H22,$B$2:$C$23,2,FALSE),1,24) -> Otras | H22: Otras | I22: 3 | J22: 0.0002028809089 | K22: =SUMIFS(insumos2!$E$2:$E$399999,insumos2!$J$2:$J$399999,"Aprobado con subsidio",insumos2!$N$2:$N$399999,Hoja4!H22) -> 3 | L22: 9.312576635e-06 | M22: =SUMIFS(insumos1!$K$2:$K$372158,insumos1!$H$2:$H$372158,Hoja4!H22) -> 2117358 | N22: =SUMIFS(insumos2!$R$2:$R$399999,insumos2!$J$2:$J$399999,"Aprobado con subsidio",insumos2!$N$2:$N$399999,Hoja4!H22) -> 0 | O22: =SUMIFS(insumos2!$Q$2:$Q$399999,insumos2!$J$2:$J$399999,"Aprobado con subsidio",insumos2!$N$2:$N$399999,Hoja4!H22) -> 3 | P22: =SUMIFS(insumos2!$S$2:$S$399999,insumos2!$J$2:$J$399999,"Aprobado con subsidio",insumos2!$N$2:$N$399999,Hoja4!H22) -> 0 | Q22: Otras | T22: 85 | U22: CASANARE | V22: =(VLOOKUP(T22,_xlfn.ANCHORARRAY(insumos2!$Z$2),2,0)/SUM(insumos2!$AA$2:$AA$34)) -> 0.004869141814 | W22: =VLOOKUP(T22,insumos2!$BF$2:$BG$34,2,FALSE)/insumos2!$BM$30 -> 0.003487358326
A23: OTRAS | B23: Otras | C23: Otras | D23: Otras | E23: =COUNTIFS(insumos2!$N$2:$N$399999,Hoja4!D23,insumos2!$J$2:$J$399999,"Aprobado con subsidio") -> 3 | G23: =MID(VLOOKUP(H23,$B$2:$C$23,2,FALSE),1,45) -> Actividad de organizaciones y entidades extra | H23: U | I23: 0 | J23: 0 | K23: =SUMIFS(insumos2!$E$2:$E$399999,insumos2!$J$2:$J$399999,"Aprobado con subsidio",insumos2!$N$2:$N$399999,Hoja4!H23) -> 0 | L23: 0 | M23: =SUMIFS(insumos1!$K$2:$K$372158,insumos1!$H$2:$H$372158,Hoja4!H23) -> 0 | N23: =SUMIFS(insumos2!$R$2:$R$399999,insumos2!$J$2:$J$399999,"Aprobado con subsidio",insumos2!$N$2:$N$399999,Hoja4!H23) -> 0 | O23: =SUMIFS(insumos2!$Q$2:$Q$399999,insumos2!$J$2:$J$399999,"Aprobado con subsidio",insumos2!$N$2:$N$399999,Hoja4!H23) -> 0 | P23: =SUMIFS(insumos2!$S$2:$S$399999,insumos2!$J$2:$J$399999,"Aprobado con subsidio",insumos2!$N$2:$N$399999,Hoja4!H23) -> 0 | Q23: Actividad de organizaciones y entidades extra | T23: 70 | U23: SUCRE | V23: =(VLOOKUP(T23,_xlfn.ANCHORARRAY(insumos2!$Z$2),2,0)/SUM(insumos2!$AA$2:$AA$34)) -> 0.002569824846 | W23: =VLOOKUP(T23,insumos2!$BF$2:$BG$34,2,FALSE)/insumos2!$BM$30 -> 0.001307759372
E24: =SUM(E2:E23) -> 14787 | H24: General | I24: =SUM(I2:I23) -> 14787 | K24: =SUM(K2:K23) -> 322145 | M24: =SUM(M2:M23) -> 157431723044 | N24: =SUM(N2:N23) -> 136664 | O24: =SUM(O2:O23) -> 185481 | P24: =SUM(P2:P23) -> 0 | T24: 18 | U24: CAQUETÁ | V24: =(VLOOKUP(T24,_xlfn.ANCHORARRAY(insumos2!$Z$2),2,0)/SUM(insumos2!$AA$2:$AA$34)) -> 0.003989991208 | W24: =VLOOKUP(T24,insumos2!$BF$2:$BG$34,2,FALSE)/insumos2!$BM$30 -> 0.001743679163
T25: 44 | U25: LA GUAJIRA | V25: =(VLOOKUP(T25,_xlfn.ANCHORARRAY(insumos2!$Z$2),2,0)/SUM(insumos2!$AA$2:$AA$34)) -> 0.001555420302 | W25: =VLOOKUP(T25,insumos2!$BF$2:$BG$34,2,FALSE)/insumos2!$BM$30 -> 0
T26: 88 | U26: SAN ANDRÉS | V26: =(VLOOKUP(T26,_xlfn.ANCHORARRAY(insumos2!$Z$2),2,0)/SUM(insumos2!$AA$2:$AA$34)) -> 0.001217285453 | W26: =VLOOKUP(T26,insumos2!$BF$2:$BG$34,2,FALSE)/insumos2!$BM$30 -> 0
T27: 81 | U27: ARAUCA | V27: =(VLOOKUP(T27,_xlfn.ANCHORARRAY(insumos2!$Z$2),2,0)/SUM(insumos2!$AA$2:$AA$34)) -> 0.002028809089 | W27: =VLOOKUP(T27,insumos2!$BF$2:$BG$34,2,FALSE)/insumos2!$BM$30 -> 0.0004359197908
A28: Código | B28: Nombre | D28: Municipio | T28: 86 | U28: PUTUMAYO | V28: =(VLOOKUP(T28,_xlfn.ANCHORARRAY(insumos2!$Z$2),2,0)/SUM(insumos2!$AA$2:$AA$34)) -> 0.002231689998 | W28: =VLOOKUP(T28,insumos2!$BF$2:$BG$34,2,FALSE)/insumos2!$BM$30 -> 0.001307759372
A29: 5 | B29: Antioquia | D29: Código | E29: Nombre | T29: 27 | U29: CHOCÓ | V29: =(VLOOKUP(T29,_xlfn.ANCHORARRAY(insumos2!$Z$2),2,0)/SUM(insumos2!$AA$2:$AA$34)) -> 0.000743896666 | W29: =VLOOKUP(T29,insumos2!$BF$2:$BG$34,2,FALSE)/insumos2!$BM$30 -> 0
